Workbook

Sheet Total Program Inputs
A1: MONTANA-DAKOTA UTILITIES CO.
A2: GAS UTILITY - SOUTH DAKOTA
A3: DSM SUMMARY
A4: 2020 ACTUAL
A6: Incentive Year: | C6: 2020
I8: Incentive | K8: Admin | M8: Admin | O8: Total
E9: Participants | G9: Dk Savings | I9: Expense | K9: Allocation | M9: Expense 1/ | O9: Expense | Q9: Incentive | S9: dk/part.
A10: Residential
A11: High Efficiency Furnace - 95%+ (new) | E11: 242 | G11: 1087 | I11: 72600 | K11: =+ROUND(I11/$I$27,4) -> 0.4165 | M11: =+ROUND(K11*$E$32,0) -> 5087 | O11: =+I11+M11 -> 77687 | Q11: 300 | S11: =ROUND(+G11/E11,1) -> 4.5
A12: High Efficiency Furnace - 95%+ (replacement) | E12: 264 | G12: 4909 | I12: 79200 | K12: =+ROUND(I12/$I$27,4) -> 0.4543 | M12: =+ROUND(K12*$E$32,0) -> 5548 | O12: 84748 | Q12: 300 | S12: =ROUND(+G12/E12,1) -> 18.6
A13: Programmable Thermostats - Tier 1 | E13: 82 | G13: 173 | I13: 1230 | K13: =+ROUND(I13/$I$27,4) -> 0.0071 | M13: =+ROUND(K13*$E$32,0) -> 87 | O13: =+I13+M13 -> 1317 | Q13: 15 | S13: 2.1
A14: Programmable Thermostats - Tier 2 | E14: 172 | G14: 912 | I14: 10316 | K14: =+ROUND(I14/$I$27,4) -> 0.0592 | M14: =+ROUND(K14*$E$32,0) -> 723 | O14: 11039 | Q14: 60 | S14: =ROUND(+G14/E14,1) -> 5.3
A15: Total Residential | E15: =SUM(E11:E14) -> 760 | G15: =SUM(G11:G14) -> 7081 | I15: =SUM(I11:I14) -> 163346 | K15: =SUM(K11:K14) -> 0.9371 | M15: =SUM(M11:M14) -> 11445 | O15: =SUM(O11:O14) -> 174791
A17: Commmercial & Industrial
A18: High Efficiency Furnace - 95%+ (new) | E18: 7 | G18: 34 | I18: 2100 | K18: =+ROUND(I18/$I$27,4) -> 0.012 | M18: =+ROUNDDOWN(K18*$E$32,0) -> 146 | O18: =+I18+M18 -> 2246 | Q18: 300 | S18: =ROUND(+G18/E18,1) -> 4.9
A19: High Efficiency Furnace - 95%+ (replacement) | E19: 17 | G19: 340 | I19: 5100 | K19: =+ROUND(I19/$I$27,4) -> 0.0293 | M19: =+ROUND(K19*$E$32,0) -> 358 | O19: 5458 | Q19: 300 | S19: =ROUND(+G19/E19,1) -> 20
A20: Custom | E20: 2 | G20: 689 | I20: 3285 | K20: 0.0188 | M20: =+ROUND(K20*$E$32,0) -> 230 | O20: 3515 | Q20: =+I20 -> 3285 | S20: =ROUND(+G20/E20,1) -> 344.5
A21: Total Commercial and Industrial | E21: =SUM(E18:E20) -> 26 | G21: =SUM(G18:G20) -> 1063 | I21: =SUM(I18:I20) -> 10485 | K21: =SUM(K18:K20) -> 0.0601 | M21: =SUM(M18:M20) -> 734 | O21: =SUM(O18:O20) -> 11219
A23: Subtotal | E23: =+E21+E15 -> 786 | G23: =+G21+G15 -> 8144 | I23: =+I21+I15 -> 173831 | K23: =+K21+K15 -> 0.9972 | M23: =+M21+M15 -> 12179 | O23: =+O21+O15 -> 186010
A25: Energy Audits | E25: 3 | G25: 0 | I25: 484 | K25: =+ROUND(I25/$I$27,4) -> 0.0028 | M25: =+ROUND(K25*$E$32,0) -> 34 | O25: =+I25+M25 -> 518
A27: Total South Dakota | E27: =+E25+E23 -> 789 | G27: =+G25+G23 -> 8144 | I27: =+I25+I23 -> 174315 | K27: =+K25+K23 -> 1 | M27: =+M25+M23 -> 12213 | O27: =+O25+O23 -> 186528
A30: 1/ Administration expense allocated on incentive and program costs.
A32: Admin costs | E32: =7179+5034 -> 12213

Sheet Database Inputs
A1: South Dakota Natural Gas DSM Programs
A2: Technical Assumptions
I3: Cost Assumptions
H5: Average | M5: Year 1 | N5: Total
C6: # of | F6: Average | G6: Average | H6: Non-Energy | L6: Avg | M6: Total | N6: Operating/ | O6: Admin &
B7: Customer | C7: Particip | D7: Project | E7: Baseline | F7: High | G7: dk Saved | H7: Benefits | I7: Cost | J7: Cost High | K7: Increm | L7: Incentive | M7: Admin | N7: Marketing | O7: Promo | R7: Total | S7: Total | T7: Total
A8: 2018 - 2020 Program Years | B8: Class | C8: =+'Total Program Inputs'!C6 -> 2020 | D8: Life | E8: Efficiency | F8: Efficiency | G8: / part | H8: / Part | I8: Std Equip | J8: Eff Equip | K8: Cost | L8: / Part | M8: Costs | N8: Costs | O8: Cost Yr. 1 | P8: Technical Notes | Q8: Participation Notes | R8: Incentives | S8: Incentives | T8: Incentives
A9: Residential | R9: Year 1 | S9: Year 2 | T9: Year 3
A10: Furnace Tier 2 - 95%+ AFUE - New | B10: Res | C10: =+'Total Program Inputs'!E11 -> 242 | D10: 20 | E10: 90 | F10: 95 | G10: =+'Total Program Inputs'!S11 -> 4.5 | H10: 720 | I10: 1380 | J10: 2000 | K10: 333 | L10: 300 | M10: =+'Res .95+% Res Furnace - NEW'!$F$11 -> 5087 | N10: 0 | O10: =+'Total Program Inputs'!M11 -> 5087 | P10: 75,000 btuh Average | Q10: Past program History | R10: =ROUND(L10*C10,0) -> 72600 | S10: =ROUND(#REF!*L10,0) ->  | T10: =ROUND(L10*#REF!,0) ->  | V10: 75,000 btuh Avg., Incremental Cost from Market Research by Pam Albers
A11: Furnace Tier 2 - 95%+ AFUE - Replacement | B11: Res | C11: =+'Total Program Inputs'!E12 -> 264 | D11: 20 | E11: 80 | F11: 95 | G11: =+'Total Program Inputs'!S12 -> 18.6 | H11: 720 | I11: 880 | J11: 2000 | K11: 1167 | L11: 300 | M11: =+'Res .95+% Res Furnace - Replace'!$F$11 -> 5548 | N11: 0 | O11: =+'Total Program Inputs'!M12 -> 5548 | P11: 75,000 btuh Average | Q11: Past program History | R11: =ROUND(L11*C11,0) -> 79200 | S11: =ROUND(#REF!*L11,0) ->  | T11: =ROUND(L11*#REF!,0) ->  | V11: 75,000 btuh Avg., Incremental Cost from Market Research by Pam Albers
A12: Programmable Thermostats - Tier 1 | B12: Res | C12: =+'Total Program Inputs'!E13 -> 82 | D12: 10 | E12: NA | F12: NA | G12: =+'Total Program Inputs'!S13 -> 2.1 | H12: 0 | I12: NA | J12: NA | K12: 30 | L12: 15 | M12: ='Programmable Tstats - Tier 1'!$F$11 -> 87 | N12: 0 | O12: =+'Total Program Inputs'!M13 -> 87 | P12: 1 showerhead, 1kitchen, 2 faucet | Q12: assume 50% app rate | R12: =ROUND(L12*C12,0) -> 1230 | S12: =ROUND(#REF!*L12,0) ->  | T12: =ROUND(L12*#REF!,0) -> 
A13: Programmable Thermostats - Tier 2 | B13: Res | C13: =+'Total Program Inputs'!E14 -> 172 | D13: 10 | E13: NA | F13: NA | G13: =+'Total Program Inputs'!S14 -> 5.3 | H13: 41 | K13: 110 | L13: 60 | O13: =+'Total Program Inputs'!M14 -> 723 | S13: =ROUND(#REF!*L13,0) -> 
A14: Residential Energy Assessments | B14: Res | C14: =+'Total Program Inputs'!E25 -> 3 | D14: 0 | E14: NA | F14: NA | G14: 0 | H14: 0 | K14: 500 | L14: 450 | O14: =+'Total Program Inputs'!M25 -> 34 | S14: =ROUND(#REF!*L14,0) -> 
A15: Commercial
A16: Furnace Tier 2 - 95%+ AFUE - New | B16: Comm | C16: =+'Total Program Inputs'!E18 -> 7 | D16: 20 | E16: 90 | F16: 95 | G16: =+'Total Program Inputs'!S18 -> 4.9 | H16: 720 | I16: 880 | J16: 2000 | K16: 333 | L16: 300 | M16: =+'Comm 95+% Furnace - NEW'!$F$11 -> 146 | N16: 0 | O16: =+'Total Program Inputs'!M18 -> 146 | P16: 75,000 btuh Average | Q16: Market Information | R16: =ROUND(L16*C16,0) -> 2100 | S16: =ROUND(#REF!*L16,0) ->  | T16: =ROUND(L16*#REF!,0) ->  | V16: 75,000 btuh Avg., Incremental Cost from Market Research by Pam Albers
A17: Furnace Tier 2 - 95%+ AFUE - Replacement | B17: Comm | C17: =+'Total Program Inputs'!E19 -> 17 | D17: 20 | E17: 80 | F17: 95 | G17: =+'Total Program Inputs'!S19 -> 20 | H17: 720 | I17: 880 | J17: 2000 | K17: 1167 | L17: 300 | M17: =+'Comm 95+% Furnace - Replace'!$F$11 -> 358 | N17: 0 | O17: =+'Total Program Inputs'!M19 -> 358 | P17: 75,000 btuh Average | Q17: Market Information | R17: =ROUND(L17*C17,0) -> 5100 | S17: =ROUND(#REF!*L17,0) ->  | T17: =ROUND(L17*#REF!,0) ->  | V17: 75,000 btuh Avg., Incremental Cost from Market Research by Pam Albers
A18: Custom Efficiency | B18: Comm | C18: =+'Total Program Inputs'!E20 -> 2 | D18: 15 | E18: NA | F18: NA | G18: 0 | H18: 0 | I18: NA | J18: NA | K18: 15000 | L18: 3000 | M18: =+'Comm Custom'!F11 -> 230 | N18: 0 | O18: =+'Total Program Inputs'!M20 -> 230 | R18: =ROUND(L18*C18,0) -> 6000 | S18: =ROUND(#REF!*L18,0) ->  | T18: =ROUND(L18*#REF!,0) -> 
A19: Totals | B19: =SUM(C19:C19) -> 789 | C19: =SUM(C10:C18) -> 789 | Q19: Total Incentives
Q20: Customer Education/info

Sheet Gas Input Table Summary
A1: Montana-Dakota Utilities Co.
A2: 2020 Input Data Summary
A3: South Dakota Natural Gas Conservation Model
A6: Input No. | B6: Input Data Description | C6: Information Source | D6: SD Res. | E6: SD Comm.
A7: 1 | B7: Retail Rate ($/dk) | C7: Projected average 2021 Cost of Gas plus February 2021 Distribution Delivery Charge. | D7: =+'Gas Costs'!C11 -> 6.088 | E7: =+'Gas Costs'!E11 -> 5.182 | F7: Retail and Demand calculation - Annual PGA
B8: Escalation Rate | D8: 0.035 | E8: 0.035 | F8: x
A9: 2 | B9: Non-Gas Fuel Retail ($/fuel/unit) | C9: Average retail cost of non gas fuel if measures also saves kWh, gallons of water, etc. (for analysis purposes, used electric as Non-Gas Fuel Retail Rate) | D9: =+'Gas Costs'!G39 -> 0.12423 | E9: =+'Gas Costs'!G52 -> 0.12049 | F9: Electric Rate Compsion File and took the information off that as the base and then verified with Black Hills website
B10: Escalation Rate | D10: 0.035 | E10: 0.035 | F10: x
B11: Non-Gas Fuel Units (ie. kWh, Gallons, etc) | D11: Kwh | E11: Kwh
A12: 3 | B12: Commodity Cost ($/dk) | C12: Estimated gas costs using projected 2020 winter gas costs February 2021 pipeline commodity | D12: =+'Gas Costs'!E16 -> 2.516 | E12: =+D12 -> 2.516 | F12: Retail and Demand calculation - Annual PGA
B13: Escalation Rate | D13: 0.035 | E13: 0.035 | F13: x
A14: 4 | B14: Demand Cost ($/dk/Yr) | C14: Annual cost of firm capacity on pipeline | D14: =+'Gas Costs'!C23 -> 148.86 | E14: =+D14 -> 148.86 | F14: Retail and Demand calculation - Annual PGA
B15: Escalation Rate | D15: 0.01 | E15: 0.01 | F15: x
A16: 5 | B16: Peak Reduction Factor | C16: Estimated average peak day reduction factor caused by implementing the measure (s) | D16: 0.01 | E16: 0.01
A17: 6 | B17: Variable O&M ($/dk) | C17: Estimated variable O&M that will be avoided due the implementing the measure | D17: 0 | E17: 0 | F17: x
B18: Escalation Rate | D18: 0 | E18: 0 | F18: x
A19: 7 | B19: Non-Gas Fuel Cost ($/Fuel Unit) | C19: Average commodity cost of non gas fuel if measures also saves kWh, gallons of water, etc. (for analysis purposes, used electric as Non-Gas Fuel Cost) | D19: =+'Gas Costs'!C55 -> 0.02738 | E19: =+D19 -> 0.02738 | F19: Black Hills Fuel & Purchased power adjustment per website, Sheet 12 of Section No 3C of Black Hills Power SD Electric Rate Book
B20: Escalation Rate | D20: 0.035 | E20: 0.035
A21: 8 | B21: Non-Gas Fuel Loss Factor | C21: Non-Gas fuel loss factor (for analysis purposes, used Montana-Dakota Utilities 12 month average ending November 2019 line loss factor) | D21: 0.067 | E21: =+D21 -> 0.067 | F21: x
A22: 9 | B22: Gas Environmental Damage Factor | C22: Per Minnesota CIP triennium 2017 - 2019 | D22: 0.38 | E22: 0.38 | F22: Use MN
B23: Escalation Rate | D23: 0.0216 | E23: 0.0216 | F23: Use MN
A24: 10 | B24: Non Gas Fuel Environmental Damage Factor | C24: Not Applicable | D24: 0 | E24: 0
B25: Escalation Rate | D25: 0 | E25: 0
A26: 11 | B26: Participant Discount Rate | C26: Federal Reserve Consumer Credit Interest Rate 12 Months ended December 31, 2018 | D26: 0.1032 | E26: =+D26 -> 0.1032
A27: 12 | B27: Utility Discount Rate | C27: Montana-Dakota's authorized average cost of capital | D27: 0.07216 | E27: 0.07216 | F27: Authorized per Docket NO. EL 15-024
A28: 13 | B28: Societal Discount Rate | C28: Equal to the 30 year T-Bill rate average for Twelve Months Ending December 31, 2020 | D28: ='T bill'!B69/100 -> 0.0247 | E28: =D28 -> 0.0247
A29: 14 | B29: General Input Data Year = | C29: Year data was input | D29: ='Total Program Inputs'!C6 -> 2020 | E29: ='Total Program Inputs'!C6 -> 2020
A30: 15 | B30: Project Analysis Year | C30: Year(s) program will be implemented | D30: ='Total Program Inputs'!C6 -> 2020 | E30: ='Total Program Inputs'!C6 -> 2020
D31: =D30+1 -> 2021 | E31: 2021
D32: 2022 | E32: 2022
A33: 16 | B33: Utility Project Costs | C33: Total direct cost to the utility caused by implementing the program(s)
A34: 17 | B34: Direct Participant Costs ($/Part.) | C34: Direct costs that the participant would have to participate in the program
A35: 18 | B35: Participant Non-Energy Costs (Annual $/Part.) Yr. 1 | C35: Annual participant non-energy costs if applicable caused by implementing the measure (Not Applicable) | D35: 0 | E35: 0
B36: Yr. 2 | D36: 0 | E36: 0
B37: Yr. 3 | D37: 0 | E37: 0
B38: Escalation Rate Yr. 1 | D38: 0 | E38: 0
B39: Escalation Rate Yr. 2 | D39: 0 | E39: 0
B40: Escalation Rate Yr. 3 | D40: 0 | E40: 0
A41: 19 | B41: Participant Non-Energy Savings (Annual $/Part) Yr. 1 | C41: Participant non energy savings if applicable caused by implementing the measure (Not Applicable) | D41: 0 | E41: 0
B42: Yr. 2 | D42: 0 | E42: 0
B43: Yr. 3 | D43: 0 | E43: 0
B44: Escalation Rate Yr. 1 | D44: 0 | E44: 0
B45: Escalation Rate Yr. 2 | D45: 0 | E45: 0
B46: Escalation Rate Yr. 3 | D46: 0 | E46: 0
A47: 20 | B47: Project Life (Years) | C47: Based on the estimated useful life of the energy saving equipment (20 years maximum)
A48: 21 | B48: Avg. Dk/Part. Saved | C48: Avg energy reduction (Dk) caused by the program(s)
A49: 22 | B49: Avg Non-Gas Fuel Units/Part. Saved Yr. 1 | C49: Average non-gas fuel units saved or added due to implementing the measure (for analysis purposes, used Kwh)
B50: Yr. 2 | D50: 0 | E50: 0
B51: Yr. 3 | D51: 0 | E51: 0
A52: 22a | B52: Avg Additional Non-Gas Fuel Units/ Part. Used Yr. 1 | D52: 0 | E52: 0
B53: Yr. 2 | D53: 0 | E53: 0
B54: Yr. 3 | D54: 0 | E54: 0
A55: 23 | B55: Number of Participants | C55: Total number of expected participants is the program(s)
A56: 24 | B56: Total Annual Dk Saved | C56: Total Dk saved from the program in the year implemented
A57: 25 | B57: Incentive/Participant | C57: Incentive provided to the participant
A58: 26 | B58: Distribution Delivery Charge | C58: Weighted Average of Montana-Dakota's Distribution Delivery Charge | D58: =+'Gas Costs'!C10 -> 1.836 | E58: =+'Gas Costs'!E10 -> 0.93
A59: 27 | B59: Effective Fed & State Income Tax Rate | C59: Montana-Dakota's effective tax rate | D59: 0.21 | E59: 0.21

Sheet Gas Costs
A1: MONTANA-DAKOTA UTILITIES CO.
A2: GAS UTILITY - SOUTH DAKOTA
A3: PROJECTED COST OF GAS - 2020
C6: South Dakota
C7: Residential | E7: Firm General
A8: Retail Rate
A9: Average cost of gas 1/ | C9: 4.252 | E9: =+C9 -> 4.252
A10: Margin | C10: 1.836 | E10: 0.93 | F10: 2/
A11: Total Retail Rate | C11: =SUM(C9:C10) -> 6.088 | E11: =SUM(E9:E10) -> 5.182
A14: Gas Commodity | C14: 16164038
A15: Non-gas commodity | C15: 847024
A16: Total | C16: =SUM(C14:C15) -> 17011062 | E16: =ROUND(+C16/C18/0.99,3) -> 2.516 | F16: per dk adj. for losses
A18: Dk deliveries | C18: 6830575
A20: Demand Cost (Avoided Capacity) ($/dk/yr)
A21: Total Demand Charges (February 2021 PGA) | C21: 12460586
A22: Capacity requirements 3/ | C22: 83708
A23: Demand Costs | C23: =+ROUND(C21/C22,2) -> 148.86
A26: 1/ Based on February 2021 PGA adjusted to reflect the projected annual 2021 gas commodity cost.
A27: 2/ Meters rated < 500 cubic feet.
A28: 3/ FT-1, FT-1 negotiated contract and T-FTG-1 capacity.
A31: Electric - Black Hills Power
A32: Residential
A33: Base Rate | B33: 2020-01-01 | C33: 12 | E33: 12 | G33: 0 | H33: 4/
A34: Energy Charge
A35: All Kwh | C35: 12000 | E35: 0.08827 | G35: =C35*E35 -> 1059.24
A36: Cost Adjustment | C36: 12000 | E36: 0.03596 | G36: =C36*E36 -> 431.52
A37: Total Bill | G37: =SUM(G33:G36) -> 1490.76
A39: Average Realization | G39: =ROUND(G37/C35,5) -> 0.12423
A41: Commercial (Small general service)
A42: Base Rate | C42: 12 | E42: 15 | G42: 0 | H42: 4/
A43: Energy Charge
A44: First 3000 Kwh | C44: 3000 | E44: 0.077 | G44: =C44*E44 -> 231
A45: Over 3,000 Kwh | C45: 69000 | E45: 0.06026 | G45: 4157.94
A46: Cost Adjustment | C46: =SUM(C44:C45) -> 72000 | E46: 0.03796 | G46: 2733.12
A47: Demand Charge
A48: First 50 KW | C48: 50 | E48: 8 | G48: 400
A49: Over 50 KW | C49: 150 | E49: 7.69 | G49: 1153.5
A50: Total Bill | G50: =SUM(G42:G49) -> 8675.56
A52: Average Realization | G52: =ROUND(G50/C46,5) -> 0.12049
A54: Cost of Fuel
A55: Base | C55: 0.02738
A57: 4/ Base charge not included for conservation calculations as it has no relation to savings
A58: on consumption.

Sheet T bill
A2: Website Hyperlink: | B2: https://www.federalreserve.gov/datadownload/Choose.aspx?rel=H15
A4: Then follow instructions to "build your package"
A6: Download Page | B6: H.15 Selected Interest Rates for Nov 09, 2016
A7: Series Description | B7: 3-month Treasury bill secondary market rate discount basis
A8: Unit: | B8: Percent:_Per_Year
A9: Multiplier: | B9: 1
A10: Currency: | B10: NA
A11: Unique Identifier: | B11: H15/H15/RIFSGFSM03_N.A
A12: Time Period | B12: RIFSGFSM03_N.A
A13: 1966 | B13: 4.86
A14: 1967 | B14: 4.29
A15: 1968 | B15: 5.34
A16: 1969 | B16: 6.67
A17: 1970 | B17: 6.39
A18: 1971 | B18: 4.33
A19: 1972 | B19: 4.06
A20: 1973 | B20: 7.04
A21: 1974 | B21: 7.85
A22: 1975 | B22: 5.79
A23: 1976 | B23: 4.98
A24: 1977 | B24: 5.26
A25: 1978 | B25: 7.18
A26: 1979 | B26: 10.05
A27: 1980 | B27: 11.39
A28: 1981 | B28: 14.04
A29: 1982 | B29: 10.6
A30: 1983 | B30: 8.62
A31: 1984 | B31: 9.54
A32: 1985 | B32: 7.47
A33: 1986 | B33: 5.97
A34: 1987 | B34: 5.78
A35: 1988 | B35: 6.67
A36: 1989 | B36: 8.11
A37: 1990 | B37: 7.5
A38: 1991 | B38: 5.38
A39: 1992 | B39: 3.43
A40: 1993 | B40: 3
A41: 1994 | B41: 4.25
A42: 1995 | B42: 5.49
A43: 1996 | B43: 5.01
A44: 1997 | B44: 5.06
A45: 1998 | B45: 4.78
A46: 1999 | B46: 4.64
A47: 2000 | B47: 5.82
A48: 2001 | B48: 3.4
A49: 2002 | B49: 1.61
A50: 2003 | B50: 1.01
A51: 2004 | B51: 1.37
A52: 2005 | B52: 3.15
A53: 2006 | B53: 4.73
A54: 2007 | B54: 4.36
A55: 2008 | B55: 1.37
A56: 2009 | B56: 0.15
A57: 2010 | B57: 0.14
A58: 2011 | B58: 0.05
A59: 2012 | B59: 0.09
A60: 2013 | B60: 0.06
A61: 2014 | B61: 0.03
A62: 2015 | B62: 0.05
A63: 2016 | B63: 0.32
A64: 2017 | B64: 0.93
A65: 2018 | B65: 1.94
A66: 2019 | B66: 2.06
A67: 2020 | B67: 0.37
A69: 30 Year Average | B69: =ROUND(AVERAGE(B38:B67),2) -> 2.47

Sheet Summary of Ratios
A1: Montana-Dakota Utilities Co.
A2: South Dakota Gas DSM Program Summary
A4: `
B6: Customer | G6: Total Resource
A7: Program | B7: Class | C7: RIM | D7: Utility | E7: Societal | F7: Participant | G7: Cost
A8: Total Portfolio | C8: ='Total Program'!G42 -> 1.23 | D8: ='Total Program'!G43 -> 2.22 | E8: ='Total Program'!G44 -> 1.91 | F8: ='Total Program'!G45 -> 2.733619567 | G8: ='Total Program'!G46 -> 1.22
A10: Education and Outreach
A12: Furnace (92-94%) | B12: Residential | C12: =#REF! ->  | D12: =#REF! ->  | E12: =#REF! ->  | F12: =#REF! ->  | G12: =#REF! -> 
A13: Furnace (95+%) - New | B13: Residential | C13: ='Res .95+% Res Furnace - NEW'!G42 -> 0.59 | D13: ='Res .95+% Res Furnace - NEW'!G43 -> 0.77 | E13: ='Res .95+% Res Furnace - NEW'!G44 -> 2.44 | F13: ='Res .95+% Res Furnace - NEW'!G45 -> 4.99 | G13: ='Res .95+% Res Furnace - NEW'!G46 -> 1.56
A14: Furnace (95+%) - Replacement | B14: Residential | C14: ='Res .95+% Res Furnace - Replace'!G42 -> 1.42 | D14: ='Res .95+% Res Furnace - Replace'!G43 -> 3.16 | E14: ='Res .95+% Res Furnace - Replace'!G44 -> 1.78 | F14: ='Res .95+% Res Furnace - Replace'!G45 -> 2.28 | G14: ='Res .95+% Res Furnace - Replace'!G46 -> 1.11
A15: Boiler (85%) | B15: Residential | C15: =#REF! ->  | D15: =#REF! ->  | E15: =#REF! ->  | F15: =#REF! ->  | G15: =#REF! -> 
A16: Boiler (90%) | B16: Residential
A17: Furnace Tune-Up | B17: Residential | C17: =#REF! ->  | D17: =#REF! ->  | E17: =#REF! ->  | F17: =#REF! ->  | G17: =#REF! -> 
A18: Water Heating (.62 EF) | B18: Residential | C18: =#REF! ->  | D18: =#REF! ->  | E18: =#REF! ->  | F18: =#REF! ->  | G18: =#REF! -> 
A19: Water Heating (.67 EF) | B19: Residential | C19: =#REF! ->  | D19: =#REF! ->  | E19: =#REF! ->  | F19: =#REF! ->  | G19: =#REF! -> 
A20: Attic Insulation | B20: Residential
A21: Retrofit Bundle | B21: Residential | C21: =#REF! ->  | D21: =#REF! ->  | E21: =#REF! ->  | F21: =#REF! ->  | G21: =#REF! -> 
A22: New Home Bundle | B22: Residential
A23: ='Database Inputs'!#REF! ->  | B23: Residential | C23: =#REF! ->  | D23: =+#REF! ->  | E23: =#REF! ->  | F23: =#REF! ->  | G23: =#REF! -> 
A24: ='Database Inputs'!A12 -> Programmable Thermostats - Tier 1 | B24: Residential | C24: ='Programmable Tstats - Tier 1'!G42 -> 1.64 | D24: =+'Programmable Tstats - Tier 1'!AG42 -> 4.32 | E24: ='Programmable Tstats - Tier 1'!G44 -> 2.97 | F24: ='Programmable Tstats - Tier 1'!G45 -> 3.77 | G24: ='Programmable Tstats - Tier 1'!G46 -> 2.24
A25: ='Database Inputs'!A13 -> Programmable Thermostats - Tier 2 | B25: Residential | C25: ='Programmable Tstats - Tier 2'!G42 -> 1.35 | D25: ='Programmable Tstats - Tier 2'!G43 -> 2.73 | E25: ='Programmable Tstats - Tier 2'!G44 -> 2.15 | F25: ='Programmable Tstats - Tier 2'!G45 -> 3.14 | G25: ='Programmable Tstats - Tier 2'!G46 -> 1.63
A26: ='Database Inputs'!A14 -> Residential Energy Assessments | B26: Residential | C26: ='Residential Energy Assessments'!G42 -> 0 | D26: ='Residential Energy Assessments'!G43 -> 0 | E26: ='Residential Energy Assessments'!G44 -> 0 | F26: ='Residential Energy Assessments'!G45 -> 0.32 | G26: ='Residential Energy Assessments'!G46 -> 0
A27: ='Database Inputs'!#REF! ->  | B27: Residential | C27: =#REF! ->  | D27: =#REF! ->  | E27: =#REF! ->  | F27: =#REF! ->  | G27: =#REF! -> 
A29: Furnace (92-94%) | B29: Commercial | C29: =#REF! ->  | D29: =#REF! ->  | E29: =#REF! ->  | F29: =#REF! ->  | G29: =#REF! -> 
A30: Furnace (95+%) - New | B30: Commercial | C30: ='Comm 95+% Furnace - NEW'!G42 -> 0.68 | D30: ='Comm 95+% Furnace - NEW'!G43 -> 0.8 | E30: ='Comm 95+% Furnace - NEW'!G44 -> 2.49 | F30: ='Comm 95+% Furnace - NEW'!G45 -> 4.82 | G30: ='Comm 95+% Furnace - NEW'!G46 -> 1.59
A31: Furnace (95+%) - Replacement | B31: Commercial | C31: ='Comm 95+% Furnace - Replace'!G42 -> 2.04 | D31: ='Comm 95+% Furnace - Replace'!G43 -> 3.4 | E31: ='Comm 95+% Furnace - Replace'!G44 -> 1.89 | F31: ='Comm 95+% Furnace - Replace'!G45 -> 2.16 | G31: ='Comm 95+% Furnace - Replace'!G46 -> 1.18
A32: Hot Water Boiler (85%)
A33: ='Database Inputs'!#REF! ->  | B33: Commercial | C33: =#REF! ->  | D33: =#REF! ->  | E33: =#REF! ->  | F33: =#REF! ->  | G33: =#REF! -> 
A34: ='Database Inputs'!#REF! ->  | B34: Commercial | C34: =#REF! ->  | D34: =#REF! ->  | E34: =#REF! ->  | F34: =#REF! ->  | G34: =#REF! -> 
A35: ='Database Inputs'!#REF! ->  | B35: Commercial | C35: =#REF! ->  | D35: =+#REF! ->  | E35: =#REF! ->  | F35: =#REF! ->  | G35: =#REF! -> 
A36: Hot Water Boiler (90%)
A37: ='Database Inputs'!#REF! ->  | B37: Commercial | C37: =#REF! ->  | D37: =#REF! ->  | E37: =#REF! ->  | F37: =#REF! ->  | G37: =#REF! -> 
A38: ='Database Inputs'!#REF! ->  | B38: Commercial | C38: =#REF! ->  | D38: =#REF! ->  | E38: =#REF! ->  | F38: =#REF! ->  | G38: =#REF! -> 
A39: ='Database Inputs'!#REF! ->  | B39: Commercial | C39: =#REF! ->  | D39: =#REF! ->  | E39: =#REF! ->  | F39: =#REF! ->  | G39: =#REF! -> 
A40: LP & HP Steam Boilers
A41: ='Database Inputs'!#REF! ->  | B41: Commercial | C41: =#REF! ->  | D41: =#REF! ->  | E41: =#REF! ->  | F41: =#REF! ->  | G41: =#REF! -> 
A42: ='Database Inputs'!#REF! ->  | B42: Commercial | C42: =#REF! ->  | D42: =#REF! ->  | E42: =#REF! ->  | F42: =#REF! ->  | G42: =#REF! -> 
A43: ='Database Inputs'!#REF! ->  | B43: Commercial | C43: =#REF! ->  | D43: =#REF! ->  | E43: =#REF! ->  | F43: =#REF! ->  | G43: =#REF! -> 
A44: Water Heating (.64EF) | B44: Commercial | C44: =#REF! ->  | D44: =#REF! ->  | E44: =#REF! ->  | F44: =#REF! ->  | G44: =#REF! -> 
A45: Water Heating (Storage 88% Cond) | B45: Commercial | C45: =#REF! ->  | D45: =#REF! ->  | E45: =#REF! ->  | F45: =#REF! ->  | G45: =#REF! -> 
A46: ='Database Inputs'!#REF! ->  | B46: Commercial | C46: =#REF! ->  | D46: =#REF! ->  | E46: =#REF! ->  | F46: =#REF! ->  | G46: =#REF! -> 
A47: ='Database Inputs'!#REF! ->  | B47: Commercial | C47: =#REF! ->  | D47: =#REF! ->  | E47: =#REF! ->  | F47: =#REF! ->  | G47: =#REF! -> 
A48: ='Database Inputs'!#REF! ->  | B48: Commercial | C48: =#REF! ->  | D48: =#REF! ->  | E48: =#REF! ->  | F48: =#REF! ->  | G48: =#REF! -> 
A49: ='Database Inputs'!#REF! ->  | B49: Commercial | C49: =#REF! ->  | D49: =#REF! ->  | E49: =#REF! ->  | F49: =#REF! ->  | G49: =#REF! -> 
A50: ='Database Inputs'!#REF! ->  | B50: Commercial | C50: =#REF! ->  | D50: =#REF! ->  | E50: =#REF! ->  | F50: =#REF! ->  | G50: =#REF! -> 
A51: Custom Efficiency | B51: Commercial | C51: ='Comm Custom'!G42 -> 3.26 | D51: ='Comm Custom'!G43 -> 8.83 | E51: ='Comm Custom'!G44 -> 1.51 | F51: ='Comm Custom'!G45 -> 1.3 | G51: ='Comm Custom'!G46 -> 1.03

Sheet Total Program
A1: NATURAL GAS CONSERVATION PROGRAMS/DEMAND-SIDE MANAGEMENT | K1: Table 1 | AD1: Table 2 | AP1: Table 3 | BG1: Table 4 | BV1: Table 5
A2: BEN/COST ANALYSIS FOR GAS CONSERVATION | K2: Ratepayer Impact Measure Test | AD2: Utility Cost Test | AP2: Societal Test | BG2: Participant Test | BV2: Total Resource Cost Test
A4: Company: | B4: Montana-Dakota Utilities Co. | K4: Company: | M4: =B4 -> Montana-Dakota Utilities Co. | AD4: Company: | AF4: =B4 -> Montana-Dakota Utilities Co. | AP4: Company: | AR4: =AF4 -> Montana-Dakota Utilities Co. | BH4: Company: | BI4: =AR4 -> Montana-Dakota Utilities Co. | BW4: Company: | BX4: =BI4 -> Montana-Dakota Utilities Co.
A5: Project: | B5: Total South Dakota Program | K5: Project: | M5: =$B$5 -> Total South Dakota Program | AD5: Project: | AF5: =$B$5 -> Total South Dakota Program | AP5: Project: | AR5: =$B$5 -> Total South Dakota Program | BH5: Project: | BI5: =$B$5 -> Total South Dakota Program | BW5: Project: | BX5: =$B$5 -> Total South Dakota Program
A6: Program Years: | B6: =+'Total Program Inputs'!C6 -> 2020
N7: Benefits | X7: Costs | AF7: Benefits | AJ7: Costs | AR7: Benefits | BB7: Costs | BI7: Benefits | BR7: Costs | BX7: Benefits | CC7: Costs
A8: Input Data | F8: =+'Total Program Inputs'!C6 -> 2020 | AB8: Annual | AN8: Annual | AT8: Non-Gas | BE8: Annual | BT8: Annual | CG8: Annual
M9: Total | N9: Gas | O9: Gas | P9: Variable | Q9: Variable | R9: Total | S9: Peak Dk | T9: Dmd | U9: Total | W9: Distribution | Y9: Program | AA9: Total | AB9: Benefits | AF9: Total | AG9: Total | AH9: Annual | AJ9: Program | AL9: Utility | AN9: Benefits | AR9: Total | AS9: Total | AT9: Energy | AU9: Non-Gas | AV9: Environmental | AW9: Environmental | AZ9: Annual | BB9: Utility | BC9: Participants' | BD9: Annual | BE9: Benefits | BJ9: Total | BL9: Gas | BM9: Non-Gas | BN9: Non-Gas | BP9: Total | BR9: Direct | BT9: Benefits | BX9: Total | BY9: Total | BZ9: Non-Gas | CA9: Total | CC9: Utility | CD9: Participants' | CG9: Benefits
A10: 1) Retail Rate ($/Dk) = | E10: 16) Utility Project Costs | M10: Energy | N10: Commodity | O10: Commodity | P10: O & M | Q10: O & M | R10: Energy | S10: Demand | T10: Savings | U10: Demand | V10: Total | W10: Delivery | X10: Lost | Y10: Admin | Z10: Incentive | AA10: Program | AB10: Less | AF10: Energy | AG10: Demand | AH10: Total | AJ10: Admin | AK10: Incentive | AL10: Program | AN10: Less | AR10: Energy | AS10: Demand | AT10: Savings | AU10: Energy | AV10: Damage | AW10: Damage | AZ10: Total | BB10: Program | BC10: Costs Net | BD10: Total | BE10: Less | BI10: Incentives | BJ10: Energy | BK10: Retail | BL10: Bill | BM10: Fuel | BN10: Energy | BP10: Annual | BR10: Participant | BT10: Less | BX10: Energy | BY10: Demand | BZ10: Energy | CA10: Annual | CC10: Program | CD10: Costs Net | CE10: Total | CG10: Less
A11: Escalation Rate = | E11: 16a) Administrative & Operating Costs = 1/ | F11: =+'Res .95+% Res Furnace - NEW'!F11+'Res .95+% Res Furnace - Replace'!F11+'Programmable Tstats - Tier 1'!F11+'Programmable Tstats - Tier 2'!F11+'Residential Energy Assessments'!F11+'Comm 95+% Furnace - NEW'!F11+'Comm 95+% Furnace - Replace'!F11+'Comm Custom'!F11 -> 12213 | J11: t | M11: Reduction | N11: Cost/Dk | O11: Savings | P11: Cost/Dk | Q11: Savings | R11: Savings | S11: Reduction | T11: '/ Unit | U11: Savings | V11: Savings | W11: Charge | X11: Margin | Y11: Costs | Z11: Costs | AA11: Costs | AB11: Costs | AF11: Savings | AG11: Savings | AH11: Savings | AJ11: Costs | AK11: Costs | AL11: Costs | AN11: Costs | AR11: Savings | AS11: Savings | AT11: ($/Part.) | AU11: Savings | AV11: Savings/Dk | AW11: Savings | AZ11: Savings | BB11: Costs | BC11: of Rebate | BD11: Costs | BE11: Costs | BI11: Received | BJ11: Reduction | BK11: Rate | BL11: Savings | BM11: Retail Rate | BN11: Savings | BP11: Benefits | BR11: Costs | BT11: Costs | BX11: Savings | BY11: Savings | BZ11: Savings | CA11: Benefits | CC11: Costs | CD11: of Rebate | CE11: Costs | CG11: Costs
E12: 16b) Incentive Costs = | F12: =+'Res .95+% Res Furnace - NEW'!F12+'Res .95+% Res Furnace - Replace'!F12+'Programmable Tstats - Tier 1'!F12+'Programmable Tstats - Tier 2'!F12+'Residential Energy Assessments'!F12+'Comm 95+% Furnace - NEW'!F12+'Comm 95+% Furnace - Replace'!F12+'Comm Custom'!F12 -> 174315 | L12: Year | M12: (A) | N12: (B) | O12: (C) | P12: (D) | Q12: (E) | R12: (F) | S12: (G) | T12: (H) | U12: (I) | V12: (J) | W12: (K) | X12: (L) | Y12: (M) | Z12: (N) | AA12: (O) | AB12: (P) | AE12: Year | AF12: (A) | AG12: (B) | AH12: (C) | AJ12: (D) | AK12: (E) | AL12: (F) | AN12: (G) | AQ12: Year | AR12: (A) | AS12: (B) | AT12: (C) | AU12: (D) | AV12: (E) | AW12: (F) | AZ12: (G) | BB12: (H) | BC12: (I) | BD12: (J) | BE12: (K) | BH12: Year | BI12: (A) | BJ12: (B) | BK12: (C) | BL12: (D) | BM12: (E) | BN12: (F) | BP12: (G) | BR12: (H) | BT12: (I) | BW12: Year | BX12: (A) | BY12: (B) | BZ12: (C) | CA12: (D) | CC12: (E) | CD12: (F) | CE12: (G) | CG12: (H)
A13: 2) Non-Gas Fuel Retail Rate ($/Fuel Unit) = | E13: 16c) Total Utility Project Costs = | F13: =SUM(F11:F12) -> 186528
A14: Escalation Rate = | J14: =$C$47-$C$45 -> 0 | L14: =$C$47 -> 2020 | M14: =ROUND(+'Res .95+% Res Furnace - NEW'!M14+'Res .95+% Res Furnace - Replace'!M14+'Programmable Tstats - Tier 1'!M14+'Programmable Tstats - Tier 2'!M14+'Residential Energy Assessments'!M14+'Comm 95+% Furnace - NEW'!M14+'Comm 95+% Furnace - Replace'!M14+'Comm Custom'!M14,0) -> 8144 | O14: =ROUND(+'Res .95+% Res Furnace - NEW'!O14+'Res .95+% Res Furnace - Replace'!O14+'Programmable Tstats - Tier 1'!O14+'Programmable Tstats - Tier 2'!O14+'Residential Energy Assessments'!O14+'Comm 95+% Furnace - NEW'!O14+'Comm 95+% Furnace - Replace'!O14+'Comm Custom'!O14,0) -> 20491 | Q14: =ROUND(+'Res .95+% Res Furnace - NEW'!Q14+'Res .95+% Res Furnace - Replace'!Q14+'Programmable Tstats - Tier 1'!Q14+'Programmable Tstats - Tier 2'!Q14+'Residential Energy Assessments'!Q14+'Comm 95+% Furnace - NEW'!Q14+'Comm 95+% Furnace - Replace'!Q14+'Comm Custom'!Q14,0) -> 0 | R14: =ROUND(+'Res .95+% Res Furnace - NEW'!R14+'Res .95+% Res Furnace - Replace'!R14+'Programmable Tstats - Tier 1'!R14+'Programmable Tstats - Tier 2'!R14+'Residential Energy Assessments'!R14+'Comm 95+% Furnace - NEW'!R14+'Comm 95+% Furnace - Replace'!R14+'Comm Custom'!R14,0) -> 20491 | S14: =ROUND(+'Res .95+% Res Furnace - NEW'!S14+'Res .95+% Res Furnace - Replace'!S14+'Programmable Tstats - Tier 1'!S14+'Programmable Tstats - Tier 2'!S14+'Residential Energy Assessments'!S14+'Comm 95+% Furnace - NEW'!S14+'Comm 95+% Furnace - Replace'!S14+'Comm Custom'!S14,0) -> 81 | U14: =ROUND(+'Res .95+% Res Furnace - NEW'!U14+'Res .95+% Res Furnace - Replace'!U14+'Programmable Tstats - Tier 1'!U14+'Programmable Tstats - Tier 2'!U14+'Residential Energy Assessments'!U14+'Comm 95+% Furnace - NEW'!U14+'Comm 95+% Furnace - Replace'!U14+'Comm Custom'!U14,0) -> 12129 | V14: =ROUND(+'Res .95+% Res Furnace - NEW'!V14+'Res .95+% Res Furnace - Replace'!V14+'Programmable Tstats - Tier 1'!V14+'Programmable Tstats - Tier 2'!V14+'Residential Energy Assessments'!V14+'Comm 95+% Furnace - NEW'!V14+'Comm 95+% Furnace - Replace'!V14+'Comm Custom'!V14,0) -> 32620 | X14: =ROUND(+'Res .95+% Res Furnace - NEW'!X14+'Res .95+% Res Furnace - Replace'!X14+'Programmable Tstats - Tier 1'!X14+'Programmable Tstats - Tier 2'!X14+'Residential Energy Assessments'!X14+'Comm 95+% Furnace - NEW'!X14+'Comm 95+% Furnace - Replace'!X14+'Comm Custom'!X14,0) -> 11052 | Y14: =ROUND(+'Res .95+% Res Furnace - NEW'!Y14+'Res .95+% Res Furnace - Replace'!Y14+'Programmable Tstats - Tier 1'!Y14+'Programmable Tstats - Tier 2'!Y14+'Residential Energy Assessments'!Y14+'Comm 95+% Furnace - NEW'!Y14+'Comm 95+% Furnace - Replace'!Y14+'Comm Custom'!Y14,0) -> 12213 | Z14: =ROUND(+'Res .95+% Res Furnace - NEW'!Z14+'Res .95+% Res Furnace - Replace'!Z14+'Programmable Tstats - Tier 1'!Z14+'Programmable Tstats - Tier 2'!Z14+'Residential Energy Assessments'!Z14+'Comm 95+% Furnace - NEW'!Z14+'Comm 95+% Furnace - Replace'!Z14+'Comm Custom'!Z14,0) -> 174315 | AA14: =ROUND(+'Res .95+% Res Furnace - NEW'!AA14+'Res .95+% Res Furnace - Replace'!AA14+'Programmable Tstats - Tier 1'!AA14+'Programmable Tstats - Tier 2'!AA14+'Residential Energy Assessments'!AA14+'Comm 95+% Furnace - NEW'!AA14+'Comm 95+% Furnace - Replace'!AA14+'Comm Custom'!AA14,0) -> 197580 | AB14: =ROUND(+'Res .95+% Res Furnace - NEW'!AB14+'Res .95+% Res Furnace - Replace'!AB14+'Programmable Tstats - Tier 1'!AB14+'Programmable Tstats - Tier 2'!AB14+'Residential Energy Assessments'!AB14+'Comm 95+% Furnace - NEW'!AB14+'Comm 95+% Furnace - Replace'!AB14+'Comm Custom'!AB14,0) -> -164960 | AE14: =$C$47 -> 2020 | AF14: =+R14 -> 20491 | AG14: =+U14 -> 12129 | AH14: =+AG14+AF14 -> 32620 | AJ14: =ROUND(Y14,0) -> 12213 | AK14: =ROUND(Z14,0) -> 174315 | AL14: =SUM(AJ14:AK14) -> 186528 | AN14: =+AH14-AL14 -> -153908 | AQ14: =$C$47 -> 2020 | AR14: =AF14 -> 20491 | AS14: =+AG14 -> 12129 | AU14: =ROUND(+'Res .95+% Res Furnace - NEW'!AU14+'Res .95+% Res Furnace - Replace'!AU14+'Programmable Tstats - Tier 1'!AU14+'Programmable Tstats - Tier 2'!AU14+'Residential Energy Assessments'!AU14+'Comm 95+% Furnace - NEW'!AU14+'Comm 95+% Furnace - Replace'!AU14+'Comm Custom'!AU14,0) -> 11271 | AW14: =ROUND(+'Res .95+% Res Furnace - NEW'!AW14+'Res .95+% Res Furnace - Replace'!AW14+'Programmable Tstats - Tier 1'!AW14+'Programmable Tstats - Tier 2'!AW14+'Residential Energy Assessments'!AW14+'Comm 95+% Furnace - NEW'!AW14+'Comm 95+% Furnace - Replace'!AW14+'Comm Custom'!AW14,0) -> 3095 | AZ14: =ROUND(AR14+AS14+AU14+AW14+AY14,0) -> 46986 | BB14: =ROUND(+'Res .95+% Res Furnace - NEW'!BB14+'Res .95+% Res Furnace - Replace'!BB14+'Programmable Tstats - Tier 1'!BB14+'Programmable Tstats - Tier 2'!BB14+'Residential Energy Assessments'!BB14+'Comm 95+% Furnace - NEW'!BB14+'Comm 95+% Furnace - Replace'!BB14+'Comm Custom'!BB14,0) -> 186528 | BC14: =ROUND(+'Res .95+% Res Furnace - NEW'!BC14+'Res .95+% Res Furnace - Replace'!BC14+'Programmable Tstats - Tier 1'!BC14+'Programmable Tstats - Tier 2'!BC14+'Residential Energy Assessments'!BC14+'Comm 95+% Furnace - NEW'!BC14+'Comm 95+% Furnace - Replace'!BC14+'Comm Custom'!BC14,0) -> 289409 | BD14: =BB14+BC14 -> 475937 | BE14: =AZ14-BD14 -> -428951 | BH14: =$C$47 -> 2020 | BI14: =ROUND(+'Res .95+% Res Furnace - NEW'!BI14+'Res .95+% Res Furnace - Replace'!BI14+'Programmable Tstats - Tier 1'!BI14+'Programmable Tstats - Tier 2'!BI14+'Residential Energy Assessments'!BI14+'Comm 95+% Furnace - NEW'!BI14+'Comm 95+% Furnace - Replace'!BI14+'Comm Custom'!BI14,0) -> 174315 | BJ14: =ROUND(+'Res .95+% Res Furnace - NEW'!BJ14+'Res .95+% Res Furnace - Replace'!BJ14+'Programmable Tstats - Tier 1'!BJ14+'Programmable Tstats - Tier 2'!BJ14+'Residential Energy Assessments'!BJ14+'Comm 95+% Furnace - NEW'!BJ14+'Comm 95+% Furnace - Replace'!BJ14+'Comm Custom'!BJ14,0) -> 8144 | BL14: =ROUND(+'Res .95+% Res Furnace - NEW'!BL14+'Res .95+% Res Furnace - Replace'!BL14+'Programmable Tstats - Tier 1'!BL14+'Programmable Tstats - Tier 2'!BL14+'Residential Energy Assessments'!BL14+'Comm 95+% Furnace - NEW'!BL14+'Comm 95+% Furnace - Replace'!BL14+'Comm Custom'!BL14,0) -> 48617 | BN14: =ROUND(+'Res .95+% Res Furnace - NEW'!BN14+'Res .95+% Res Furnace - Replace'!BN14+'Programmable Tstats - Tier 1'!BN14+'Programmable Tstats - Tier 2'!BN14+'Residential Energy Assessments'!BN14+'Comm 95+% Furnace - NEW'!BN14+'Comm 95+% Furnace - Replace'!BN14+'Comm Custom'!BN14,0) -> 48124 | BP14: =BI14+BL14+BN14+BO14 -> 271056 | BR14: =ROUND(+'Res .95+% Res Furnace - NEW'!BR14+'Res .95+% Res Furnace - Replace'!BR14+'Programmable Tstats - Tier 1'!BR14+'Programmable Tstats - Tier 2'!BR14+'Residential Energy Assessments'!BR14+'Comm 95+% Furnace - NEW'!BR14+'Comm 95+% Furnace - Replace'!BR14+'Comm Custom'!BR14,0) -> 463724 | BT14: =BP14-BR14 -> -192668 | BW14: =$C$47 -> 2020 | BX14: =$R14 -> 20491 | BY14: =U14 -> 12129 | BZ14: =AU14 -> 11271 | CA14: =SUM(BX14:BZ14) -> 43891 | CC14: =BB14 -> 186528 | CD14: =BC14 -> 289409 | CE14: =SUM(CC14:CD14) -> 475937 | CG14: =CA14-CE14 -> -432046
A15: Non-Gas Fuel Units (ie. kWh,Gallons, etc) = | E15: 17) Direct Participant Costs ($/Part.) = | J15: =J14+1 -> 1 | L15: =L14+1 -> 2021 | M15: =ROUND(+'Res .95+% Res Furnace - NEW'!M15+'Res .95+% Res Furnace - Replace'!M15+'Programmable Tstats - Tier 1'!M15+'Programmable Tstats - Tier 2'!M15+'Residential Energy Assessments'!M15+'Comm 95+% Furnace - NEW'!M15+'Comm 95+% Furnace - Replace'!M15+'Comm Custom'!M15,0) -> 8144 | O15: =ROUND(+'Res .95+% Res Furnace - NEW'!O15+'Res .95+% Res Furnace - Replace'!O15+'Programmable Tstats - Tier 1'!O15+'Programmable Tstats - Tier 2'!O15+'Residential Energy Assessments'!O15+'Comm 95+% Furnace - NEW'!O15+'Comm 95+% Furnace - Replace'!O15+'Comm Custom'!O15,0) -> 21207 | Q15: =ROUND(+'Res .95+% Res Furnace - NEW'!Q15+'Res .95+% Res Furnace - Replace'!Q15+'Programmable Tstats - Tier 1'!Q15+'Programmable Tstats - Tier 2'!Q15+'Residential Energy Assessments'!Q15+'Comm 95+% Furnace - NEW'!Q15+'Comm 95+% Furnace - Replace'!Q15+'Comm Custom'!Q15,0) -> 0 | R15: =ROUND(+'Res .95+% Res Furnace - NEW'!R15+'Res .95+% Res Furnace - Replace'!R15+'Programmable Tstats - Tier 1'!R15+'Programmable Tstats - Tier 2'!R15+'Residential Energy Assessments'!R15+'Comm 95+% Furnace - NEW'!R15+'Comm 95+% Furnace - Replace'!R15+'Comm Custom'!R15,0) -> 21207 | S15: =ROUND(+'Res .95+% Res Furnace - NEW'!S15+'Res .95+% Res Furnace - Replace'!S15+'Programmable Tstats - Tier 1'!S15+'Programmable Tstats - Tier 2'!S15+'Residential Energy Assessments'!S15+'Comm 95+% Furnace - NEW'!S15+'Comm 95+% Furnace - Replace'!S15+'Comm Custom'!S15,0) -> 81 | U15: =ROUND(+'Res .95+% Res Furnace - NEW'!U15+'Res .95+% Res Furnace - Replace'!U15+'Programmable Tstats - Tier 1'!U15+'Programmable Tstats - Tier 2'!U15+'Residential Energy Assessments'!U15+'Comm 95+% Furnace - NEW'!U15+'Comm 95+% Furnace - Replace'!U15+'Comm Custom'!U15,0) -> 12210 | V15: =ROUND(+'Res .95+% Res Furnace - NEW'!V15+'Res .95+% Res Furnace - Replace'!V15+'Programmable Tstats - Tier 1'!V15+'Programmable Tstats - Tier 2'!V15+'Residential Energy Assessments'!V15+'Comm 95+% Furnace - NEW'!V15+'Comm 95+% Furnace - Replace'!V15+'Comm Custom'!V15,0) -> 33417 | X15: =ROUND(+'Res .95+% Res Furnace - NEW'!X15+'Res .95+% Res Furnace - Replace'!X15+'Programmable Tstats - Tier 1'!X15+'Programmable Tstats - Tier 2'!X15+'Residential Energy Assessments'!X15+'Comm 95+% Furnace - NEW'!X15+'Comm 95+% Furnace - Replace'!X15+'Comm Custom'!X15,0) -> 11438 | Y15: =ROUND(+'Res .95+% Res Furnace - NEW'!Y15+'Res .95+% Res Furnace - Replace'!Y15+'Programmable Tstats - Tier 1'!Y15+'Programmable Tstats - Tier 2'!Y15+'Residential Energy Assessments'!Y15+'Comm 95+% Furnace - NEW'!Y15+'Comm 95+% Furnace - Replace'!Y15+'Comm Custom'!Y15,0) -> 0 | Z15: =ROUND(+'Res .95+% Res Furnace - NEW'!Z15+'Res .95+% Res Furnace - Replace'!Z15+'Programmable Tstats - Tier 1'!Z15+'Programmable Tstats - Tier 2'!Z15+'Residential Energy Assessments'!Z15+'Comm 95+% Furnace - NEW'!Z15+'Comm 95+% Furnace - Replace'!Z15+'Comm Custom'!Z15,0) -> 0 | AA15: =ROUND(+'Res .95+% Res Furnace - NEW'!AA15+'Res .95+% Res Furnace - Replace'!AA15+'Programmable Tstats - Tier 1'!AA15+'Programmable Tstats - Tier 2'!AA15+'Residential Energy Assessments'!AA15+'Comm 95+% Furnace - NEW'!AA15+'Comm 95+% Furnace - Replace'!AA15+'Comm Custom'!AA15,0) -> 11438 | AB15: =ROUND(+'Res .95+% Res Furnace - NEW'!AB15+'Res .95+% Res Furnace - Replace'!AB15+'Programmable Tstats - Tier 1'!AB15+'Programmable Tstats - Tier 2'!AB15+'Residential Energy Assessments'!AB15+'Comm 95+% Furnace - NEW'!AB15+'Comm 95+% Furnace - Replace'!AB15+'Comm Custom'!AB15,0) -> 21979 | AE15: =AE14+1 -> 2021 | AF15: 21207 | AG15: 12210 | AH15: =+AG15+AF15 -> 33417 | AJ15: =ROUND(Y15,0) -> 0 | AK15: 0 | AL15: 0 | AN15: =+AH15-AL15 -> 33417 | AQ15: =AQ14+1 -> 2021 | AR15: 21207 | AS15: 12210 | AU15: =ROUND(+'Res .95+% Res Furnace - NEW'!AU15+'Res .95+% Res Furnace - Replace'!AU15+'Programmable Tstats - Tier 1'!AU15+'Programmable Tstats - Tier 2'!AU15+'Residential Energy Assessments'!AU15+'Comm 95+% Furnace - NEW'!AU15+'Comm 95+% Furnace - Replace'!AU15+'Comm Custom'!AU15,0) -> 11659 | AW15: =ROUND(+'Res .95+% Res Furnace - NEW'!AW15+'Res .95+% Res Furnace - Replace'!AW15+'Programmable Tstats - Tier 1'!AW15+'Programmable Tstats - Tier 2'!AW15+'Residential Energy Assessments'!AW15+'Comm 95+% Furnace - NEW'!AW15+'Comm 95+% Furnace - Replace'!AW15+'Comm Custom'!AW15,0) -> 3160 | AZ15: =ROUND(AR15+AS15+AU15+AW15+AY15,0) -> 48236 | BB15: =ROUND(+'Res .95+% Res Furnace - NEW'!BB15+'Res .95+% Res Furnace - Replace'!BB15+'Programmable Tstats - Tier 1'!BB15+'Programmable Tstats - Tier 2'!BB15+'Residential Energy Assessments'!BB15+'Comm 95+% Furnace - NEW'!BB15+'Comm 95+% Furnace - Replace'!BB15+'Comm Custom'!BB15,0) -> 0 | BC15: =ROUND(+'Res .95+% Res Furnace - NEW'!BC15+'Res .95+% Res Furnace - Replace'!BC15+'Programmable Tstats - Tier 1'!BC15+'Programmable Tstats - Tier 2'!BC15+'Residential Energy Assessments'!BC15+'Comm 95+% Furnace - NEW'!BC15+'Comm 95+% Furnace - Replace'!BC15+'Comm Custom'!BC15,0) -> 0 | BD15: =BB15+BC15 -> 0 | BE15: 48236 | BH15: =BH14+1 -> 2021 | BI15: =ROUND(+'Res .95+% Res Furnace - NEW'!BI15+'Res .95+% Res Furnace - Replace'!BI15+'Programmable Tstats - Tier 1'!BI15+'Programmable Tstats - Tier 2'!BI15+'Residential Energy Assessments'!BI15+'Comm 95+% Furnace - NEW'!BI15+'Comm 95+% Furnace - Replace'!BI15+'Comm Custom'!BI15,0) -> 0 | BJ15: =ROUND(+'Res .95+% Res Furnace - NEW'!BJ15+'Res .95+% Res Furnace - Replace'!BJ15+'Programmable Tstats - Tier 1'!BJ15+'Programmable Tstats - Tier 2'!BJ15+'Residential Energy Assessments'!BJ15+'Comm 95+% Furnace - NEW'!BJ15+'Comm 95+% Furnace - Replace'!BJ15+'Comm Custom'!BJ15,0) -> 8144 | BL15: =ROUND(+'Res .95+% Res Furnace - NEW'!BL15+'Res .95+% Res Furnace - Replace'!BL15+'Programmable Tstats - Tier 1'!BL15+'Programmable Tstats - Tier 2'!BL15+'Residential Energy Assessments'!BL15+'Comm 95+% Furnace - NEW'!BL15+'Comm 95+% Furnace - Replace'!BL15+'Comm Custom'!BL15,0) -> 50318 | BN15: =ROUND(+'Res .95+% Res Furnace - NEW'!BN15+'Res .95+% Res Furnace - Replace'!BN15+'Programmable Tstats - Tier 1'!BN15+'Programmable Tstats - Tier 2'!BN15+'Residential Energy Assessments'!BN15+'Comm 95+% Furnace - NEW'!BN15+'Comm 95+% Furnace - Replace'!BN15+'Comm Custom'!BN15,0) -> 50067 | BP15: 100385 | BR15: =ROUND(+'Res .95+% Res Furnace - NEW'!BR15+'Res .95+% Res Furnace - Replace'!BR15+'Programmable Tstats - Tier 1'!BR15+'Programmable Tstats - Tier 2'!BR15+'Residential Energy Assessments'!BR15+'Comm 95+% Furnace - NEW'!BR15+'Comm 95+% Furnace - Replace'!BR15+'Comm Custom'!BR15,0) -> 0 | BT15: =BP15-BR15 -> 100385 | BW15: =BW14+1 -> 2021 | BX15: =$R15 -> 21207 | BY15: =U15 -> 12210 | BZ15: =AU15 -> 11659 | CA15: =SUM(BX15:BZ15) -> 45076 | CC15: =BB15 -> 0 | CD15: =BC15 -> 0 | CE15: =SUM(CC15:CD15) -> 0 | CG15: =CA15-CE15 -> 45076
J16: 2 | L16: 2022 | M16: =ROUND(+'Res .95+% Res Furnace - NEW'!M16+'Res .95+% Res Furnace - Replace'!M16+'Programmable Tstats - Tier 1'!M16+'Programmable Tstats - Tier 2'!M16+'Residential Energy Assessments'!M16+'Comm 95+% Furnace - NEW'!M16+'Comm 95+% Furnace - Replace'!M16+'Comm Custom'!M16,0) -> 8144 | O16: =ROUND(+'Res .95+% Res Furnace - NEW'!O16+'Res .95+% Res Furnace - Replace'!O16+'Programmable Tstats - Tier 1'!O16+'Programmable Tstats - Tier 2'!O16+'Residential Energy Assessments'!O16+'Comm 95+% Furnace - NEW'!O16+'Comm 95+% Furnace - Replace'!O16+'Comm Custom'!O16,0) -> 21948 | Q16: =ROUND(+'Res .95+% Res Furnace - NEW'!Q16+'Res .95+% Res Furnace - Replace'!Q16+'Programmable Tstats - Tier 1'!Q16+'Programmable Tstats - Tier 2'!Q16+'Residential Energy Assessments'!Q16+'Comm 95+% Furnace - NEW'!Q16+'Comm 95+% Furnace - Replace'!Q16+'Comm Custom'!Q16,0) -> 0 | R16: =ROUND(+'Res .95+% Res Furnace - NEW'!R16+'Res .95+% Res Furnace - Replace'!R16+'Programmable Tstats - Tier 1'!R16+'Programmable Tstats - Tier 2'!R16+'Residential Energy Assessments'!R16+'Comm 95+% Furnace - NEW'!R16+'Comm 95+% Furnace - Replace'!R16+'Comm Custom'!R16,0) -> 21948 | S16: =ROUND(+'Res .95+% Res Furnace - NEW'!S16+'Res .95+% Res Furnace - Replace'!S16+'Programmable Tstats - Tier 1'!S16+'Programmable Tstats - Tier 2'!S16+'Residential Energy Assessments'!S16+'Comm 95+% Furnace - NEW'!S16+'Comm 95+% Furnace - Replace'!S16+'Comm Custom'!S16,0) -> 81 | U16: =ROUND(+'Res .95+% Res Furnace - NEW'!U16+'Res .95+% Res Furnace - Replace'!U16+'Programmable Tstats - Tier 1'!U16+'Programmable Tstats - Tier 2'!U16+'Residential Energy Assessments'!U16+'Comm 95+% Furnace - NEW'!U16+'Comm 95+% Furnace - Replace'!U16+'Comm Custom'!U16,0) -> 12373 | V16: =ROUND(+'Res .95+% Res Furnace - NEW'!V16+'Res .95+% Res Furnace - Replace'!V16+'Programmable Tstats - Tier 1'!V16+'Programmable Tstats - Tier 2'!V16+'Residential Energy Assessments'!V16+'Comm 95+% Furnace - NEW'!V16+'Comm 95+% Furnace - Replace'!V16+'Comm Custom'!V16,0) -> 34321 | X16: =ROUND(+'Res .95+% Res Furnace - NEW'!X16+'Res .95+% Res Furnace - Replace'!X16+'Programmable Tstats - Tier 1'!X16+'Programmable Tstats - Tier 2'!X16+'Residential Energy Assessments'!X16+'Comm 95+% Furnace - NEW'!X16+'Comm 95+% Furnace - Replace'!X16+'Comm Custom'!X16,0) -> 11840 | Y16: =ROUND(+'Res .95+% Res Furnace - NEW'!Y16+'Res .95+% Res Furnace - Replace'!Y16+'Programmable Tstats - Tier 1'!Y16+'Programmable Tstats - Tier 2'!Y16+'Residential Energy Assessments'!Y16+'Comm 95+% Furnace - NEW'!Y16+'Comm 95+% Furnace - Replace'!Y16+'Comm Custom'!Y16,0) -> 0 | Z16: =ROUND(+'Res .95+% Res Furnace - NEW'!Z16+'Res .95+% Res Furnace - Replace'!Z16+'Programmable Tstats - Tier 1'!Z16+'Programmable Tstats - Tier 2'!Z16+'Residential Energy Assessments'!Z16+'Comm 95+% Furnace - NEW'!Z16+'Comm 95+% Furnace - Replace'!Z16+'Comm Custom'!Z16,0) -> 0 | AA16: =ROUND(+'Res .95+% Res Furnace - NEW'!AA16+'Res .95+% Res Furnace - Replace'!AA16+'Programmable Tstats - Tier 1'!AA16+'Programmable Tstats - Tier 2'!AA16+'Residential Energy Assessments'!AA16+'Comm 95+% Furnace - NEW'!AA16+'Comm 95+% Furnace - Replace'!AA16+'Comm Custom'!AA16,0) -> 11840 | AB16: =ROUND(+'Res .95+% Res Furnace - NEW'!AB16+'Res .95+% Res Furnace - Replace'!AB16+'Programmable Tstats - Tier 1'!AB16+'Programmable Tstats - Tier 2'!AB16+'Residential Energy Assessments'!AB16+'Comm 95+% Furnace - NEW'!AB16+'Comm 95+% Furnace - Replace'!AB16+'Comm Custom'!AB16,0) -> 22481 | AE16: 2022 | AF16: 21948 | AG16: 12373 | AH16: =+AG16+AF16 -> 34321 | AJ16: 0 | AK16: 0 | AL16: 0 | AN16: 34321 | AQ16: 2022 | AR16: 21948 | AS16: 12373 | AU16: =ROUND(+'Res .95+% Res Furnace - NEW'!AU16+'Res .95+% Res Furnace - Replace'!AU16+'Programmable Tstats - Tier 1'!AU16+'Programmable Tstats - Tier 2'!AU16+'Residential Energy Assessments'!AU16+'Comm 95+% Furnace - NEW'!AU16+'Comm 95+% Furnace - Replace'!AU16+'Comm Custom'!AU16,0) -> 12047 | AW16: =ROUND(+'Res .95+% Res Furnace - NEW'!AW16+'Res .95+% Res Furnace - Replace'!AW16+'Programmable Tstats - Tier 1'!AW16+'Programmable Tstats - Tier 2'!AW16+'Residential Energy Assessments'!AW16+'Comm 95+% Furnace - NEW'!AW16+'Comm 95+% Furnace - Replace'!AW16+'Comm Custom'!AW16,0) -> 3234 | AZ16: 49602 | BB16: =ROUND(+'Res .95+% Res Furnace - NEW'!BB16+'Res .95+% Res Furnace - Replace'!BB16+'Programmable Tstats - Tier 1'!BB16+'Programmable Tstats - Tier 2'!BB16+'Residential Energy Assessments'!BB16+'Comm 95+% Furnace - NEW'!BB16+'Comm 95+% Furnace - Replace'!BB16+'Comm Custom'!BB16,0) -> 0 | BC16: =ROUND(+'Res .95+% Res Furnace - NEW'!BC16+'Res .95+% Res Furnace - Replace'!BC16+'Programmable Tstats - Tier 1'!BC16+'Programmable Tstats - Tier 2'!BC16+'Residential Energy Assessments'!BC16+'Comm 95+% Furnace - NEW'!BC16+'Comm 95+% Furnace - Replace'!BC16+'Comm Custom'!BC16,0) -> 0 | BD16: 0 | BE16: 49602 | BH16: 2022 | BI16: =ROUND(+'Res .95+% Res Furnace - NEW'!BI16+'Res .95+% Res Furnace - Replace'!BI16+'Programmable Tstats - Tier 1'!BI16+'Programmable Tstats - Tier 2'!BI16+'Residential Energy Assessments'!BI16+'Comm 95+% Furnace - NEW'!BI16+'Comm 95+% Furnace - Replace'!BI16+'Comm Custom'!BI16,0) -> 0 | BJ16: =ROUND(+'Res .95+% Res Furnace - NEW'!BJ16+'Res .95+% Res Furnace - Replace'!BJ16+'Programmable Tstats - Tier 1'!BJ16+'Programmable Tstats - Tier 2'!BJ16+'Residential Energy Assessments'!BJ16+'Comm 95+% Furnace - NEW'!BJ16+'Comm 95+% Furnace - Replace'!BJ16+'Comm Custom'!BJ16,0) -> 8144 | BL16: =ROUND(+'Res .95+% Res Furnace - NEW'!BL16+'Res .95+% Res Furnace - Replace'!BL16+'Programmable Tstats - Tier 1'!BL16+'Programmable Tstats - Tier 2'!BL16+'Residential Energy Assessments'!BL16+'Comm 95+% Furnace - NEW'!BL16+'Comm 95+% Furnace - Replace'!BL16+'Comm Custom'!BL16,0) -> 52082 | BN16: =ROUND(+'Res .95+% Res Furnace - NEW'!BN16+'Res .95+% Res Furnace - Replace'!BN16+'Programmable Tstats - Tier 1'!BN16+'Programmable Tstats - Tier 2'!BN16+'Residential Energy Assessments'!BN16+'Comm 95+% Furnace - NEW'!BN16+'Comm 95+% Furnace - Replace'!BN16+'Comm Custom'!BN16,0) -> 51622 | BP16: 103704 | BR16: =ROUND(+'Res .95+% Res Furnace - NEW'!BR16+'Res .95+% Res Furnace - Replace'!BR16+'Programmable Tstats - Tier 1'!BR16+'Programmable Tstats - Tier 2'!BR16+'Residential Energy Assessments'!BR16+'Comm 95+% Furnace - NEW'!BR16+'Comm 95+% Furnace - Replace'!BR16+'Comm Custom'!BR16,0) -> 0 | BT16: 103704 | BW16: 2022 | BX16: 21948 | BY16: =U16 -> 12373 | BZ16: 12047 | CA16: 46368 | CC16: =BB16 -> 0 | CD16: 0 | CE16: =SUM(CC16:CD16) -> 0 | CG16: 46368
A17: 3) Commodity Cost ($/Dk) = | E17: 18) Participant Non-Energy Costs (Annual $/Part.) = | J17: 3 | L17: 2023 | M17: =ROUND(+'Res .95+% Res Furnace - NEW'!M17+'Res .95+% Res Furnace - Replace'!M17+'Programmable Tstats - Tier 1'!M17+'Programmable Tstats - Tier 2'!M17+'Residential Energy Assessments'!M17+'Comm 95+% Furnace - NEW'!M17+'Comm 95+% Furnace - Replace'!M17+'Comm Custom'!M17,0) -> 8144 | O17: =ROUND(+'Res .95+% Res Furnace - NEW'!O17+'Res .95+% Res Furnace - Replace'!O17+'Programmable Tstats - Tier 1'!O17+'Programmable Tstats - Tier 2'!O17+'Residential Energy Assessments'!O17+'Comm 95+% Furnace - NEW'!O17+'Comm 95+% Furnace - Replace'!O17+'Comm Custom'!O17,0) -> 22722 | Q17: =ROUND(+'Res .95+% Res Furnace - NEW'!Q17+'Res .95+% Res Furnace - Replace'!Q17+'Programmable Tstats - Tier 1'!Q17+'Programmable Tstats - Tier 2'!Q17+'Residential Energy Assessments'!Q17+'Comm 95+% Furnace - NEW'!Q17+'Comm 95+% Furnace - Replace'!Q17+'Comm Custom'!Q17,0) -> 0 | R17: =ROUND(+'Res .95+% Res Furnace - NEW'!R17+'Res .95+% Res Furnace - Replace'!R17+'Programmable Tstats - Tier 1'!R17+'Programmable Tstats - Tier 2'!R17+'Residential Energy Assessments'!R17+'Comm 95+% Furnace - NEW'!R17+'Comm 95+% Furnace - Replace'!R17+'Comm Custom'!R17,0) -> 22722 | S17: =ROUND(+'Res .95+% Res Furnace - NEW'!S17+'Res .95+% Res Furnace - Replace'!S17+'Programmable Tstats - Tier 1'!S17+'Programmable Tstats - Tier 2'!S17+'Residential Energy Assessments'!S17+'Comm 95+% Furnace - NEW'!S17+'Comm 95+% Furnace - Replace'!S17+'Comm Custom'!S17,0) -> 81 | U17: =ROUND(+'Res .95+% Res Furnace - NEW'!U17+'Res .95+% Res Furnace - Replace'!U17+'Programmable Tstats - Tier 1'!U17+'Programmable Tstats - Tier 2'!U17+'Residential Energy Assessments'!U17+'Comm 95+% Furnace - NEW'!U17+'Comm 95+% Furnace - Replace'!U17+'Comm Custom'!U17,0) -> 12454 | V17: =ROUND(+'Res .95+% Res Furnace - NEW'!V17+'Res .95+% Res Furnace - Replace'!V17+'Programmable Tstats - Tier 1'!V17+'Programmable Tstats - Tier 2'!V17+'Residential Energy Assessments'!V17+'Comm 95+% Furnace - NEW'!V17+'Comm 95+% Furnace - Replace'!V17+'Comm Custom'!V17,0) -> 35176 | X17: =ROUND(+'Res .95+% Res Furnace - NEW'!X17+'Res .95+% Res Furnace - Replace'!X17+'Programmable Tstats - Tier 1'!X17+'Programmable Tstats - Tier 2'!X17+'Residential Energy Assessments'!X17+'Comm 95+% Furnace - NEW'!X17+'Comm 95+% Furnace - Replace'!X17+'Comm Custom'!X17,0) -> 12255 | Y17: =ROUND(+'Res .95+% Res Furnace - NEW'!Y17+'Res .95+% Res Furnace - Replace'!Y17+'Programmable Tstats - Tier 1'!Y17+'Programmable Tstats - Tier 2'!Y17+'Residential Energy Assessments'!Y17+'Comm 95+% Furnace - NEW'!Y17+'Comm 95+% Furnace - Replace'!Y17+'Comm Custom'!Y17,0) -> 0 | Z17: =ROUND(+'Res .95+% Res Furnace - NEW'!Z17+'Res .95+% Res Furnace - Replace'!Z17+'Programmable Tstats - Tier 1'!Z17+'Programmable Tstats - Tier 2'!Z17+'Residential Energy Assessments'!Z17+'Comm 95+% Furnace - NEW'!Z17+'Comm 95+% Furnace - Replace'!Z17+'Comm Custom'!Z17,0) -> 0 | AA17: =ROUND(+'Res .95+% Res Furnace - NEW'!AA17+'Res .95+% Res Furnace - Replace'!AA17+'Programmable Tstats - Tier 1'!AA17+'Programmable Tstats - Tier 2'!AA17+'Residential Energy Assessments'!AA17+'Comm 95+% Furnace - NEW'!AA17+'Comm 95+% Furnace - Replace'!AA17+'Comm Custom'!AA17,0) -> 12255 | AB17: =ROUND(+'Res .95+% Res Furnace - NEW'!AB17+'Res .95+% Res Furnace - Replace'!AB17+'Programmable Tstats - Tier 1'!AB17+'Programmable Tstats - Tier 2'!AB17+'Residential Energy Assessments'!AB17+'Comm 95+% Furnace - NEW'!AB17+'Comm 95+% Furnace - Replace'!AB17+'Comm Custom'!AB17,0) -> 22921 | AE17: 2023 | AF17: 22722 | AG17: 12454 | AH17: 35176 | AJ17: 0 | AK17: 0 | AL17: 0 | AN17: 35176 | AQ17: 2023 | AR17: 22722 | AS17: 12454 | AU17: =ROUND(+'Res .95+% Res Furnace - NEW'!AU17+'Res .95+% Res Furnace - Replace'!AU17+'Programmable Tstats - Tier 1'!AU17+'Programmable Tstats - Tier 2'!AU17+'Residential Energy Assessments'!AU17+'Comm 95+% Furnace - NEW'!AU17+'Comm 95+% Furnace - Replace'!AU17+'Comm Custom'!AU17,0) -> 12826 | AW17: =ROUND(+'Res .95+% Res Furnace - NEW'!AW17+'Res .95+% Res Furnace - Replace'!AW17+'Programmable Tstats - Tier 1'!AW17+'Programmable Tstats - Tier 2'!AW17+'Residential Energy Assessments'!AW17+'Comm 95+% Furnace - NEW'!AW17+'Comm 95+% Furnace - Replace'!AW17+'Comm Custom'!AW17,0) -> 3298 | AZ17: 51300 | BB17: =ROUND(+'Res .95+% Res Furnace - NEW'!BB17+'Res .95+% Res Furnace - Replace'!BB17+'Programmable Tstats - Tier 1'!BB17+'Programmable Tstats - Tier 2'!BB17+'Residential Energy Assessments'!BB17+'Comm 95+% Furnace - NEW'!BB17+'Comm 95+% Furnace - Replace'!BB17+'Comm Custom'!BB17,0) -> 0 | BC17: =ROUND(+'Res .95+% Res Furnace - NEW'!BC17+'Res .95+% Res Furnace - Replace'!BC17+'Programmable Tstats - Tier 1'!BC17+'Programmable Tstats - Tier 2'!BC17+'Residential Energy Assessments'!BC17+'Comm 95+% Furnace - NEW'!BC17+'Comm 95+% Furnace - Replace'!BC17+'Comm Custom'!BC17,0) -> 0 | BD17: 0 | BE17: 51300 | BH17: 2023 | BI17: =ROUND(+'Res .95+% Res Furnace - NEW'!BI17+'Res .95+% Res Furnace - Replace'!BI17+'Programmable Tstats - Tier 1'!BI17+'Programmable Tstats - Tier 2'!BI17+'Residential Energy Assessments'!BI17+'Comm 95+% Furnace - NEW'!BI17+'Comm 95+% Furnace - Replace'!BI17+'Comm Custom'!BI17,0) -> 0 | BJ17: =ROUND(+'Res .95+% Res Furnace - NEW'!BJ17+'Res .95+% Res Furnace - Replace'!BJ17+'Programmable Tstats - Tier 1'!BJ17+'Programmable Tstats - Tier 2'!BJ17+'Residential Energy Assessments'!BJ17+'Comm 95+% Furnace - NEW'!BJ17+'Comm 95+% Furnace - Replace'!BJ17+'Comm Custom'!BJ17,0) -> 8144 | BL17: =ROUND(+'Res .95+% Res Furnace - NEW'!BL17+'Res .95+% Res Furnace - Replace'!BL17+'Programmable Tstats - Tier 1'!BL17+'Programmable Tstats - Tier 2'!BL17+'Residential Energy Assessments'!BL17+'Comm 95+% Furnace - NEW'!BL17+'Comm 95+% Furnace - Replace'!BL17+'Comm Custom'!BL17,0) -> 53903 | BN17: =ROUND(+'Res .95+% Res Furnace - NEW'!BN17+'Res .95+% Res Furnace - Replace'!BN17+'Programmable Tstats - Tier 1'!BN17+'Programmable Tstats - Tier 2'!BN17+'Residential Energy Assessments'!BN17+'Comm 95+% Furnace - NEW'!BN17+'Comm 95+% Furnace - Replace'!BN17+'Comm Custom'!BN17,0) -> 53564 | BP17: 107467 | BR17: =ROUND(+'Res .95+% Res Furnace - NEW'!BR17+'Res .95+% Res Furnace - Replace'!BR17+'Programmable Tstats - Tier 1'!BR17+'Programmable Tstats - Tier 2'!BR17+'Residential Energy Assessments'!BR17+'Comm 95+% Furnace - NEW'!BR17+'Comm 95+% Furnace - Replace'!BR17+'Comm Custom'!BR17,0) -> 0 | BT17: 107467 | BW17: 2023 | BX17: 22722 | BY17: 12454 | BZ17: 12826 | CA17: 48002 | CC17: 0 | CD17: 0 | CE17: =SUM(CC17:CD17) -> 0 | CG17: 48002
A18: Escalation Rate = | E18: Escalation Rate = | J18: 4 | L18: 2024 | M18: =ROUND(+'Res .95+% Res Furnace - NEW'!M18+'Res .95+% Res Furnace - Replace'!M18+'Programmable Tstats - Tier 1'!M18+'Programmable Tstats - Tier 2'!M18+'Residential Energy Assessments'!M18+'Comm 95+% Furnace - NEW'!M18+'Comm 95+% Furnace - Replace'!M18+'Comm Custom'!M18,0) -> 8144 | O18: =ROUND(+'Res .95+% Res Furnace - NEW'!O18+'Res .95+% Res Furnace - Replace'!O18+'Programmable Tstats - Tier 1'!O18+'Programmable Tstats - Tier 2'!O18+'Residential Energy Assessments'!O18+'Comm 95+% Furnace - NEW'!O18+'Comm 95+% Furnace - Replace'!O18+'Comm Custom'!O18,0) -> 23511 | Q18: =ROUND(+'Res .95+% Res Furnace - NEW'!Q18+'Res .95+% Res Furnace - Replace'!Q18+'Programmable Tstats - Tier 1'!Q18+'Programmable Tstats - Tier 2'!Q18+'Residential Energy Assessments'!Q18+'Comm 95+% Furnace - NEW'!Q18+'Comm 95+% Furnace - Replace'!Q18+'Comm Custom'!Q18,0) -> 0 | R18: =ROUND(+'Res .95+% Res Furnace - NEW'!R18+'Res .95+% Res Furnace - Replace'!R18+'Programmable Tstats - Tier 1'!R18+'Programmable Tstats - Tier 2'!R18+'Residential Energy Assessments'!R18+'Comm 95+% Furnace - NEW'!R18+'Comm 95+% Furnace - Replace'!R18+'Comm Custom'!R18,0) -> 23511 | S18: =ROUND(+'Res .95+% Res Furnace - NEW'!S18+'Res .95+% Res Furnace - Replace'!S18+'Programmable Tstats - Tier 1'!S18+'Programmable Tstats - Tier 2'!S18+'Residential Energy Assessments'!S18+'Comm 95+% Furnace - NEW'!S18+'Comm 95+% Furnace - Replace'!S18+'Comm Custom'!S18,0) -> 81 | U18: =ROUND(+'Res .95+% Res Furnace - NEW'!U18+'Res .95+% Res Furnace - Replace'!U18+'Programmable Tstats - Tier 1'!U18+'Programmable Tstats - Tier 2'!U18+'Residential Energy Assessments'!U18+'Comm 95+% Furnace - NEW'!U18+'Comm 95+% Furnace - Replace'!U18+'Comm Custom'!U18,0) -> 12620 | V18: =ROUND(+'Res .95+% Res Furnace - NEW'!V18+'Res .95+% Res Furnace - Replace'!V18+'Programmable Tstats - Tier 1'!V18+'Programmable Tstats - Tier 2'!V18+'Residential Energy Assessments'!V18+'Comm 95+% Furnace - NEW'!V18+'Comm 95+% Furnace - Replace'!V18+'Comm Custom'!V18,0) -> 36131 | X18: =ROUND(+'Res .95+% Res Furnace - NEW'!X18+'Res .95+% Res Furnace - Replace'!X18+'Programmable Tstats - Tier 1'!X18+'Programmable Tstats - Tier 2'!X18+'Residential Energy Assessments'!X18+'Comm 95+% Furnace - NEW'!X18+'Comm 95+% Furnace - Replace'!X18+'Comm Custom'!X18,0) -> 12683 | Y18: =ROUND(+'Res .95+% Res Furnace - NEW'!Y18+'Res .95+% Res Furnace - Replace'!Y18+'Programmable Tstats - Tier 1'!Y18+'Programmable Tstats - Tier 2'!Y18+'Residential Energy Assessments'!Y18+'Comm 95+% Furnace - NEW'!Y18+'Comm 95+% Furnace - Replace'!Y18+'Comm Custom'!Y18,0) -> 0 | Z18: =ROUND(+'Res .95+% Res Furnace - NEW'!Z18+'Res .95+% Res Furnace - Replace'!Z18+'Programmable Tstats - Tier 1'!Z18+'Programmable Tstats - Tier 2'!Z18+'Residential Energy Assessments'!Z18+'Comm 95+% Furnace - NEW'!Z18+'Comm 95+% Furnace - Replace'!Z18+'Comm Custom'!Z18,0) -> 0 | AA18: =ROUND(+'Res .95+% Res Furnace - NEW'!AA18+'Res .95+% Res Furnace - Replace'!AA18+'Programmable Tstats - Tier 1'!AA18+'Programmable Tstats - Tier 2'!AA18+'Residential Energy Assessments'!AA18+'Comm 95+% Furnace - NEW'!AA18+'Comm 95+% Furnace - Replace'!AA18+'Comm Custom'!AA18,0) -> 12683 | AB18: =ROUND(+'Res .95+% Res Furnace - NEW'!AB18+'Res .95+% Res Furnace - Replace'!AB18+'Programmable Tstats - Tier 1'!AB18+'Programmable Tstats - Tier 2'!AB18+'Residential Energy Assessments'!AB18+'Comm 95+% Furnace - NEW'!AB18+'Comm 95+% Furnace - Replace'!AB18+'Comm Custom'!AB18,0) -> 23448 | AE18: 2024 | AF18: 23511 | AG18: 12620 | AH18: 36131 | AJ18: 0 | AK18: 0 | AL18: 0 | AN18: 36131 | AQ18: 2024 | AR18: 23511 | AS18: 12620 | AU18: =ROUND(+'Res .95+% Res Furnace - NEW'!AU18+'Res .95+% Res Furnace - Replace'!AU18+'Programmable Tstats - Tier 1'!AU18+'Programmable Tstats - Tier 2'!AU18+'Residential Energy Assessments'!AU18+'Comm 95+% Furnace - NEW'!AU18+'Comm 95+% Furnace - Replace'!AU18+'Comm Custom'!AU18,0) -> 13214 | AW18: =ROUND(+'Res .95+% Res Furnace - NEW'!AW18+'Res .95+% Res Furnace - Replace'!AW18+'Programmable Tstats - Tier 1'!AW18+'Programmable Tstats - Tier 2'!AW18+'Residential Energy Assessments'!AW18+'Comm 95+% Furnace - NEW'!AW18+'Comm 95+% Furnace - Replace'!AW18+'Comm Custom'!AW18,0) -> 3372 | AZ18: 52717 | BB18: =ROUND(+'Res .95+% Res Furnace - NEW'!BB18+'Res .95+% Res Furnace - Replace'!BB18+'Programmable Tstats - Tier 1'!BB18+'Programmable Tstats - Tier 2'!BB18+'Residential Energy Assessments'!BB18+'Comm 95+% Furnace - NEW'!BB18+'Comm 95+% Furnace - Replace'!BB18+'Comm Custom'!BB18,0) -> 0 | BC18: =ROUND(+'Res .95+% Res Furnace - NEW'!BC18+'Res .95+% Res Furnace - Replace'!BC18+'Programmable Tstats - Tier 1'!BC18+'Programmable Tstats - Tier 2'!BC18+'Residential Energy Assessments'!BC18+'Comm 95+% Furnace - NEW'!BC18+'Comm 95+% Furnace - Replace'!BC18+'Comm Custom'!BC18,0) -> 0 | BD18: 0 | BE18: 52717 | BH18: 2024 | BI18: =ROUND(+'Res .95+% Res Furnace - NEW'!BI18+'Res .95+% Res Furnace - Replace'!BI18+'Programmable Tstats - Tier 1'!BI18+'Programmable Tstats - Tier 2'!BI18+'Residential Energy Assessments'!BI18+'Comm 95+% Furnace - NEW'!BI18+'Comm 95+% Furnace - Replace'!BI18+'Comm Custom'!BI18,0) -> 0 | BJ18: =ROUND(+'Res .95+% Res Furnace - NEW'!BJ18+'Res .95+% Res Furnace - Replace'!BJ18+'Programmable Tstats - Tier 1'!BJ18+'Programmable Tstats - Tier 2'!BJ18+'Residential Energy Assessments'!BJ18+'Comm 95+% Furnace - NEW'!BJ18+'Comm 95+% Furnace - Replace'!BJ18+'Comm Custom'!BJ18,0) -> 8144 | BL18: =ROUND(+'Res .95+% Res Furnace - NEW'!BL18+'Res .95+% Res Furnace - Replace'!BL18+'Programmable Tstats - Tier 1'!BL18+'Programmable Tstats - Tier 2'!BL18+'Residential Energy Assessments'!BL18+'Comm 95+% Furnace - NEW'!BL18+'Comm 95+% Furnace - Replace'!BL18+'Comm Custom'!BL18,0) -> 55789 | BN18: =ROUND(+'Res .95+% Res Furnace - NEW'!BN18+'Res .95+% Res Furnace - Replace'!BN18+'Programmable Tstats - Tier 1'!BN18+'Programmable Tstats - Tier 2'!BN18+'Residential Energy Assessments'!BN18+'Comm 95+% Furnace - NEW'!BN18+'Comm 95+% Furnace - Replace'!BN18+'Comm Custom'!BN18,0) -> 55490 | BP18: 111279 | BR18: =ROUND(+'Res .95+% Res Furnace - NEW'!BR18+'Res .95+% Res Furnace - Replace'!BR18+'Programmable Tstats - Tier 1'!BR18+'Programmable Tstats - Tier 2'!BR18+'Residential Energy Assessments'!BR18+'Comm 95+% Furnace - NEW'!BR18+'Comm 95+% Furnace - Replace'!BR18+'Comm Custom'!BR18,0) -> 0 | BT18: 111279 | BW18: 2024 | BX18: 23511 | BY18: 12620 | BZ18: 13214 | CA18: =SUM(BX18:BZ18) -> 49345 | CC18: 0 | CD18: 0 | CE18: 0 | CG18: 49345 | DB18: t
J19: 5 | L19: 2025 | M19: =ROUND(+'Res .95+% Res Furnace - NEW'!M19+'Res .95+% Res Furnace - Replace'!M19+'Programmable Tstats - Tier 1'!M19+'Programmable Tstats - Tier 2'!M19+'Residential Energy Assessments'!M19+'Comm 95+% Furnace - NEW'!M19+'Comm 95+% Furnace - Replace'!M19+'Comm Custom'!M19,0) -> 8144 | O19: =ROUND(+'Res .95+% Res Furnace - NEW'!O19+'Res .95+% Res Furnace - Replace'!O19+'Programmable Tstats - Tier 1'!O19+'Programmable Tstats - Tier 2'!O19+'Residential Energy Assessments'!O19+'Comm 95+% Furnace - NEW'!O19+'Comm 95+% Furnace - Replace'!O19+'Comm Custom'!O19,0) -> 24335 | Q19: =ROUND(+'Res .95+% Res Furnace - NEW'!Q19+'Res .95+% Res Furnace - Replace'!Q19+'Programmable Tstats - Tier 1'!Q19+'Programmable Tstats - Tier 2'!Q19+'Residential Energy Assessments'!Q19+'Comm 95+% Furnace - NEW'!Q19+'Comm 95+% Furnace - Replace'!Q19+'Comm Custom'!Q19,0) -> 0 | R19: =ROUND(+'Res .95+% Res Furnace - NEW'!R19+'Res .95+% Res Furnace - Replace'!R19+'Programmable Tstats - Tier 1'!R19+'Programmable Tstats - Tier 2'!R19+'Residential Energy Assessments'!R19+'Comm 95+% Furnace - NEW'!R19+'Comm 95+% Furnace - Replace'!R19+'Comm Custom'!R19,0) -> 24335 | S19: =ROUND(+'Res .95+% Res Furnace - NEW'!S19+'Res .95+% Res Furnace - Replace'!S19+'Programmable Tstats - Tier 1'!S19+'Programmable Tstats - Tier 2'!S19+'Residential Energy Assessments'!S19+'Comm 95+% Furnace - NEW'!S19+'Comm 95+% Furnace - Replace'!S19+'Comm Custom'!S19,0) -> 81 | U19: =ROUND(+'Res .95+% Res Furnace - NEW'!U19+'Res .95+% Res Furnace - Replace'!U19+'Programmable Tstats - Tier 1'!U19+'Programmable Tstats - Tier 2'!U19+'Residential Energy Assessments'!U19+'Comm 95+% Furnace - NEW'!U19+'Comm 95+% Furnace - Replace'!U19+'Comm Custom'!U19,0) -> 12698 | V19: =ROUND(+'Res .95+% Res Furnace - NEW'!V19+'Res .95+% Res Furnace - Replace'!V19+'Programmable Tstats - Tier 1'!V19+'Programmable Tstats - Tier 2'!V19+'Residential Energy Assessments'!V19+'Comm 95+% Furnace - NEW'!V19+'Comm 95+% Furnace - Replace'!V19+'Comm Custom'!V19,0) -> 37033 | X19: =ROUND(+'Res .95+% Res Furnace - NEW'!X19+'Res .95+% Res Furnace - Replace'!X19+'Programmable Tstats - Tier 1'!X19+'Programmable Tstats - Tier 2'!X19+'Residential Energy Assessments'!X19+'Comm 95+% Furnace - NEW'!X19+'Comm 95+% Furnace - Replace'!X19+'Comm Custom'!X19,0) -> 13128 | Y19: =ROUND(+'Res .95+% Res Furnace - NEW'!Y19+'Res .95+% Res Furnace - Replace'!Y19+'Programmable Tstats - Tier 1'!Y19+'Programmable Tstats - Tier 2'!Y19+'Residential Energy Assessments'!Y19+'Comm 95+% Furnace - NEW'!Y19+'Comm 95+% Furnace - Replace'!Y19+'Comm Custom'!Y19,0) -> 0 | Z19: =ROUND(+'Res .95+% Res Furnace - NEW'!Z19+'Res .95+% Res Furnace - Replace'!Z19+'Programmable Tstats - Tier 1'!Z19+'Programmable Tstats - Tier 2'!Z19+'Residential Energy Assessments'!Z19+'Comm 95+% Furnace - NEW'!Z19+'Comm 95+% Furnace - Replace'!Z19+'Comm Custom'!Z19,0) -> 0 | AA19: =ROUND(+'Res .95+% Res Furnace - NEW'!AA19+'Res .95+% Res Furnace - Replace'!AA19+'Programmable Tstats - Tier 1'!AA19+'Programmable Tstats - Tier 2'!AA19+'Residential Energy Assessments'!AA19+'Comm 95+% Furnace - NEW'!AA19+'Comm 95+% Furnace - Replace'!AA19+'Comm Custom'!AA19,0) -> 13128 | AB19: =ROUND(+'Res .95+% Res Furnace - NEW'!AB19+'Res .95+% Res Furnace - Replace'!AB19+'Programmable Tstats - Tier 1'!AB19+'Programmable Tstats - Tier 2'!AB19+'Residential Energy Assessments'!AB19+'Comm 95+% Furnace - NEW'!AB19+'Comm 95+% Furnace - Replace'!AB19+'Comm Custom'!AB19,0) -> 23905 | AE19: 2025 | AF19: 24335 | AG19: 12698 | AH19: 37033 | AJ19: 0 | AK19: 0 | AL19: 0 | AN19: 37033 | AQ19: 2025 | AR19: 24335 | AS19: 12698 | AU19: =ROUND(+'Res .95+% Res Furnace - NEW'!AU19+'Res .95+% Res Furnace - Replace'!AU19+'Programmable Tstats - Tier 1'!AU19+'Programmable Tstats - Tier 2'!AU19+'Residential Energy Assessments'!AU19+'Comm 95+% Furnace - NEW'!AU19+'Comm 95+% Furnace - Replace'!AU19+'Comm Custom'!AU19,0) -> 13602 | AW19: =ROUND(+'Res .95+% Res Furnace - NEW'!AW19+'Res .95+% Res Furnace - Replace'!AW19+'Programmable Tstats - Tier 1'!AW19+'Programmable Tstats - Tier 2'!AW19+'Residential Energy Assessments'!AW19+'Comm 95+% Furnace - NEW'!AW19+'Comm 95+% Furnace - Replace'!AW19+'Comm Custom'!AW19,0) -> 3445 | AZ19: 54080 | BB19: =ROUND(+'Res .95+% Res Furnace - NEW'!BB19+'Res .95+% Res Furnace - Replace'!BB19+'Programmable Tstats - Tier 1'!BB19+'Programmable Tstats - Tier 2'!BB19+'Residential Energy Assessments'!BB19+'Comm 95+% Furnace - NEW'!BB19+'Comm 95+% Furnace - Replace'!BB19+'Comm Custom'!BB19,0) -> 0 | BC19: =ROUND(+'Res .95+% Res Furnace - NEW'!BC19+'Res .95+% Res Furnace - Replace'!BC19+'Programmable Tstats - Tier 1'!BC19+'Programmable Tstats - Tier 2'!BC19+'Residential Energy Assessments'!BC19+'Comm 95+% Furnace - NEW'!BC19+'Comm 95+% Furnace - Replace'!BC19+'Comm Custom'!BC19,0) -> 0 | BD19: 0 | BE19: 54080 | BH19: 2025 | BI19: =ROUND(+'Res .95+% Res Furnace - NEW'!BI19+'Res .95+% Res Furnace - Replace'!BI19+'Programmable Tstats - Tier 1'!BI19+'Programmable Tstats - Tier 2'!BI19+'Residential Energy Assessments'!BI19+'Comm 95+% Furnace - NEW'!BI19+'Comm 95+% Furnace - Replace'!BI19+'Comm Custom'!BI19,0) -> 0 | BJ19: =ROUND(+'Res .95+% Res Furnace - NEW'!BJ19+'Res .95+% Res Furnace - Replace'!BJ19+'Programmable Tstats - Tier 1'!BJ19+'Programmable Tstats - Tier 2'!BJ19+'Residential Energy Assessments'!BJ19+'Comm 95+% Furnace - NEW'!BJ19+'Comm 95+% Furnace - Replace'!BJ19+'Comm Custom'!BJ19,0) -> 8144 | BL19: =ROUND(+'Res .95+% Res Furnace - NEW'!BL19+'Res .95+% Res Furnace - Replace'!BL19+'Programmable Tstats - Tier 1'!BL19+'Programmable Tstats - Tier 2'!BL19+'Residential Energy Assessments'!BL19+'Comm 95+% Furnace - NEW'!BL19+'Comm 95+% Furnace - Replace'!BL19+'Comm Custom'!BL19,0) -> 57746 | BN19: =ROUND(+'Res .95+% Res Furnace - NEW'!BN19+'Res .95+% Res Furnace - Replace'!BN19+'Programmable Tstats - Tier 1'!BN19+'Programmable Tstats - Tier 2'!BN19+'Residential Energy Assessments'!BN19+'Comm 95+% Furnace - NEW'!BN19+'Comm 95+% Furnace - Replace'!BN19+'Comm Custom'!BN19,0) -> 57435 | BP19: 115181 | BR19: =ROUND(+'Res .95+% Res Furnace - NEW'!BR19+'Res .95+% Res Furnace - Replace'!BR19+'Programmable Tstats - Tier 1'!BR19+'Programmable Tstats - Tier 2'!BR19+'Residential Energy Assessments'!BR19+'Comm 95+% Furnace - NEW'!BR19+'Comm 95+% Furnace - Replace'!BR19+'Comm Custom'!BR19,0) -> 0 | BT19: 115181 | BW19: 2025 | BX19: 24335 | BY19: 12698 | BZ19: 13602 | CA19: 50635 | CC19: 0 | CD19: 0 | CE19: 0 | CG19: 50635
A20: 4) Demand Cost ($/Unit/Yr) = | E20: 19) Participant Non-Energy Savings (Annual $/Part) = | J20: 6 | L20: 2026 | M20: =ROUND(+'Res .95+% Res Furnace - NEW'!M20+'Res .95+% Res Furnace - Replace'!M20+'Programmable Tstats - Tier 1'!M20+'Programmable Tstats - Tier 2'!M20+'Residential Energy Assessments'!M20+'Comm 95+% Furnace - NEW'!M20+'Comm 95+% Furnace - Replace'!M20+'Comm Custom'!M20,0) -> 8144 | O20: =ROUND(+'Res .95+% Res Furnace - NEW'!O20+'Res .95+% Res Furnace - Replace'!O20+'Programmable Tstats - Tier 1'!O20+'Programmable Tstats - Tier 2'!O20+'Residential Energy Assessments'!O20+'Comm 95+% Furnace - NEW'!O20+'Comm 95+% Furnace - Replace'!O20+'Comm Custom'!O20,0) -> 25190 | Q20: =ROUND(+'Res .95+% Res Furnace - NEW'!Q20+'Res .95+% Res Furnace - Replace'!Q20+'Programmable Tstats - Tier 1'!Q20+'Programmable Tstats - Tier 2'!Q20+'Residential Energy Assessments'!Q20+'Comm 95+% Furnace - NEW'!Q20+'Comm 95+% Furnace - Replace'!Q20+'Comm Custom'!Q20,0) -> 0 | R20: =ROUND(+'Res .95+% Res Furnace - NEW'!R20+'Res .95+% Res Furnace - Replace'!R20+'Programmable Tstats - Tier 1'!R20+'Programmable Tstats - Tier 2'!R20+'Residential Energy Assessments'!R20+'Comm 95+% Furnace - NEW'!R20+'Comm 95+% Furnace - Replace'!R20+'Comm Custom'!R20,0) -> 25190 | S20: =ROUND(+'Res .95+% Res Furnace - NEW'!S20+'Res .95+% Res Furnace - Replace'!S20+'Programmable Tstats - Tier 1'!S20+'Programmable Tstats - Tier 2'!S20+'Residential Energy Assessments'!S20+'Comm 95+% Furnace - NEW'!S20+'Comm 95+% Furnace - Replace'!S20+'Comm Custom'!S20,0) -> 81 | U20: =ROUND(+'Res .95+% Res Furnace - NEW'!U20+'Res .95+% Res Furnace - Replace'!U20+'Programmable Tstats - Tier 1'!U20+'Programmable Tstats - Tier 2'!U20+'Residential Energy Assessments'!U20+'Comm 95+% Furnace - NEW'!U20+'Comm 95+% Furnace - Replace'!U20+'Comm Custom'!U20,0) -> 12861 | V20: =ROUND(+'Res .95+% Res Furnace - NEW'!V20+'Res .95+% Res Furnace - Replace'!V20+'Programmable Tstats - Tier 1'!V20+'Programmable Tstats - Tier 2'!V20+'Residential Energy Assessments'!V20+'Comm 95+% Furnace - NEW'!V20+'Comm 95+% Furnace - Replace'!V20+'Comm Custom'!V20,0) -> 38051 | X20: =ROUND(+'Res .95+% Res Furnace - NEW'!X20+'Res .95+% Res Furnace - Replace'!X20+'Programmable Tstats - Tier 1'!X20+'Programmable Tstats - Tier 2'!X20+'Residential Energy Assessments'!X20+'Comm 95+% Furnace - NEW'!X20+'Comm 95+% Furnace - Replace'!X20+'Comm Custom'!X20,0) -> 13585 | Y20: =ROUND(+'Res .95+% Res Furnace - NEW'!Y20+'Res .95+% Res Furnace - Replace'!Y20+'Programmable Tstats - Tier 1'!Y20+'Programmable Tstats - Tier 2'!Y20+'Residential Energy Assessments'!Y20+'Comm 95+% Furnace - NEW'!Y20+'Comm 95+% Furnace - Replace'!Y20+'Comm Custom'!Y20,0) -> 0 | Z20: =ROUND(+'Res .95+% Res Furnace - NEW'!Z20+'Res .95+% Res Furnace - Replace'!Z20+'Programmable Tstats - Tier 1'!Z20+'Programmable Tstats - Tier 2'!Z20+'Residential Energy Assessments'!Z20+'Comm 95+% Furnace - NEW'!Z20+'Comm 95+% Furnace - Replace'!Z20+'Comm Custom'!Z20,0) -> 0 | AA20: =ROUND(+'Res .95+% Res Furnace - NEW'!AA20+'Res .95+% Res Furnace - Replace'!AA20+'Programmable Tstats - Tier 1'!AA20+'Programmable Tstats - Tier 2'!AA20+'Residential Energy Assessments'!AA20+'Comm 95+% Furnace - NEW'!AA20+'Comm 95+% Furnace - Replace'!AA20+'Comm Custom'!AA20,0) -> 13585 | AB20: =ROUND(+'Res .95+% Res Furnace - NEW'!AB20+'Res .95+% Res Furnace - Replace'!AB20+'Programmable Tstats - Tier 1'!AB20+'Programmable Tstats - Tier 2'!AB20+'Residential Energy Assessments'!AB20+'Comm 95+% Furnace - NEW'!AB20+'Comm 95+% Furnace - Replace'!AB20+'Comm Custom'!AB20,0) -> 24466 | AE20: 2026 | AF20: 25190 | AG20: 12861 | AH20: 38051 | AJ20: 0 | AK20: 0 | AL20: 0 | AN20: 38051 | AQ20: 2026 | AR20: 25190 | AS20: 12861 | AU20: =ROUND(+'Res .95+% Res Furnace - NEW'!AU20+'Res .95+% Res Furnace - Replace'!AU20+'Programmable Tstats - Tier 1'!AU20+'Programmable Tstats - Tier 2'!AU20+'Residential Energy Assessments'!AU20+'Comm 95+% Furnace - NEW'!AU20+'Comm 95+% Furnace - Replace'!AU20+'Comm Custom'!AU20,0) -> 13992 | AW20: =ROUND(+'Res .95+% Res Furnace - NEW'!AW20+'Res .95+% Res Furnace - Replace'!AW20+'Programmable Tstats - Tier 1'!AW20+'Programmable Tstats - Tier 2'!AW20+'Residential Energy Assessments'!AW20+'Comm 95+% Furnace - NEW'!AW20+'Comm 95+% Furnace - Replace'!AW20+'Comm Custom'!AW20,0) -> 3520 | AZ20: 55563 | BB20: =ROUND(+'Res .95+% Res Furnace - NEW'!BB20+'Res .95+% Res Furnace - Replace'!BB20+'Programmable Tstats - Tier 1'!BB20+'Programmable Tstats - Tier 2'!BB20+'Residential Energy Assessments'!BB20+'Comm 95+% Furnace - NEW'!BB20+'Comm 95+% Furnace - Replace'!BB20+'Comm Custom'!BB20,0) -> 0 | BC20: =ROUND(+'Res .95+% Res Furnace - NEW'!BC20+'Res .95+% Res Furnace - Replace'!BC20+'Programmable Tstats - Tier 1'!BC20+'Programmable Tstats - Tier 2'!BC20+'Residential Energy Assessments'!BC20+'Comm 95+% Furnace - NEW'!BC20+'Comm 95+% Furnace - Replace'!BC20+'Comm Custom'!BC20,0) -> 0 | BD20: 0 | BE20: 55563 | BH20: 2026 | BI20: =ROUND(+'Res .95+% Res Furnace - NEW'!BI20+'Res .95+% Res Furnace - Replace'!BI20+'Programmable Tstats - Tier 1'!BI20+'Programmable Tstats - Tier 2'!BI20+'Residential Energy Assessments'!BI20+'Comm 95+% Furnace - NEW'!BI20+'Comm 95+% Furnace - Replace'!BI20+'Comm Custom'!BI20,0) -> 0 | BJ20: =ROUND(+'Res .95+% Res Furnace - NEW'!BJ20+'Res .95+% Res Furnace - Replace'!BJ20+'Programmable Tstats - Tier 1'!BJ20+'Programmable Tstats - Tier 2'!BJ20+'Residential Energy Assessments'!BJ20+'Comm 95+% Furnace - NEW'!BJ20+'Comm 95+% Furnace - Replace'!BJ20+'Comm Custom'!BJ20,0) -> 8144 | BL20: =ROUND(+'Res .95+% Res Furnace - NEW'!BL20+'Res .95+% Res Furnace - Replace'!BL20+'Programmable Tstats - Tier 1'!BL20+'Programmable Tstats - Tier 2'!BL20+'Residential Energy Assessments'!BL20+'Comm 95+% Furnace - NEW'!BL20+'Comm 95+% Furnace - Replace'!BL20+'Comm Custom'!BL20,0) -> 59766 | BN20: =ROUND(+'Res .95+% Res Furnace - NEW'!BN20+'Res .95+% Res Furnace - Replace'!BN20+'Programmable Tstats - Tier 1'!BN20+'Programmable Tstats - Tier 2'!BN20+'Residential Energy Assessments'!BN20+'Comm 95+% Furnace - NEW'!BN20+'Comm 95+% Furnace - Replace'!BN20+'Comm Custom'!BN20,0) -> 59378 | BP20: 119144 | BR20: =ROUND(+'Res .95+% Res Furnace - NEW'!BR20+'Res .95+% Res Furnace - Replace'!BR20+'Programmable Tstats - Tier 1'!BR20+'Programmable Tstats - Tier 2'!BR20+'Residential Energy Assessments'!BR20+'Comm 95+% Furnace - NEW'!BR20+'Comm 95+% Furnace - Replace'!BR20+'Comm Custom'!BR20,0) -> 0 | BT20: 119144 | BW20: 2026 | BX20: 25190 | BY20: 12861 | BZ20: 13992 | CA20: 52043 | CC20: 0 | CD20: 0 | CE20: 0 | CG20: 52043
A21: Escalation Rate = | E21: Escalation Rate = | J21: 7 | L21: 2027 | M21: =ROUND(+'Res .95+% Res Furnace - NEW'!M21+'Res .95+% Res Furnace - Replace'!M21+'Programmable Tstats - Tier 1'!M21+'Programmable Tstats - Tier 2'!M21+'Residential Energy Assessments'!M21+'Comm 95+% Furnace - NEW'!M21+'Comm 95+% Furnace - Replace'!M21+'Comm Custom'!M21,0) -> 8144 | O21: =ROUND(+'Res .95+% Res Furnace - NEW'!O21+'Res .95+% Res Furnace - Replace'!O21+'Programmable Tstats - Tier 1'!O21+'Programmable Tstats - Tier 2'!O21+'Residential Energy Assessments'!O21+'Comm 95+% Furnace - NEW'!O21+'Comm 95+% Furnace - Replace'!O21+'Comm Custom'!O21,0) -> 26068 | Q21: =ROUND(+'Res .95+% Res Furnace - NEW'!Q21+'Res .95+% Res Furnace - Replace'!Q21+'Programmable Tstats - Tier 1'!Q21+'Programmable Tstats - Tier 2'!Q21+'Residential Energy Assessments'!Q21+'Comm 95+% Furnace - NEW'!Q21+'Comm 95+% Furnace - Replace'!Q21+'Comm Custom'!Q21,0) -> 0 | R21: =ROUND(+'Res .95+% Res Furnace - NEW'!R21+'Res .95+% Res Furnace - Replace'!R21+'Programmable Tstats - Tier 1'!R21+'Programmable Tstats - Tier 2'!R21+'Residential Energy Assessments'!R21+'Comm 95+% Furnace - NEW'!R21+'Comm 95+% Furnace - Replace'!R21+'Comm Custom'!R21,0) -> 26068 | S21: =ROUND(+'Res .95+% Res Furnace - NEW'!S21+'Res .95+% Res Furnace - Replace'!S21+'Programmable Tstats - Tier 1'!S21+'Programmable Tstats - Tier 2'!S21+'Residential Energy Assessments'!S21+'Comm 95+% Furnace - NEW'!S21+'Comm 95+% Furnace - Replace'!S21+'Comm Custom'!S21,0) -> 81 | U21: =ROUND(+'Res .95+% Res Furnace - NEW'!U21+'Res .95+% Res Furnace - Replace'!U21+'Programmable Tstats - Tier 1'!U21+'Programmable Tstats - Tier 2'!U21+'Residential Energy Assessments'!U21+'Comm 95+% Furnace - NEW'!U21+'Comm 95+% Furnace - Replace'!U21+'Comm Custom'!U21,0) -> 13024 | V21: =ROUND(+'Res .95+% Res Furnace - NEW'!V21+'Res .95+% Res Furnace - Replace'!V21+'Programmable Tstats - Tier 1'!V21+'Programmable Tstats - Tier 2'!V21+'Residential Energy Assessments'!V21+'Comm 95+% Furnace - NEW'!V21+'Comm 95+% Furnace - Replace'!V21+'Comm Custom'!V21,0) -> 39092 | X21: =ROUND(+'Res .95+% Res Furnace - NEW'!X21+'Res .95+% Res Furnace - Replace'!X21+'Programmable Tstats - Tier 1'!X21+'Programmable Tstats - Tier 2'!X21+'Residential Energy Assessments'!X21+'Comm 95+% Furnace - NEW'!X21+'Comm 95+% Furnace - Replace'!X21+'Comm Custom'!X21,0) -> 14061 | Y21: =ROUND(+'Res .95+% Res Furnace - NEW'!Y21+'Res .95+% Res Furnace - Replace'!Y21+'Programmable Tstats - Tier 1'!Y21+'Programmable Tstats - Tier 2'!Y21+'Residential Energy Assessments'!Y21+'Comm 95+% Furnace - NEW'!Y21+'Comm 95+% Furnace - Replace'!Y21+'Comm Custom'!Y21,0) -> 0 | Z21: =ROUND(+'Res .95+% Res Furnace - NEW'!Z21+'Res .95+% Res Furnace - Replace'!Z21+'Programmable Tstats - Tier 1'!Z21+'Programmable Tstats - Tier 2'!Z21+'Residential Energy Assessments'!Z21+'Comm 95+% Furnace - NEW'!Z21+'Comm 95+% Furnace - Replace'!Z21+'Comm Custom'!Z21,0) -> 0 | AA21: =ROUND(+'Res .95+% Res Furnace - NEW'!AA21+'Res .95+% Res Furnace - Replace'!AA21+'Programmable Tstats - Tier 1'!AA21+'Programmable Tstats - Tier 2'!AA21+'Residential Energy Assessments'!AA21+'Comm 95+% Furnace - NEW'!AA21+'Comm 95+% Furnace - Replace'!AA21+'Comm Custom'!AA21,0) -> 14061 | AB21: =ROUND(+'Res .95+% Res Furnace - NEW'!AB21+'Res .95+% Res Furnace - Replace'!AB21+'Programmable Tstats - Tier 1'!AB21+'Programmable Tstats - Tier 2'!AB21+'Residential Energy Assessments'!AB21+'Comm 95+% Furnace - NEW'!AB21+'Comm 95+% Furnace - Replace'!AB21+'Comm Custom'!AB21,0) -> 25031 | AE21: 2027 | AF21: 26068 | AG21: 13024 | AH21: 39092 | AJ21: 0 | AK21: 0 | AL21: 0 | AN21: 39092 | AQ21: 2027 | AR21: 26068 | AS21: 13024 | AU21: =ROUND(+'Res .95+% Res Furnace - NEW'!AU21+'Res .95+% Res Furnace - Replace'!AU21+'Programmable Tstats - Tier 1'!AU21+'Programmable Tstats - Tier 2'!AU21+'Residential Energy Assessments'!AU21+'Comm 95+% Furnace - NEW'!AU21+'Comm 95+% Furnace - Replace'!AU21+'Comm Custom'!AU21,0) -> 14380 | AW21: =ROUND(+'Res .95+% Res Furnace - NEW'!AW21+'Res .95+% Res Furnace - Replace'!AW21+'Programmable Tstats - Tier 1'!AW21+'Programmable Tstats - Tier 2'!AW21+'Residential Energy Assessments'!AW21+'Comm 95+% Furnace - NEW'!AW21+'Comm 95+% Furnace - Replace'!AW21+'Comm Custom'!AW21,0) -> 3591 | AZ21: 57063 | BB21: =ROUND(+'Res .95+% Res Furnace - NEW'!BB21+'Res .95+% Res Furnace - Replace'!BB21+'Programmable Tstats - Tier 1'!BB21+'Programmable Tstats - Tier 2'!BB21+'Residential Energy Assessments'!BB21+'Comm 95+% Furnace - NEW'!BB21+'Comm 95+% Furnace - Replace'!BB21+'Comm Custom'!BB21,0) -> 0 | BC21: =ROUND(+'Res .95+% Res Furnace - NEW'!BC21+'Res .95+% Res Furnace - Replace'!BC21+'Programmable Tstats - Tier 1'!BC21+'Programmable Tstats - Tier 2'!BC21+'Residential Energy Assessments'!BC21+'Comm 95+% Furnace - NEW'!BC21+'Comm 95+% Furnace - Replace'!BC21+'Comm Custom'!BC21,0) -> 0 | BD21: 0 | BE21: 57063 | BH21: 2027 | BI21: =ROUND(+'Res .95+% Res Furnace - NEW'!BI21+'Res .95+% Res Furnace - Replace'!BI21+'Programmable Tstats - Tier 1'!BI21+'Programmable Tstats - Tier 2'!BI21+'Residential Energy Assessments'!BI21+'Comm 95+% Furnace - NEW'!BI21+'Comm 95+% Furnace - Replace'!BI21+'Comm Custom'!BI21,0) -> 0 | BJ21: =ROUND(+'Res .95+% Res Furnace - NEW'!BJ21+'Res .95+% Res Furnace - Replace'!BJ21+'Programmable Tstats - Tier 1'!BJ21+'Programmable Tstats - Tier 2'!BJ21+'Residential Energy Assessments'!BJ21+'Comm 95+% Furnace - NEW'!BJ21+'Comm 95+% Furnace - Replace'!BJ21+'Comm Custom'!BJ21,0) -> 8144 | BL21: =ROUND(+'Res .95+% Res Furnace - NEW'!BL21+'Res .95+% Res Furnace - Replace'!BL21+'Programmable Tstats - Tier 1'!BL21+'Programmable Tstats - Tier 2'!BL21+'Residential Energy Assessments'!BL21+'Comm 95+% Furnace - NEW'!BL21+'Comm 95+% Furnace - Replace'!BL21+'Comm Custom'!BL21,0) -> 61858 | BN21: =ROUND(+'Res .95+% Res Furnace - NEW'!BN21+'Res .95+% Res Furnace - Replace'!BN21+'Programmable Tstats - Tier 1'!BN21+'Programmable Tstats - Tier 2'!BN21+'Residential Energy Assessments'!BN21+'Comm 95+% Furnace - NEW'!BN21+'Comm 95+% Furnace - Replace'!BN21+'Comm Custom'!BN21,0) -> 61321 | BP21: 123179 | BR21: =ROUND(+'Res .95+% Res Furnace - NEW'!BR21+'Res .95+% Res Furnace - Replace'!BR21+'Programmable Tstats - Tier 1'!BR21+'Programmable Tstats - Tier 2'!BR21+'Residential Energy Assessments'!BR21+'Comm 95+% Furnace - NEW'!BR21+'Comm 95+% Furnace - Replace'!BR21+'Comm Custom'!BR21,0) -> 0 | BT21: 123179 | BW21: 2027 | BX21: 26068 | BY21: 13024 | BZ21: 14380 | CA21: 53472 | CC21: 0 | CD21: 0 | CE21: 0 | CG21: 53472 | DB21: =$J14 -> 0
J22: 8 | L22: 2028 | M22: =ROUND(+'Res .95+% Res Furnace - NEW'!M22+'Res .95+% Res Furnace - Replace'!M22+'Programmable Tstats - Tier 1'!M22+'Programmable Tstats - Tier 2'!M22+'Residential Energy Assessments'!M22+'Comm 95+% Furnace - NEW'!M22+'Comm 95+% Furnace - Replace'!M22+'Comm Custom'!M22,0) -> 8144 | O22: =ROUND(+'Res .95+% Res Furnace - NEW'!O22+'Res .95+% Res Furnace - Replace'!O22+'Programmable Tstats - Tier 1'!O22+'Programmable Tstats - Tier 2'!O22+'Residential Energy Assessments'!O22+'Comm 95+% Furnace - NEW'!O22+'Comm 95+% Furnace - Replace'!O22+'Comm Custom'!O22,0) -> 26981 | Q22: =ROUND(+'Res .95+% Res Furnace - NEW'!Q22+'Res .95+% Res Furnace - Replace'!Q22+'Programmable Tstats - Tier 1'!Q22+'Programmable Tstats - Tier 2'!Q22+'Residential Energy Assessments'!Q22+'Comm 95+% Furnace - NEW'!Q22+'Comm 95+% Furnace - Replace'!Q22+'Comm Custom'!Q22,0) -> 0 | R22: =ROUND(+'Res .95+% Res Furnace - NEW'!R22+'Res .95+% Res Furnace - Replace'!R22+'Programmable Tstats - Tier 1'!R22+'Programmable Tstats - Tier 2'!R22+'Residential Energy Assessments'!R22+'Comm 95+% Furnace - NEW'!R22+'Comm 95+% Furnace - Replace'!R22+'Comm Custom'!R22,0) -> 26981 | S22: =ROUND(+'Res .95+% Res Furnace - NEW'!S22+'Res .95+% Res Furnace - Replace'!S22+'Programmable Tstats - Tier 1'!S22+'Programmable Tstats - Tier 2'!S22+'Residential Energy Assessments'!S22+'Comm 95+% Furnace - NEW'!S22+'Comm 95+% Furnace - Replace'!S22+'Comm Custom'!S22,0) -> 81 | U22: =ROUND(+'Res .95+% Res Furnace - NEW'!U22+'Res .95+% Res Furnace - Replace'!U22+'Programmable Tstats - Tier 1'!U22+'Programmable Tstats - Tier 2'!U22+'Residential Energy Assessments'!U22+'Comm 95+% Furnace - NEW'!U22+'Comm 95+% Furnace - Replace'!U22+'Comm Custom'!U22,0) -> 13105 | V22: =ROUND(+'Res .95+% Res Furnace - NEW'!V22+'Res .95+% Res Furnace - Replace'!V22+'Programmable Tstats - Tier 1'!V22+'Programmable Tstats - Tier 2'!V22+'Residential Energy Assessments'!V22+'Comm 95+% Furnace - NEW'!V22+'Comm 95+% Furnace - Replace'!V22+'Comm Custom'!V22,0) -> 40086 | X22: =ROUND(+'Res .95+% Res Furnace - NEW'!X22+'Res .95+% Res Furnace - Replace'!X22+'Programmable Tstats - Tier 1'!X22+'Programmable Tstats - Tier 2'!X22+'Residential Energy Assessments'!X22+'Comm 95+% Furnace - NEW'!X22+'Comm 95+% Furnace - Replace'!X22+'Comm Custom'!X22,0) -> 14554 | Y22: =ROUND(+'Res .95+% Res Furnace - NEW'!Y22+'Res .95+% Res Furnace - Replace'!Y22+'Programmable Tstats - Tier 1'!Y22+'Programmable Tstats - Tier 2'!Y22+'Residential Energy Assessments'!Y22+'Comm 95+% Furnace - NEW'!Y22+'Comm 95+% Furnace - Replace'!Y22+'Comm Custom'!Y22,0) -> 0 | Z22: =ROUND(+'Res .95+% Res Furnace - NEW'!Z22+'Res .95+% Res Furnace - Replace'!Z22+'Programmable Tstats - Tier 1'!Z22+'Programmable Tstats - Tier 2'!Z22+'Residential Energy Assessments'!Z22+'Comm 95+% Furnace - NEW'!Z22+'Comm 95+% Furnace - Replace'!Z22+'Comm Custom'!Z22,0) -> 0 | AA22: =ROUND(+'Res .95+% Res Furnace - NEW'!AA22+'Res .95+% Res Furnace - Replace'!AA22+'Programmable Tstats - Tier 1'!AA22+'Programmable Tstats - Tier 2'!AA22+'Residential Energy Assessments'!AA22+'Comm 95+% Furnace - NEW'!AA22+'Comm 95+% Furnace - Replace'!AA22+'Comm Custom'!AA22,0) -> 14554 | AB22: =ROUND(+'Res .95+% Res Furnace - NEW'!AB22+'Res .95+% Res Furnace - Replace'!AB22+'Programmable Tstats - Tier 1'!AB22+'Programmable Tstats - Tier 2'!AB22+'Residential Energy Assessments'!AB22+'Comm 95+% Furnace - NEW'!AB22+'Comm 95+% Furnace - Replace'!AB22+'Comm Custom'!AB22,0) -> 25532 | AE22: 2028 | AF22: 26981 | AG22: 13105 | AH22: 40086 | AJ22: 0 | AK22: 0 | AL22: 0 | AN22: 40086 | AQ22: 2028 | AR22: 26981 | AS22: 13105 | AU22: =ROUND(+'Res .95+% Res Furnace - NEW'!AU22+'Res .95+% Res Furnace - Replace'!AU22+'Programmable Tstats - Tier 1'!AU22+'Programmable Tstats - Tier 2'!AU22+'Residential Energy Assessments'!AU22+'Comm 95+% Furnace - NEW'!AU22+'Comm 95+% Furnace - Replace'!AU22+'Comm Custom'!AU22,0) -> 15157 | AW22: =ROUND(+'Res .95+% Res Furnace - NEW'!AW22+'Res .95+% Res Furnace - Replace'!AW22+'Programmable Tstats - Tier 1'!AW22+'Programmable Tstats - Tier 2'!AW22+'Residential Energy Assessments'!AW22+'Comm 95+% Furnace - NEW'!AW22+'Comm 95+% Furnace - Replace'!AW22+'Comm Custom'!AW22,0) -> 3672 | AZ22: 58915 | BB22: =ROUND(+'Res .95+% Res Furnace - NEW'!BB22+'Res .95+% Res Furnace - Replace'!BB22+'Programmable Tstats - Tier 1'!BB22+'Programmable Tstats - Tier 2'!BB22+'Residential Energy Assessments'!BB22+'Comm 95+% Furnace - NEW'!BB22+'Comm 95+% Furnace - Replace'!BB22+'Comm Custom'!BB22,0) -> 0 | BC22: =ROUND(+'Res .95+% Res Furnace - NEW'!BC22+'Res .95+% Res Furnace - Replace'!BC22+'Programmable Tstats - Tier 1'!BC22+'Programmable Tstats - Tier 2'!BC22+'Residential Energy Assessments'!BC22+'Comm 95+% Furnace - NEW'!BC22+'Comm 95+% Furnace - Replace'!BC22+'Comm Custom'!BC22,0) -> 0 | BD22: 0 | BE22: 58915 | BH22: 2028 | BI22: =ROUND(+'Res .95+% Res Furnace - NEW'!BI22+'Res .95+% Res Furnace - Replace'!BI22+'Programmable Tstats - Tier 1'!BI22+'Programmable Tstats - Tier 2'!BI22+'Residential Energy Assessments'!BI22+'Comm 95+% Furnace - NEW'!BI22+'Comm 95+% Furnace - Replace'!BI22+'Comm Custom'!BI22,0) -> 0 | BJ22: =ROUND(+'Res .95+% Res Furnace - NEW'!BJ22+'Res .95+% Res Furnace - Replace'!BJ22+'Programmable Tstats - Tier 1'!BJ22+'Programmable Tstats - Tier 2'!BJ22+'Residential Energy Assessments'!BJ22+'Comm 95+% Furnace - NEW'!BJ22+'Comm 95+% Furnace - Replace'!BJ22+'Comm Custom'!BJ22,0) -> 8144 | BL22: =ROUND(+'Res .95+% Res Furnace - NEW'!BL22+'Res .95+% Res Furnace - Replace'!BL22+'Programmable Tstats - Tier 1'!BL22+'Programmable Tstats - Tier 2'!BL22+'Residential Energy Assessments'!BL22+'Comm 95+% Furnace - NEW'!BL22+'Comm 95+% Furnace - Replace'!BL22+'Comm Custom'!BL22,0) -> 64022 | BN22: =ROUND(+'Res .95+% Res Furnace - NEW'!BN22+'Res .95+% Res Furnace - Replace'!BN22+'Programmable Tstats - Tier 1'!BN22+'Programmable Tstats - Tier 2'!BN22+'Residential Energy Assessments'!BN22+'Comm 95+% Furnace - NEW'!BN22+'Comm 95+% Furnace - Replace'!BN22+'Comm Custom'!BN22,0) -> 63652 | BP22: 127674 | BR22: =ROUND(+'Res .95+% Res Furnace - NEW'!BR22+'Res .95+% Res Furnace - Replace'!BR22+'Programmable Tstats - Tier 1'!BR22+'Programmable Tstats - Tier 2'!BR22+'Residential Energy Assessments'!BR22+'Comm 95+% Furnace - NEW'!BR22+'Comm 95+% Furnace - Replace'!BR22+'Comm Custom'!BR22,0) -> 0 | BT22: 127674 | BW22: 2028 | BX22: 26981 | BY22: 13105 | BZ22: 15157 | CA22: 55243 | CC22: 0 | CD22: 0 | CE22: 0 | CG22: 55243 | DB22: =$J15 -> 1
A23: 5) Peak Reduction Factor = | E23: 20) Project Life (Years) = | J23: 9 | L23: 2029 | M23: =ROUND(+'Res .95+% Res Furnace - NEW'!M23+'Res .95+% Res Furnace - Replace'!M23+'Programmable Tstats - Tier 1'!M23+'Programmable Tstats - Tier 2'!M23+'Residential Energy Assessments'!M23+'Comm 95+% Furnace - NEW'!M23+'Comm 95+% Furnace - Replace'!M23+'Comm Custom'!M23,0) -> 8144 | O23: =ROUND(+'Res .95+% Res Furnace - NEW'!O23+'Res .95+% Res Furnace - Replace'!O23+'Programmable Tstats - Tier 1'!O23+'Programmable Tstats - Tier 2'!O23+'Residential Energy Assessments'!O23+'Comm 95+% Furnace - NEW'!O23+'Comm 95+% Furnace - Replace'!O23+'Comm Custom'!O23,0) -> 27926 | Q23: =ROUND(+'Res .95+% Res Furnace - NEW'!Q23+'Res .95+% Res Furnace - Replace'!Q23+'Programmable Tstats - Tier 1'!Q23+'Programmable Tstats - Tier 2'!Q23+'Residential Energy Assessments'!Q23+'Comm 95+% Furnace - NEW'!Q23+'Comm 95+% Furnace - Replace'!Q23+'Comm Custom'!Q23,0) -> 0 | R23: =ROUND(+'Res .95+% Res Furnace - NEW'!R23+'Res .95+% Res Furnace - Replace'!R23+'Programmable Tstats - Tier 1'!R23+'Programmable Tstats - Tier 2'!R23+'Residential Energy Assessments'!R23+'Comm 95+% Furnace - NEW'!R23+'Comm 95+% Furnace - Replace'!R23+'Comm Custom'!R23,0) -> 27926 | S23: =ROUND(+'Res .95+% Res Furnace - NEW'!S23+'Res .95+% Res Furnace - Replace'!S23+'Programmable Tstats - Tier 1'!S23+'Programmable Tstats - Tier 2'!S23+'Residential Energy Assessments'!S23+'Comm 95+% Furnace - NEW'!S23+'Comm 95+% Furnace - Replace'!S23+'Comm Custom'!S23,0) -> 81 | U23: =ROUND(+'Res .95+% Res Furnace - NEW'!U23+'Res .95+% Res Furnace - Replace'!U23+'Programmable Tstats - Tier 1'!U23+'Programmable Tstats - Tier 2'!U23+'Residential Energy Assessments'!U23+'Comm 95+% Furnace - NEW'!U23+'Comm 95+% Furnace - Replace'!U23+'Comm Custom'!U23,0) -> 13268 | V23: =ROUND(+'Res .95+% Res Furnace - NEW'!V23+'Res .95+% Res Furnace - Replace'!V23+'Programmable Tstats - Tier 1'!V23+'Programmable Tstats - Tier 2'!V23+'Residential Energy Assessments'!V23+'Comm 95+% Furnace - NEW'!V23+'Comm 95+% Furnace - Replace'!V23+'Comm Custom'!V23,0) -> 41194 | X23: =ROUND(+'Res .95+% Res Furnace - NEW'!X23+'Res .95+% Res Furnace - Replace'!X23+'Programmable Tstats - Tier 1'!X23+'Programmable Tstats - Tier 2'!X23+'Residential Energy Assessments'!X23+'Comm 95+% Furnace - NEW'!X23+'Comm 95+% Furnace - Replace'!X23+'Comm Custom'!X23,0) -> 15061 | Y23: =ROUND(+'Res .95+% Res Furnace - NEW'!Y23+'Res .95+% Res Furnace - Replace'!Y23+'Programmable Tstats - Tier 1'!Y23+'Programmable Tstats - Tier 2'!Y23+'Residential Energy Assessments'!Y23+'Comm 95+% Furnace - NEW'!Y23+'Comm 95+% Furnace - Replace'!Y23+'Comm Custom'!Y23,0) -> 0 | Z23: =ROUND(+'Res .95+% Res Furnace - NEW'!Z23+'Res .95+% Res Furnace - Replace'!Z23+'Programmable Tstats - Tier 1'!Z23+'Programmable Tstats - Tier 2'!Z23+'Residential Energy Assessments'!Z23+'Comm 95+% Furnace - NEW'!Z23+'Comm 95+% Furnace - Replace'!Z23+'Comm Custom'!Z23,0) -> 0 | AA23: =ROUND(+'Res .95+% Res Furnace - NEW'!AA23+'Res .95+% Res Furnace - Replace'!AA23+'Programmable Tstats - Tier 1'!AA23+'Programmable Tstats - Tier 2'!AA23+'Residential Energy Assessments'!AA23+'Comm 95+% Furnace - NEW'!AA23+'Comm 95+% Furnace - Replace'!AA23+'Comm Custom'!AA23,0) -> 15061 | AB23: =ROUND(+'Res .95+% Res Furnace - NEW'!AB23+'Res .95+% Res Furnace - Replace'!AB23+'Programmable Tstats - Tier 1'!AB23+'Programmable Tstats - Tier 2'!AB23+'Residential Energy Assessments'!AB23+'Comm 95+% Furnace - NEW'!AB23+'Comm 95+% Furnace - Replace'!AB23+'Comm Custom'!AB23,0) -> 26133 | AE23: 2029 | AF23: 27926 | AG23: 13268 | AH23: 41194 | AJ23: 0 | AK23: 0 | AL23: 0 | AN23: 41194 | AQ23: 2029 | AR23: 27926 | AS23: 13268 | AU23: =ROUND(+'Res .95+% Res Furnace - NEW'!AU23+'Res .95+% Res Furnace - Replace'!AU23+'Programmable Tstats - Tier 1'!AU23+'Programmable Tstats - Tier 2'!AU23+'Residential Energy Assessments'!AU23+'Comm 95+% Furnace - NEW'!AU23+'Comm 95+% Furnace - Replace'!AU23+'Comm Custom'!AU23,0) -> 15547 | AW23: =ROUND(+'Res .95+% Res Furnace - NEW'!AW23+'Res .95+% Res Furnace - Replace'!AW23+'Programmable Tstats - Tier 1'!AW23+'Programmable Tstats - Tier 2'!AW23+'Residential Energy Assessments'!AW23+'Comm 95+% Furnace - NEW'!AW23+'Comm 95+% Furnace - Replace'!AW23+'Comm Custom'!AW23,0) -> 3755 | AZ23: 60496 | BB23: =ROUND(+'Res .95+% Res Furnace - NEW'!BB23+'Res .95+% Res Furnace - Replace'!BB23+'Programmable Tstats - Tier 1'!BB23+'Programmable Tstats - Tier 2'!BB23+'Residential Energy Assessments'!BB23+'Comm 95+% Furnace - NEW'!BB23+'Comm 95+% Furnace - Replace'!BB23+'Comm Custom'!BB23,0) -> 0 | BC23: =ROUND(+'Res .95+% Res Furnace - NEW'!BC23+'Res .95+% Res Furnace - Replace'!BC23+'Programmable Tstats - Tier 1'!BC23+'Programmable Tstats - Tier 2'!BC23+'Residential Energy Assessments'!BC23+'Comm 95+% Furnace - NEW'!BC23+'Comm 95+% Furnace - Replace'!BC23+'Comm Custom'!BC23,0) -> 0 | BD23: 0 | BE23: 60496 | BH23: 2029 | BI23: =ROUND(+'Res .95+% Res Furnace - NEW'!BI23+'Res .95+% Res Furnace - Replace'!BI23+'Programmable Tstats - Tier 1'!BI23+'Programmable Tstats - Tier 2'!BI23+'Residential Energy Assessments'!BI23+'Comm 95+% Furnace - NEW'!BI23+'Comm 95+% Furnace - Replace'!BI23+'Comm Custom'!BI23,0) -> 0 | BJ23: =ROUND(+'Res .95+% Res Furnace - NEW'!BJ23+'Res .95+% Res Furnace - Replace'!BJ23+'Programmable Tstats - Tier 1'!BJ23+'Programmable Tstats - Tier 2'!BJ23+'Residential Energy Assessments'!BJ23+'Comm 95+% Furnace - NEW'!BJ23+'Comm 95+% Furnace - Replace'!BJ23+'Comm Custom'!BJ23,0) -> 8144 | BL23: =ROUND(+'Res .95+% Res Furnace - NEW'!BL23+'Res .95+% Res Furnace - Replace'!BL23+'Programmable Tstats - Tier 1'!BL23+'Programmable Tstats - Tier 2'!BL23+'Residential Energy Assessments'!BL23+'Comm 95+% Furnace - NEW'!BL23+'Comm 95+% Furnace - Replace'!BL23+'Comm Custom'!BL23,0) -> 66258 | BN23: =ROUND(+'Res .95+% Res Furnace - NEW'!BN23+'Res .95+% Res Furnace - Replace'!BN23+'Programmable Tstats - Tier 1'!BN23+'Programmable Tstats - Tier 2'!BN23+'Residential Energy Assessments'!BN23+'Comm 95+% Furnace - NEW'!BN23+'Comm 95+% Furnace - Replace'!BN23+'Comm Custom'!BN23,0) -> 65597 | BP23: 131855 | BR23: =ROUND(+'Res .95+% Res Furnace - NEW'!BR23+'Res .95+% Res Furnace - Replace'!BR23+'Programmable Tstats - Tier 1'!BR23+'Programmable Tstats - Tier 2'!BR23+'Residential Energy Assessments'!BR23+'Comm 95+% Furnace - NEW'!BR23+'Comm 95+% Furnace - Replace'!BR23+'Comm Custom'!BR23,0) -> 0 | BT23: 131855 | BW23: 2029 | BX23: 27926 | BY23: 13268 | BZ23: 15547 | CA23: 56741 | CC23: 0 | CD23: 0 | CE23: 0 | CG23: 56741 | DB23: =$J16 -> 2
J24: 10 | L24: 2030 | M24: =ROUND(+'Res .95+% Res Furnace - NEW'!M24+'Res .95+% Res Furnace - Replace'!M24+'Programmable Tstats - Tier 1'!M24+'Programmable Tstats - Tier 2'!M24+'Residential Energy Assessments'!M24+'Comm 95+% Furnace - NEW'!M24+'Comm 95+% Furnace - Replace'!M24+'Comm Custom'!M24,0) -> 7059 | O24: =ROUND(+'Res .95+% Res Furnace - NEW'!O24+'Res .95+% Res Furnace - Replace'!O24+'Programmable Tstats - Tier 1'!O24+'Programmable Tstats - Tier 2'!O24+'Residential Energy Assessments'!O24+'Comm 95+% Furnace - NEW'!O24+'Comm 95+% Furnace - Replace'!O24+'Comm Custom'!O24,0) -> 25053 | Q24: =ROUND(+'Res .95+% Res Furnace - NEW'!Q24+'Res .95+% Res Furnace - Replace'!Q24+'Programmable Tstats - Tier 1'!Q24+'Programmable Tstats - Tier 2'!Q24+'Residential Energy Assessments'!Q24+'Comm 95+% Furnace - NEW'!Q24+'Comm 95+% Furnace - Replace'!Q24+'Comm Custom'!Q24,0) -> 0 | R24: =ROUND(+'Res .95+% Res Furnace - NEW'!R24+'Res .95+% Res Furnace - Replace'!R24+'Programmable Tstats - Tier 1'!R24+'Programmable Tstats - Tier 2'!R24+'Residential Energy Assessments'!R24+'Comm 95+% Furnace - NEW'!R24+'Comm 95+% Furnace - Replace'!R24+'Comm Custom'!R24,0) -> 25053 | S24: =ROUND(+'Res .95+% Res Furnace - NEW'!S24+'Res .95+% Res Furnace - Replace'!S24+'Programmable Tstats - Tier 1'!S24+'Programmable Tstats - Tier 2'!S24+'Residential Energy Assessments'!S24+'Comm 95+% Furnace - NEW'!S24+'Comm 95+% Furnace - Replace'!S24+'Comm Custom'!S24,0) -> 71 | U24: =ROUND(+'Res .95+% Res Furnace - NEW'!U24+'Res .95+% Res Furnace - Replace'!U24+'Programmable Tstats - Tier 1'!U24+'Programmable Tstats - Tier 2'!U24+'Residential Energy Assessments'!U24+'Comm 95+% Furnace - NEW'!U24+'Comm 95+% Furnace - Replace'!U24+'Comm Custom'!U24,0) -> 11579 | V24: =ROUND(+'Res .95+% Res Furnace - NEW'!V24+'Res .95+% Res Furnace - Replace'!V24+'Programmable Tstats - Tier 1'!V24+'Programmable Tstats - Tier 2'!V24+'Residential Energy Assessments'!V24+'Comm 95+% Furnace - NEW'!V24+'Comm 95+% Furnace - Replace'!V24+'Comm Custom'!V24,0) -> 36632 | X24: =ROUND(+'Res .95+% Res Furnace - NEW'!X24+'Res .95+% Res Furnace - Replace'!X24+'Programmable Tstats - Tier 1'!X24+'Programmable Tstats - Tier 2'!X24+'Residential Energy Assessments'!X24+'Comm 95+% Furnace - NEW'!X24+'Comm 95+% Furnace - Replace'!X24+'Comm Custom'!X24,0) -> 13369 | Y24: =ROUND(+'Res .95+% Res Furnace - NEW'!Y24+'Res .95+% Res Furnace - Replace'!Y24+'Programmable Tstats - Tier 1'!Y24+'Programmable Tstats - Tier 2'!Y24+'Residential Energy Assessments'!Y24+'Comm 95+% Furnace - NEW'!Y24+'Comm 95+% Furnace - Replace'!Y24+'Comm Custom'!Y24,0) -> 0 | Z24: =ROUND(+'Res .95+% Res Furnace - NEW'!Z24+'Res .95+% Res Furnace - Replace'!Z24+'Programmable Tstats - Tier 1'!Z24+'Programmable Tstats - Tier 2'!Z24+'Residential Energy Assessments'!Z24+'Comm 95+% Furnace - NEW'!Z24+'Comm 95+% Furnace - Replace'!Z24+'Comm Custom'!Z24,0) -> 0 | AA24: =ROUND(+'Res .95+% Res Furnace - NEW'!AA24+'Res .95+% Res Furnace - Replace'!AA24+'Programmable Tstats - Tier 1'!AA24+'Programmable Tstats - Tier 2'!AA24+'Residential Energy Assessments'!AA24+'Comm 95+% Furnace - NEW'!AA24+'Comm 95+% Furnace - Replace'!AA24+'Comm Custom'!AA24,0) -> 13369 | AB24: =ROUND(+'Res .95+% Res Furnace - NEW'!AB24+'Res .95+% Res Furnace - Replace'!AB24+'Programmable Tstats - Tier 1'!AB24+'Programmable Tstats - Tier 2'!AB24+'Residential Energy Assessments'!AB24+'Comm 95+% Furnace - NEW'!AB24+'Comm 95+% Furnace - Replace'!AB24+'Comm Custom'!AB24,0) -> 23263 | AE24: 2030 | AF24: 25053 | AG24: 11579 | AH24: 36632 | AJ24: 0 | AK24: 0 | AL24: 0 | AN24: 36632 | AQ24: 2030 | AR24: 25053 | AS24: 11579 | AU24: =ROUND(+'Res .95+% Res Furnace - NEW'!AU24+'Res .95+% Res Furnace - Replace'!AU24+'Programmable Tstats - Tier 1'!AU24+'Programmable Tstats - Tier 2'!AU24+'Residential Energy Assessments'!AU24+'Comm 95+% Furnace - NEW'!AU24+'Comm 95+% Furnace - Replace'!AU24+'Comm Custom'!AU24,0) -> 15646 | AW24: =ROUND(+'Res .95+% Res Furnace - NEW'!AW24+'Res .95+% Res Furnace - Replace'!AW24+'Programmable Tstats - Tier 1'!AW24+'Programmable Tstats - Tier 2'!AW24+'Residential Energy Assessments'!AW24+'Comm 95+% Furnace - NEW'!AW24+'Comm 95+% Furnace - Replace'!AW24+'Comm Custom'!AW24,0) -> 3325 | AZ24: 55603 | BB24: =ROUND(+'Res .95+% Res Furnace - NEW'!BB24+'Res .95+% Res Furnace - Replace'!BB24+'Programmable Tstats - Tier 1'!BB24+'Programmable Tstats - Tier 2'!BB24+'Residential Energy Assessments'!BB24+'Comm 95+% Furnace - NEW'!BB24+'Comm 95+% Furnace - Replace'!BB24+'Comm Custom'!BB24,0) -> 0 | BC24: =ROUND(+'Res .95+% Res Furnace - NEW'!BC24+'Res .95+% Res Furnace - Replace'!BC24+'Programmable Tstats - Tier 1'!BC24+'Programmable Tstats - Tier 2'!BC24+'Residential Energy Assessments'!BC24+'Comm 95+% Furnace - NEW'!BC24+'Comm 95+% Furnace - Replace'!BC24+'Comm Custom'!BC24,0) -> 0 | BD24: 0 | BE24: 55603 | BH24: 2030 | BI24: =ROUND(+'Res .95+% Res Furnace - NEW'!BI24+'Res .95+% Res Furnace - Replace'!BI24+'Programmable Tstats - Tier 1'!BI24+'Programmable Tstats - Tier 2'!BI24+'Residential Energy Assessments'!BI24+'Comm 95+% Furnace - NEW'!BI24+'Comm 95+% Furnace - Replace'!BI24+'Comm Custom'!BI24,0) -> 0 | BJ24: =ROUND(+'Res .95+% Res Furnace - NEW'!BJ24+'Res .95+% Res Furnace - Replace'!BJ24+'Programmable Tstats - Tier 1'!BJ24+'Programmable Tstats - Tier 2'!BJ24+'Residential Energy Assessments'!BJ24+'Comm 95+% Furnace - NEW'!BJ24+'Comm 95+% Furnace - Replace'!BJ24+'Comm Custom'!BJ24,0) -> 7059 | BL24: =ROUND(+'Res .95+% Res Furnace - NEW'!BL24+'Res .95+% Res Furnace - Replace'!BL24+'Programmable Tstats - Tier 1'!BL24+'Programmable Tstats - Tier 2'!BL24+'Residential Energy Assessments'!BL24+'Comm 95+% Furnace - NEW'!BL24+'Comm 95+% Furnace - Replace'!BL24+'Comm Custom'!BL24,0) -> 59264 | BN24: =ROUND(+'Res .95+% Res Furnace - NEW'!BN24+'Res .95+% Res Furnace - Replace'!BN24+'Programmable Tstats - Tier 1'!BN24+'Programmable Tstats - Tier 2'!BN24+'Residential Energy Assessments'!BN24+'Comm 95+% Furnace - NEW'!BN24+'Comm 95+% Furnace - Replace'!BN24+'Comm Custom'!BN24,0) -> 66694 | BP24: 125958 | BR24: =ROUND(+'Res .95+% Res Furnace - NEW'!BR24+'Res .95+% Res Furnace - Replace'!BR24+'Programmable Tstats - Tier 1'!BR24+'Programmable Tstats - Tier 2'!BR24+'Residential Energy Assessments'!BR24+'Comm 95+% Furnace - NEW'!BR24+'Comm 95+% Furnace - Replace'!BR24+'Comm Custom'!BR24,0) -> 0 | BT24: 125958 | BW24: 2030 | BX24: 25053 | BY24: 11579 | BZ24: 15646 | CA24: 52278 | CC24: 0 | CD24: 0 | CE24: 0 | CG24: 52278 | DB24: =$J17 -> 3
A25: 6) Variable O&M ($/Dk) = | E25: 21) Avg. Dk/Part. Saved = | J25: 11 | L25: 2031 | M25: =ROUND(+'Res .95+% Res Furnace - NEW'!M25+'Res .95+% Res Furnace - Replace'!M25+'Programmable Tstats - Tier 1'!M25+'Programmable Tstats - Tier 2'!M25+'Residential Energy Assessments'!M25+'Comm 95+% Furnace - NEW'!M25+'Comm 95+% Furnace - Replace'!M25+'Comm Custom'!M25,0) -> 7059 | O25: =ROUND(+'Res .95+% Res Furnace - NEW'!O25+'Res .95+% Res Furnace - Replace'!O25+'Programmable Tstats - Tier 1'!O25+'Programmable Tstats - Tier 2'!O25+'Residential Energy Assessments'!O25+'Comm 95+% Furnace - NEW'!O25+'Comm 95+% Furnace - Replace'!O25+'Comm Custom'!O25,0) -> 25929 | Q25: =ROUND(+'Res .95+% Res Furnace - NEW'!Q25+'Res .95+% Res Furnace - Replace'!Q25+'Programmable Tstats - Tier 1'!Q25+'Programmable Tstats - Tier 2'!Q25+'Residential Energy Assessments'!Q25+'Comm 95+% Furnace - NEW'!Q25+'Comm 95+% Furnace - Replace'!Q25+'Comm Custom'!Q25,0) -> 0 | R25: =ROUND(+'Res .95+% Res Furnace - NEW'!R25+'Res .95+% Res Furnace - Replace'!R25+'Programmable Tstats - Tier 1'!R25+'Programmable Tstats - Tier 2'!R25+'Residential Energy Assessments'!R25+'Comm 95+% Furnace - NEW'!R25+'Comm 95+% Furnace - Replace'!R25+'Comm Custom'!R25,0) -> 25929 | S25: =ROUND(+'Res .95+% Res Furnace - NEW'!S25+'Res .95+% Res Furnace - Replace'!S25+'Programmable Tstats - Tier 1'!S25+'Programmable Tstats - Tier 2'!S25+'Residential Energy Assessments'!S25+'Comm 95+% Furnace - NEW'!S25+'Comm 95+% Furnace - Replace'!S25+'Comm Custom'!S25,0) -> 71 | U25: =ROUND(+'Res .95+% Res Furnace - NEW'!U25+'Res .95+% Res Furnace - Replace'!U25+'Programmable Tstats - Tier 1'!U25+'Programmable Tstats - Tier 2'!U25+'Residential Energy Assessments'!U25+'Comm 95+% Furnace - NEW'!U25+'Comm 95+% Furnace - Replace'!U25+'Comm Custom'!U25,0) -> 11719 | V25: =ROUND(+'Res .95+% Res Furnace - NEW'!V25+'Res .95+% Res Furnace - Replace'!V25+'Programmable Tstats - Tier 1'!V25+'Programmable Tstats - Tier 2'!V25+'Residential Energy Assessments'!V25+'Comm 95+% Furnace - NEW'!V25+'Comm 95+% Furnace - Replace'!V25+'Comm Custom'!V25,0) -> 37648 | X25: =ROUND(+'Res .95+% Res Furnace - NEW'!X25+'Res .95+% Res Furnace - Replace'!X25+'Programmable Tstats - Tier 1'!X25+'Programmable Tstats - Tier 2'!X25+'Residential Energy Assessments'!X25+'Comm 95+% Furnace - NEW'!X25+'Comm 95+% Furnace - Replace'!X25+'Comm Custom'!X25,0) -> 13839 | Y25: =ROUND(+'Res .95+% Res Furnace - NEW'!Y25+'Res .95+% Res Furnace - Replace'!Y25+'Programmable Tstats - Tier 1'!Y25+'Programmable Tstats - Tier 2'!Y25+'Residential Energy Assessments'!Y25+'Comm 95+% Furnace - NEW'!Y25+'Comm 95+% Furnace - Replace'!Y25+'Comm Custom'!Y25,0) -> 0 | Z25: =ROUND(+'Res .95+% Res Furnace - NEW'!Z25+'Res .95+% Res Furnace - Replace'!Z25+'Programmable Tstats - Tier 1'!Z25+'Programmable Tstats - Tier 2'!Z25+'Residential Energy Assessments'!Z25+'Comm 95+% Furnace - NEW'!Z25+'Comm 95+% Furnace - Replace'!Z25+'Comm Custom'!Z25,0) -> 0 | AA25: =ROUND(+'Res .95+% Res Furnace - NEW'!AA25+'Res .95+% Res Furnace - Replace'!AA25+'Programmable Tstats - Tier 1'!AA25+'Programmable Tstats - Tier 2'!AA25+'Residential Energy Assessments'!AA25+'Comm 95+% Furnace - NEW'!AA25+'Comm 95+% Furnace - Replace'!AA25+'Comm Custom'!AA25,0) -> 13839 | AB25: =ROUND(+'Res .95+% Res Furnace - NEW'!AB25+'Res .95+% Res Furnace - Replace'!AB25+'Programmable Tstats - Tier 1'!AB25+'Programmable Tstats - Tier 2'!AB25+'Residential Energy Assessments'!AB25+'Comm 95+% Furnace - NEW'!AB25+'Comm 95+% Furnace - Replace'!AB25+'Comm Custom'!AB25,0) -> 23809 | AE25: 2031 | AF25: 25929 | AG25: 11719 | AH25: 37648 | AJ25: 0 | AK25: 0 | AL25: 0 | AN25: 37648 | AQ25: 2031 | AR25: 25929 | AS25: 11719 | AU25: =ROUND(+'Res .95+% Res Furnace - NEW'!AU25+'Res .95+% Res Furnace - Replace'!AU25+'Programmable Tstats - Tier 1'!AU25+'Programmable Tstats - Tier 2'!AU25+'Residential Energy Assessments'!AU25+'Comm 95+% Furnace - NEW'!AU25+'Comm 95+% Furnace - Replace'!AU25+'Comm Custom'!AU25,0) -> 16408 | AW25: =ROUND(+'Res .95+% Res Furnace - NEW'!AW25+'Res .95+% Res Furnace - Replace'!AW25+'Programmable Tstats - Tier 1'!AW25+'Programmable Tstats - Tier 2'!AW25+'Residential Energy Assessments'!AW25+'Comm 95+% Furnace - NEW'!AW25+'Comm 95+% Furnace - Replace'!AW25+'Comm Custom'!AW25,0) -> 3395 | AZ25: 57451 | BB25: =ROUND(+'Res .95+% Res Furnace - NEW'!BB25+'Res .95+% Res Furnace - Replace'!BB25+'Programmable Tstats - Tier 1'!BB25+'Programmable Tstats - Tier 2'!BB25+'Residential Energy Assessments'!BB25+'Comm 95+% Furnace - NEW'!BB25+'Comm 95+% Furnace - Replace'!BB25+'Comm Custom'!BB25,0) -> 0 | BC25: =ROUND(+'Res .95+% Res Furnace - NEW'!BC25+'Res .95+% Res Furnace - Replace'!BC25+'Programmable Tstats - Tier 1'!BC25+'Programmable Tstats - Tier 2'!BC25+'Residential Energy Assessments'!BC25+'Comm 95+% Furnace - NEW'!BC25+'Comm 95+% Furnace - Replace'!BC25+'Comm Custom'!BC25,0) -> 0 | BD25: 0 | BE25: 57451 | BH25: 2031 | BI25: =ROUND(+'Res .95+% Res Furnace - NEW'!BI25+'Res .95+% Res Furnace - Replace'!BI25+'Programmable Tstats - Tier 1'!BI25+'Programmable Tstats - Tier 2'!BI25+'Residential Energy Assessments'!BI25+'Comm 95+% Furnace - NEW'!BI25+'Comm 95+% Furnace - Replace'!BI25+'Comm Custom'!BI25,0) -> 0 | BJ25: =ROUND(+'Res .95+% Res Furnace - NEW'!BJ25+'Res .95+% Res Furnace - Replace'!BJ25+'Programmable Tstats - Tier 1'!BJ25+'Programmable Tstats - Tier 2'!BJ25+'Residential Energy Assessments'!BJ25+'Comm 95+% Furnace - NEW'!BJ25+'Comm 95+% Furnace - Replace'!BJ25+'Comm Custom'!BJ25,0) -> 7059 | BL25: =ROUND(+'Res .95+% Res Furnace - NEW'!BL25+'Res .95+% Res Furnace - Replace'!BL25+'Programmable Tstats - Tier 1'!BL25+'Programmable Tstats - Tier 2'!BL25+'Residential Energy Assessments'!BL25+'Comm 95+% Furnace - NEW'!BL25+'Comm 95+% Furnace - Replace'!BL25+'Comm Custom'!BL25,0) -> 61334 | BN25: =ROUND(+'Res .95+% Res Furnace - NEW'!BN25+'Res .95+% Res Furnace - Replace'!BN25+'Programmable Tstats - Tier 1'!BN25+'Programmable Tstats - Tier 2'!BN25+'Residential Energy Assessments'!BN25+'Comm 95+% Furnace - NEW'!BN25+'Comm 95+% Furnace - Replace'!BN25+'Comm Custom'!BN25,0) -> 68982 | BP25: 130316 | BR25: =ROUND(+'Res .95+% Res Furnace - NEW'!BR25+'Res .95+% Res Furnace - Replace'!BR25+'Programmable Tstats - Tier 1'!BR25+'Programmable Tstats - Tier 2'!BR25+'Residential Energy Assessments'!BR25+'Comm 95+% Furnace - NEW'!BR25+'Comm 95+% Furnace - Replace'!BR25+'Comm Custom'!BR25,0) -> 0 | BT25: 130316 | BW25: 2031 | BX25: 25929 | BY25: 11719 | BZ25: 16408 | CA25: 54056 | CC25: 0 | CD25: 0 | CE25: 0 | CG25: 54056
A26: Escalation Rate = | J26: 12 | L26: 2032 | M26: =ROUND(+'Res .95+% Res Furnace - NEW'!M26+'Res .95+% Res Furnace - Replace'!M26+'Programmable Tstats - Tier 1'!M26+'Programmable Tstats - Tier 2'!M26+'Residential Energy Assessments'!M26+'Comm 95+% Furnace - NEW'!M26+'Comm 95+% Furnace - Replace'!M26+'Comm Custom'!M26,0) -> 7059 | O26: =ROUND(+'Res .95+% Res Furnace - NEW'!O26+'Res .95+% Res Furnace - Replace'!O26+'Programmable Tstats - Tier 1'!O26+'Programmable Tstats - Tier 2'!O26+'Residential Energy Assessments'!O26+'Comm 95+% Furnace - NEW'!O26+'Comm 95+% Furnace - Replace'!O26+'Comm Custom'!O26,0) -> 26839 | Q26: =ROUND(+'Res .95+% Res Furnace - NEW'!Q26+'Res .95+% Res Furnace - Replace'!Q26+'Programmable Tstats - Tier 1'!Q26+'Programmable Tstats - Tier 2'!Q26+'Residential Energy Assessments'!Q26+'Comm 95+% Furnace - NEW'!Q26+'Comm 95+% Furnace - Replace'!Q26+'Comm Custom'!Q26,0) -> 0 | R26: =ROUND(+'Res .95+% Res Furnace - NEW'!R26+'Res .95+% Res Furnace - Replace'!R26+'Programmable Tstats - Tier 1'!R26+'Programmable Tstats - Tier 2'!R26+'Residential Energy Assessments'!R26+'Comm 95+% Furnace - NEW'!R26+'Comm 95+% Furnace - Replace'!R26+'Comm Custom'!R26,0) -> 26839 | S26: =ROUND(+'Res .95+% Res Furnace - NEW'!S26+'Res .95+% Res Furnace - Replace'!S26+'Programmable Tstats - Tier 1'!S26+'Programmable Tstats - Tier 2'!S26+'Residential Energy Assessments'!S26+'Comm 95+% Furnace - NEW'!S26+'Comm 95+% Furnace - Replace'!S26+'Comm Custom'!S26,0) -> 71 | U26: =ROUND(+'Res .95+% Res Furnace - NEW'!U26+'Res .95+% Res Furnace - Replace'!U26+'Programmable Tstats - Tier 1'!U26+'Programmable Tstats - Tier 2'!U26+'Residential Energy Assessments'!U26+'Comm 95+% Furnace - NEW'!U26+'Comm 95+% Furnace - Replace'!U26+'Comm Custom'!U26,0) -> 11860 | V26: =ROUND(+'Res .95+% Res Furnace - NEW'!V26+'Res .95+% Res Furnace - Replace'!V26+'Programmable Tstats - Tier 1'!V26+'Programmable Tstats - Tier 2'!V26+'Residential Energy Assessments'!V26+'Comm 95+% Furnace - NEW'!V26+'Comm 95+% Furnace - Replace'!V26+'Comm Custom'!V26,0) -> 38699 | X26: =ROUND(+'Res .95+% Res Furnace - NEW'!X26+'Res .95+% Res Furnace - Replace'!X26+'Programmable Tstats - Tier 1'!X26+'Programmable Tstats - Tier 2'!X26+'Residential Energy Assessments'!X26+'Comm 95+% Furnace - NEW'!X26+'Comm 95+% Furnace - Replace'!X26+'Comm Custom'!X26,0) -> 14320 | Y26: =ROUND(+'Res .95+% Res Furnace - NEW'!Y26+'Res .95+% Res Furnace - Replace'!Y26+'Programmable Tstats - Tier 1'!Y26+'Programmable Tstats - Tier 2'!Y26+'Residential Energy Assessments'!Y26+'Comm 95+% Furnace - NEW'!Y26+'Comm 95+% Furnace - Replace'!Y26+'Comm Custom'!Y26,0) -> 0 | Z26: =ROUND(+'Res .95+% Res Furnace - NEW'!Z26+'Res .95+% Res Furnace - Replace'!Z26+'Programmable Tstats - Tier 1'!Z26+'Programmable Tstats - Tier 2'!Z26+'Residential Energy Assessments'!Z26+'Comm 95+% Furnace - NEW'!Z26+'Comm 95+% Furnace - Replace'!Z26+'Comm Custom'!Z26,0) -> 0 | AA26: =ROUND(+'Res .95+% Res Furnace - NEW'!AA26+'Res .95+% Res Furnace - Replace'!AA26+'Programmable Tstats - Tier 1'!AA26+'Programmable Tstats - Tier 2'!AA26+'Residential Energy Assessments'!AA26+'Comm 95+% Furnace - NEW'!AA26+'Comm 95+% Furnace - Replace'!AA26+'Comm Custom'!AA26,0) -> 14320 | AB26: =ROUND(+'Res .95+% Res Furnace - NEW'!AB26+'Res .95+% Res Furnace - Replace'!AB26+'Programmable Tstats - Tier 1'!AB26+'Programmable Tstats - Tier 2'!AB26+'Residential Energy Assessments'!AB26+'Comm 95+% Furnace - NEW'!AB26+'Comm 95+% Furnace - Replace'!AB26+'Comm Custom'!AB26,0) -> 24379 | AE26: 2032 | AF26: 26839 | AG26: 11860 | AH26: 38699 | AJ26: 0 | AK26: 0 | AL26: 0 | AN26: 38699 | AQ26: 2032 | AR26: 26839 | AS26: 11860 | AU26: =ROUND(+'Res .95+% Res Furnace - NEW'!AU26+'Res .95+% Res Furnace - Replace'!AU26+'Programmable Tstats - Tier 1'!AU26+'Programmable Tstats - Tier 2'!AU26+'Residential Energy Assessments'!AU26+'Comm 95+% Furnace - NEW'!AU26+'Comm 95+% Furnace - Replace'!AU26+'Comm Custom'!AU26,0) -> 16792 | AW26: =ROUND(+'Res .95+% Res Furnace - NEW'!AW26+'Res .95+% Res Furnace - Replace'!AW26+'Programmable Tstats - Tier 1'!AW26+'Programmable Tstats - Tier 2'!AW26+'Residential Energy Assessments'!AW26+'Comm 95+% Furnace - NEW'!AW26+'Comm 95+% Furnace - Replace'!AW26+'Comm Custom'!AW26,0) -> 3466 | AZ26: 58957 | BB26: =ROUND(+'Res .95+% Res Furnace - NEW'!BB26+'Res .95+% Res Furnace - Replace'!BB26+'Programmable Tstats - Tier 1'!BB26+'Programmable Tstats - Tier 2'!BB26+'Residential Energy Assessments'!BB26+'Comm 95+% Furnace - NEW'!BB26+'Comm 95+% Furnace - Replace'!BB26+'Comm Custom'!BB26,0) -> 0 | BC26: =ROUND(+'Res .95+% Res Furnace - NEW'!BC26+'Res .95+% Res Furnace - Replace'!BC26+'Programmable Tstats - Tier 1'!BC26+'Programmable Tstats - Tier 2'!BC26+'Residential Energy Assessments'!BC26+'Comm 95+% Furnace - NEW'!BC26+'Comm 95+% Furnace - Replace'!BC26+'Comm Custom'!BC26,0) -> 0 | BD26: 0 | BE26: 58957 | BH26: 2032 | BI26: =ROUND(+'Res .95+% Res Furnace - NEW'!BI26+'Res .95+% Res Furnace - Replace'!BI26+'Programmable Tstats - Tier 1'!BI26+'Programmable Tstats - Tier 2'!BI26+'Residential Energy Assessments'!BI26+'Comm 95+% Furnace - NEW'!BI26+'Comm 95+% Furnace - Replace'!BI26+'Comm Custom'!BI26,0) -> 0 | BJ26: =ROUND(+'Res .95+% Res Furnace - NEW'!BJ26+'Res .95+% Res Furnace - Replace'!BJ26+'Programmable Tstats - Tier 1'!BJ26+'Programmable Tstats - Tier 2'!BJ26+'Residential Energy Assessments'!BJ26+'Comm 95+% Furnace - NEW'!BJ26+'Comm 95+% Furnace - Replace'!BJ26+'Comm Custom'!BJ26,0) -> 7059 | BL26: =ROUND(+'Res .95+% Res Furnace - NEW'!BL26+'Res .95+% Res Furnace - Replace'!BL26+'Programmable Tstats - Tier 1'!BL26+'Programmable Tstats - Tier 2'!BL26+'Residential Energy Assessments'!BL26+'Comm 95+% Furnace - NEW'!BL26+'Comm 95+% Furnace - Replace'!BL26+'Comm Custom'!BL26,0) -> 63480 | BN26: =ROUND(+'Res .95+% Res Furnace - NEW'!BN26+'Res .95+% Res Furnace - Replace'!BN26+'Programmable Tstats - Tier 1'!BN26+'Programmable Tstats - Tier 2'!BN26+'Residential Energy Assessments'!BN26+'Comm 95+% Furnace - NEW'!BN26+'Comm 95+% Furnace - Replace'!BN26+'Comm Custom'!BN26,0) -> 71637 | BP26: 135117 | BR26: =ROUND(+'Res .95+% Res Furnace - NEW'!BR26+'Res .95+% Res Furnace - Replace'!BR26+'Programmable Tstats - Tier 1'!BR26+'Programmable Tstats - Tier 2'!BR26+'Residential Energy Assessments'!BR26+'Comm 95+% Furnace - NEW'!BR26+'Comm 95+% Furnace - Replace'!BR26+'Comm Custom'!BR26,0) -> 0 | BT26: 135117 | BW26: 2032 | BX26: 26839 | BY26: 11860 | BZ26: 16792 | CA26: 55491 | CC26: 0 | CD26: 0 | CE26: 0 | CG26: 55491
E27: 22) Avg Non-Gas Fuel Units/Part. Saved = | J27: 13 | L27: 2033 | M27: =ROUND(+'Res .95+% Res Furnace - NEW'!M27+'Res .95+% Res Furnace - Replace'!M27+'Programmable Tstats - Tier 1'!M27+'Programmable Tstats - Tier 2'!M27+'Residential Energy Assessments'!M27+'Comm 95+% Furnace - NEW'!M27+'Comm 95+% Furnace - Replace'!M27+'Comm Custom'!M27,0) -> 7059 | O27: =ROUND(+'Res .95+% Res Furnace - NEW'!O27+'Res .95+% Res Furnace - Replace'!O27+'Programmable Tstats - Tier 1'!O27+'Programmable Tstats - Tier 2'!O27+'Residential Energy Assessments'!O27+'Comm 95+% Furnace - NEW'!O27+'Comm 95+% Furnace - Replace'!O27+'Comm Custom'!O27,0) -> 27777 | Q27: =ROUND(+'Res .95+% Res Furnace - NEW'!Q27+'Res .95+% Res Furnace - Replace'!Q27+'Programmable Tstats - Tier 1'!Q27+'Programmable Tstats - Tier 2'!Q27+'Residential Energy Assessments'!Q27+'Comm 95+% Furnace - NEW'!Q27+'Comm 95+% Furnace - Replace'!Q27+'Comm Custom'!Q27,0) -> 0 | R27: =ROUND(+'Res .95+% Res Furnace - NEW'!R27+'Res .95+% Res Furnace - Replace'!R27+'Programmable Tstats - Tier 1'!R27+'Programmable Tstats - Tier 2'!R27+'Residential Energy Assessments'!R27+'Comm 95+% Furnace - NEW'!R27+'Comm 95+% Furnace - Replace'!R27+'Comm Custom'!R27,0) -> 27777 | S27: =ROUND(+'Res .95+% Res Furnace - NEW'!S27+'Res .95+% Res Furnace - Replace'!S27+'Programmable Tstats - Tier 1'!S27+'Programmable Tstats - Tier 2'!S27+'Residential Energy Assessments'!S27+'Comm 95+% Furnace - NEW'!S27+'Comm 95+% Furnace - Replace'!S27+'Comm Custom'!S27,0) -> 71 | U27: =ROUND(+'Res .95+% Res Furnace - NEW'!U27+'Res .95+% Res Furnace - Replace'!U27+'Programmable Tstats - Tier 1'!U27+'Programmable Tstats - Tier 2'!U27+'Residential Energy Assessments'!U27+'Comm 95+% Furnace - NEW'!U27+'Comm 95+% Furnace - Replace'!U27+'Comm Custom'!U27,0) -> 11932 | V27: =ROUND(+'Res .95+% Res Furnace - NEW'!V27+'Res .95+% Res Furnace - Replace'!V27+'Programmable Tstats - Tier 1'!V27+'Programmable Tstats - Tier 2'!V27+'Residential Energy Assessments'!V27+'Comm 95+% Furnace - NEW'!V27+'Comm 95+% Furnace - Replace'!V27+'Comm Custom'!V27,0) -> 39709 | X27: =ROUND(+'Res .95+% Res Furnace - NEW'!X27+'Res .95+% Res Furnace - Replace'!X27+'Programmable Tstats - Tier 1'!X27+'Programmable Tstats - Tier 2'!X27+'Residential Energy Assessments'!X27+'Comm 95+% Furnace - NEW'!X27+'Comm 95+% Furnace - Replace'!X27+'Comm Custom'!X27,0) -> 14820 | Y27: =ROUND(+'Res .95+% Res Furnace - NEW'!Y27+'Res .95+% Res Furnace - Replace'!Y27+'Programmable Tstats - Tier 1'!Y27+'Programmable Tstats - Tier 2'!Y27+'Residential Energy Assessments'!Y27+'Comm 95+% Furnace - NEW'!Y27+'Comm 95+% Furnace - Replace'!Y27+'Comm Custom'!Y27,0) -> 0 | Z27: =ROUND(+'Res .95+% Res Furnace - NEW'!Z27+'Res .95+% Res Furnace - Replace'!Z27+'Programmable Tstats - Tier 1'!Z27+'Programmable Tstats - Tier 2'!Z27+'Residential Energy Assessments'!Z27+'Comm 95+% Furnace - NEW'!Z27+'Comm 95+% Furnace - Replace'!Z27+'Comm Custom'!Z27,0) -> 0 | AA27: =ROUND(+'Res .95+% Res Furnace - NEW'!AA27+'Res .95+% Res Furnace - Replace'!AA27+'Programmable Tstats - Tier 1'!AA27+'Programmable Tstats - Tier 2'!AA27+'Residential Energy Assessments'!AA27+'Comm 95+% Furnace - NEW'!AA27+'Comm 95+% Furnace - Replace'!AA27+'Comm Custom'!AA27,0) -> 14820 | AB27: =ROUND(+'Res .95+% Res Furnace - NEW'!AB27+'Res .95+% Res Furnace - Replace'!AB27+'Programmable Tstats - Tier 1'!AB27+'Programmable Tstats - Tier 2'!AB27+'Residential Energy Assessments'!AB27+'Comm 95+% Furnace - NEW'!AB27+'Comm 95+% Furnace - Replace'!AB27+'Comm Custom'!AB27,0) -> 24889 | AE27: 2033 | AF27: 27777 | AG27: 11932 | AH27: 39709 | AJ27: 0 | AK27: 0 | AL27: 0 | AN27: 39709 | AQ27: 2033 | AR27: 27777 | AS27: 11932 | AU27: =ROUND(+'Res .95+% Res Furnace - NEW'!AU27+'Res .95+% Res Furnace - Replace'!AU27+'Programmable Tstats - Tier 1'!AU27+'Programmable Tstats - Tier 2'!AU27+'Residential Energy Assessments'!AU27+'Comm 95+% Furnace - NEW'!AU27+'Comm 95+% Furnace - Replace'!AU27+'Comm Custom'!AU27,0) -> 17554 | AW27: =ROUND(+'Res .95+% Res Furnace - NEW'!AW27+'Res .95+% Res Furnace - Replace'!AW27+'Programmable Tstats - Tier 1'!AW27+'Programmable Tstats - Tier 2'!AW27+'Residential Energy Assessments'!AW27+'Comm 95+% Furnace - NEW'!AW27+'Comm 95+% Furnace - Replace'!AW27+'Comm Custom'!AW27,0) -> 3544 | AZ27: 60807 | BB27: =ROUND(+'Res .95+% Res Furnace - NEW'!BB27+'Res .95+% Res Furnace - Replace'!BB27+'Programmable Tstats - Tier 1'!BB27+'Programmable Tstats - Tier 2'!BB27+'Residential Energy Assessments'!BB27+'Comm 95+% Furnace - NEW'!BB27+'Comm 95+% Furnace - Replace'!BB27+'Comm Custom'!BB27,0) -> 0 | BC27: =ROUND(+'Res .95+% Res Furnace - NEW'!BC27+'Res .95+% Res Furnace - Replace'!BC27+'Programmable Tstats - Tier 1'!BC27+'Programmable Tstats - Tier 2'!BC27+'Residential Energy Assessments'!BC27+'Comm 95+% Furnace - NEW'!BC27+'Comm 95+% Furnace - Replace'!BC27+'Comm Custom'!BC27,0) -> 0 | BD27: 0 | BE27: 60807 | BH27: 2033 | BI27: =ROUND(+'Res .95+% Res Furnace - NEW'!BI27+'Res .95+% Res Furnace - Replace'!BI27+'Programmable Tstats - Tier 1'!BI27+'Programmable Tstats - Tier 2'!BI27+'Residential Energy Assessments'!BI27+'Comm 95+% Furnace - NEW'!BI27+'Comm 95+% Furnace - Replace'!BI27+'Comm Custom'!BI27,0) -> 0 | BJ27: =ROUND(+'Res .95+% Res Furnace - NEW'!BJ27+'Res .95+% Res Furnace - Replace'!BJ27+'Programmable Tstats - Tier 1'!BJ27+'Programmable Tstats - Tier 2'!BJ27+'Residential Energy Assessments'!BJ27+'Comm 95+% Furnace - NEW'!BJ27+'Comm 95+% Furnace - Replace'!BJ27+'Comm Custom'!BJ27,0) -> 7059 | BL27: =ROUND(+'Res .95+% Res Furnace - NEW'!BL27+'Res .95+% Res Furnace - Replace'!BL27+'Programmable Tstats - Tier 1'!BL27+'Programmable Tstats - Tier 2'!BL27+'Residential Energy Assessments'!BL27+'Comm 95+% Furnace - NEW'!BL27+'Comm 95+% Furnace - Replace'!BL27+'Comm Custom'!BL27,0) -> 65703 | BN27: =ROUND(+'Res .95+% Res Furnace - NEW'!BN27+'Res .95+% Res Furnace - Replace'!BN27+'Programmable Tstats - Tier 1'!BN27+'Programmable Tstats - Tier 2'!BN27+'Residential Energy Assessments'!BN27+'Comm 95+% Furnace - NEW'!BN27+'Comm 95+% Furnace - Replace'!BN27+'Comm Custom'!BN27,0) -> 73928 | BP27: 139631 | BR27: =ROUND(+'Res .95+% Res Furnace - NEW'!BR27+'Res .95+% Res Furnace - Replace'!BR27+'Programmable Tstats - Tier 1'!BR27+'Programmable Tstats - Tier 2'!BR27+'Residential Energy Assessments'!BR27+'Comm 95+% Furnace - NEW'!BR27+'Comm 95+% Furnace - Replace'!BR27+'Comm Custom'!BR27,0) -> 0 | BT27: 139631 | BW27: 2033 | BX27: 27777 | BY27: 11932 | BZ27: 17554 | CA27: 57263 | CC27: 0 | CD27: 0 | CE27: 0 | CG27: 57263
A28: 7) Non-Gas Fuel Cost ($/Fuel Unit) = | E28: 22a) Avg Additional Non-Gas Fuel Units/ Part. Used = | J28: 14 | L28: 2034 | M28: =ROUND(+'Res .95+% Res Furnace - NEW'!M28+'Res .95+% Res Furnace - Replace'!M28+'Programmable Tstats - Tier 1'!M28+'Programmable Tstats - Tier 2'!M28+'Residential Energy Assessments'!M28+'Comm 95+% Furnace - NEW'!M28+'Comm 95+% Furnace - Replace'!M28+'Comm Custom'!M28,0) -> 7059 | O28: =ROUND(+'Res .95+% Res Furnace - NEW'!O28+'Res .95+% Res Furnace - Replace'!O28+'Programmable Tstats - Tier 1'!O28+'Programmable Tstats - Tier 2'!O28+'Residential Energy Assessments'!O28+'Comm 95+% Furnace - NEW'!O28+'Comm 95+% Furnace - Replace'!O28+'Comm Custom'!O28,0) -> 28750 | Q28: =ROUND(+'Res .95+% Res Furnace - NEW'!Q28+'Res .95+% Res Furnace - Replace'!Q28+'Programmable Tstats - Tier 1'!Q28+'Programmable Tstats - Tier 2'!Q28+'Residential Energy Assessments'!Q28+'Comm 95+% Furnace - NEW'!Q28+'Comm 95+% Furnace - Replace'!Q28+'Comm Custom'!Q28,0) -> 0 | R28: =ROUND(+'Res .95+% Res Furnace - NEW'!R28+'Res .95+% Res Furnace - Replace'!R28+'Programmable Tstats - Tier 1'!R28+'Programmable Tstats - Tier 2'!R28+'Residential Energy Assessments'!R28+'Comm 95+% Furnace - NEW'!R28+'Comm 95+% Furnace - Replace'!R28+'Comm Custom'!R28,0) -> 28750 | S28: =ROUND(+'Res .95+% Res Furnace - NEW'!S28+'Res .95+% Res Furnace - Replace'!S28+'Programmable Tstats - Tier 1'!S28+'Programmable Tstats - Tier 2'!S28+'Residential Energy Assessments'!S28+'Comm 95+% Furnace - NEW'!S28+'Comm 95+% Furnace - Replace'!S28+'Comm Custom'!S28,0) -> 71 | U28: =ROUND(+'Res .95+% Res Furnace - NEW'!U28+'Res .95+% Res Furnace - Replace'!U28+'Programmable Tstats - Tier 1'!U28+'Programmable Tstats - Tier 2'!U28+'Residential Energy Assessments'!U28+'Comm 95+% Furnace - NEW'!U28+'Comm 95+% Furnace - Replace'!U28+'Comm Custom'!U28,0) -> 12072 | V28: =ROUND(+'Res .95+% Res Furnace - NEW'!V28+'Res .95+% Res Furnace - Replace'!V28+'Programmable Tstats - Tier 1'!V28+'Programmable Tstats - Tier 2'!V28+'Residential Energy Assessments'!V28+'Comm 95+% Furnace - NEW'!V28+'Comm 95+% Furnace - Replace'!V28+'Comm Custom'!V28,0) -> 40822 | X28: =ROUND(+'Res .95+% Res Furnace - NEW'!X28+'Res .95+% Res Furnace - Replace'!X28+'Programmable Tstats - Tier 1'!X28+'Programmable Tstats - Tier 2'!X28+'Residential Energy Assessments'!X28+'Comm 95+% Furnace - NEW'!X28+'Comm 95+% Furnace - Replace'!X28+'Comm Custom'!X28,0) -> 15341 | Y28: =ROUND(+'Res .95+% Res Furnace - NEW'!Y28+'Res .95+% Res Furnace - Replace'!Y28+'Programmable Tstats - Tier 1'!Y28+'Programmable Tstats - Tier 2'!Y28+'Residential Energy Assessments'!Y28+'Comm 95+% Furnace - NEW'!Y28+'Comm 95+% Furnace - Replace'!Y28+'Comm Custom'!Y28,0) -> 0 | Z28: =ROUND(+'Res .95+% Res Furnace - NEW'!Z28+'Res .95+% Res Furnace - Replace'!Z28+'Programmable Tstats - Tier 1'!Z28+'Programmable Tstats - Tier 2'!Z28+'Residential Energy Assessments'!Z28+'Comm 95+% Furnace - NEW'!Z28+'Comm 95+% Furnace - Replace'!Z28+'Comm Custom'!Z28,0) -> 0 | AA28: =ROUND(+'Res .95+% Res Furnace - NEW'!AA28+'Res .95+% Res Furnace - Replace'!AA28+'Programmable Tstats - Tier 1'!AA28+'Programmable Tstats - Tier 2'!AA28+'Residential Energy Assessments'!AA28+'Comm 95+% Furnace - NEW'!AA28+'Comm 95+% Furnace - Replace'!AA28+'Comm Custom'!AA28,0) -> 15341 | AB28: =ROUND(+'Res .95+% Res Furnace - NEW'!AB28+'Res .95+% Res Furnace - Replace'!AB28+'Programmable Tstats - Tier 1'!AB28+'Programmable Tstats - Tier 2'!AB28+'Residential Energy Assessments'!AB28+'Comm 95+% Furnace - NEW'!AB28+'Comm 95+% Furnace - Replace'!AB28+'Comm Custom'!AB28,0) -> 25481 | AE28: 2034 | AF28: 28750 | AG28: 12072 | AH28: 40822 | AJ28: 0 | AK28: 0 | AL28: 0 | AN28: 40822 | AQ28: 2034 | AR28: 28750 | AS28: 12072 | AU28: =ROUND(+'Res .95+% Res Furnace - NEW'!AU28+'Res .95+% Res Furnace - Replace'!AU28+'Programmable Tstats - Tier 1'!AU28+'Programmable Tstats - Tier 2'!AU28+'Residential Energy Assessments'!AU28+'Comm 95+% Furnace - NEW'!AU28+'Comm 95+% Furnace - Replace'!AU28+'Comm Custom'!AU28,0) -> 18318 | AW28: =ROUND(+'Res .95+% Res Furnace - NEW'!AW28+'Res .95+% Res Furnace - Replace'!AW28+'Programmable Tstats - Tier 1'!AW28+'Programmable Tstats - Tier 2'!AW28+'Residential Energy Assessments'!AW28+'Comm 95+% Furnace - NEW'!AW28+'Comm 95+% Furnace - Replace'!AW28+'Comm Custom'!AW28,0) -> 3620 | AZ28: 62760 | BB28: =ROUND(+'Res .95+% Res Furnace - NEW'!BB28+'Res .95+% Res Furnace - Replace'!BB28+'Programmable Tstats - Tier 1'!BB28+'Programmable Tstats - Tier 2'!BB28+'Residential Energy Assessments'!BB28+'Comm 95+% Furnace - NEW'!BB28+'Comm 95+% Furnace - Replace'!BB28+'Comm Custom'!BB28,0) -> 0 | BC28: =ROUND(+'Res .95+% Res Furnace - NEW'!BC28+'Res .95+% Res Furnace - Replace'!BC28+'Programmable Tstats - Tier 1'!BC28+'Programmable Tstats - Tier 2'!BC28+'Residential Energy Assessments'!BC28+'Comm 95+% Furnace - NEW'!BC28+'Comm 95+% Furnace - Replace'!BC28+'Comm Custom'!BC28,0) -> 0 | BD28: 0 | BE28: 62760 | BH28: 2034 | BI28: =ROUND(+'Res .95+% Res Furnace - NEW'!BI28+'Res .95+% Res Furnace - Replace'!BI28+'Programmable Tstats - Tier 1'!BI28+'Programmable Tstats - Tier 2'!BI28+'Residential Energy Assessments'!BI28+'Comm 95+% Furnace - NEW'!BI28+'Comm 95+% Furnace - Replace'!BI28+'Comm Custom'!BI28,0) -> 0 | BJ28: =ROUND(+'Res .95+% Res Furnace - NEW'!BJ28+'Res .95+% Res Furnace - Replace'!BJ28+'Programmable Tstats - Tier 1'!BJ28+'Programmable Tstats - Tier 2'!BJ28+'Residential Energy Assessments'!BJ28+'Comm 95+% Furnace - NEW'!BJ28+'Comm 95+% Furnace - Replace'!BJ28+'Comm Custom'!BJ28,0) -> 7059 | BL28: =ROUND(+'Res .95+% Res Furnace - NEW'!BL28+'Res .95+% Res Furnace - Replace'!BL28+'Programmable Tstats - Tier 1'!BL28+'Programmable Tstats - Tier 2'!BL28+'Residential Energy Assessments'!BL28+'Comm 95+% Furnace - NEW'!BL28+'Comm 95+% Furnace - Replace'!BL28+'Comm Custom'!BL28,0) -> 68006 | BN28: =ROUND(+'Res .95+% Res Furnace - NEW'!BN28+'Res .95+% Res Furnace - Replace'!BN28+'Programmable Tstats - Tier 1'!BN28+'Programmable Tstats - Tier 2'!BN28+'Residential Energy Assessments'!BN28+'Comm 95+% Furnace - NEW'!BN28+'Comm 95+% Furnace - Replace'!BN28+'Comm Custom'!BN28,0) -> 76598 | BP28: 144604 | BR28: =ROUND(+'Res .95+% Res Furnace - NEW'!BR28+'Res .95+% Res Furnace - Replace'!BR28+'Programmable Tstats - Tier 1'!BR28+'Programmable Tstats - Tier 2'!BR28+'Residential Energy Assessments'!BR28+'Comm 95+% Furnace - NEW'!BR28+'Comm 95+% Furnace - Replace'!BR28+'Comm Custom'!BR28,0) -> 0 | BT28: 144604 | BW28: 2034 | BX28: 28750 | BY28: 12072 | BZ28: 18318 | CA28: 59140 | CC28: 0 | CD28: 0 | CE28: 0 | CG28: 59140
A29: Escalation Rate = | J29: 15 | L29: 2035 | M29: =ROUND(+'Res .95+% Res Furnace - NEW'!M29+'Res .95+% Res Furnace - Replace'!M29+'Programmable Tstats - Tier 1'!M29+'Programmable Tstats - Tier 2'!M29+'Residential Energy Assessments'!M29+'Comm 95+% Furnace - NEW'!M29+'Comm 95+% Furnace - Replace'!M29+'Comm Custom'!M29,0) -> 6370 | O29: =ROUND(+'Res .95+% Res Furnace - NEW'!O29+'Res .95+% Res Furnace - Replace'!O29+'Programmable Tstats - Tier 1'!O29+'Programmable Tstats - Tier 2'!O29+'Residential Energy Assessments'!O29+'Comm 95+% Furnace - NEW'!O29+'Comm 95+% Furnace - Replace'!O29+'Comm Custom'!O29,0) -> 26849 | Q29: =ROUND(+'Res .95+% Res Furnace - NEW'!Q29+'Res .95+% Res Furnace - Replace'!Q29+'Programmable Tstats - Tier 1'!Q29+'Programmable Tstats - Tier 2'!Q29+'Residential Energy Assessments'!Q29+'Comm 95+% Furnace - NEW'!Q29+'Comm 95+% Furnace - Replace'!Q29+'Comm Custom'!Q29,0) -> 0 | R29: =ROUND(+'Res .95+% Res Furnace - NEW'!R29+'Res .95+% Res Furnace - Replace'!R29+'Programmable Tstats - Tier 1'!R29+'Programmable Tstats - Tier 2'!R29+'Residential Energy Assessments'!R29+'Comm 95+% Furnace - NEW'!R29+'Comm 95+% Furnace - Replace'!R29+'Comm Custom'!R29,0) -> 26849 | S29: =ROUND(+'Res .95+% Res Furnace - NEW'!S29+'Res .95+% Res Furnace - Replace'!S29+'Programmable Tstats - Tier 1'!S29+'Programmable Tstats - Tier 2'!S29+'Residential Energy Assessments'!S29+'Comm 95+% Furnace - NEW'!S29+'Comm 95+% Furnace - Replace'!S29+'Comm Custom'!S29,0) -> 64 | U29: =ROUND(+'Res .95+% Res Furnace - NEW'!U29+'Res .95+% Res Furnace - Replace'!U29+'Programmable Tstats - Tier 1'!U29+'Programmable Tstats - Tier 2'!U29+'Residential Energy Assessments'!U29+'Comm 95+% Furnace - NEW'!U29+'Comm 95+% Furnace - Replace'!U29+'Comm Custom'!U29,0) -> 11020 | V29: =ROUND(+'Res .95+% Res Furnace - NEW'!V29+'Res .95+% Res Furnace - Replace'!V29+'Programmable Tstats - Tier 1'!V29+'Programmable Tstats - Tier 2'!V29+'Residential Energy Assessments'!V29+'Comm 95+% Furnace - NEW'!V29+'Comm 95+% Furnace - Replace'!V29+'Comm Custom'!V29,0) -> 37869 | X29: =ROUND(+'Res .95+% Res Furnace - NEW'!X29+'Res .95+% Res Furnace - Replace'!X29+'Programmable Tstats - Tier 1'!X29+'Programmable Tstats - Tier 2'!X29+'Residential Energy Assessments'!X29+'Comm 95+% Furnace - NEW'!X29+'Comm 95+% Furnace - Replace'!X29+'Comm Custom'!X29,0) -> 15030 | Y29: =ROUND(+'Res .95+% Res Furnace - NEW'!Y29+'Res .95+% Res Furnace - Replace'!Y29+'Programmable Tstats - Tier 1'!Y29+'Programmable Tstats - Tier 2'!Y29+'Residential Energy Assessments'!Y29+'Comm 95+% Furnace - NEW'!Y29+'Comm 95+% Furnace - Replace'!Y29+'Comm Custom'!Y29,0) -> 0 | Z29: =ROUND(+'Res .95+% Res Furnace - NEW'!Z29+'Res .95+% Res Furnace - Replace'!Z29+'Programmable Tstats - Tier 1'!Z29+'Programmable Tstats - Tier 2'!Z29+'Residential Energy Assessments'!Z29+'Comm 95+% Furnace - NEW'!Z29+'Comm 95+% Furnace - Replace'!Z29+'Comm Custom'!Z29,0) -> 0 | AA29: =ROUND(+'Res .95+% Res Furnace - NEW'!AA29+'Res .95+% Res Furnace - Replace'!AA29+'Programmable Tstats - Tier 1'!AA29+'Programmable Tstats - Tier 2'!AA29+'Residential Energy Assessments'!AA29+'Comm 95+% Furnace - NEW'!AA29+'Comm 95+% Furnace - Replace'!AA29+'Comm Custom'!AA29,0) -> 15030 | AB29: =ROUND(+'Res .95+% Res Furnace - NEW'!AB29+'Res .95+% Res Furnace - Replace'!AB29+'Programmable Tstats - Tier 1'!AB29+'Programmable Tstats - Tier 2'!AB29+'Residential Energy Assessments'!AB29+'Comm 95+% Furnace - NEW'!AB29+'Comm 95+% Furnace - Replace'!AB29+'Comm Custom'!AB29,0) -> 22839 | AE29: 2035 | AF29: 26849 | AG29: 11020 | AH29: 37869 | AJ29: 0 | AK29: 0 | AL29: 0 | AN29: 37869 | AQ29: 2035 | AR29: 26849 | AS29: 11020 | AU29: =ROUND(+'Res .95+% Res Furnace - NEW'!AU29+'Res .95+% Res Furnace - Replace'!AU29+'Programmable Tstats - Tier 1'!AU29+'Programmable Tstats - Tier 2'!AU29+'Residential Energy Assessments'!AU29+'Comm 95+% Furnace - NEW'!AU29+'Comm 95+% Furnace - Replace'!AU29+'Comm Custom'!AU29,0) -> 18699 | AW29: =ROUND(+'Res .95+% Res Furnace - NEW'!AW29+'Res .95+% Res Furnace - Replace'!AW29+'Programmable Tstats - Tier 1'!AW29+'Programmable Tstats - Tier 2'!AW29+'Residential Energy Assessments'!AW29+'Comm 95+% Furnace - NEW'!AW29+'Comm 95+% Furnace - Replace'!AW29+'Comm Custom'!AW29,0) -> 3338 | AZ29: 59906 | BB29: =ROUND(+'Res .95+% Res Furnace - NEW'!BB29+'Res .95+% Res Furnace - Replace'!BB29+'Programmable Tstats - Tier 1'!BB29+'Programmable Tstats - Tier 2'!BB29+'Residential Energy Assessments'!BB29+'Comm 95+% Furnace - NEW'!BB29+'Comm 95+% Furnace - Replace'!BB29+'Comm Custom'!BB29,0) -> 0 | BC29: =ROUND(+'Res .95+% Res Furnace - NEW'!BC29+'Res .95+% Res Furnace - Replace'!BC29+'Programmable Tstats - Tier 1'!BC29+'Programmable Tstats - Tier 2'!BC29+'Residential Energy Assessments'!BC29+'Comm 95+% Furnace - NEW'!BC29+'Comm 95+% Furnace - Replace'!BC29+'Comm Custom'!BC29,0) -> 0 | BD29: 0 | BE29: 59906 | BH29: 2035 | BI29: =ROUND(+'Res .95+% Res Furnace - NEW'!BI29+'Res .95+% Res Furnace - Replace'!BI29+'Programmable Tstats - Tier 1'!BI29+'Programmable Tstats - Tier 2'!BI29+'Residential Energy Assessments'!BI29+'Comm 95+% Furnace - NEW'!BI29+'Comm 95+% Furnace - Replace'!BI29+'Comm Custom'!BI29,0) -> 0 | BJ29: =ROUND(+'Res .95+% Res Furnace - NEW'!BJ29+'Res .95+% Res Furnace - Replace'!BJ29+'Programmable Tstats - Tier 1'!BJ29+'Programmable Tstats - Tier 2'!BJ29+'Residential Energy Assessments'!BJ29+'Comm 95+% Furnace - NEW'!BJ29+'Comm 95+% Furnace - Replace'!BJ29+'Comm Custom'!BJ29,0) -> 6370 | BL29: =ROUND(+'Res .95+% Res Furnace - NEW'!BL29+'Res .95+% Res Furnace - Replace'!BL29+'Programmable Tstats - Tier 1'!BL29+'Programmable Tstats - Tier 2'!BL29+'Residential Energy Assessments'!BL29+'Comm 95+% Furnace - NEW'!BL29+'Comm 95+% Furnace - Replace'!BL29+'Comm Custom'!BL29,0) -> 64406 | BN29: =ROUND(+'Res .95+% Res Furnace - NEW'!BN29+'Res .95+% Res Furnace - Replace'!BN29+'Programmable Tstats - Tier 1'!BN29+'Programmable Tstats - Tier 2'!BN29+'Residential Energy Assessments'!BN29+'Comm 95+% Furnace - NEW'!BN29+'Comm 95+% Furnace - Replace'!BN29+'Comm Custom'!BN29,0) -> 79269 | BP29: 143675 | BR29: =ROUND(+'Res .95+% Res Furnace - NEW'!BR29+'Res .95+% Res Furnace - Replace'!BR29+'Programmable Tstats - Tier 1'!BR29+'Programmable Tstats - Tier 2'!BR29+'Residential Energy Assessments'!BR29+'Comm 95+% Furnace - NEW'!BR29+'Comm 95+% Furnace - Replace'!BR29+'Comm Custom'!BR29,0) -> 0 | BT29: 143675 | BW29: 2035 | BX29: 26849 | BY29: 11020 | BZ29: 18699 | CA29: 56568 | CC29: 0 | CD29: 0 | CE29: 0 | CG29: 56568
E30: 23) Number of Participants = | F30: =+'Res .95+% Res Furnace - NEW'!F30+'Res .95+% Res Furnace - Replace'!F30+'Programmable Tstats - Tier 1'!F30+'Programmable Tstats - Tier 2'!F30+'Residential Energy Assessments'!F30+'Comm 95+% Furnace - NEW'!F30+'Comm 95+% Furnace - Replace'!F30+'Comm Custom'!F30 -> 789 | J30: 16 | L30: 2036 | M30: =ROUND(+'Res .95+% Res Furnace - NEW'!M30+'Res .95+% Res Furnace - Replace'!M30+'Programmable Tstats - Tier 1'!M30+'Programmable Tstats - Tier 2'!M30+'Residential Energy Assessments'!M30+'Comm 95+% Furnace - NEW'!M30+'Comm 95+% Furnace - Replace'!M30+'Comm Custom'!M30,0) -> 6370 | O30: =ROUND(+'Res .95+% Res Furnace - NEW'!O30+'Res .95+% Res Furnace - Replace'!O30+'Programmable Tstats - Tier 1'!O30+'Programmable Tstats - Tier 2'!O30+'Residential Energy Assessments'!O30+'Comm 95+% Furnace - NEW'!O30+'Comm 95+% Furnace - Replace'!O30+'Comm Custom'!O30,0) -> 27792 | Q30: =ROUND(+'Res .95+% Res Furnace - NEW'!Q30+'Res .95+% Res Furnace - Replace'!Q30+'Programmable Tstats - Tier 1'!Q30+'Programmable Tstats - Tier 2'!Q30+'Residential Energy Assessments'!Q30+'Comm 95+% Furnace - NEW'!Q30+'Comm 95+% Furnace - Replace'!Q30+'Comm Custom'!Q30,0) -> 0 | R30: =ROUND(+'Res .95+% Res Furnace - NEW'!R30+'Res .95+% Res Furnace - Replace'!R30+'Programmable Tstats - Tier 1'!R30+'Programmable Tstats - Tier 2'!R30+'Residential Energy Assessments'!R30+'Comm 95+% Furnace - NEW'!R30+'Comm 95+% Furnace - Replace'!R30+'Comm Custom'!R30,0) -> 27792 | S30: =ROUND(+'Res .95+% Res Furnace - NEW'!S30+'Res .95+% Res Furnace - Replace'!S30+'Programmable Tstats - Tier 1'!S30+'Programmable Tstats - Tier 2'!S30+'Residential Energy Assessments'!S30+'Comm 95+% Furnace - NEW'!S30+'Comm 95+% Furnace - Replace'!S30+'Comm Custom'!S30,0) -> 64 | U30: =ROUND(+'Res .95+% Res Furnace - NEW'!U30+'Res .95+% Res Furnace - Replace'!U30+'Programmable Tstats - Tier 1'!U30+'Programmable Tstats - Tier 2'!U30+'Residential Energy Assessments'!U30+'Comm 95+% Furnace - NEW'!U30+'Comm 95+% Furnace - Replace'!U30+'Comm Custom'!U30,0) -> 11149 | V30: =ROUND(+'Res .95+% Res Furnace - NEW'!V30+'Res .95+% Res Furnace - Replace'!V30+'Programmable Tstats - Tier 1'!V30+'Programmable Tstats - Tier 2'!V30+'Residential Energy Assessments'!V30+'Comm 95+% Furnace - NEW'!V30+'Comm 95+% Furnace - Replace'!V30+'Comm Custom'!V30,0) -> 38941 | X30: =ROUND(+'Res .95+% Res Furnace - NEW'!X30+'Res .95+% Res Furnace - Replace'!X30+'Programmable Tstats - Tier 1'!X30+'Programmable Tstats - Tier 2'!X30+'Residential Energy Assessments'!X30+'Comm 95+% Furnace - NEW'!X30+'Comm 95+% Furnace - Replace'!X30+'Comm Custom'!X30,0) -> 15558 | Y30: =ROUND(+'Res .95+% Res Furnace - NEW'!Y30+'Res .95+% Res Furnace - Replace'!Y30+'Programmable Tstats - Tier 1'!Y30+'Programmable Tstats - Tier 2'!Y30+'Residential Energy Assessments'!Y30+'Comm 95+% Furnace - NEW'!Y30+'Comm 95+% Furnace - Replace'!Y30+'Comm Custom'!Y30,0) -> 0 | Z30: =ROUND(+'Res .95+% Res Furnace - NEW'!Z30+'Res .95+% Res Furnace - Replace'!Z30+'Programmable Tstats - Tier 1'!Z30+'Programmable Tstats - Tier 2'!Z30+'Residential Energy Assessments'!Z30+'Comm 95+% Furnace - NEW'!Z30+'Comm 95+% Furnace - Replace'!Z30+'Comm Custom'!Z30,0) -> 0 | AA30: =ROUND(+'Res .95+% Res Furnace - NEW'!AA30+'Res .95+% Res Furnace - Replace'!AA30+'Programmable Tstats - Tier 1'!AA30+'Programmable Tstats - Tier 2'!AA30+'Residential Energy Assessments'!AA30+'Comm 95+% Furnace - NEW'!AA30+'Comm 95+% Furnace - Replace'!AA30+'Comm Custom'!AA30,0) -> 15558 | AB30: =ROUND(+'Res .95+% Res Furnace - NEW'!AB30+'Res .95+% Res Furnace - Replace'!AB30+'Programmable Tstats - Tier 1'!AB30+'Programmable Tstats - Tier 2'!AB30+'Residential Energy Assessments'!AB30+'Comm 95+% Furnace - NEW'!AB30+'Comm 95+% Furnace - Replace'!AB30+'Comm Custom'!AB30,0) -> 23383 | AE30: 2036 | AF30: 27792 | AG30: 11149 | AH30: 38941 | AJ30: 0 | AK30: 0 | AL30: 0 | AN30: 38941 | AQ30: 2036 | AR30: 27792 | AS30: 11149 | AU30: =ROUND(+'Res .95+% Res Furnace - NEW'!AU30+'Res .95+% Res Furnace - Replace'!AU30+'Programmable Tstats - Tier 1'!AU30+'Programmable Tstats - Tier 2'!AU30+'Residential Energy Assessments'!AU30+'Comm 95+% Furnace - NEW'!AU30+'Comm 95+% Furnace - Replace'!AU30+'Comm Custom'!AU30,0) -> 19461 | AW30: =ROUND(+'Res .95+% Res Furnace - NEW'!AW30+'Res .95+% Res Furnace - Replace'!AW30+'Programmable Tstats - Tier 1'!AW30+'Programmable Tstats - Tier 2'!AW30+'Residential Energy Assessments'!AW30+'Comm 95+% Furnace - NEW'!AW30+'Comm 95+% Furnace - Replace'!AW30+'Comm Custom'!AW30,0) -> 3408 | AZ30: 61810 | BB30: =ROUND(+'Res .95+% Res Furnace - NEW'!BB30+'Res .95+% Res Furnace - Replace'!BB30+'Programmable Tstats - Tier 1'!BB30+'Programmable Tstats - Tier 2'!BB30+'Residential Energy Assessments'!BB30+'Comm 95+% Furnace - NEW'!BB30+'Comm 95+% Furnace - Replace'!BB30+'Comm Custom'!BB30,0) -> 0 | BC30: =ROUND(+'Res .95+% Res Furnace - NEW'!BC30+'Res .95+% Res Furnace - Replace'!BC30+'Programmable Tstats - Tier 1'!BC30+'Programmable Tstats - Tier 2'!BC30+'Residential Energy Assessments'!BC30+'Comm 95+% Furnace - NEW'!BC30+'Comm 95+% Furnace - Replace'!BC30+'Comm Custom'!BC30,0) -> 0 | BD30: 0 | BE30: 61810 | BH30: 2036 | BI30: =ROUND(+'Res .95+% Res Furnace - NEW'!BI30+'Res .95+% Res Furnace - Replace'!BI30+'Programmable Tstats - Tier 1'!BI30+'Programmable Tstats - Tier 2'!BI30+'Residential Energy Assessments'!BI30+'Comm 95+% Furnace - NEW'!BI30+'Comm 95+% Furnace - Replace'!BI30+'Comm Custom'!BI30,0) -> 0 | BJ30: =ROUND(+'Res .95+% Res Furnace - NEW'!BJ30+'Res .95+% Res Furnace - Replace'!BJ30+'Programmable Tstats - Tier 1'!BJ30+'Programmable Tstats - Tier 2'!BJ30+'Residential Energy Assessments'!BJ30+'Comm 95+% Furnace - NEW'!BJ30+'Comm 95+% Furnace - Replace'!BJ30+'Comm Custom'!BJ30,0) -> 6370 | BL30: =ROUND(+'Res .95+% Res Furnace - NEW'!BL30+'Res .95+% Res Furnace - Replace'!BL30+'Programmable Tstats - Tier 1'!BL30+'Programmable Tstats - Tier 2'!BL30+'Residential Energy Assessments'!BL30+'Comm 95+% Furnace - NEW'!BL30+'Comm 95+% Furnace - Replace'!BL30+'Comm Custom'!BL30,0) -> 66660 | BN30: =ROUND(+'Res .95+% Res Furnace - NEW'!BN30+'Res .95+% Res Furnace - Replace'!BN30+'Programmable Tstats - Tier 1'!BN30+'Programmable Tstats - Tier 2'!BN30+'Residential Energy Assessments'!BN30+'Comm 95+% Furnace - NEW'!BN30+'Comm 95+% Furnace - Replace'!BN30+'Comm Custom'!BN30,0) -> 81940 | BP30: 148600 | BR30: =ROUND(+'Res .95+% Res Furnace - NEW'!BR30+'Res .95+% Res Furnace - Replace'!BR30+'Programmable Tstats - Tier 1'!BR30+'Programmable Tstats - Tier 2'!BR30+'Residential Energy Assessments'!BR30+'Comm 95+% Furnace - NEW'!BR30+'Comm 95+% Furnace - Replace'!BR30+'Comm Custom'!BR30,0) -> 0 | BT30: 148600 | BW30: 2036 | BX30: 27792 | BY30: 11149 | BZ30: 19461 | CA30: 58402 | CC30: 0 | CD30: 0 | CE30: 0 | CG30: 58402 | DB30: =$J18 -> 4
A31: 8) Non-Gas Fuel Loss Factor | J31: 17 | L31: 2037 | M31: =ROUND(+'Res .95+% Res Furnace - NEW'!M31+'Res .95+% Res Furnace - Replace'!M31+'Programmable Tstats - Tier 1'!M31+'Programmable Tstats - Tier 2'!M31+'Residential Energy Assessments'!M31+'Comm 95+% Furnace - NEW'!M31+'Comm 95+% Furnace - Replace'!M31+'Comm Custom'!M31,0) -> 6370 | O31: =ROUND(+'Res .95+% Res Furnace - NEW'!O31+'Res .95+% Res Furnace - Replace'!O31+'Programmable Tstats - Tier 1'!O31+'Programmable Tstats - Tier 2'!O31+'Residential Energy Assessments'!O31+'Comm 95+% Furnace - NEW'!O31+'Comm 95+% Furnace - Replace'!O31+'Comm Custom'!O31,0) -> 28761 | Q31: =ROUND(+'Res .95+% Res Furnace - NEW'!Q31+'Res .95+% Res Furnace - Replace'!Q31+'Programmable Tstats - Tier 1'!Q31+'Programmable Tstats - Tier 2'!Q31+'Residential Energy Assessments'!Q31+'Comm 95+% Furnace - NEW'!Q31+'Comm 95+% Furnace - Replace'!Q31+'Comm Custom'!Q31,0) -> 0 | R31: =ROUND(+'Res .95+% Res Furnace - NEW'!R31+'Res .95+% Res Furnace - Replace'!R31+'Programmable Tstats - Tier 1'!R31+'Programmable Tstats - Tier 2'!R31+'Residential Energy Assessments'!R31+'Comm 95+% Furnace - NEW'!R31+'Comm 95+% Furnace - Replace'!R31+'Comm Custom'!R31,0) -> 28761 | S31: =ROUND(+'Res .95+% Res Furnace - NEW'!S31+'Res .95+% Res Furnace - Replace'!S31+'Programmable Tstats - Tier 1'!S31+'Programmable Tstats - Tier 2'!S31+'Residential Energy Assessments'!S31+'Comm 95+% Furnace - NEW'!S31+'Comm 95+% Furnace - Replace'!S31+'Comm Custom'!S31,0) -> 64 | U31: =ROUND(+'Res .95+% Res Furnace - NEW'!U31+'Res .95+% Res Furnace - Replace'!U31+'Programmable Tstats - Tier 1'!U31+'Programmable Tstats - Tier 2'!U31+'Residential Energy Assessments'!U31+'Comm 95+% Furnace - NEW'!U31+'Comm 95+% Furnace - Replace'!U31+'Comm Custom'!U31,0) -> 11211 | V31: =ROUND(+'Res .95+% Res Furnace - NEW'!V31+'Res .95+% Res Furnace - Replace'!V31+'Programmable Tstats - Tier 1'!V31+'Programmable Tstats - Tier 2'!V31+'Residential Energy Assessments'!V31+'Comm 95+% Furnace - NEW'!V31+'Comm 95+% Furnace - Replace'!V31+'Comm Custom'!V31,0) -> 39972 | X31: =ROUND(+'Res .95+% Res Furnace - NEW'!X31+'Res .95+% Res Furnace - Replace'!X31+'Programmable Tstats - Tier 1'!X31+'Programmable Tstats - Tier 2'!X31+'Residential Energy Assessments'!X31+'Comm 95+% Furnace - NEW'!X31+'Comm 95+% Furnace - Replace'!X31+'Comm Custom'!X31,0) -> 16101 | Y31: =ROUND(+'Res .95+% Res Furnace - NEW'!Y31+'Res .95+% Res Furnace - Replace'!Y31+'Programmable Tstats - Tier 1'!Y31+'Programmable Tstats - Tier 2'!Y31+'Residential Energy Assessments'!Y31+'Comm 95+% Furnace - NEW'!Y31+'Comm 95+% Furnace - Replace'!Y31+'Comm Custom'!Y31,0) -> 0 | Z31: =ROUND(+'Res .95+% Res Furnace - NEW'!Z31+'Res .95+% Res Furnace - Replace'!Z31+'Programmable Tstats - Tier 1'!Z31+'Programmable Tstats - Tier 2'!Z31+'Residential Energy Assessments'!Z31+'Comm 95+% Furnace - NEW'!Z31+'Comm 95+% Furnace - Replace'!Z31+'Comm Custom'!Z31,0) -> 0 | AA31: =ROUND(+'Res .95+% Res Furnace - NEW'!AA31+'Res .95+% Res Furnace - Replace'!AA31+'Programmable Tstats - Tier 1'!AA31+'Programmable Tstats - Tier 2'!AA31+'Residential Energy Assessments'!AA31+'Comm 95+% Furnace - NEW'!AA31+'Comm 95+% Furnace - Replace'!AA31+'Comm Custom'!AA31,0) -> 16101 | AB31: =ROUND(+'Res .95+% Res Furnace - NEW'!AB31+'Res .95+% Res Furnace - Replace'!AB31+'Programmable Tstats - Tier 1'!AB31+'Programmable Tstats - Tier 2'!AB31+'Residential Energy Assessments'!AB31+'Comm 95+% Furnace - NEW'!AB31+'Comm 95+% Furnace - Replace'!AB31+'Comm Custom'!AB31,0) -> 23871 | AE31: 2037 | AF31: 28761 | AG31: 11211 | AH31: 39972 | AJ31: 0 | AK31: 0 | AL31: 0 | AN31: 39972 | AQ31: 2037 | AR31: 28761 | AS31: 11211 | AU31: =ROUND(+'Res .95+% Res Furnace - NEW'!AU31+'Res .95+% Res Furnace - Replace'!AU31+'Programmable Tstats - Tier 1'!AU31+'Programmable Tstats - Tier 2'!AU31+'Residential Energy Assessments'!AU31+'Comm 95+% Furnace - NEW'!AU31+'Comm 95+% Furnace - Replace'!AU31+'Comm Custom'!AU31,0) -> 20225 | AW31: =ROUND(+'Res .95+% Res Furnace - NEW'!AW31+'Res .95+% Res Furnace - Replace'!AW31+'Programmable Tstats - Tier 1'!AW31+'Programmable Tstats - Tier 2'!AW31+'Residential Energy Assessments'!AW31+'Comm 95+% Furnace - NEW'!AW31+'Comm 95+% Furnace - Replace'!AW31+'Comm Custom'!AW31,0) -> 3479 | AZ31: 63676 | BB31: =ROUND(+'Res .95+% Res Furnace - NEW'!BB31+'Res .95+% Res Furnace - Replace'!BB31+'Programmable Tstats - Tier 1'!BB31+'Programmable Tstats - Tier 2'!BB31+'Residential Energy Assessments'!BB31+'Comm 95+% Furnace - NEW'!BB31+'Comm 95+% Furnace - Replace'!BB31+'Comm Custom'!BB31,0) -> 0 | BC31: =ROUND(+'Res .95+% Res Furnace - NEW'!BC31+'Res .95+% Res Furnace - Replace'!BC31+'Programmable Tstats - Tier 1'!BC31+'Programmable Tstats - Tier 2'!BC31+'Residential Energy Assessments'!BC31+'Comm 95+% Furnace - NEW'!BC31+'Comm 95+% Furnace - Replace'!BC31+'Comm Custom'!BC31,0) -> 0 | BD31: 0 | BE31: 63676 | BH31: 2037 | BI31: =ROUND(+'Res .95+% Res Furnace - NEW'!BI31+'Res .95+% Res Furnace - Replace'!BI31+'Programmable Tstats - Tier 1'!BI31+'Programmable Tstats - Tier 2'!BI31+'Residential Energy Assessments'!BI31+'Comm 95+% Furnace - NEW'!BI31+'Comm 95+% Furnace - Replace'!BI31+'Comm Custom'!BI31,0) -> 0 | BJ31: =ROUND(+'Res .95+% Res Furnace - NEW'!BJ31+'Res .95+% Res Furnace - Replace'!BJ31+'Programmable Tstats - Tier 1'!BJ31+'Programmable Tstats - Tier 2'!BJ31+'Residential Energy Assessments'!BJ31+'Comm 95+% Furnace - NEW'!BJ31+'Comm 95+% Furnace - Replace'!BJ31+'Comm Custom'!BJ31,0) -> 6370 | BL31: =ROUND(+'Res .95+% Res Furnace - NEW'!BL31+'Res .95+% Res Furnace - Replace'!BL31+'Programmable Tstats - Tier 1'!BL31+'Programmable Tstats - Tier 2'!BL31+'Residential Energy Assessments'!BL31+'Comm 95+% Furnace - NEW'!BL31+'Comm 95+% Furnace - Replace'!BL31+'Comm Custom'!BL31,0) -> 68991 | BN31: =ROUND(+'Res .95+% Res Furnace - NEW'!BN31+'Res .95+% Res Furnace - Replace'!BN31+'Programmable Tstats - Tier 1'!BN31+'Programmable Tstats - Tier 2'!BN31+'Residential Energy Assessments'!BN31+'Comm 95+% Furnace - NEW'!BN31+'Comm 95+% Furnace - Replace'!BN31+'Comm Custom'!BN31,0) -> 84977 | BP31: 153968 | BR31: =ROUND(+'Res .95+% Res Furnace - NEW'!BR31+'Res .95+% Res Furnace - Replace'!BR31+'Programmable Tstats - Tier 1'!BR31+'Programmable Tstats - Tier 2'!BR31+'Residential Energy Assessments'!BR31+'Comm 95+% Furnace - NEW'!BR31+'Comm 95+% Furnace - Replace'!BR31+'Comm Custom'!BR31,0) -> 0 | BT31: 153968 | BW31: 2037 | BX31: 28761 | BY31: 11211 | BZ31: 20225 | CA31: 60197 | CC31: 0 | CD31: 0 | CE31: 0 | CG31: 60197 | DB31: =$J19 -> 5
E32: 24) Total Annual Dk Saved = | F32: =+'Res .95+% Res Furnace - NEW'!F32+'Res .95+% Res Furnace - Replace'!F32+'Programmable Tstats - Tier 1'!F32+'Programmable Tstats - Tier 2'!F32+'Residential Energy Assessments'!F32+'Comm 95+% Furnace - NEW'!F32+'Comm 95+% Furnace - Replace'!F32+'Comm Custom'!F32 -> 8144 | J32: 18 | L32: 2038 | M32: =ROUND(+'Res .95+% Res Furnace - NEW'!M32+'Res .95+% Res Furnace - Replace'!M32+'Programmable Tstats - Tier 1'!M32+'Programmable Tstats - Tier 2'!M32+'Residential Energy Assessments'!M32+'Comm 95+% Furnace - NEW'!M32+'Comm 95+% Furnace - Replace'!M32+'Comm Custom'!M32,0) -> 6370 | O32: =ROUND(+'Res .95+% Res Furnace - NEW'!O32+'Res .95+% Res Furnace - Replace'!O32+'Programmable Tstats - Tier 1'!O32+'Programmable Tstats - Tier 2'!O32+'Residential Energy Assessments'!O32+'Comm 95+% Furnace - NEW'!O32+'Comm 95+% Furnace - Replace'!O32+'Comm Custom'!O32,0) -> 29768 | Q32: =ROUND(+'Res .95+% Res Furnace - NEW'!Q32+'Res .95+% Res Furnace - Replace'!Q32+'Programmable Tstats - Tier 1'!Q32+'Programmable Tstats - Tier 2'!Q32+'Residential Energy Assessments'!Q32+'Comm 95+% Furnace - NEW'!Q32+'Comm 95+% Furnace - Replace'!Q32+'Comm Custom'!Q32,0) -> 0 | R32: =ROUND(+'Res .95+% Res Furnace - NEW'!R32+'Res .95+% Res Furnace - Replace'!R32+'Programmable Tstats - Tier 1'!R32+'Programmable Tstats - Tier 2'!R32+'Residential Energy Assessments'!R32+'Comm 95+% Furnace - NEW'!R32+'Comm 95+% Furnace - Replace'!R32+'Comm Custom'!R32,0) -> 29768 | S32: =ROUND(+'Res .95+% Res Furnace - NEW'!S32+'Res .95+% Res Furnace - Replace'!S32+'Programmable Tstats - Tier 1'!S32+'Programmable Tstats - Tier 2'!S32+'Residential Energy Assessments'!S32+'Comm 95+% Furnace - NEW'!S32+'Comm 95+% Furnace - Replace'!S32+'Comm Custom'!S32,0) -> 64 | U32: =ROUND(+'Res .95+% Res Furnace - NEW'!U32+'Res .95+% Res Furnace - Replace'!U32+'Programmable Tstats - Tier 1'!U32+'Programmable Tstats - Tier 2'!U32+'Residential Energy Assessments'!U32+'Comm 95+% Furnace - NEW'!U32+'Comm 95+% Furnace - Replace'!U32+'Comm Custom'!U32,0) -> 11338 | V32: =ROUND(+'Res .95+% Res Furnace - NEW'!V32+'Res .95+% Res Furnace - Replace'!V32+'Programmable Tstats - Tier 1'!V32+'Programmable Tstats - Tier 2'!V32+'Residential Energy Assessments'!V32+'Comm 95+% Furnace - NEW'!V32+'Comm 95+% Furnace - Replace'!V32+'Comm Custom'!V32,0) -> 41106 | X32: =ROUND(+'Res .95+% Res Furnace - NEW'!X32+'Res .95+% Res Furnace - Replace'!X32+'Programmable Tstats - Tier 1'!X32+'Programmable Tstats - Tier 2'!X32+'Residential Energy Assessments'!X32+'Comm 95+% Furnace - NEW'!X32+'Comm 95+% Furnace - Replace'!X32+'Comm Custom'!X32,0) -> 16662 | Y32: =ROUND(+'Res .95+% Res Furnace - NEW'!Y32+'Res .95+% Res Furnace - Replace'!Y32+'Programmable Tstats - Tier 1'!Y32+'Programmable Tstats - Tier 2'!Y32+'Residential Energy Assessments'!Y32+'Comm 95+% Furnace - NEW'!Y32+'Comm 95+% Furnace - Replace'!Y32+'Comm Custom'!Y32,0) -> 0 | Z32: =ROUND(+'Res .95+% Res Furnace - NEW'!Z32+'Res .95+% Res Furnace - Replace'!Z32+'Programmable Tstats - Tier 1'!Z32+'Programmable Tstats - Tier 2'!Z32+'Residential Energy Assessments'!Z32+'Comm 95+% Furnace - NEW'!Z32+'Comm 95+% Furnace - Replace'!Z32+'Comm Custom'!Z32,0) -> 0 | AA32: =ROUND(+'Res .95+% Res Furnace - NEW'!AA32+'Res .95+% Res Furnace - Replace'!AA32+'Programmable Tstats - Tier 1'!AA32+'Programmable Tstats - Tier 2'!AA32+'Residential Energy Assessments'!AA32+'Comm 95+% Furnace - NEW'!AA32+'Comm 95+% Furnace - Replace'!AA32+'Comm Custom'!AA32,0) -> 16662 | AB32: =ROUND(+'Res .95+% Res Furnace - NEW'!AB32+'Res .95+% Res Furnace - Replace'!AB32+'Programmable Tstats - Tier 1'!AB32+'Programmable Tstats - Tier 2'!AB32+'Residential Energy Assessments'!AB32+'Comm 95+% Furnace - NEW'!AB32+'Comm 95+% Furnace - Replace'!AB32+'Comm Custom'!AB32,0) -> 24444 | AE32: 2038 | AF32: 29768 | AG32: 11338 | AH32: 41106 | AJ32: 0 | AK32: 0 | AL32: 0 | AN32: 41106 | AQ32: 2038 | AR32: 29768 | AS32: 11338 | AU32: =ROUND(+'Res .95+% Res Furnace - NEW'!AU32+'Res .95+% Res Furnace - Replace'!AU32+'Programmable Tstats - Tier 1'!AU32+'Programmable Tstats - Tier 2'!AU32+'Residential Energy Assessments'!AU32+'Comm 95+% Furnace - NEW'!AU32+'Comm 95+% Furnace - Replace'!AU32+'Comm Custom'!AU32,0) -> 20987 | AW32: =ROUND(+'Res .95+% Res Furnace - NEW'!AW32+'Res .95+% Res Furnace - Replace'!AW32+'Programmable Tstats - Tier 1'!AW32+'Programmable Tstats - Tier 2'!AW32+'Residential Energy Assessments'!AW32+'Comm 95+% Furnace - NEW'!AW32+'Comm 95+% Furnace - Replace'!AW32+'Comm Custom'!AW32,0) -> 3555 | AZ32: 65648 | BB32: =ROUND(+'Res .95+% Res Furnace - NEW'!BB32+'Res .95+% Res Furnace - Replace'!BB32+'Programmable Tstats - Tier 1'!BB32+'Programmable Tstats - Tier 2'!BB32+'Residential Energy Assessments'!BB32+'Comm 95+% Furnace - NEW'!BB32+'Comm 95+% Furnace - Replace'!BB32+'Comm Custom'!BB32,0) -> 0 | BC32: =ROUND(+'Res .95+% Res Furnace - NEW'!BC32+'Res .95+% Res Furnace - Replace'!BC32+'Programmable Tstats - Tier 1'!BC32+'Programmable Tstats - Tier 2'!BC32+'Residential Energy Assessments'!BC32+'Comm 95+% Furnace - NEW'!BC32+'Comm 95+% Furnace - Replace'!BC32+'Comm Custom'!BC32,0) -> 0 | BD32: 0 | BE32: 65648 | BH32: 2038 | BI32: =ROUND(+'Res .95+% Res Furnace - NEW'!BI32+'Res .95+% Res Furnace - Replace'!BI32+'Programmable Tstats - Tier 1'!BI32+'Programmable Tstats - Tier 2'!BI32+'Residential Energy Assessments'!BI32+'Comm 95+% Furnace - NEW'!BI32+'Comm 95+% Furnace - Replace'!BI32+'Comm Custom'!BI32,0) -> 0 | BJ32: =ROUND(+'Res .95+% Res Furnace - NEW'!BJ32+'Res .95+% Res Furnace - Replace'!BJ32+'Programmable Tstats - Tier 1'!BJ32+'Programmable Tstats - Tier 2'!BJ32+'Residential Energy Assessments'!BJ32+'Comm 95+% Furnace - NEW'!BJ32+'Comm 95+% Furnace - Replace'!BJ32+'Comm Custom'!BJ32,0) -> 6370 | BL32: =ROUND(+'Res .95+% Res Furnace - NEW'!BL32+'Res .95+% Res Furnace - Replace'!BL32+'Programmable Tstats - Tier 1'!BL32+'Programmable Tstats - Tier 2'!BL32+'Residential Energy Assessments'!BL32+'Comm 95+% Furnace - NEW'!BL32+'Comm 95+% Furnace - Replace'!BL32+'Comm Custom'!BL32,0) -> 71403 | BN32: =ROUND(+'Res .95+% Res Furnace - NEW'!BN32+'Res .95+% Res Furnace - Replace'!BN32+'Programmable Tstats - Tier 1'!BN32+'Programmable Tstats - Tier 2'!BN32+'Residential Energy Assessments'!BN32+'Comm 95+% Furnace - NEW'!BN32+'Comm 95+% Furnace - Replace'!BN32+'Comm Custom'!BN32,0) -> 88028 | BP32: 159431 | BR32: =ROUND(+'Res .95+% Res Furnace - NEW'!BR32+'Res .95+% Res Furnace - Replace'!BR32+'Programmable Tstats - Tier 1'!BR32+'Programmable Tstats - Tier 2'!BR32+'Residential Energy Assessments'!BR32+'Comm 95+% Furnace - NEW'!BR32+'Comm 95+% Furnace - Replace'!BR32+'Comm Custom'!BR32,0) -> 0 | BT32: 159431 | BW32: 2038 | BX32: 29768 | BY32: 11338 | BZ32: 20987 | CA32: 62093 | CC32: 0 | CD32: 0 | CE32: 0 | CG32: 62093 | DB32: =$J20 -> 6
A33: 9) Gas Environmental Damage Factor = | J33: 19 | L33: 2039 | M33: =ROUND(+'Res .95+% Res Furnace - NEW'!M33+'Res .95+% Res Furnace - Replace'!M33+'Programmable Tstats - Tier 1'!M33+'Programmable Tstats - Tier 2'!M33+'Residential Energy Assessments'!M33+'Comm 95+% Furnace - NEW'!M33+'Comm 95+% Furnace - Replace'!M33+'Comm Custom'!M33,0) -> 6370 | O33: =ROUND(+'Res .95+% Res Furnace - NEW'!O33+'Res .95+% Res Furnace - Replace'!O33+'Programmable Tstats - Tier 1'!O33+'Programmable Tstats - Tier 2'!O33+'Residential Energy Assessments'!O33+'Comm 95+% Furnace - NEW'!O33+'Comm 95+% Furnace - Replace'!O33+'Comm Custom'!O33,0) -> 30812 | Q33: =ROUND(+'Res .95+% Res Furnace - NEW'!Q33+'Res .95+% Res Furnace - Replace'!Q33+'Programmable Tstats - Tier 1'!Q33+'Programmable Tstats - Tier 2'!Q33+'Residential Energy Assessments'!Q33+'Comm 95+% Furnace - NEW'!Q33+'Comm 95+% Furnace - Replace'!Q33+'Comm Custom'!Q33,0) -> 0 | R33: =ROUND(+'Res .95+% Res Furnace - NEW'!R33+'Res .95+% Res Furnace - Replace'!R33+'Programmable Tstats - Tier 1'!R33+'Programmable Tstats - Tier 2'!R33+'Residential Energy Assessments'!R33+'Comm 95+% Furnace - NEW'!R33+'Comm 95+% Furnace - Replace'!R33+'Comm Custom'!R33,0) -> 30812 | S33: =ROUND(+'Res .95+% Res Furnace - NEW'!S33+'Res .95+% Res Furnace - Replace'!S33+'Programmable Tstats - Tier 1'!S33+'Programmable Tstats - Tier 2'!S33+'Residential Energy Assessments'!S33+'Comm 95+% Furnace - NEW'!S33+'Comm 95+% Furnace - Replace'!S33+'Comm Custom'!S33,0) -> 64 | U33: =ROUND(+'Res .95+% Res Furnace - NEW'!U33+'Res .95+% Res Furnace - Replace'!U33+'Programmable Tstats - Tier 1'!U33+'Programmable Tstats - Tier 2'!U33+'Residential Energy Assessments'!U33+'Comm 95+% Furnace - NEW'!U33+'Comm 95+% Furnace - Replace'!U33+'Comm Custom'!U33,0) -> 11466 | V33: =ROUND(+'Res .95+% Res Furnace - NEW'!V33+'Res .95+% Res Furnace - Replace'!V33+'Programmable Tstats - Tier 1'!V33+'Programmable Tstats - Tier 2'!V33+'Residential Energy Assessments'!V33+'Comm 95+% Furnace - NEW'!V33+'Comm 95+% Furnace - Replace'!V33+'Comm Custom'!V33,0) -> 42278 | X33: =ROUND(+'Res .95+% Res Furnace - NEW'!X33+'Res .95+% Res Furnace - Replace'!X33+'Programmable Tstats - Tier 1'!X33+'Programmable Tstats - Tier 2'!X33+'Residential Energy Assessments'!X33+'Comm 95+% Furnace - NEW'!X33+'Comm 95+% Furnace - Replace'!X33+'Comm Custom'!X33,0) -> 17249 | Y33: =ROUND(+'Res .95+% Res Furnace - NEW'!Y33+'Res .95+% Res Furnace - Replace'!Y33+'Programmable Tstats - Tier 1'!Y33+'Programmable Tstats - Tier 2'!Y33+'Residential Energy Assessments'!Y33+'Comm 95+% Furnace - NEW'!Y33+'Comm 95+% Furnace - Replace'!Y33+'Comm Custom'!Y33,0) -> 0 | Z33: =ROUND(+'Res .95+% Res Furnace - NEW'!Z33+'Res .95+% Res Furnace - Replace'!Z33+'Programmable Tstats - Tier 1'!Z33+'Programmable Tstats - Tier 2'!Z33+'Residential Energy Assessments'!Z33+'Comm 95+% Furnace - NEW'!Z33+'Comm 95+% Furnace - Replace'!Z33+'Comm Custom'!Z33,0) -> 0 | AA33: =ROUND(+'Res .95+% Res Furnace - NEW'!AA33+'Res .95+% Res Furnace - Replace'!AA33+'Programmable Tstats - Tier 1'!AA33+'Programmable Tstats - Tier 2'!AA33+'Residential Energy Assessments'!AA33+'Comm 95+% Furnace - NEW'!AA33+'Comm 95+% Furnace - Replace'!AA33+'Comm Custom'!AA33,0) -> 17249 | AB33: =ROUND(+'Res .95+% Res Furnace - NEW'!AB33+'Res .95+% Res Furnace - Replace'!AB33+'Programmable Tstats - Tier 1'!AB33+'Programmable Tstats - Tier 2'!AB33+'Residential Energy Assessments'!AB33+'Comm 95+% Furnace - NEW'!AB33+'Comm 95+% Furnace - Replace'!AB33+'Comm Custom'!AB33,0) -> 25029 | AE33: 2039 | AF33: 30812 | AG33: 11466 | AH33: 42278 | AJ33: 0 | AK33: 0 | AL33: 0 | AN33: 42278 | AQ33: 2039 | AR33: 30812 | AS33: 11466 | AU33: =ROUND(+'Res .95+% Res Furnace - NEW'!AU33+'Res .95+% Res Furnace - Replace'!AU33+'Programmable Tstats - Tier 1'!AU33+'Programmable Tstats - Tier 2'!AU33+'Residential Energy Assessments'!AU33+'Comm 95+% Furnace - NEW'!AU33+'Comm 95+% Furnace - Replace'!AU33+'Comm Custom'!AU33,0) -> 21368 | AW33: =ROUND(+'Res .95+% Res Furnace - NEW'!AW33+'Res .95+% Res Furnace - Replace'!AW33+'Programmable Tstats - Tier 1'!AW33+'Programmable Tstats - Tier 2'!AW33+'Residential Energy Assessments'!AW33+'Comm 95+% Furnace - NEW'!AW33+'Comm 95+% Furnace - Replace'!AW33+'Comm Custom'!AW33,0) -> 3631 | AZ33: 67277 | BB33: =ROUND(+'Res .95+% Res Furnace - NEW'!BB33+'Res .95+% Res Furnace - Replace'!BB33+'Programmable Tstats - Tier 1'!BB33+'Programmable Tstats - Tier 2'!BB33+'Residential Energy Assessments'!BB33+'Comm 95+% Furnace - NEW'!BB33+'Comm 95+% Furnace - Replace'!BB33+'Comm Custom'!BB33,0) -> 0 | BC33: =ROUND(+'Res .95+% Res Furnace - NEW'!BC33+'Res .95+% Res Furnace - Replace'!BC33+'Programmable Tstats - Tier 1'!BC33+'Programmable Tstats - Tier 2'!BC33+'Residential Energy Assessments'!BC33+'Comm 95+% Furnace - NEW'!BC33+'Comm 95+% Furnace - Replace'!BC33+'Comm Custom'!BC33,0) -> 0 | BD33: 0 | BE33: 67277 | BH33: 2039 | BI33: =ROUND(+'Res .95+% Res Furnace - NEW'!BI33+'Res .95+% Res Furnace - Replace'!BI33+'Programmable Tstats - Tier 1'!BI33+'Programmable Tstats - Tier 2'!BI33+'Residential Energy Assessments'!BI33+'Comm 95+% Furnace - NEW'!BI33+'Comm 95+% Furnace - Replace'!BI33+'Comm Custom'!BI33,0) -> 0 | BJ33: =ROUND(+'Res .95+% Res Furnace - NEW'!BJ33+'Res .95+% Res Furnace - Replace'!BJ33+'Programmable Tstats - Tier 1'!BJ33+'Programmable Tstats - Tier 2'!BJ33+'Residential Energy Assessments'!BJ33+'Comm 95+% Furnace - NEW'!BJ33+'Comm 95+% Furnace - Replace'!BJ33+'Comm Custom'!BJ33,0) -> 6370 | BL33: =ROUND(+'Res .95+% Res Furnace - NEW'!BL33+'Res .95+% Res Furnace - Replace'!BL33+'Programmable Tstats - Tier 1'!BL33+'Programmable Tstats - Tier 2'!BL33+'Residential Energy Assessments'!BL33+'Comm 95+% Furnace - NEW'!BL33+'Comm 95+% Furnace - Replace'!BL33+'Comm Custom'!BL33,0) -> 73903 | BN33: =ROUND(+'Res .95+% Res Furnace - NEW'!BN33+'Res .95+% Res Furnace - Replace'!BN33+'Programmable Tstats - Tier 1'!BN33+'Programmable Tstats - Tier 2'!BN33+'Residential Energy Assessments'!BN33+'Comm 95+% Furnace - NEW'!BN33+'Comm 95+% Furnace - Replace'!BN33+'Comm Custom'!BN33,0) -> 91081 | BP33: 164984 | BR33: =ROUND(+'Res .95+% Res Furnace - NEW'!BR33+'Res .95+% Res Furnace - Replace'!BR33+'Programmable Tstats - Tier 1'!BR33+'Programmable Tstats - Tier 2'!BR33+'Residential Energy Assessments'!BR33+'Comm 95+% Furnace - NEW'!BR33+'Comm 95+% Furnace - Replace'!BR33+'Comm Custom'!BR33,0) -> 0 | BT33: 164984 | BW33: 2039 | BX33: 30812 | BY33: 11466 | BZ33: 21368 | CA33: 63646 | CC33: 0 | CD33: 0 | CE33: 0 | CG33: 63646
A34: Escalation Rate = | E34: 25) Incentive/Participant = | J34: 20 | L34: 2040 | M34: =ROUND(+'Res .95+% Res Furnace - NEW'!M34+'Res .95+% Res Furnace - Replace'!M34+'Programmable Tstats - Tier 1'!M34+'Programmable Tstats - Tier 2'!M34+'Residential Energy Assessments'!M34+'Comm 95+% Furnace - NEW'!M34+'Comm 95+% Furnace - Replace'!M34+'Comm Custom'!M34,0) -> 0 | O34: =ROUND(+'Res .95+% Res Furnace - NEW'!O34+'Res .95+% Res Furnace - Replace'!O34+'Programmable Tstats - Tier 1'!O34+'Programmable Tstats - Tier 2'!O34+'Residential Energy Assessments'!O34+'Comm 95+% Furnace - NEW'!O34+'Comm 95+% Furnace - Replace'!O34+'Comm Custom'!O34,0) -> 0 | Q34: =ROUND(+'Res .95+% Res Furnace - NEW'!Q34+'Res .95+% Res Furnace - Replace'!Q34+'Programmable Tstats - Tier 1'!Q34+'Programmable Tstats - Tier 2'!Q34+'Residential Energy Assessments'!Q34+'Comm 95+% Furnace - NEW'!Q34+'Comm 95+% Furnace - Replace'!Q34+'Comm Custom'!Q34,0) -> 0 | R34: =ROUND(+'Res .95+% Res Furnace - NEW'!R34+'Res .95+% Res Furnace - Replace'!R34+'Programmable Tstats - Tier 1'!R34+'Programmable Tstats - Tier 2'!R34+'Residential Energy Assessments'!R34+'Comm 95+% Furnace - NEW'!R34+'Comm 95+% Furnace - Replace'!R34+'Comm Custom'!R34,0) -> 0 | S34: =ROUND(+'Res .95+% Res Furnace - NEW'!S34+'Res .95+% Res Furnace - Replace'!S34+'Programmable Tstats - Tier 1'!S34+'Programmable Tstats - Tier 2'!S34+'Residential Energy Assessments'!S34+'Comm 95+% Furnace - NEW'!S34+'Comm 95+% Furnace - Replace'!S34+'Comm Custom'!S34,0) -> 0 | U34: =ROUND(+'Res .95+% Res Furnace - NEW'!U34+'Res .95+% Res Furnace - Replace'!U34+'Programmable Tstats - Tier 1'!U34+'Programmable Tstats - Tier 2'!U34+'Residential Energy Assessments'!U34+'Comm 95+% Furnace - NEW'!U34+'Comm 95+% Furnace - Replace'!U34+'Comm Custom'!U34,0) -> 0 | V34: =ROUND(+'Res .95+% Res Furnace - NEW'!V34+'Res .95+% Res Furnace - Replace'!V34+'Programmable Tstats - Tier 1'!V34+'Programmable Tstats - Tier 2'!V34+'Residential Energy Assessments'!V34+'Comm 95+% Furnace - NEW'!V34+'Comm 95+% Furnace - Replace'!V34+'Comm Custom'!V34,0) -> 0 | X34: =ROUND(+'Res .95+% Res Furnace - NEW'!X34+'Res .95+% Res Furnace - Replace'!X34+'Programmable Tstats - Tier 1'!X34+'Programmable Tstats - Tier 2'!X34+'Residential Energy Assessments'!X34+'Comm 95+% Furnace - NEW'!X34+'Comm 95+% Furnace - Replace'!X34+'Comm Custom'!X34,0) -> 0 | Y34: =ROUND(+'Res .95+% Res Furnace - NEW'!Y34+'Res .95+% Res Furnace - Replace'!Y34+'Programmable Tstats - Tier 1'!Y34+'Programmable Tstats - Tier 2'!Y34+'Residential Energy Assessments'!Y34+'Comm 95+% Furnace - NEW'!Y34+'Comm 95+% Furnace - Replace'!Y34+'Comm Custom'!Y34,0) -> 0 | Z34: =ROUND(+'Res .95+% Res Furnace - NEW'!Z34+'Res .95+% Res Furnace - Replace'!Z34+'Programmable Tstats - Tier 1'!Z34+'Programmable Tstats - Tier 2'!Z34+'Residential Energy Assessments'!Z34+'Comm 95+% Furnace - NEW'!Z34+'Comm 95+% Furnace - Replace'!Z34+'Comm Custom'!Z34,0) -> 0 | AA34: =ROUND(+'Res .95+% Res Furnace - NEW'!AA34+'Res .95+% Res Furnace - Replace'!AA34+'Programmable Tstats - Tier 1'!AA34+'Programmable Tstats - Tier 2'!AA34+'Residential Energy Assessments'!AA34+'Comm 95+% Furnace - NEW'!AA34+'Comm 95+% Furnace - Replace'!AA34+'Comm Custom'!AA34,0) -> 0 | AB34: =ROUND(+'Res .95+% Res Furnace - NEW'!AB34+'Res .95+% Res Furnace - Replace'!AB34+'Programmable Tstats - Tier 1'!AB34+'Programmable Tstats - Tier 2'!AB34+'Residential Energy Assessments'!AB34+'Comm 95+% Furnace - NEW'!AB34+'Comm 95+% Furnace - Replace'!AB34+'Comm Custom'!AB34,0) -> 0 | AE34: 2040 | AF34: 0 | AG34: 0 | AH34: 0 | AJ34: 0 | AK34: 0 | AL34: 0 | AN34: 0 | AQ34: 2040 | AR34: 0 | AS34: 0 | AU34: =ROUND(+'Res .95+% Res Furnace - NEW'!AU34+'Res .95+% Res Furnace - Replace'!AU34+'Programmable Tstats - Tier 1'!AU34+'Programmable Tstats - Tier 2'!AU34+'Residential Energy Assessments'!AU34+'Comm 95+% Furnace - NEW'!AU34+'Comm 95+% Furnace - Replace'!AU34+'Comm Custom'!AU34,0) -> 0 | AW34: =ROUND(+'Res .95+% Res Furnace - NEW'!AW34+'Res .95+% Res Furnace - Replace'!AW34+'Programmable Tstats - Tier 1'!AW34+'Programmable Tstats - Tier 2'!AW34+'Residential Energy Assessments'!AW34+'Comm 95+% Furnace - NEW'!AW34+'Comm 95+% Furnace - Replace'!AW34+'Comm Custom'!AW34,0) -> 0 | AZ34: 0 | BB34: =ROUND(+'Res .95+% Res Furnace - NEW'!BB34+'Res .95+% Res Furnace - Replace'!BB34+'Programmable Tstats - Tier 1'!BB34+'Programmable Tstats - Tier 2'!BB34+'Residential Energy Assessments'!BB34+'Comm 95+% Furnace - NEW'!BB34+'Comm 95+% Furnace - Replace'!BB34+'Comm Custom'!BB34,0) -> 0 | BC34: =ROUND(+'Res .95+% Res Furnace - NEW'!BC34+'Res .95+% Res Furnace - Replace'!BC34+'Programmable Tstats - Tier 1'!BC34+'Programmable Tstats - Tier 2'!BC34+'Residential Energy Assessments'!BC34+'Comm 95+% Furnace - NEW'!BC34+'Comm 95+% Furnace - Replace'!BC34+'Comm Custom'!BC34,0) -> 0 | BD34: 0 | BE34: 0 | BH34: 2040 | BI34: =ROUND(+'Res .95+% Res Furnace - NEW'!BI34+'Res .95+% Res Furnace - Replace'!BI34+'Programmable Tstats - Tier 1'!BI34+'Programmable Tstats - Tier 2'!BI34+'Residential Energy Assessments'!BI34+'Comm 95+% Furnace - NEW'!BI34+'Comm 95+% Furnace - Replace'!BI34+'Comm Custom'!BI34,0) -> 0 | BJ34: =ROUND(+'Res .95+% Res Furnace - NEW'!BJ34+'Res .95+% Res Furnace - Replace'!BJ34+'Programmable Tstats - Tier 1'!BJ34+'Programmable Tstats - Tier 2'!BJ34+'Residential Energy Assessments'!BJ34+'Comm 95+% Furnace - NEW'!BJ34+'Comm 95+% Furnace - Replace'!BJ34+'Comm Custom'!BJ34,0) -> 0 | BL34: =ROUND(+'Res .95+% Res Furnace - NEW'!BL34+'Res .95+% Res Furnace - Replace'!BL34+'Programmable Tstats - Tier 1'!BL34+'Programmable Tstats - Tier 2'!BL34+'Residential Energy Assessments'!BL34+'Comm 95+% Furnace - NEW'!BL34+'Comm 95+% Furnace - Replace'!BL34+'Comm Custom'!BL34,0) -> 0 | BN34: =ROUND(+'Res .95+% Res Furnace - NEW'!BN34+'Res .95+% Res Furnace - Replace'!BN34+'Programmable Tstats - Tier 1'!BN34+'Programmable Tstats - Tier 2'!BN34+'Residential Energy Assessments'!BN34+'Comm 95+% Furnace - NEW'!BN34+'Comm 95+% Furnace - Replace'!BN34+'Comm Custom'!BN34,0) -> 0 | BP34: 0 | BR34: =ROUND(+'Res .95+% Res Furnace - NEW'!BR34+'Res .95+% Res Furnace - Replace'!BR34+'Programmable Tstats - Tier 1'!BR34+'Programmable Tstats - Tier 2'!BR34+'Residential Energy Assessments'!BR34+'Comm 95+% Furnace - NEW'!BR34+'Comm 95+% Furnace - Replace'!BR34+'Comm Custom'!BR34,0) -> 0 | BT34: 0 | BW34: 2040 | BX34: 0 | BY34: 0 | BZ34: 0 | CA34: 0 | CC34: 0 | CD34: 0 | CE34: 0 | CG34: 0
J35: 21 | L35: 2041 | M35: =ROUND(+'Res .95+% Res Furnace - NEW'!M35+'Res .95+% Res Furnace - Replace'!M35+'Programmable Tstats - Tier 1'!M35+'Programmable Tstats - Tier 2'!M35+'Residential Energy Assessments'!M35+'Comm 95+% Furnace - NEW'!M35+'Comm 95+% Furnace - Replace'!M35+'Comm Custom'!M35,0) -> 0 | O35: =ROUND(+'Res .95+% Res Furnace - NEW'!O35+'Res .95+% Res Furnace - Replace'!O35+'Programmable Tstats - Tier 1'!O35+'Programmable Tstats - Tier 2'!O35+'Residential Energy Assessments'!O35+'Comm 95+% Furnace - NEW'!O35+'Comm 95+% Furnace - Replace'!O35+'Comm Custom'!O35,0) -> 0 | Q35: =ROUND(+'Res .95+% Res Furnace - NEW'!Q35+'Res .95+% Res Furnace - Replace'!Q35+'Programmable Tstats - Tier 1'!Q35+'Programmable Tstats - Tier 2'!Q35+'Residential Energy Assessments'!Q35+'Comm 95+% Furnace - NEW'!Q35+'Comm 95+% Furnace - Replace'!Q35+'Comm Custom'!Q35,0) -> 0 | R35: =ROUND(+'Res .95+% Res Furnace - NEW'!R35+'Res .95+% Res Furnace - Replace'!R35+'Programmable Tstats - Tier 1'!R35+'Programmable Tstats - Tier 2'!R35+'Residential Energy Assessments'!R35+'Comm 95+% Furnace - NEW'!R35+'Comm 95+% Furnace - Replace'!R35+'Comm Custom'!R35,0) -> 0 | S35: =ROUND(+'Res .95+% Res Furnace - NEW'!S35+'Res .95+% Res Furnace - Replace'!S35+'Programmable Tstats - Tier 1'!S35+'Programmable Tstats - Tier 2'!S35+'Residential Energy Assessments'!S35+'Comm 95+% Furnace - NEW'!S35+'Comm 95+% Furnace - Replace'!S35+'Comm Custom'!S35,0) -> 0 | U35: =ROUND(+'Res .95+% Res Furnace - NEW'!U35+'Res .95+% Res Furnace - Replace'!U35+'Programmable Tstats - Tier 1'!U35+'Programmable Tstats - Tier 2'!U35+'Residential Energy Assessments'!U35+'Comm 95+% Furnace - NEW'!U35+'Comm 95+% Furnace - Replace'!U35+'Comm Custom'!U35,0) -> 0 | V35: =ROUND(+'Res .95+% Res Furnace - NEW'!V35+'Res .95+% Res Furnace - Replace'!V35+'Programmable Tstats - Tier 1'!V35+'Programmable Tstats - Tier 2'!V35+'Residential Energy Assessments'!V35+'Comm 95+% Furnace - NEW'!V35+'Comm 95+% Furnace - Replace'!V35+'Comm Custom'!V35,0) -> 0 | X35: =ROUND(+'Res .95+% Res Furnace - NEW'!X35+'Res .95+% Res Furnace - Replace'!X35+'Programmable Tstats - Tier 1'!X35+'Programmable Tstats - Tier 2'!X35+'Residential Energy Assessments'!X35+'Comm 95+% Furnace - NEW'!X35+'Comm 95+% Furnace - Replace'!X35+'Comm Custom'!X35,0) -> 0 | Y35: =ROUND(+'Res .95+% Res Furnace - NEW'!Y35+'Res .95+% Res Furnace - Replace'!Y35+'Programmable Tstats - Tier 1'!Y35+'Programmable Tstats - Tier 2'!Y35+'Residential Energy Assessments'!Y35+'Comm 95+% Furnace - NEW'!Y35+'Comm 95+% Furnace - Replace'!Y35+'Comm Custom'!Y35,0) -> 0 | Z35: =ROUND(+'Res .95+% Res Furnace - NEW'!Z35+'Res .95+% Res Furnace - Replace'!Z35+'Programmable Tstats - Tier 1'!Z35+'Programmable Tstats - Tier 2'!Z35+'Residential Energy Assessments'!Z35+'Comm 95+% Furnace - NEW'!Z35+'Comm 95+% Furnace - Replace'!Z35+'Comm Custom'!Z35,0) -> 0 | AA35: =ROUND(+'Res .95+% Res Furnace - NEW'!AA35+'Res .95+% Res Furnace - Replace'!AA35+'Programmable Tstats - Tier 1'!AA35+'Programmable Tstats - Tier 2'!AA35+'Residential Energy Assessments'!AA35+'Comm 95+% Furnace - NEW'!AA35+'Comm 95+% Furnace - Replace'!AA35+'Comm Custom'!AA35,0) -> 0 | AB35: =ROUND(+'Res .95+% Res Furnace - NEW'!AB35+'Res .95+% Res Furnace - Replace'!AB35+'Programmable Tstats - Tier 1'!AB35+'Programmable Tstats - Tier 2'!AB35+'Residential Energy Assessments'!AB35+'Comm 95+% Furnace - NEW'!AB35+'Comm 95+% Furnace - Replace'!AB35+'Comm Custom'!AB35,0) -> 0 | AE35: 2041 | AF35: =+R35 -> 0 | AG35: =+U35 -> 0 | AH35: =+AG35+AF35 -> 0 | AJ35: =ROUND(Y35,0) -> 0 | AK35: =ROUND(Z35,0) -> 0 | AL35: =SUM(AJ35:AK35) -> 0 | AN35: =+AH35-AL35 -> 0 | AQ35: 2041 | AR35: =AF35 -> 0 | AS35: =+AG35 -> 0 | AU35: =ROUND(+'Res .95+% Res Furnace - NEW'!AU35+'Res .95+% Res Furnace - Replace'!AU35+'Programmable Tstats - Tier 1'!AU35+'Programmable Tstats - Tier 2'!AU35+'Residential Energy Assessments'!AU35+'Comm 95+% Furnace - NEW'!AU35+'Comm 95+% Furnace - Replace'!AU35+'Comm Custom'!AU35,0) -> 0 | AW35: =ROUND(+'Res .95+% Res Furnace - NEW'!AW35+'Res .95+% Res Furnace - Replace'!AW35+'Programmable Tstats - Tier 1'!AW35+'Programmable Tstats - Tier 2'!AW35+'Residential Energy Assessments'!AW35+'Comm 95+% Furnace - NEW'!AW35+'Comm 95+% Furnace - Replace'!AW35+'Comm Custom'!AW35,0) -> 0 | AZ35: =ROUND(AR35+AS35+AU35+AW35+AY35,0) -> 0 | BB35: =ROUND(+'Res .95+% Res Furnace - NEW'!BB35+'Res .95+% Res Furnace - Replace'!BB35+'Programmable Tstats - Tier 1'!BB35+'Programmable Tstats - Tier 2'!BB35+'Residential Energy Assessments'!BB35+'Comm 95+% Furnace - NEW'!BB35+'Comm 95+% Furnace - Replace'!BB35+'Comm Custom'!BB35,0) -> 0 | BC35: =ROUND(+'Res .95+% Res Furnace - NEW'!BC35+'Res .95+% Res Furnace - Replace'!BC35+'Programmable Tstats - Tier 1'!BC35+'Programmable Tstats - Tier 2'!BC35+'Residential Energy Assessments'!BC35+'Comm 95+% Furnace - NEW'!BC35+'Comm 95+% Furnace - Replace'!BC35+'Comm Custom'!BC35,0) -> 0 | BD35: =BB35+BC35 -> 0 | BE35: =AZ35-BD35 -> 0 | BH35: 2041 | BI35: =ROUND(+'Res .95+% Res Furnace - NEW'!BI35+'Res .95+% Res Furnace - Replace'!BI35+'Programmable Tstats - Tier 1'!BI35+'Programmable Tstats - Tier 2'!BI35+'Residential Energy Assessments'!BI35+'Comm 95+% Furnace - NEW'!BI35+'Comm 95+% Furnace - Replace'!BI35+'Comm Custom'!BI35,0) -> 0 | BJ35: =ROUND(+'Res .95+% Res Furnace - NEW'!BJ35+'Res .95+% Res Furnace - Replace'!BJ35+'Programmable Tstats - Tier 1'!BJ35+'Programmable Tstats - Tier 2'!BJ35+'Residential Energy Assessments'!BJ35+'Comm 95+% Furnace - NEW'!BJ35+'Comm 95+% Furnace - Replace'!BJ35+'Comm Custom'!BJ35,0) -> 0 | BL35: =ROUND(+'Res .95+% Res Furnace - NEW'!BL35+'Res .95+% Res Furnace - Replace'!BL35+'Programmable Tstats - Tier 1'!BL35+'Programmable Tstats - Tier 2'!BL35+'Residential Energy Assessments'!BL35+'Comm 95+% Furnace - NEW'!BL35+'Comm 95+% Furnace - Replace'!BL35+'Comm Custom'!BL35,0) -> 0 | BN35: =ROUND(+'Res .95+% Res Furnace - NEW'!BN35+'Res .95+% Res Furnace - Replace'!BN35+'Programmable Tstats - Tier 1'!BN35+'Programmable Tstats - Tier 2'!BN35+'Residential Energy Assessments'!BN35+'Comm 95+% Furnace - NEW'!BN35+'Comm 95+% Furnace - Replace'!BN35+'Comm Custom'!BN35,0) -> 0 | BP35: =BI35+BL35+BN35+BO35 -> 0 | BR35: =ROUND(+'Res .95+% Res Furnace - NEW'!BR35+'Res .95+% Res Furnace - Replace'!BR35+'Programmable Tstats - Tier 1'!BR35+'Programmable Tstats - Tier 2'!BR35+'Residential Energy Assessments'!BR35+'Comm 95+% Furnace - NEW'!BR35+'Comm 95+% Furnace - Replace'!BR35+'Comm Custom'!BR35,0) -> 0 | BT35: =BP35-BR35 -> 0 | BW35: 2041 | BX35: 0 | BY35: =U35 -> 0 | BZ35: =AU35 -> 0 | CA35: =SUM(BX35:BZ35) -> 0 | CC35: =BB35 -> 0 | CD35: =BC35 -> 0 | CE35: =SUM(CC35:CD35) -> 0 | CG35: =CA35-CE35 -> 0 | DB35: =$J21 -> 7
A36: 10) Non Gas Fuel Environmental Damage Factor = | E36: 26) Distribution Delivery Charge | J36: 22 | L36: 2042 | M36: =ROUND(+'Res .95+% Res Furnace - NEW'!M36+'Res .95+% Res Furnace - Replace'!M36+'Programmable Tstats - Tier 1'!M36+'Programmable Tstats - Tier 2'!M36+'Residential Energy Assessments'!M36+'Comm 95+% Furnace - NEW'!M36+'Comm 95+% Furnace - Replace'!M36+'Comm Custom'!M36,0) -> 0 | O36: =ROUND(+'Res .95+% Res Furnace - NEW'!O36+'Res .95+% Res Furnace - Replace'!O36+'Programmable Tstats - Tier 1'!O36+'Programmable Tstats - Tier 2'!O36+'Residential Energy Assessments'!O36+'Comm 95+% Furnace - NEW'!O36+'Comm 95+% Furnace - Replace'!O36+'Comm Custom'!O36,0) -> 0 | Q36: =ROUND(+'Res .95+% Res Furnace - NEW'!Q36+'Res .95+% Res Furnace - Replace'!Q36+'Programmable Tstats - Tier 1'!Q36+'Programmable Tstats - Tier 2'!Q36+'Residential Energy Assessments'!Q36+'Comm 95+% Furnace - NEW'!Q36+'Comm 95+% Furnace - Replace'!Q36+'Comm Custom'!Q36,0) -> 0 | R36: =ROUND(+'Res .95+% Res Furnace - NEW'!R36+'Res .95+% Res Furnace - Replace'!R36+'Programmable Tstats - Tier 1'!R36+'Programmable Tstats - Tier 2'!R36+'Residential Energy Assessments'!R36+'Comm 95+% Furnace - NEW'!R36+'Comm 95+% Furnace - Replace'!R36+'Comm Custom'!R36,0) -> 0 | S36: =ROUND(+'Res .95+% Res Furnace - NEW'!S36+'Res .95+% Res Furnace - Replace'!S36+'Programmable Tstats - Tier 1'!S36+'Programmable Tstats - Tier 2'!S36+'Residential Energy Assessments'!S36+'Comm 95+% Furnace - NEW'!S36+'Comm 95+% Furnace - Replace'!S36+'Comm Custom'!S36,0) -> 0 | U36: =ROUND(+'Res .95+% Res Furnace - NEW'!U36+'Res .95+% Res Furnace - Replace'!U36+'Programmable Tstats - Tier 1'!U36+'Programmable Tstats - Tier 2'!U36+'Residential Energy Assessments'!U36+'Comm 95+% Furnace - NEW'!U36+'Comm 95+% Furnace - Replace'!U36+'Comm Custom'!U36,0) -> 0 | V36: =ROUND(+'Res .95+% Res Furnace - NEW'!V36+'Res .95+% Res Furnace - Replace'!V36+'Programmable Tstats - Tier 1'!V36+'Programmable Tstats - Tier 2'!V36+'Residential Energy Assessments'!V36+'Comm 95+% Furnace - NEW'!V36+'Comm 95+% Furnace - Replace'!V36+'Comm Custom'!V36,0) -> 0 | X36: =ROUND(+'Res .95+% Res Furnace - NEW'!X36+'Res .95+% Res Furnace - Replace'!X36+'Programmable Tstats - Tier 1'!X36+'Programmable Tstats - Tier 2'!X36+'Residential Energy Assessments'!X36+'Comm 95+% Furnace - NEW'!X36+'Comm 95+% Furnace - Replace'!X36+'Comm Custom'!X36,0) -> 0 | Y36: =ROUND(+'Res .95+% Res Furnace - NEW'!Y36+'Res .95+% Res Furnace - Replace'!Y36+'Programmable Tstats - Tier 1'!Y36+'Programmable Tstats - Tier 2'!Y36+'Residential Energy Assessments'!Y36+'Comm 95+% Furnace - NEW'!Y36+'Comm 95+% Furnace - Replace'!Y36+'Comm Custom'!Y36,0) -> 0 | Z36: =ROUND(+'Res .95+% Res Furnace - NEW'!Z36+'Res .95+% Res Furnace - Replace'!Z36+'Programmable Tstats - Tier 1'!Z36+'Programmable Tstats - Tier 2'!Z36+'Residential Energy Assessments'!Z36+'Comm 95+% Furnace - NEW'!Z36+'Comm 95+% Furnace - Replace'!Z36+'Comm Custom'!Z36,0) -> 0 | AA36: =ROUND(+'Res .95+% Res Furnace - NEW'!AA36+'Res .95+% Res Furnace - Replace'!AA36+'Programmable Tstats - Tier 1'!AA36+'Programmable Tstats - Tier 2'!AA36+'Residential Energy Assessments'!AA36+'Comm 95+% Furnace - NEW'!AA36+'Comm 95+% Furnace - Replace'!AA36+'Comm Custom'!AA36,0) -> 0 | AB36: =ROUND(+'Res .95+% Res Furnace - NEW'!AB36+'Res .95+% Res Furnace - Replace'!AB36+'Programmable Tstats - Tier 1'!AB36+'Programmable Tstats - Tier 2'!AB36+'Residential Energy Assessments'!AB36+'Comm 95+% Furnace - NEW'!AB36+'Comm 95+% Furnace - Replace'!AB36+'Comm Custom'!AB36,0) -> 0 | AE36: 2042 | AF36: 0 | AG36: 0 | AH36: 0 | AJ36: 0 | AK36: 0 | AL36: 0 | AN36: 0 | AQ36: 2042 | AR36: 0 | AS36: 0 | AU36: =ROUND(+'Res .95+% Res Furnace - NEW'!AU36+'Res .95+% Res Furnace - Replace'!AU36+'Programmable Tstats - Tier 1'!AU36+'Programmable Tstats - Tier 2'!AU36+'Residential Energy Assessments'!AU36+'Comm 95+% Furnace - NEW'!AU36+'Comm 95+% Furnace - Replace'!AU36+'Comm Custom'!AU36,0) -> 0 | AW36: =ROUND(+'Res .95+% Res Furnace - NEW'!AW36+'Res .95+% Res Furnace - Replace'!AW36+'Programmable Tstats - Tier 1'!AW36+'Programmable Tstats - Tier 2'!AW36+'Residential Energy Assessments'!AW36+'Comm 95+% Furnace - NEW'!AW36+'Comm 95+% Furnace - Replace'!AW36+'Comm Custom'!AW36,0) -> 0 | AZ36: 0 | BB36: =ROUND(+'Res .95+% Res Furnace - NEW'!BB36+'Res .95+% Res Furnace - Replace'!BB36+'Programmable Tstats - Tier 1'!BB36+'Programmable Tstats - Tier 2'!BB36+'Residential Energy Assessments'!BB36+'Comm 95+% Furnace - NEW'!BB36+'Comm 95+% Furnace - Replace'!BB36+'Comm Custom'!BB36,0) -> 0 | BC36: =ROUND(+'Res .95+% Res Furnace - NEW'!BC36+'Res .95+% Res Furnace - Replace'!BC36+'Programmable Tstats - Tier 1'!BC36+'Programmable Tstats - Tier 2'!BC36+'Residential Energy Assessments'!BC36+'Comm 95+% Furnace - NEW'!BC36+'Comm 95+% Furnace - Replace'!BC36+'Comm Custom'!BC36,0) -> 0 | BD36: 0 | BE36: 0 | BH36: 2042 | BI36: =ROUND(+'Res .95+% Res Furnace - NEW'!BI36+'Res .95+% Res Furnace - Replace'!BI36+'Programmable Tstats - Tier 1'!BI36+'Programmable Tstats - Tier 2'!BI36+'Residential Energy Assessments'!BI36+'Comm 95+% Furnace - NEW'!BI36+'Comm 95+% Furnace - Replace'!BI36+'Comm Custom'!BI36,0) -> 0 | BJ36: =ROUND(+'Res .95+% Res Furnace - NEW'!BJ36+'Res .95+% Res Furnace - Replace'!BJ36+'Programmable Tstats - Tier 1'!BJ36+'Programmable Tstats - Tier 2'!BJ36+'Residential Energy Assessments'!BJ36+'Comm 95+% Furnace - NEW'!BJ36+'Comm 95+% Furnace - Replace'!BJ36+'Comm Custom'!BJ36,0) -> 0 | BL36: =ROUND(+'Res .95+% Res Furnace - NEW'!BL36+'Res .95+% Res Furnace - Replace'!BL36+'Programmable Tstats - Tier 1'!BL36+'Programmable Tstats - Tier 2'!BL36+'Residential Energy Assessments'!BL36+'Comm 95+% Furnace - NEW'!BL36+'Comm 95+% Furnace - Replace'!BL36+'Comm Custom'!BL36,0) -> 0 | BN36: =ROUND(+'Res .95+% Res Furnace - NEW'!BN36+'Res .95+% Res Furnace - Replace'!BN36+'Programmable Tstats - Tier 1'!BN36+'Programmable Tstats - Tier 2'!BN36+'Residential Energy Assessments'!BN36+'Comm 95+% Furnace - NEW'!BN36+'Comm 95+% Furnace - Replace'!BN36+'Comm Custom'!BN36,0) -> 0 | BP36: 0 | BR36: =ROUND(+'Res .95+% Res Furnace - NEW'!BR36+'Res .95+% Res Furnace - Replace'!BR36+'Programmable Tstats - Tier 1'!BR36+'Programmable Tstats - Tier 2'!BR36+'Residential Energy Assessments'!BR36+'Comm 95+% Furnace - NEW'!BR36+'Comm 95+% Furnace - Replace'!BR36+'Comm Custom'!BR36,0) -> 0 | BT36: 0 | BW36: 2042 | BX36: 0 | BY36: 0 | BZ36: 0 | CA36: 0 | CC36: 0 | CD36: 0 | CE36: 0 | CG36: 0
A37: Escalation Rate = | DB37: =$J22 -> 8
E38: 27) Effective Income Tax Rate = | K38: Total = | M38: =SUM(M14:M36) -> 148585 | V38: =SUM(V14:V36) -> 760797 | AA38: =SUM(AA14:AA36) -> 468474 | AB38: =SUM(AB14:AB36) -> 292323 | AD38: Total = | AH38: =SUM(AH14:AH36) -> 760797 | AL38: =SUM(AL14:AL36) -> 186528 | AN38: =SUM(AN14:AN36) -> 574269 | AP38: Total = | AZ38: =SUM(AZ14:AZ36) -> 1148853 | BD38: =SUM(BD14:BD36) -> 475937 | BE38: =SUM(BE14:BE36) -> 672916 | BG38: Total = | BJ38: =SUM(BJ14:BJ36) -> 148585 | BP38: =SUM(BP14:BP36) -> 2757208 | BR38: =SUM(BR14:BR36) -> 463724 | BT38: =SUM(BT14:BT36) -> 2293484 | BZ38: Total = | CA38: =SUM(CA14:CA36) -> 1079950 | CE38: =SUM(CE14:CE36) -> 475937 | CG38: =SUM(CG14:CG36) -> 604013
A39: 11) Participant Discount Rate = | C39: =+'Gas Input Table Summary'!$D$26 -> 0.1032 | E39: (Federal & State Taxes) | T39: NPV = | V39: =ROUND(V14+NPV($C$41,V15:V36),0) -> 414935 | AA39: =ROUND(AA14+NPV($C$41,AA15:AA36),0) -> 337042 | AB39: =ROUND(AB14+NPV($C$41,AB15:AB36),0) -> 77893 | AG39: NPV = | AH39: =ROUND(AH14+NPV($C$41,AH15:AH36),0) -> 414935 | AL39: =ROUND(AL14+NPV($C$41,AL15:AL36),0) -> 186528 | AN39: =+AH39-AL39 -> 228407 | AW39: NPV = | AZ39: =ROUND(AZ14+NPV($C$43,AZ15:AZ36),0) -> 908225 | BD39: =ROUND(BD14+NPV($C$43,BD15:BD36),0) -> 475937 | BE39: =AZ39-BD39 -> 432288 | BN39: NPV = | BP39: =ROUND(BP14+NPV($C$39,BP15:BP36),0) -> 1267645 | BR39: =ROUND(BR14+NPV($C$39,BR15:BR36),0) -> 463724 | BT39: =ROUND(BT14+NPV($C$39,BT15:BT36),0) -> 803921 | BZ39: NPV = | CA39: =ROUND(CA14+NPV($C$41,CA15:CA36),0) -> 580111 | CE39: =ROUND(CE14+NPV($C$41,CE15:CE36),0) -> 475937 | CG39: =ROUND(CG14+NPV($C$41,CG15:CG36),0) -> 104174
DB40: =$J23 -> 9
A41: 12) Utility Discount Rate = | C41: =+'Gas Input Table Summary'!$D$27 -> 0.07216 | E41: Test Results | F41: NPV | G41: B/C | K41: Total NPV = | N41: =AB39 -> 77893 | AD41: Total NPV = | AG41: =AN39 -> 228407 | AP41: Total NPV = | AS41: =BE39 -> 432288 | BG41: Total NPV = | BJ41: =BT39 -> 803921 | BV41: Total NPV = | BY41: =CG39 -> 104174 | DB41: =$J24 -> 10
E42: Ratepayer Impact Measure Test | F42: =N41 -> 77893 | G42: =N42 -> 1.23 | K42: Benefit/Cost Ratio = | N42: =ROUND(V39/AA39,2) -> 1.23 | AD42: Benefit/Cost Ratio = | AG42: =ROUND(AH39/AL39,2) -> 2.22 | AP42: Benefit/Cost Ratio = | AS42: =ROUND(AZ39/BD39,2) -> 1.91 | BG42: Benefit/Cost Ratio = | BJ42: =ROUND(BP39/BR39,20) -> 2.733619567 | BV42: Benefit/Cost Ratio = | BY42: =ROUND(CA39/CE39,2) -> 1.22 | DB42: =$J25 -> 11
A43: 13) Societal Discount Rate = | C43: =+'Gas Input Table Summary'!$D$28 -> 0.0247 | E43: Utility Cost Test | F43: =AG41 -> 228407 | G43: =AG42 -> 2.22 | DB43: =$J26 -> 12
E44: Societal Test | F44: =AS41 -> 432288 | G44: =AS42 -> 1.91 | J44: Worksheet Calculations | BV44: Worksheet Calculations
A45: 14) General Input Data Year = | C45: =+'Gas Input Table Summary'!$D$29 -> 2020 | E45: Participant Test | F45: =BJ41 -> 803921 | G45: =BJ42 -> 2.733619567 | J45: (A) | K45: = Average Dk/Participant Saved (21) x Number of Participants (23) for Project Life (20) | T45: (I) | U45: = (G) x (H) | AD45: Worksheet Calculations | AP45: Worksheet Calculations | BG45: Worksheet Calculations | BV45: (A) | BW45: = Table 1 (F)
E46: Total Resource Cost Test | F46: =BY41 -> 104174 | G46: =BY42 -> 1.22 | J46: (B) | K46: = Commodity Cost (3) escalated | T46: (J) | U46: = (F) + (I) | AD46: (A) | AE46: = Table 1 (F) | AP46: (A) | AQ46: = Table 1 (F) | AW46: (H) | AZ46: = Table 2 (F) | BG46: (A) | BH46: = Table 1 (N) | BL46: (G) | BM46: = (A) + (D) + (F) | BV46: (B) | BW46: = Table 1 (I)
A47: 15) Project Analysis Year 1 = | C47: =+'Total Program Inputs'!C6 -> 2020 | J47: (C) | K47: = (A) x (B) | T47: (K) | U47: = Distribution Delivery Charge (26) escalated. | AD47: (B) | AE47: = Table 1 (I) | AP47: (G) | AQ47: = Table 1 (I) | AW47: (I) | AZ47: = Direct Part. Costs (17) x No. of Part. (23) - Table 1 (N) | BG47: (B) | BH47: = Table 1 (A) | BL47: (H) | BM47: = Direct Participant Costs (17) x Number of Participants (23) | BV47: (C) | BW47: = Table 3 (D)
J48: (D) | K48: = Variable O&M Cost (6), escalated | T48: (L) | U48: = (A) x (K) x (1-Inverse of Tax Rate (27) | AD48: (C) | AE48: = Table 1 (J) | AP48: (C) | AQ48: = Non-Gas Fuel Cost (7), adjusted for losses (8), escalated.. | AW48: (J) | AZ48: = (H) + (I) | BG48: (C) | BH48: = Retail Rate (1) escalated. | BL48: (I) | BM48: = (G) - (H) | BV48: (D) | BW48: = (A) + (B) + (C)
J49: (E) | K49: = (A) x (D) | T49: (M) | U49: = Admin & Operating Costs (16a) | AD49: (D) | AE49: = Table 1 (M) | AP49: (D) | AQ49: = (C) x [Avg. Non-Gas Fuel Units/Part.Saved (22) x No. of Part. (23) | AW49: (K) | AZ49: = (G) - (J) | BG49: (D) | BH49: =(B) x (C) | BV49: (E) | BW49: = Table 3 (H) | DB49: =$J27 -> 13
J50: (F) | K50: = (C) + (E) | T50: (N) | U50: = Incentive Costs (16b) | AD50: (E) | AE50: = Table 1 (N) | AP50: (E) | AQ50: = Gas Environmental Damage Factor (9), escalated | BG50: (E) | BH50: = Non-Gas Fuel Retail Rate (2), escalated. | BV50: (F) | BW50: = Table 3 (I) | DB50: =$J28 -> 14
J51: (G) | K51: = (A) x Peak Reduction Factor (5) | T51: (O) | U51: = (L) + (M) + (N) | AD51: (F) | AE51: = (D) + (E) | AP51: (F) | AQ51: = Table 1 (A) x (E) | BG51: (F) | BH51: = (E) x [Avg. Non-Gas Fuel Units/Part.Saved (22) x No. of Part. (23) | BV51: (G) | BW51: = (E) + (F) | DB51: =$J29 -> 15
J52: (H) | K52: = Demand Cost (4) escalated. | T52: (P) | U52: = (J) - (O) | AD52: (G) | AE52: = (C) - (F) | AP52: (G) | AQ52: = (A) + (B) + (D) + (F) | BV52: (H) | BW52: = (D) - (G)
AB59: =+V57/AA57 -> 

Sheet Res .95+% Res Furnace - NEW
A1: NATURAL GAS CONSERVATION PROGRAMS/DEMAND-SIDE MANAGEMENT | K1: Table 1 | AD1: Table 2 | AP1: Table 3 | BG1: Table 4 | BV1: Table 5
A2: BEN/COST ANALYSIS FOR GAS CONSERVATION | K2: Ratepayer Impact Measure Test | AD2: Utility Cost Test | AP2: Societal Test | BG2: Participant Test | BV2: Total Resource Cost Test
A4: Company: | B4: Montana-Dakota Utilities Co. | K4: Company: | M4: =B4 -> Montana-Dakota Utilities Co. | AD4: Company: | AF4: =B4 -> Montana-Dakota Utilities Co. | AP4: Company: | AR4: =AF4 -> Montana-Dakota Utilities Co. | BH4: Company: | BI4: =AR4 -> Montana-Dakota Utilities Co. | BW4: Company: | BX4: =BI4 -> Montana-Dakota Utilities Co.
A5: Project: | B5: Residential 95+% AFUE Furnace - New | K5: Project: | M5: =$B$5 -> Residential 95+% AFUE Furnace - New | AD5: Project: | AF5: =$B$5 -> Residential 95+% AFUE Furnace - New | AP5: Project: | AR5: =$B$5 -> Residential 95+% AFUE Furnace - New | BH5: Project: | BI5: =$B$5 -> Residential 95+% AFUE Furnace - New | BW5: Project: | BX5: =$B$5 -> Residential 95+% AFUE Furnace - New
A6: Program Years: | B6: ='Total Program'!$B$6 -> 2020
N7: Benefits | X7: Costs | AF7: Benefits | AJ7: Costs | AR7: Benefits | BB7: Costs | BI7: Benefits | BR7: Costs | BX7: Benefits | CC7: Costs
A8: Input Data | F8: =+'Total Program Inputs'!C6 -> 2020 | AB8: Annual | AN8: Annual | AT8: Non-Gas | BE8: Annual | BT8: Annual | CG8: Annual
M9: Total | N9: Gas | O9: Gas | P9: Variable | Q9: Variable | R9: Total | S9: Peak Dk | T9: Demand | U9: Total | W9: Distribution | Y9: Program | AA9: Total | AB9: Benefits | AF9: Total | AG9: Total | AH9: Annual | AJ9: Program | AL9: Utility | AN9: Benefits | AR9: Total | AS9: Total | AT9: Energy | AU9: Non-Gas | AV9: Environmental | AW9: Environmental | AZ9: Annual | BB9: Utility | BC9: Participants' | BD9: Annual | BE9: Benefits | BJ9: Total | BL9: Gas | BM9: Non-Gas | BN9: Non-Gas | BP9: Total | BR9: Direct | BT9: Benefits | BX9: Total | BY9: Total | BZ9: Non-Gas | CA9: Total | CC9: Utility | CD9: Participants' | CG9: Benefits
A10: 1) Retail Rate ($/Dk) = | C10: =+'Gas Input Table Summary'!$D$7 -> 6.088 | E10: 16) Utility Project Costs | M10: Energy | N10: Commodity | O10: Commodity | P10: O & M | Q10: O & M | R10: Energy | S10: Demand | T10: Savings | U10: Demand | V10: Total | W10: Delivery | X10: Lost | Y10: Admin | Z10: Incentive | AA10: Program | AB10: Less | AF10: Energy | AG10: Demand | AH10: Total | AJ10: Admin | AK10: Incentive | AL10: Program | AN10: Less | AR10: Energy | AS10: Demand | AT10: Savings | AU10: Energy | AV10: Damage | AW10: Damage | AZ10: Total | BB10: Program | BC10: Costs Net | BD10: Total | BE10: Less | BI10: Incentives | BJ10: Energy | BK10: Retail | BL10: Bill | BM10: Fuel | BN10: Energy | BP10: Annual | BR10: Participant | BT10: Less | BX10: Energy | BY10: Demand | BZ10: Energy | CA10: Annual | CC10: Program | CD10: Costs Net | CE10: Total | CG10: Less
A11: Escalation Rate = | C11: =+'Gas Input Table Summary'!$D$8 -> 0.035 | E11: 16a) Administrative & Operating Costs = | F11: =+'Total Program Inputs'!M11 -> 5087 | J11: t | M11: Reduction | N11: Cost/Dk | O11: Savings | P11: Cost/Dk | Q11: Savings | R11: Savings | S11: Reduction | T11: Per Unit | U11: Savings | V11: Savings | W11: Charge | X11: Margin | Y11: Costs | Z11: Costs | AA11: Costs | AB11: Costs | AF11: Savings | AG11: Savings | AH11: Savings | AJ11: Costs | AK11: Costs | AL11: Costs | AN11: Costs | AR11: Savings | AS11: Savings | AT11: ($/Part.) | AU11: Savings | AV11: Savings/Dk | AW11: Savings | AZ11: Savings | BB11: Costs | BC11: of Rebate | BD11: Costs | BE11: Costs | BI11: Received | BJ11: Reduction | BK11: Rate | BL11: Savings | BM11: Retail Rate | BN11: Savings | BP11: Benefits | BR11: Costs | BT11: Costs | BX11: Savings | BY11: Savings | BZ11: Savings | CA11: Benefits | CC11: Costs | CD11: of Rebate | CE11: Costs | CG11: Costs
E12: 16b) Incentive Costs = | F12: =+'Total Program Inputs'!I11 -> 72600 | L12: Year | M12: (A) | N12: (B) | O12: (C) | P12: (D) | Q12: (E) | R12: (F) | S12: (G) | T12: (H) | U12: (I) | V12: (J) | W12: (K) | X12: (L) | Y12: (M) | Z12: (N) | AA12: (O) | AB12: (P) | AE12: Year | AF12: (A) | AG12: (B) | AH12: (C) | AJ12: (D) | AK12: (E) | AL12: (F) | AN12: (G) | AQ12: Year | AR12: (A) | AS12: (B) | AT12: (C) | AU12: (D) | AV12: (E) | AW12: (F) | AZ12: (G) | BB12: (H) | BC12: (I) | BD12: (J) | BE12: (K) | BH12: Year | BI12: (A) | BJ12: (B) | BK12: (C) | BL12: (D) | BM12: (E) | BN12: (F) | BP12: (G) | BR12: (H) | BT12: (I) | BW12: Year | BX12: (A) | BY12: (B) | BZ12: (C) | CA12: (D) | CC12: (E) | CD12: (F) | CE12: (G) | CG12: (H)
A13: 2) Non-Gas Fuel Retail Rate ($/Fuel Unit) = | C13: =+'Gas Input Table Summary'!$D$9 -> 0.12423 | E13: 16c) Total Utility Project Costs = | F13: =SUM(F11:F12) -> 77687
A14: Escalation Rate = | C14: =+'Gas Input Table Summary'!$D$10 -> 0.035 | J14: =$C$47-$C$45 -> 0 | L14: =$C$47 -> 2020 | M14: =ROUND(IF($C$47+$F$23>L14,F25*F30,0),0) -> 1087 | N14: =ROUND($C$17*(1+$C$18)^J14,3) -> 2.516 | O14: =ROUND(M14*N14,0) -> 2735 | P14: =ROUND($C$25*(1+$C$26)^J14,3) -> 0 | Q14: =ROUND(M14*P14,0) -> 0 | R14: =O14+Q14 -> 2735 | S14: =ROUND(M14*$C$23,1) -> 10.9 | T14: =ROUND($C$20*(1+$C$21)^J14,0) -> 149 | U14: =ROUND(S14*T14,0) -> 1624 | V14: =ROUND(+U14+R14,0) -> 4359 | W14: =ROUND($H$36*(1+$C$11)^J14,3) -> 1.836 | X14: =ROUND((1-$H$38)*(W14*M14),0) -> 1577 | Y14: =ROUND($F$11,0) -> 5087 | Z14: =ROUND($F$12,0) -> 72600 | AA14: =SUM(X14:Z14) -> 79264 | AB14: =V14-AA14 -> -74905 | AE14: =$C$47 -> 2020 | AF14: =+R14 -> 2735 | AG14: =+U14 -> 1624 | AH14: =+AG14+AF14 -> 4359 | AJ14: =ROUND(Y14,0) -> 5087 | AK14: =ROUND(Z14,0) -> 72600 | AL14: =SUM(AJ14:AK14) -> 77687 | AN14: =+AH14-AL14 -> -73328 | AQ14: =$C$47 -> 2020 | AR14: =AF14 -> 2735 | AS14: =+AG14 -> 1624 | AT14: =ROUND(($C$28/(1-$C$31))*(1+$C$29)^J14,3) -> 0.029 | AU14: =ROUND(IF($C$47+$F$23>$AQ14,$F$30*$F$27,0)*AT14,0) -> 5053 | AV14: =ROUND($C$33*(1+$C$34)^J14,3) -> 0.38 | AW14: =ROUND(AV14*M14,0) -> 413 | AZ14: =ROUND(AR14+AS14+AU14+AW14+AY14,0) -> 9825 | BB14: =ROUND($F$13,0) -> 77687 | BC14: =ROUND((F15*F30)-Z14,0) -> 7986 | BD14: =BB14+BC14 -> 85673 | BE14: =AZ14-BD14 -> -75848 | BH14: =$C$47 -> 2020 | BI14: =+F12 -> 72600 | BJ14: =+M14 -> 1087 | BK14: =ROUND($C$10*(1+$C$11)^J14,3) -> 6.088 | BL14: =ROUND(BJ14*BK14,0) -> 6618 | BM14: =ROUND($C$13*(1+$C$14)^J14,3) -> 0.124 | BN14: =ROUND(IF($C$47+$F$23>$BH14,$F$30*$F$27,0)*BM14,0) -> 21606 | BP14: =BI14+BL14+BN14+BO14 -> 100824 | BR14: =ROUND(F15*F30,0) -> 80586 | BT14: =BP14-BR14 -> 20238 | BW14: =$C$47 -> 2020 | BX14: =$R14 -> 2735 | BY14: =U14 -> 1624 | BZ14: =AU14 -> 5053 | CA14: =SUM(BX14:BZ14) -> 9412 | CC14: =BB14 -> 77687 | CD14: =BC14 -> 7986 | CE14: =SUM(CC14:CD14) -> 85673 | CG14: =CA14-CE14 -> -76261
A15: Non-Gas Fuel Units (ie. kWh,Gallons, etc) = | C15: =+'Gas Input Table Summary'!$D$11 -> Kwh | E15: 17) Direct Participant Costs ($/Part.) = | F15: =ROUND('Database Inputs'!K10,0) -> 333 | J15: =J14+1 -> 1 | L15: =L14+1 -> 2021 | M15: =ROUND(IF($C$47+$F$23>L15,$F$25*$F$30,0)+IF($C$48+$G$23>L15,$G$25*$G$30,0),0) -> 1087 | N15: =ROUND($C$17*(1+$C$18)^J15,3) -> 2.604 | O15: =ROUND(M15*N15,0) -> 2831 | P15: 0 | Q15: =ROUND(M15*P15,0) -> 0 | R15: =O15+Q15 -> 2831 | S15: =ROUND(M15*$C$23,1) -> 10.9 | T15: =ROUND($C$20*(1+$C$21)^J15,0) -> 150 | U15: =ROUND(S15*T15,0) -> 1635 | V15: =ROUND(+U15+R15,0) -> 4466 | W15: =ROUND($H$36*(1+$C$11)^J15,3) -> 1.9 | X15: =ROUND((1-$H$38)*(W15*M15),0) -> 1632 | Y15: =ROUND($G$11,0) -> 0 | Z15: =ROUND($G$12,0) -> 0 | AA15: =SUM(X15:Z15) -> 1632 | AB15: =V15-AA15 -> 2834 | AE15: =AE14+1 -> 2021 | AF15: =+R15 -> 2831 | AG15: =+U15 -> 1635 | AH15: =+AG15+AF15 -> 4466 | AJ15: =ROUND(Y15,0) -> 0 | AK15: 0 | AL15: =SUM(AJ15:AK15) -> 0 | AN15: =+AH15-AL15 -> 4466 | AQ15: =AQ14+1 -> 2021 | AR15: 2831 | AS15: 1635 | AT15: =ROUND(($C$28/(1-$C$31))*(1+$C$29)^J15,3) -> 0.03 | AU15: =ROUND((IF($C$47+$F$23>$AQ15,$F$27*$F$30,0)+IF($C$48+$G$23>AQ15,$G$27*$G$30,0))*AT15,0) -> 5227 | AV15: =ROUND($C$33*(1+$C$34)^J15,3) -> 0.388 | AW15: =ROUND(AV15*M15,0) -> 422 | AZ15: =ROUND(AR15+AS15+AU15+AW15+AY15,0) -> 10115 | BB15: =ROUND($G$13,0) -> 0 | BC15: =ROUND(($G$15*$G$30)-$Z$15,0) -> 0 | BD15: =BB15+BC15 -> 0 | BE15: =AZ15-BD15 -> 10115 | BH15: =BH14+1 -> 2021 | BI15: =+G12 -> 0 | BJ15: 1087 | BK15: =ROUND($C$10*(1+$C$11)^J15,3) -> 6.301 | BL15: =ROUND(BJ15*BK15,0) -> 6849 | BM15: =ROUND($C$13*(1+$C$14)^J15,3) -> 0.129 | BN15: =ROUND((IF($C$47+$F$23>BH15,$F$27*$F$30,0)+IF($C$48+$G$23>BH15,$G$27*$G$30,0))*BM15,0) -> 22477 | BP15: =BI15+BL15+BN15+BO15 -> 29326 | BR15: =ROUND($G$15*$G$30,0) -> 0 | BT15: =BP15-BR15 -> 29326 | BW15: =BW14+1 -> 2021 | BX15: 2831 | BY15: =U15 -> 1635 | BZ15: =AU15 -> 5227 | CA15: =SUM(BX15:BZ15) -> 9693 | CC15: =BB15 -> 0 | CD15: 0 | CE15: =SUM(CC15:CD15) -> 0 | CG15: =CA15-CE15 -> 9693
J16: 2 | L16: 2022 | M16: =ROUND(IF($C$47+$F$23>L16,$F$25*$F$30,0)+IF($C$48+$G$23>L16,$G$25*$G$30,0)+IF($C$49+$H$23>L16,$H$25*$H$30,0),0) -> 1087 | N16: =ROUND($C$17*(1+$C$18)^J16,3) -> 2.695 | O16: =ROUND(M16*N16,0) -> 2929 | P16: 0 | Q16: 0 | R16: =O16+Q16 -> 2929 | S16: 10.9 | T16: 152 | U16: =ROUND(S16*T16,0) -> 1657 | V16: 4586 | W16: 1.967 | X16: =ROUND((1-$H$38)*(W16*M16),0) -> 1689 | Y16: =ROUND($H$11,0) -> 0 | Z16: =ROUND($H$12,0) -> 0 | AA16: 1689 | AB16: 2897 | AE16: 2022 | AF16: 2929 | AG16: 1657 | AH16: =+AG16+AF16 -> 4586 | AJ16: 0 | AK16: 0 | AL16: =SUM(AJ16:AK16) -> 0 | AN16: 4586 | AQ16: 2022 | AR16: 2929 | AS16: 1657 | AT16: 0.031 | AU16: =ROUND((IF($C$47+$F$23>$AQ16,$F$27*$F$30,0)+IF($C$48+$G$23>AQ16,$G$27*$G$30,0)+IF($C$49+$H$23>AQ16,$H$27*$H$30,0))*AT16,0) -> 5401 | AV16: 0.397 | AW16: 432 | AZ16: 10419 | BB16: =ROUND($H$13,0) -> 0 | BC16: =ROUND(($H$15*$H$30)-$Z$16,0) -> 0 | BD16: 0 | BE16: 10419 | BH16: 2022 | BI16: =ROUND(H12,0) -> 0 | BJ16: 1087 | BK16: 6.522 | BL16: =ROUND(BJ16*BK16,0) -> 7089 | BM16: 0.133 | BN16: =ROUND((IF($C$47+$F$23>BH16,$F$27*$F$30,0)+IF($C$49+$H$23>BH16,$H$27*$H$30,0)+IF($C$48+$G$23>BH16,$G$27*$G$30,0))*BM16,0) -> 23174 | BP16: =BI16+BL16+BN16+BO16 -> 30263 | BR16: =ROUND($H$15*$H$30,0) -> 0 | BT16: 30263 | BW16: 2022 | BX16: 2929 | BY16: 1657 | BZ16: 5401 | CA16: 9987 | CC16: 0 | CD16: 0 | CE16: 0 | CG16: =CA16-CE16 -> 9987
A17: 3) Commodity Cost ($/Dk) = | C17: =+'Gas Input Table Summary'!$D$12 -> 2.516 | E17: 18) Participant Non-Energy Costs (Annual $/Part.) = | F17: =+'Gas Input Table Summary'!$D$35 -> 0 | J17: 3 | L17: 2023 | M17: =ROUND(IF($C$47+$F$23>L17,$F$25*$F$30,0)+IF($C$48+$G$23>L17,$G$25*$G$30,0)+IF($C$49+$H$23>L17,$H$25*$H$30,0),0) -> 1087 | N17: 2.79 | O17: 3033 | P17: 0 | Q17: 0 | R17: 3033 | S17: 10.9 | T17: 153 | U17: 1668 | V17: 4701 | W17: =ROUND($H$36*(1+$C$11)^J17,3) -> 2.036 | X17: =ROUND((1-$H$38)*(W17*M17),0) -> 1748 | Y17: 0 | Z17: 0 | AA17: 1748 | AB17: 2953 | AE17: 2023 | AF17: 3033 | AG17: 1668 | AH17: 4701 | AJ17: 0 | AK17: 0 | AL17: 0 | AN17: 4701 | AQ17: 2023 | AR17: 3033 | AS17: 1668 | AT17: 0.033 | AU17: =ROUND((IF($C$47+$F$23>$AQ17,$F$27*$F$30,0)+IF($C$48+$G$23>AQ17,$G$27*$G$30,0)+IF($C$49+$H$23>AQ17,$H$27*$H$30,0))*AT17,0) -> 5750 | AV17: 0.405 | AW17: 440 | AZ17: 10891 | BB17: 0 | BC17: 0 | BD17: 0 | BE17: 10891 | BH17: 2023 | BI17: 0 | BJ17: 1087 | BK17: 6.75 | BL17: 7337 | BM17: 0.138 | BN17: =ROUND((IF($C$47+$F$23>BH17,$F$27*$F$30,0)+IF($C$49+$H$23>BH17,$H$27*$H$30,0)+IF($C$48+$G$23>BH17,$G$27*$G$30,0))*BM17,0) -> 24045 | BP17: 31382 | BR17: =+BC17 -> 0 | BT17: 31382 | BW17: 2023 | BX17: 3033 | BY17: 1668 | BZ17: 5750 | CA17: 10451 | CC17: 0 | CD17: 0 | CE17: 0 | CG17: 10451
A18: Escalation Rate = | C18: =+'Gas Input Table Summary'!$D$13 -> 0.035 | E18: Escalation Rate = | F18: =+'Gas Input Table Summary'!$D$38 -> 0 | J18: 4 | L18: 2024 | M18: =ROUND(IF($C$47+$F$23>L18,$F$25*$F$30,0)+IF($C$48+$G$23>L18,$G$25*$G$30,0)+IF($C$49+$H$23>L18,$H$25*$H$30,0),0) -> 1087 | N18: 2.887 | O18: 3138 | P18: 0 | Q18: 0 | R18: 3138 | S18: 10.9 | T18: 155 | U18: 1690 | V18: =ROUND(+U18+R18,0) -> 4828 | W18: 2.107 | X18: 1809 | Y18: 0 | Z18: 0 | AA18: 1809 | AB18: 3019 | AE18: 2024 | AF18: 3138 | AG18: 1690 | AH18: 4828 | AJ18: 0 | AK18: 0 | AL18: 0 | AN18: 4828 | AQ18: 2024 | AR18: 3138 | AS18: 1690 | AT18: 0.034 | AU18: 5924 | AV18: 0.414 | AW18: 450 | AZ18: 11202 | BB18: 0 | BC18: 0 | BD18: 0 | BE18: 11202 | BH18: 2024 | BI18: 0 | BJ18: 1087 | BK18: 6.986 | BL18: 7594 | BM18: 0.143 | BN18: 24916 | BP18: 32510 | BR18: 0 | BT18: 32510 | BW18: 2024 | BX18: 3138 | BY18: 1690 | BZ18: 5924 | CA18: 10752 | CC18: 0 | CD18: 0 | CE18: 0 | CG18: 10752 | DB18: t
J19: 5 | L19: 2025 | M19: 1087 | N19: 2.988 | O19: 3248 | P19: 0 | Q19: 0 | R19: 3248 | S19: 10.9 | T19: 156 | U19: 1700 | V19: 4948 | W19: 2.181 | X19: 1873 | Y19: 0 | Z19: 0 | AA19: 1873 | AB19: 3075 | AE19: 2025 | AF19: 3248 | AG19: 1700 | AH19: 4948 | AJ19: 0 | AK19: 0 | AL19: 0 | AN19: 4948 | AQ19: 2025 | AR19: 3248 | AS19: 1700 | AT19: 0.035 | AU19: 6098 | AV19: 0.423 | AW19: 460 | AZ19: 11506 | BB19: 0 | BC19: 0 | BD19: 0 | BE19: 11506 | BH19: 2025 | BI19: 0 | BJ19: 1087 | BK19: 7.231 | BL19: 7860 | BM19: 0.148 | BN19: 25788 | BP19: 33648 | BR19: 0 | BT19: 33648 | BW19: 2025 | BX19: 3248 | BY19: 1700 | BZ19: 6098 | CA19: 11046 | CC19: 0 | CD19: 0 | CE19: 0 | CG19: 11046
A20: 4) Demand Cost ($/Unit/Yr) = | C20: =+'Gas Input Table Summary'!$D$14 -> 148.86 | E20: 19) Participant Non-Energy Savings (Annual $/Part) = | F20: =+'Gas Input Table Summary'!$D$41 -> 0 | J20: 6 | L20: 2026 | M20: 1087 | N20: 3.093 | O20: 3362 | P20: 0 | Q20: 0 | R20: 3362 | S20: 10.9 | T20: 158 | U20: 1722 | V20: 5084 | W20: =ROUND($H$36*(1+$C$11)^J20,3) -> 2.257 | X20: 1938 | Y20: 0 | Z20: 0 | AA20: 1938 | AB20: 3146 | AE20: 2026 | AF20: 3362 | AG20: 1722 | AH20: 5084 | AJ20: 0 | AK20: 0 | AL20: 0 | AN20: 5084 | AQ20: 2026 | AR20: 3362 | AS20: 1722 | AT20: 0.036 | AU20: =ROUND((IF($C$47+$F$23>$AQ20,$F$27*$F$30,0)+IF($C$48+$G$23>AQ20,$G$27*$G$30,0)+IF($C$49+$H$23>AQ20,$H$27*$H$30,0))*AT20,0) -> 6273 | AV20: 0.432 | AW20: 470 | AZ20: 11827 | BB20: 0 | BC20: 0 | BD20: 0 | BE20: 11827 | BH20: 2026 | BI20: 0 | BJ20: 1087 | BK20: 7.484 | BL20: 8135 | BM20: 0.153 | BN20: =ROUND((IF($C$47+$F$23>BH20,$F$27*$F$30,0)+IF($C$49+$H$23>BH20,$H$27*$H$30,0)+IF($C$48+$G$23>BH20,$G$27*$G$30,0))*BM20,0) -> 26659 | BP20: 34794 | BR20: 0 | BT20: 34794 | BW20: 2026 | BX20: 3362 | BY20: 1722 | BZ20: 6273 | CA20: 11357 | CC20: 0 | CD20: 0 | CE20: 0 | CG20: 11357
A21: Escalation Rate = | C21: =+'Gas Input Table Summary'!$D$15 -> 0.01 | E21: Escalation Rate = | F21: =+'Gas Input Table Summary'!$D$44 -> 0 | J21: 7 | L21: 2027 | M21: 1087 | N21: 3.201 | O21: 3479 | P21: 0 | Q21: 0 | R21: 3479 | S21: 10.9 | T21: 160 | U21: 1744 | V21: 5223 | W21: 2.336 | X21: 2006 | Y21: 0 | Z21: 0 | AA21: 2006 | AB21: 3217 | AE21: 2027 | AF21: 3479 | AG21: 1744 | AH21: 5223 | AJ21: 0 | AK21: 0 | AL21: 0 | AN21: 5223 | AQ21: 2027 | AR21: 3479 | AS21: 1744 | AT21: 0.037 | AU21: 6447 | AV21: 0.441 | AW21: 479 | AZ21: 12149 | BB21: 0 | BC21: 0 | BD21: 0 | BE21: 12149 | BH21: 2027 | BI21: 0 | BJ21: 1087 | BK21: 7.746 | BL21: 8420 | BM21: 0.158 | BN21: 27530 | BP21: 35950 | BR21: 0 | BT21: 35950 | BW21: 2027 | BX21: 3479 | BY21: 1744 | BZ21: 6447 | CA21: 11670 | CC21: 0 | CD21: 0 | CE21: 0 | CG21: 11670 | DB21: =$J14 -> 0
J22: 8 | L22: 2028 | M22: 1087 | N22: 3.313 | O22: 3601 | P22: 0 | Q22: 0 | R22: 3601 | S22: 10.9 | T22: 161 | U22: 1755 | V22: 5356 | W22: 2.418 | X22: 2076 | Y22: 0 | Z22: 0 | AA22: 2076 | AB22: 3280 | AE22: 2028 | AF22: 3601 | AG22: 1755 | AH22: 5356 | AJ22: 0 | AK22: 0 | AL22: 0 | AN22: 5356 | AQ22: 2028 | AR22: 3601 | AS22: 1755 | AT22: 0.039 | AU22: 6795 | AV22: 0.451 | AW22: 490 | AZ22: 12641 | BB22: 0 | BC22: 0 | BD22: 0 | BE22: 12641 | BH22: 2028 | BI22: 0 | BJ22: 1087 | BK22: 8.017 | BL22: 8714 | BM22: 0.164 | BN22: 28575 | BP22: 37289 | BR22: 0 | BT22: 37289 | BW22: 2028 | BX22: 3601 | BY22: 1755 | BZ22: 6795 | CA22: 12151 | CC22: 0 | CD22: 0 | CE22: 0 | CG22: 12151 | DB22: =$J15 -> 1
A23: 5) Peak Reduction Factor = | C23: =+'Gas Input Table Summary'!$D$16 -> 0.01 | E23: 20) Project Life (Years) = | F23: =ROUND('Database Inputs'!D10,0) -> 20 | J23: 9 | L23: 2029 | M23: 1087 | N23: 3.429 | O23: 3727 | P23: 0 | Q23: 0 | R23: 3727 | S23: 10.9 | T23: 163 | U23: 1777 | V23: 5504 | W23: 2.502 | X23: 2149 | Y23: 0 | Z23: 0 | AA23: 2149 | AB23: 3355 | AE23: 2029 | AF23: 3727 | AG23: 1777 | AH23: 5504 | AJ23: 0 | AK23: 0 | AL23: 0 | AN23: 5504 | AQ23: 2029 | AR23: 3727 | AS23: 1777 | AT23: 0.04 | AU23: 6970 | AV23: 0.461 | AW23: 501 | AZ23: 12975 | BB23: 0 | BC23: 0 | BD23: 0 | BE23: 12975 | BH23: 2029 | BI23: 0 | BJ23: 1087 | BK23: 8.297 | BL23: 9019 | BM23: 0.169 | BN23: 29447 | BP23: 38466 | BR23: 0 | BT23: 38466 | BW23: 2029 | BX23: 3727 | BY23: 1777 | BZ23: 6970 | CA23: 12474 | CC23: 0 | CD23: 0 | CE23: 0 | CG23: 12474 | DB23: =$J16 -> 2
J24: 10 | L24: 2030 | M24: 1087 | N24: 3.549 | O24: 3858 | P24: 0 | Q24: 0 | R24: 3858 | S24: 10.9 | T24: 164 | U24: 1788 | V24: 5646 | W24: 2.59 | X24: 2224 | Y24: 0 | Z24: 0 | AA24: 2224 | AB24: 3422 | AE24: 2030 | AF24: 3858 | AG24: 1788 | AH24: 5646 | AJ24: 0 | AK24: 0 | AL24: 0 | AN24: 5646 | AQ24: 2030 | AR24: 3858 | AS24: 1788 | AT24: 0.041 | AU24: 7144 | AV24: 0.471 | AW24: 512 | AZ24: 13302 | BB24: 0 | BC24: 0 | BD24: 0 | BE24: 13302 | BH24: 2030 | BI24: 0 | BJ24: 1087 | BK24: 8.588 | BL24: 9335 | BM24: 0.175 | BN24: 30492 | BP24: 39827 | BR24: 0 | BT24: 39827 | BW24: 2030 | BX24: 3858 | BY24: 1788 | BZ24: 7144 | CA24: =SUM(BX24:BZ24) -> 12790 | CC24: 0 | CD24: 0 | CE24: 0 | CG24: 12790 | DB24: =$J17 -> 3
A25: 6) Variable O&M ($/Dk) = | C25: =+'Gas Input Table Summary'!$D$17 -> 0 | E25: 21) Avg. Dk/Part. Saved = | F25: =+ROUND(F32/F30,3) -> 4.492 | J25: 11 | L25: 2031 | M25: 1087 | N25: 3.673 | O25: 3993 | P25: 0 | Q25: 0 | R25: 3993 | S25: 10.9 | T25: 166 | U25: 1809 | V25: 5802 | W25: 2.681 | X25: 2302 | Y25: 0 | Z25: 0 | AA25: 2302 | AB25: 3500 | AE25: 2031 | AF25: 3993 | AG25: 1809 | AH25: 5802 | AJ25: 0 | AK25: 0 | AL25: 0 | AN25: 5802 | AQ25: 2031 | AR25: 3993 | AS25: 1809 | AT25: 0.043 | AU25: 7492 | AV25: 0.481 | AW25: =ROUND(AV25*M25,0) -> 523 | AZ25: 13817 | BB25: 0 | BC25: 0 | BD25: 0 | BE25: 13817 | BH25: 2031 | BI25: 0 | BJ25: 1087 | BK25: 8.888 | BL25: 9661 | BM25: 0.181 | BN25: 31537 | BP25: 41198 | BR25: 0 | BT25: 41198 | BW25: 2031 | BX25: 3993 | BY25: 1809 | BZ25: 7492 | CA25: 13294 | CC25: 0 | CD25: 0 | CE25: 0 | CG25: 13294
A26: Escalation Rate = | C26: =+'Gas Input Table Summary'!$D$18 -> 0 | J26: 12 | L26: 2032 | M26: 1087 | N26: =ROUND($C$17*(1+$C$18)^J26,3) -> 3.802 | O26: 4133 | P26: 0 | Q26: 0 | R26: 4133 | S26: 10.9 | T26: 168 | U26: 1831 | V26: 5964 | W26: 2.774 | X26: 2382 | Y26: 0 | Z26: 0 | AA26: 2382 | AB26: 3582 | AE26: 2032 | AF26: 4133 | AG26: 1831 | AH26: 5964 | AJ26: 0 | AK26: 0 | AL26: 0 | AN26: 5964 | AQ26: 2032 | AR26: 4133 | AS26: 1831 | AT26: 0.044 | AU26: 7667 | AV26: 0.491 | AW26: =ROUND(AV26*M26,0) -> 534 | AZ26: 14165 | BB26: 0 | BC26: 0 | BD26: 0 | BE26: 14165 | BH26: 2032 | BI26: 0 | BJ26: 1087 | BK26: 9.199 | BL26: 9999 | BM26: 0.188 | BN26: 32757 | BP26: 42756 | BR26: 0 | BT26: 42756 | BW26: 2032 | BX26: 4133 | BY26: 1831 | BZ26: 7667 | CA26: 13631 | CC26: 0 | CD26: 0 | CE26: 0 | CG26: 13631
E27: 22) Avg Non-Gas Fuel Units/Part. Saved = | F27: =+'Database Inputs'!H10 -> 720 | J27: 13 | L27: 2033 | M27: 1087 | N27: 3.935 | O27: 4277 | P27: 0 | Q27: 0 | R27: 4277 | S27: 10.9 | T27: 169 | U27: =ROUND(S27*T27,0) -> 1842 | V27: 6119 | W27: =ROUND($H$36*(1+$C$11)^J27,3) -> 2.871 | X27: 2465 | Y27: 0 | Z27: 0 | AA27: 2465 | AB27: 3654 | AE27: 2033 | AF27: 4277 | AG27: 1842 | AH27: 6119 | AJ27: 0 | AK27: 0 | AL27: 0 | AN27: 6119 | AQ27: 2033 | AR27: 4277 | AS27: 1842 | AT27: 0.046 | AU27: 8015 | AV27: 0.502 | AW27: 546 | AZ27: 14680 | BB27: 0 | BC27: 0 | BD27: 0 | BE27: 14680 | BH27: 2033 | BI27: 0 | BJ27: 1087 | BK27: 9.521 | BL27: 10349 | BM27: 0.194 | BN27: 33803 | BP27: 44152 | BR27: 0 | BT27: 44152 | BW27: 2033 | BX27: 4277 | BY27: 1842 | BZ27: 8015 | CA27: 14134 | CC27: 0 | CD27: 0 | CE27: 0 | CG27: 14134
A28: 7) Non-Gas Fuel Cost ($/Fuel Unit) = | C28: =+'Gas Input Table Summary'!$D$19 -> 0.02738 | E28: 22a) Avg Additional Non-Gas Fuel Units/ Part. Used = | F28: 0 | J28: 14 | L28: 2034 | M28: 1087 | N28: 4.073 | O28: 4427 | P28: 0 | Q28: 0 | R28: 4427 | S28: 10.9 | T28: 171 | U28: 1864 | V28: 6291 | W28: 2.972 | X28: 2552 | Y28: 0 | Z28: 0 | AA28: 2552 | AB28: 3739 | AE28: 2034 | AF28: 4427 | AG28: 1864 | AH28: 6291 | AJ28: 0 | AK28: 0 | AL28: 0 | AN28: 6291 | AQ28: 2034 | AR28: 4427 | AS28: 1864 | AT28: 0.048 | AU28: 8364 | AV28: 0.513 | AW28: 558 | AZ28: 15213 | BB28: 0 | BC28: 0 | BD28: 0 | BE28: 15213 | BH28: 2034 | BI28: 0 | BJ28: 1087 | BK28: 9.855 | BL28: 10712 | BM28: 0.201 | BN28: 35022 | BP28: 45734 | BR28: 0 | BT28: 45734 | BW28: 2034 | BX28: 4427 | BY28: 1864 | BZ28: 8364 | CA28: 14655 | CC28: 0 | CD28: 0 | CE28: 0 | CG28: 14655
A29: Escalation Rate = | C29: =+'Gas Input Table Summary'!$D$20 -> 0.035 | J29: 15 | L29: 2035 | M29: 1087 | N29: 4.215 | O29: 4582 | P29: 0 | Q29: 0 | R29: 4582 | S29: 10.9 | T29: 173 | U29: 1886 | V29: 6468 | W29: 3.076 | X29: =ROUND((1-$H$38)*(W29*M29),0) -> 2641 | Y29: 0 | Z29: 0 | AA29: 2641 | AB29: 3827 | AE29: 2035 | AF29: 4582 | AG29: 1886 | AH29: 6468 | AJ29: 0 | AK29: 0 | AL29: 0 | AN29: 6468 | AQ29: 2035 | AR29: 4582 | AS29: 1886 | AT29: 0.049 | AU29: 8538 | AV29: 0.524 | AW29: 570 | AZ29: 15576 | BB29: 0 | BC29: 0 | BD29: 0 | BE29: 15576 | BH29: 2035 | BI29: 0 | BJ29: 1087 | BK29: 10.2 | BL29: 11087 | BM29: 0.208 | BN29: 36242 | BP29: 47329 | BR29: 0 | BT29: 47329 | BW29: 2035 | BX29: 4582 | BY29: 1886 | BZ29: 8538 | CA29: 15006 | CC29: 0 | CD29: 0 | CE29: 0 | CG29: 15006
E30: 23) Number of Participants = | F30: =ROUND('Database Inputs'!C10,0) -> 242 | J30: 16 | L30: 2036 | M30: 1087 | N30: 4.363 | O30: 4743 | P30: 0 | Q30: 0 | R30: 4743 | S30: 10.9 | T30: 175 | U30: 1908 | V30: =ROUND(+U30+R30,0) -> 6651 | W30: 3.184 | X30: =ROUND((1-$H$38)*(W30*M30),0) -> 2734 | Y30: 0 | Z30: 0 | AA30: 2734 | AB30: 3917 | AE30: 2036 | AF30: 4743 | AG30: 1908 | AH30: 6651 | AJ30: 0 | AK30: 0 | AL30: 0 | AN30: 6651 | AQ30: 2036 | AR30: 4743 | AS30: 1908 | AT30: 0.051 | AU30: 8886 | AV30: 0.535 | AW30: 582 | AZ30: 16119 | BB30: 0 | BC30: 0 | BD30: 0 | BE30: 16119 | BH30: 2036 | BI30: 0 | BJ30: 1087 | BK30: 10.557 | BL30: 11475 | BM30: 0.215 | BN30: 37462 | BP30: 48937 | BR30: 0 | BT30: 48937 | BW30: 2036 | BX30: 4743 | BY30: 1908 | BZ30: 8886 | CA30: 15537 | CC30: 0 | CD30: 0 | CE30: 0 | CG30: 15537 | DB30: =$J18 -> 4
A31: 8) Non-Gas Fuel Loss Factor | C31: =+'Gas Input Table Summary'!$D$21 -> 0.067 | J31: 17 | L31: 2037 | M31: =ROUND(IF($C$47+$F$23>L31,$F$25*$F$30,0)+IF($C$48+$G$23>L31,$G$25*$G$30,0)+IF($C$49+$H$23>L31,$H$25*$H$30,0),0) -> 1087 | N31: 4.515 | O31: 4908 | P31: 0 | Q31: 0 | R31: 4908 | S31: 10.9 | T31: 176 | U31: 1918 | V31: =ROUND(+U31+R31,0) -> 6826 | W31: 3.295 | X31: 2830 | Y31: 0 | Z31: 0 | AA31: 2830 | AB31: 3996 | AE31: 2037 | AF31: 4908 | AG31: 1918 | AH31: 6826 | AJ31: 0 | AK31: 0 | AL31: 0 | AN31: 6826 | AQ31: 2037 | AR31: 4908 | AS31: 1918 | AT31: 0.053 | AU31: 9235 | AV31: 0.546 | AW31: 594 | AZ31: 16655 | BB31: 0 | BC31: 0 | BD31: 0 | BE31: 16655 | BH31: 2037 | BI31: 0 | BJ31: 1087 | BK31: 10.926 | BL31: 11877 | BM31: 0.223 | BN31: 38856 | BP31: 50733 | BR31: 0 | BT31: 50733 | BW31: 2037 | BX31: 4908 | BY31: 1918 | BZ31: 9235 | CA31: 16061 | CC31: 0 | CD31: 0 | CE31: 0 | CG31: 16061 | DB31: =$J19 -> 5
E32: 24) Total Annual Dk Saved = | F32: =+'Total Program Inputs'!G11 -> 1087 | J32: 18 | L32: 2038 | M32: 1087 | N32: 4.673 | O32: 5080 | P32: 0 | Q32: 0 | R32: 5080 | S32: 10.9 | T32: 178 | U32: 1940 | V32: 7020 | W32: 3.41 | X32: 2928 | Y32: 0 | Z32: 0 | AA32: 2928 | AB32: 4092 | AE32: 2038 | AF32: 5080 | AG32: 1940 | AH32: 7020 | AJ32: 0 | AK32: 0 | AL32: 0 | AN32: 7020 | AQ32: 2038 | AR32: 5080 | AS32: 1940 | AT32: 0.055 | AU32: 9583 | AV32: 0.558 | AW32: 607 | AZ32: 17210 | BB32: 0 | BC32: 0 | BD32: 0 | BE32: 17210 | BH32: 2038 | BI32: 0 | BJ32: 1087 | BK32: 11.308 | BL32: 12292 | BM32: 0.231 | BN32: 40249 | BP32: 52541 | BR32: 0 | BT32: 52541 | BW32: 2038 | BX32: 5080 | BY32: 1940 | BZ32: 9583 | CA32: 16603 | CC32: 0 | CD32: 0 | CE32: 0 | CG32: 16603 | DB32: =$J20 -> 6
A33: 9) Gas Environmental Damage Factor = | C33: =+'Gas Input Table Summary'!$D$22 -> 0.38 | J33: 19 | L33: 2039 | M33: 1087 | N33: 4.837 | O33: 5258 | P33: 0 | Q33: 0 | R33: 5258 | S33: 10.9 | T33: 180 | U33: 1962 | V33: 7220 | W33: 3.53 | X33: 3031 | Y33: 0 | Z33: 0 | AA33: 3031 | AB33: 4189 | AE33: 2039 | AF33: 5258 | AG33: 1962 | AH33: 7220 | AJ33: 0 | AK33: 0 | AL33: 0 | AN33: 7220 | AQ33: 2039 | AR33: 5258 | AS33: 1962 | AT33: 0.056 | AU33: 9757 | AV33: 0.57 | AW33: 620 | AZ33: 17597 | BB33: 0 | BC33: 0 | BD33: 0 | BE33: 17597 | BH33: 2039 | BI33: 0 | BJ33: 1087 | BK33: 11.704 | BL33: 12722 | BM33: 0.239 | BN33: 41643 | BP33: 54365 | BR33: 0 | BT33: 54365 | BW33: 2039 | BX33: 5258 | BY33: 1962 | BZ33: 9757 | CA33: 16977 | CC33: 0 | CD33: 0 | CE33: 0 | CG33: 16977
A34: Escalation Rate = | C34: =+'Gas Input Table Summary'!$D$23 -> 0.0216 | E34: 25) Incentive/Participant = | F34: =ROUND('Database Inputs'!L10,0) -> 300 | J34: 20 | L34: 2040 | M34: =ROUND(IF($C$47+$F$23>L34,$F$25*$F$30,0)+IF($C$48+$G$23>L34,$G$25*$G$30,0)+IF($C$49+$H$23>L34,$H$25*$H$30,0),0) -> 0 | N34: 5.006 | O34: 0 | P34: 0 | Q34: 0 | R34: 0 | S34: 0 | T34: 182 | U34: 0 | V34: 0 | W34: 3.653 | X34: 0 | Y34: 0 | Z34: 0 | AA34: 0 | AB34: 0 | AE34: 2040 | AF34: =+R34 -> 0 | AG34: 0 | AH34: 0 | AJ34: 0 | AK34: 0 | AL34: 0 | AN34: 0 | AQ34: 2040 | AR34: 0 | AS34: 0 | AT34: 0.058 | AU34: 0 | AV34: 0.583 | AW34: 0 | AZ34: 0 | BB34: 0 | BC34: 0 | BD34: 0 | BE34: 0 | BH34: 2040 | BI34: 0 | BJ34: 0 | BK34: 12.114 | BL34: 0 | BM34: 0.247 | BN34: 0 | BP34: 0 | BR34: 0 | BT34: 0 | BW34: 2040 | BX34: 0 | BY34: 0 | BZ34: 0 | CA34: 0 | CC34: 0 | CD34: 0 | CE34: 0 | CG34: 0
J35: 21 | L35: 2041 | M35: =ROUND(IF($C$47+$F$23>L35,$F$25*$F$30,0)+IF($C$48+$G$23>L35,$G$25*$G$30,0)+IF($C$49+$H$23>L35,$H$25*$H$30,0),0) -> 0 | N35: =ROUND($C$17*(1+$C$18)^J35,3) -> 5.182 | O35: =ROUND(M35*N35,0) -> 0 | P35: =ROUND($C$25*(1+$C$26)^J35,3) -> 0 | Q35: =ROUND(M35*P35,0) -> 0 | R35: =O35+Q35 -> 0 | S35: =ROUND(M35*$C$23,1) -> 0 | T35: =ROUND($C$20*(1+$C$21)^J35,0) -> 183 | U35: =ROUND(S35*T35,0) -> 0 | V35: =ROUND(+U35+R35,0) -> 0 | W35: =ROUND($H$36*(1+$C$11)^J35,3) -> 3.781 | X35: =ROUND((1-$H$38)*(W35*M35),0) -> 0 | Y35: 0 | Z35: 0 | AA35: =SUM(X35:Z35) -> 0 | AB35: =V35-AA35 -> 0 | AE35: 2041 | AF35: =+R35 -> 0 | AG35: =+U35 -> 0 | AH35: =+AG35+AF35 -> 0 | AJ35: =ROUND(Y35,0) -> 0 | AK35: =ROUND(Z35,0) -> 0 | AL35: =SUM(AJ35:AK35) -> 0 | AN35: =+AH35-AL35 -> 0 | AQ35: 2041 | AR35: =AF35 -> 0 | AS35: =+AG35 -> 0 | AT35: =ROUND(($C$28/(1-$C$31))*(1+$C$29)^J35,3) -> 0.06 | AU35: =ROUND((IF($C$47+$F$23>$AQ35,$F$27*$F$30,0)+IF($C$48+$G$23>AQ35,$G$27*$G$30,0)+IF($C$49+$H$23>AQ35,$H$27*$H$30,0))*AT35,0) -> 0 | AV35: =ROUND($C$33*(1+$C$34)^J35,3) -> 0.595 | AW35: =ROUND(AV35*M35,0) -> 0 | AZ35: =ROUND(AR35+AS35+AU35+AW35+AY35,0) -> 0 | BB35: 0 | BC35: 0 | BD35: =BB35+BC35 -> 0 | BE35: =AZ35-BD35 -> 0 | BH35: 2041 | BI35: 0 | BJ35: =+M35 -> 0 | BK35: =ROUND($C$10*(1+$C$11)^J35,3) -> 12.538 | BL35: =ROUND(BJ35*BK35,0) -> 0 | BM35: =ROUND($C$13*(1+$C$14)^J35,3) -> 0.256 | BN35: =ROUND((IF($C$47+$F$23>BH35,$F$27*$F$30,0)+IF($C$49+$H$23>BH35,$H$27*$H$30,0)+IF($C$48+$G$23>BH35,$G$27*$G$30,0))*BM35,0) -> 0 | BP35: =BI35+BL35+BN35+BO35 -> 0 | BR35: =+BC35 -> 0 | BT35: =BP35-BR35 -> 0 | BW35: 2041 | BX35: 0 | BY35: =U35 -> 0 | BZ35: =AU35 -> 0 | CA35: =SUM(BX35:BZ35) -> 0 | CC35: =BB35 -> 0 | CD35: =BC35 -> 0 | CE35: =SUM(CC35:CD35) -> 0 | CG35: =CA35-CE35 -> 0 | DB35: =$J21 -> 7
A36: 10) Non Gas Fuel Environmental Damage Factor = | C36: =+'Gas Input Table Summary'!$D$24 -> 0 | E36: 26) Distribution Delivery Charge | H36: =+'Gas Input Table Summary'!$D$58 -> 1.836 | J36: 22 | L36: 2042 | M36: =ROUND(IF($C$47+$F$23>L36,$F$25*$F$30,0)+IF($C$48+$G$23>L36,$G$25*$G$30,0)+IF($C$49+$H$23>L36,$H$25*$H$30,0),0) -> 0 | N36: 5.363 | O36: 0 | P36: 0 | Q36: 0 | R36: 0 | S36: 0 | T36: 185 | U36: 0 | V36: =ROUND(+U36+R36,0) -> 0 | W36: 3.913 | X36: 0 | Y36: 0 | Z36: 0 | AA36: 0 | AB36: 0 | AE36: 2042 | AF36: 0 | AG36: 0 | AH36: 0 | AJ36: 0 | AK36: 0 | AL36: 0 | AN36: 0 | AQ36: 2042 | AR36: =AF36 -> 0 | AS36: 0 | AT36: 0.063 | AU36: 0 | AV36: 0.608 | AW36: 0 | AZ36: 0 | BB36: 0 | BC36: 0 | BD36: 0 | BE36: 0 | BH36: 2042 | BI36: 0 | BJ36: 0 | BK36: 12.977 | BL36: 0 | BM36: 0.265 | BN36: 0 | BP36: 0 | BR36: 0 | BT36: =BP36-BR36 -> 0 | BW36: 2042 | BX36: 0 | BY36: 0 | BZ36: 0 | CA36: 0 | CC36: 0 | CD36: 0 | CE36: 0 | CG36: 0
A37: Escalation Rate = | C37: =+'Gas Input Table Summary'!$D$25 -> 0 | DB37: =$J22 -> 8
E38: 27) Effective Income Tax Rate = | H38: =+'Gas Input Table Summary'!$D$59 -> 0.21 | K38: Total = | M38: =SUM(M14:M36) -> 21740 | V38: =SUM(V14:V36) -> 113062 | AA38: =SUM(AA14:AA36) -> 122273 | AB38: =SUM(AB14:AB36) -> -9211 | AD38: Total = | AH38: =SUM(AH14:AH36) -> 113062 | AL38: =SUM(AL14:AL36) -> 77687 | AN38: =SUM(AN14:AN36) -> 35375 | AP38: Total = | AZ38: =SUM(AZ14:AZ36) -> 267884 | BD38: =SUM(BD14:BD36) -> 85673 | BE38: =SUM(BE14:BE36) -> 182211 | BG38: Total = | BJ38: =SUM(BJ14:BJ36) -> 21740 | BP38: =SUM(BP14:BP36) -> 872024 | BR38: =SUM(BR14:BR36) -> 80586 | BT38: =SUM(BT14:BT36) -> 791438 | BZ38: Total = | CA38: =SUM(CA14:CA36) -> 257681 | CE38: =SUM(CE14:CE36) -> 85673 | CG38: =SUM(CG14:CG36) -> 172008
A39: 11) Participant Discount Rate = | C39: =+'Gas Input Table Summary'!$D$26 -> 0.1032 | E39: (Federal & State Taxes) | T39: NPV = | V39: =ROUND(V14+NPV($C$41,V15:V36),0) -> 59443 | AA39: =ROUND(AA14+NPV($C$41,AA15:AA36),0) -> 100711 | AB39: =ROUND(AB14+NPV($C$41,AB15:AB36),0) -> -41268 | AG39: NPV = | AH39: =ROUND(AH14+NPV($C$41,AH15:AH36),0) -> 59443 | AL39: =ROUND(AL14+NPV($C$41,AL15:AL36),0) -> 77687 | AN39: =+AH39-AL39 -> -18244 | AW39: NPV = | AZ39: =ROUND(AZ14+NPV($C$43,AZ15:AZ36),0) -> 209290 | BD39: =ROUND(BD14+NPV($C$43,BD15:BD36),0) -> 85673 | BE39: =AZ39-BD39 -> 123617 | BN39: NPV = | BP39: =ROUND(BP14+NPV($C$39,BP15:BP36),0) -> 402335 | BR39: =ROUND(BR14+NPV($C$39,BR15:BR36),0) -> 80586 | BT39: =ROUND(BT14+NPV($C$39,BT15:BT36),0) -> 321749 | BZ39: NPV = | CA39: =ROUND(CA14+NPV($C$41,CA15:CA36),0) -> 134054 | CE39: =ROUND(CE14+NPV($C$41,CE15:CE36),0) -> 85673 | CG39: =ROUND(CG14+NPV($C$41,CG15:CG36),0) -> 48381
DB40: =$J23 -> 9
A41: 12) Utility Discount Rate = | C41: =+'Gas Input Table Summary'!$D$27 -> 0.07216 | E41: Test Results | F41: NPV | G41: B/C | K41: Total NPV = | N41: =AB39 -> -41268 | AD41: Total NPV = | AG41: =AN39 -> -18244 | AP41: Total NPV = | AS41: =BE39 -> 123617 | BG41: Total NPV = | BJ41: =BT39 -> 321749 | BV41: Total NPV = | BY41: =CG39 -> 48381 | DB41: =$J24 -> 10
E42: Ratepayer Impact Measure Test | F42: =N41 -> -41268 | G42: =N42 -> 0.59 | K42: Benefit/Cost Ratio = | N42: =ROUND(V39/AA39,2) -> 0.59 | AD42: Benefit/Cost Ratio = | AG42: =ROUND(AH39/AL39,2) -> 0.77 | AP42: Benefit/Cost Ratio = | AS42: =ROUND(AZ39/BD39,2) -> 2.44 | BG42: Benefit/Cost Ratio = | BJ42: =ROUND(BP39/BR39,2) -> 4.99 | BV42: Benefit/Cost Ratio = | BY42: =ROUND(CA39/CE39,2) -> 1.56 | DB42: =$J25 -> 11
A43: 13) Societal Discount Rate = | C43: =+'Gas Input Table Summary'!$D$28 -> 0.0247 | E43: Utility Cost Test | F43: =AG41 -> -18244 | G43: =AG42 -> 0.77 | DB43: =$J26 -> 12
E44: Societal Test | F44: =AS41 -> 123617 | G44: =AS42 -> 2.44 | J44: Worksheet Calculations | BV44: Worksheet Calculations
A45: 14) General Input Data Year = | C45: =+'Gas Input Table Summary'!$D$29 -> 2020 | E45: Participant Test | F45: =BJ41 -> 321749 | G45: =BJ42 -> 4.99 | J45: (A) | K45: = Average Dk/Participant Saved (21) x Number of Participants (23) for Project Life (20) | T45: (I) | U45: = (G) x (H) | AD45: Worksheet Calculations | AP45: Worksheet Calculations | BG45: Worksheet Calculations | BV45: (A) | BW45: = Table 1 (F)
E46: Total Resource Cost Test | F46: =BY41 -> 48381 | G46: =BY42 -> 1.56 | J46: (B) | K46: = Commodity Cost (3) escalated | T46: (J) | U46: = (F) + (I) | AD46: (A) | AE46: = Table 1 (F) | AP46: (A) | AQ46: = Table 1 (F) | AW46: (H) | AZ46: = Table 2 (F) | BG46: (A) | BH46: = Table 1 (N) | BL46: (G) | BM46: = (A) + (D) + (F) | BV46: (B) | BW46: = Table 1 (I)
A47: 15) Project Analysis Year 1 = | C47: =+'Total Program Inputs'!C6 -> 2020 | J47: (C) | K47: = (A) x (B) | T47: (K) | U47: = Distribution Delivery Charge (26) escalated. | AD47: (B) | AE47: = Table 1 (I) | AP47: (G) | AQ47: = Table 1 (I) | AW47: (I) | AZ47: = Direct Part. Costs (17) x No. of Part. (23) - Table 1 (N) | BG47: (B) | BH47: = Table 1 (A) | BL47: (H) | BM47: = Direct Participant Costs (17) x Number of Participants (23) | BV47: (C) | BW47: = Table 3 (D)
J48: (D) | K48: = Variable O&M Cost (6), escalated | T48: (L) | U48: = (A) x (K) x (1-Inverse of Tax Rate (27) | AD48: (C) | AE48: = Table 1 (J) | AP48: (C) | AQ48: = Non-Gas Fuel Cost (7), adjusted for losses (8), escalated.. | AW48: (J) | AZ48: = (H) + (I) | BG48: (C) | BH48: = Retail Rate (1) escalated. | BL48: (I) | BM48: = (G) - (H) | BV48: (D) | BW48: = (A) + (B) + (C)
J49: (E) | K49: = (A) x (D) | T49: (M) | U49: = Admin & Operating Costs (16a) | AD49: (D) | AE49: = Table 1 (M) | AP49: (D) | AQ49: = (C) x [Avg. Non-Gas Fuel Units/Part.Saved (22) x No. of Part. (23) | AW49: (K) | AZ49: = (G) - (J) | BG49: (D) | BH49: =(B) x (C) | BV49: (E) | BW49: = Table 3 (H) | DB49: =$J27 -> 13
J50: (F) | K50: = (C) + (E) | T50: (N) | U50: = Incentive Costs (16b) | AD50: (E) | AE50: = Table 1 (N) | AP50: (E) | AQ50: = Gas Environmental Damage Factor (9), escalated | BG50: (E) | BH50: = Non-Gas Fuel Retail Rate (2), escalated. | BV50: (F) | BW50: = Table 3 (I) | DB50: =$J28 -> 14
J51: (G) | K51: = (A) x Peak Reduction Factor (5) | T51: (O) | U51: = (L) + (M) + (N) | AD51: (F) | AE51: = (D) + (E) | AP51: (F) | AQ51: = Table 1 (A) x (E) | BG51: (F) | BH51: = (E) x [Avg. Non-Gas Fuel Units/Part.Saved (22) x No. of Part. (23) | BV51: (G) | BW51: = (E) + (F) | DB51: =$J29 -> 15
J52: (H) | K52: = Demand Cost (4) escalated. | T52: (P) | U52: = (J) - (O) | AD52: (G) | AE52: = (C) - (F) | AP52: (G) | AQ52: = (A) + (B) + (D) + (F) | BV52: (H) | BW52: = (D) - (G)

Sheet Res .95+% Res Furnace - Replace
A1: NATURAL GAS CONSERVATION PROGRAMS/DEMAND-SIDE MANAGEMENT | K1: Table 1 | AD1: Table 2 | AP1: Table 3 | BG1: Table 4 | BV1: Table 5
A2: BEN/COST ANALYSIS FOR GAS CONSERVATION | K2: Ratepayer Impact Measure Test | AD2: Utility Cost Test | AP2: Societal Test | BG2: Participant Test | BV2: Total Resource Cost Test
A4: Company: | B4: Montana-Dakota Utilities Co. | K4: Company: | M4: =B4 -> Montana-Dakota Utilities Co. | AD4: Company: | AF4: =B4 -> Montana-Dakota Utilities Co. | AP4: Company: | AR4: =AF4 -> Montana-Dakota Utilities Co. | BH4: Company: | BI4: =AR4 -> Montana-Dakota Utilities Co. | BW4: Company: | BX4: =BI4 -> Montana-Dakota Utilities Co.
A5: Project: | B5: Residential 95+% AFUE Furnace - Replacement | K5: Project: | M5: =$B$5 -> Residential 95+% AFUE Furnace - Replacement | AD5: Project: | AF5: =$B$5 -> Residential 95+% AFUE Furnace - Replacement | AP5: Project: | AR5: =$B$5 -> Residential 95+% AFUE Furnace - Replacement | BH5: Project: | BI5: =$B$5 -> Residential 95+% AFUE Furnace - Replacement | BW5: Project: | BX5: =$B$5 -> Residential 95+% AFUE Furnace - Replacement
A6: Program Years: | B6: ='Total Program'!$B$6 -> 2020
N7: Benefits | X7: Costs | AF7: Benefits | AJ7: Costs | AR7: Benefits | BB7: Costs | BI7: Benefits | BR7: Costs | BX7: Benefits | CC7: Costs
A8: Input Data | F8: =+'Total Program Inputs'!C6 -> 2020 | AB8: Annual | AN8: Annual | AT8: Non-Gas | BE8: Annual | BT8: Annual | CG8: Annual
M9: Total | N9: Gas | O9: Gas | P9: Variable | Q9: Variable | R9: Total | S9: Peak Dk | T9: Demand | U9: Total | W9: Distribution | Y9: Program | AA9: Total | AB9: Benefits | AF9: Total | AG9: Total | AH9: Annual | AJ9: Program | AL9: Utility | AN9: Benefits | AR9: Total | AS9: Total | AT9: Energy | AU9: Non-Gas | AV9: Environmental | AW9: Environmental | AZ9: Annual | BB9: Utility | BC9: Participants' | BD9: Annual | BE9: Benefits | BJ9: Total | BL9: Gas | BM9: Non-Gas | BN9: Non-Gas | BP9: Total | BR9: Direct | BT9: Benefits | BX9: Total | BY9: Total | BZ9: Non-Gas | CA9: Total | CC9: Utility | CD9: Participants' | CG9: Benefits
A10: 1) Retail Rate ($/Dk) = | C10: =+'Gas Input Table Summary'!$D$7 -> 6.088 | E10: 16) Utility Project Costs | M10: Energy | N10: Commodity | O10: Commodity | P10: O & M | Q10: O & M | R10: Energy | S10: Demand | T10: Savings | U10: Demand | V10: Total | W10: Delivery | X10: Lost | Y10: Admin | Z10: Incentive | AA10: Program | AB10: Less | AF10: Energy | AG10: Demand | AH10: Total | AJ10: Admin | AK10: Incentive | AL10: Program | AN10: Less | AR10: Energy | AS10: Demand | AT10: Savings | AU10: Energy | AV10: Damage | AW10: Damage | AZ10: Total | BB10: Program | BC10: Costs Net | BD10: Total | BE10: Less | BI10: Incentives | BJ10: Energy | BK10: Retail | BL10: Bill | BM10: Fuel | BN10: Energy | BP10: Annual | BR10: Participant | BT10: Less | BX10: Energy | BY10: Demand | BZ10: Energy | CA10: Annual | CC10: Program | CD10: Costs Net | CE10: Total | CG10: Less
A11: Escalation Rate = | C11: =+'Gas Input Table Summary'!$D$8 -> 0.035 | E11: 16a) Administrative & Operating Costs = | F11: =+'Total Program Inputs'!M12 -> 5548 | J11: t | M11: Reduction | N11: Cost/Dk | O11: Savings | P11: Cost/Dk | Q11: Savings | R11: Savings | S11: Reduction | T11: Per Unit | U11: Savings | V11: Savings | W11: Charge | X11: Margin | Y11: Costs | Z11: Costs | AA11: Costs | AB11: Costs | AF11: Savings | AG11: Savings | AH11: Savings | AJ11: Costs | AK11: Costs | AL11: Costs | AN11: Costs | AR11: Savings | AS11: Savings | AT11: ($/Part.) | AU11: Savings | AV11: Savings/Dk | AW11: Savings | AZ11: Savings | BB11: Costs | BC11: of Rebate | BD11: Costs | BE11: Costs | BI11: Received | BJ11: Reduction | BK11: Rate | BL11: Savings | BM11: Retail Rate | BN11: Savings | BP11: Benefits | BR11: Costs | BT11: Costs | BX11: Savings | BY11: Savings | BZ11: Savings | CA11: Benefits | CC11: Costs | CD11: of Rebate | CE11: Costs | CG11: Costs
E12: 16b) Incentive Costs = | F12: =+'Total Program Inputs'!I12 -> 79200 | L12: Year | M12: (A) | N12: (B) | O12: (C) | P12: (D) | Q12: (E) | R12: (F) | S12: (G) | T12: (H) | U12: (I) | V12: (J) | W12: (K) | X12: (L) | Y12: (M) | Z12: (N) | AA12: (O) | AB12: (P) | AE12: Year | AF12: (A) | AG12: (B) | AH12: (C) | AJ12: (D) | AK12: (E) | AL12: (F) | AN12: (G) | AQ12: Year | AR12: (A) | AS12: (B) | AT12: (C) | AU12: (D) | AV12: (E) | AW12: (F) | AZ12: (G) | BB12: (H) | BC12: (I) | BD12: (J) | BE12: (K) | BH12: Year | BI12: (A) | BJ12: (B) | BK12: (C) | BL12: (D) | BM12: (E) | BN12: (F) | BP12: (G) | BR12: (H) | BT12: (I) | BW12: Year | BX12: (A) | BY12: (B) | BZ12: (C) | CA12: (D) | CC12: (E) | CD12: (F) | CE12: (G) | CG12: (H)
A13: 2) Non-Gas Fuel Retail Rate ($/Fuel Unit) = | C13: =+'Gas Input Table Summary'!$D$9 -> 0.12423 | E13: 16c) Total Utility Project Costs = | F13: =SUM(F11:F12) -> 84748
A14: Escalation Rate = | C14: =+'Gas Input Table Summary'!$D$10 -> 0.035 | J14: =$C$47-$C$45 -> 0 | L14: =$C$47 -> 2020 | M14: =ROUND(IF($C$47+$F$23>L14,F25*F30,0),0) -> 4909 | N14: =ROUND($C$17*(1+$C$18)^J14,3) -> 2.516 | O14: =ROUND(M14*N14,0) -> 12351 | P14: =ROUND($C$25*(1+$C$26)^J14,3) -> 0 | Q14: =ROUND(M14*P14,0) -> 0 | R14: =O14+Q14 -> 12351 | S14: =ROUND(M14*$C$23,1) -> 49.1 | T14: =ROUND($C$20*(1+$C$21)^J14,0) -> 149 | U14: =ROUND(S14*T14,0) -> 7316 | V14: =ROUND(+U14+R14,0) -> 19667 | W14: =ROUND($H$36*(1+$C$11)^J14,3) -> 1.836 | X14: =ROUND((1-$H$38)*(W14*M14),0) -> 7120 | Y14: =ROUND($F$11,0) -> 5548 | Z14: =ROUND($F$12,0) -> 79200 | AA14: =SUM(X14:Z14) -> 91868 | AB14: =V14-AA14 -> -72201 | AE14: =$C$47 -> 2020 | AF14: =+R14 -> 12351 | AG14: =+U14 -> 7316 | AH14: =+AG14+AF14 -> 19667 | AJ14: =ROUND(Y14,0) -> 5548 | AK14: =ROUND(Z14,0) -> 79200 | AL14: =SUM(AJ14:AK14) -> 84748 | AN14: =+AH14-AL14 -> -65081 | AQ14: =$C$47 -> 2020 | AR14: =AF14 -> 12351 | AS14: =+AG14 -> 7316 | AT14: =ROUND(($C$28/(1-$C$31))*(1+$C$29)^J14,3) -> 0.029 | AU14: =ROUND(IF($C$47+$F$23>$AQ14,$F$30*$F$27,0)*AT14,0) -> 5512 | AV14: =ROUND($C$33*(1+$C$34)^J14,3) -> 0.38 | AW14: =ROUND(AV14*M14,0) -> 1865 | AZ14: =ROUND(AR14+AS14+AU14+AW14+AY14,0) -> 27044 | BB14: =ROUND($F$13,0) -> 84748 | BC14: =ROUND((F15*F30)-Z14,0) -> 228888 | BD14: =BB14+BC14 -> 313636 | BE14: =AZ14-BD14 -> -286592 | BH14: =$C$47 -> 2020 | BI14: =+F12 -> 79200 | BJ14: =+M14 -> 4909 | BK14: =ROUND($C$10*(1+$C$11)^J14,3) -> 6.088 | BL14: =ROUND(BJ14*BK14,0) -> 29886 | BM14: =ROUND($C$13*(1+$C$14)^J14,3) -> 0.124 | BN14: =ROUND(IF($C$47+$F$23>$BH14,$F$30*$F$27,0)*BM14,0) -> 23570 | BP14: =BI14+BL14+BN14+BO14 -> 132656 | BR14: =ROUND(F15*F30,0) -> 308088 | BT14: =BP14-BR14 -> -175432 | BW14: =$C$47 -> 2020 | BX14: =$R14 -> 12351 | BY14: =U14 -> 7316 | BZ14: =AU14 -> 5512 | CA14: =SUM(BX14:BZ14) -> 25179 | CC14: =BB14 -> 84748 | CD14: =BC14 -> 228888 | CE14: =SUM(CC14:CD14) -> 313636 | CG14: =CA14-CE14 -> -288457
A15: Non-Gas Fuel Units (ie. kWh,Gallons, etc) = | C15: =+'Gas Input Table Summary'!$D$11 -> Kwh | E15: 17) Direct Participant Costs ($/Part.) = | F15: =ROUND('Database Inputs'!K11,0) -> 1167 | J15: =J14+1 -> 1 | L15: =L14+1 -> 2021 | M15: =ROUND(IF($C$47+$F$23>L15,$F$25*$F$30,0)+IF($C$48+$G$23>L15,$G$25*$G$30,0),0) -> 4909 | N15: 2.604 | O15: 12783 | P15: 0 | Q15: =ROUND(M15*P15,0) -> 0 | R15: =O15+Q15 -> 12783 | S15: =ROUND(M15*$C$23,1) -> 49.1 | T15: =ROUND($C$20*(1+$C$21)^J15,0) -> 150 | U15: =ROUND(S15*T15,0) -> 7365 | V15: =ROUND(+U15+R15,0) -> 20148 | W15: =ROUND($H$36*(1+$C$11)^J15,3) -> 1.9 | X15: =ROUND((1-$H$38)*(W15*M15),0) -> 7368 | Y15: =ROUND($G$11,0) -> 0 | Z15: =ROUND($G$12,0) -> 0 | AA15: =SUM(X15:Z15) -> 7368 | AB15: =V15-AA15 -> 12780 | AE15: =AE14+1 -> 2021 | AF15: 12783 | AG15: 7365 | AH15: =+AG15+AF15 -> 20148 | AJ15: =ROUND(Y15,0) -> 0 | AK15: 0 | AL15: 0 | AN15: 20148 | AQ15: =AQ14+1 -> 2021 | AR15: 12783 | AS15: 7365 | AT15: =ROUND(($C$28/(1-$C$31))*(1+$C$29)^J15,3) -> 0.03 | AU15: =ROUND((IF($C$47+$F$23>$AQ15,$F$27*$F$30,0)+IF($C$48+$G$23>AQ15,$G$27*$G$30,0))*AT15,0) -> 5702 | AV15: =ROUND($C$33*(1+$C$34)^J15,3) -> 0.388 | AW15: =ROUND(AV15*M15,0) -> 1905 | AZ15: =ROUND(AR15+AS15+AU15+AW15+AY15,0) -> 27755 | BB15: =ROUND($G$13,0) -> 0 | BC15: =ROUND(($G$15*$G$30)-$Z$15,0) -> 0 | BD15: =BB15+BC15 -> 0 | BE15: 27755 | BH15: =BH14+1 -> 2021 | BI15: =+G12 -> 0 | BJ15: 4909 | BK15: =ROUND($C$10*(1+$C$11)^J15,3) -> 6.301 | BL15: =ROUND(BJ15*BK15,0) -> 30932 | BM15: =ROUND($C$13*(1+$C$14)^J15,3) -> 0.129 | BN15: =ROUND((IF($C$47+$F$23>BH15,$F$27*$F$30,0)+IF($C$48+$G$23>BH15,$G$27*$G$30,0))*BM15,0) -> 24520 | BP15: 55452 | BR15: =ROUND($G$15*$G$30,0) -> 0 | BT15: =BP15-BR15 -> 55452 | BW15: =BW14+1 -> 2021 | BX15: 12783 | BY15: =U15 -> 7365 | BZ15: =AU15 -> 5702 | CA15: =SUM(BX15:BZ15) -> 25850 | CC15: =BB15 -> 0 | CD15: 0 | CE15: =SUM(CC15:CD15) -> 0 | CG15: =CA15-CE15 -> 25850
J16: 2 | L16: 2022 | M16: =ROUND(IF($C$47+$F$23>L16,$F$25*$F$30,0)+IF($C$48+$G$23>L16,$G$25*$G$30,0)+IF($C$49+$H$23>L16,$H$25*$H$30,0),0) -> 4909 | N16: 2.695 | O16: 13230 | P16: 0 | Q16: 0 | R16: 13230 | S16: 49.1 | T16: 152 | U16: =ROUND(S16*T16,0) -> 7463 | V16: =ROUND(+U16+R16,0) -> 20693 | W16: 1.967 | X16: 7628 | Y16: =ROUND($H$11,0) -> 0 | Z16: =ROUND($H$12,0) -> 0 | AA16: =SUM(X16:Z16) -> 7628 | AB16: =V16-AA16 -> 13065 | AE16: 2022 | AF16: 13230 | AG16: 7463 | AH16: =+AG16+AF16 -> 20693 | AJ16: 0 | AK16: 0 | AL16: =SUM(AJ16:AK16) -> 0 | AN16: =+AH16-AL16 -> 20693 | AQ16: 2022 | AR16: 13230 | AS16: 7463 | AT16: 0.031 | AU16: =ROUND((IF($C$47+$F$23>$AQ16,$F$27*$F$30,0)+IF($C$48+$G$23>AQ16,$G$27*$G$30,0)+IF($C$49+$H$23>AQ16,$H$27*$H$30,0))*AT16,0) -> 5892 | AV16: 0.397 | AW16: 1949 | AZ16: =ROUND(AR16+AS16+AU16+AW16+AY16,0) -> 28534 | BB16: =ROUND($H$13,0) -> 0 | BC16: =ROUND(($H$15*$H$30)-$Z$16,0) -> 0 | BD16: =BB16+BC16 -> 0 | BE16: 28534 | BH16: 2022 | BI16: =ROUND(H12,0) -> 0 | BJ16: 4909 | BK16: 6.522 | BL16: =ROUND(BJ16*BK16,0) -> 32016 | BM16: 0.133 | BN16: =ROUND((IF($C$47+$F$23>BH16,$F$27*$F$30,0)+IF($C$49+$H$23>BH16,$H$27*$H$30,0)+IF($C$48+$G$23>BH16,$G$27*$G$30,0))*BM16,0) -> 25281 | BP16: =BI16+BL16+BN16+BO16 -> 57297 | BR16: =ROUND($H$15*$H$30,0) -> 0 | BT16: =BP16-BR16 -> 57297 | BW16: 2022 | BX16: 13230 | BY16: 7463 | BZ16: 5892 | CA16: =SUM(BX16:BZ16) -> 26585 | CC16: 0 | CD16: 0 | CE16: =SUM(CC16:CD16) -> 0 | CG16: =CA16-CE16 -> 26585
A17: 3) Commodity Cost ($/Dk) = | C17: =+'Gas Input Table Summary'!$D$12 -> 2.516 | E17: 18) Participant Non-Energy Costs (Annual $/Part.) = | F17: =+'Gas Input Table Summary'!$D$35 -> 0 | J17: 3 | L17: 2023 | M17: =ROUND(IF($C$47+$F$23>L17,$F$25*$F$30,0)+IF($C$48+$G$23>L17,$G$25*$G$30,0)+IF($C$49+$H$23>L17,$H$25*$H$30,0),0) -> 4909 | N17: 2.79 | O17: 13696 | P17: 0 | Q17: 0 | R17: 13696 | S17: 49.1 | T17: 153 | U17: 7512 | V17: 21208 | W17: 2.036 | X17: 7896 | Y17: 0 | Z17: 0 | AA17: 7896 | AB17: =V17-AA17 -> 13312 | AE17: 2023 | AF17: 13696 | AG17: 7512 | AH17: 21208 | AJ17: 0 | AK17: 0 | AL17: 0 | AN17: 21208 | AQ17: 2023 | AR17: 13696 | AS17: 7512 | AT17: 0.033 | AU17: =ROUND((IF($C$47+$F$23>$AQ17,$F$27*$F$30,0)+IF($C$48+$G$23>AQ17,$G$27*$G$30,0)+IF($C$49+$H$23>AQ17,$H$27*$H$30,0))*AT17,0) -> 6273 | AV17: 0.405 | AW17: 1988 | AZ17: 29469 | BB17: 0 | BC17: 0 | BD17: 0 | BE17: 29469 | BH17: 2023 | BI17: 0 | BJ17: 4909 | BK17: 6.75 | BL17: 33136 | BM17: 0.138 | BN17: =ROUND((IF($C$47+$F$23>BH17,$F$27*$F$30,0)+IF($C$49+$H$23>BH17,$H$27*$H$30,0)+IF($C$48+$G$23>BH17,$G$27*$G$30,0))*BM17,0) -> 26231 | BP17: 59367 | BR17: =+BC17 -> 0 | BT17: 59367 | BW17: 2023 | BX17: 13696 | BY17: 7512 | BZ17: 6273 | CA17: 27481 | CC17: 0 | CD17: 0 | CE17: 0 | CG17: 27481
A18: Escalation Rate = | C18: =+'Gas Input Table Summary'!$D$13 -> 0.035 | E18: Escalation Rate = | F18: =+'Gas Input Table Summary'!$D$38 -> 0 | J18: 4 | L18: 2024 | M18: 4909 | N18: 2.887 | O18: 14172 | P18: 0 | Q18: 0 | R18: 14172 | S18: 49.1 | T18: 155 | U18: 7611 | V18: 21783 | W18: 2.107 | X18: 8171 | Y18: 0 | Z18: 0 | AA18: 8171 | AB18: 13612 | AE18: 2024 | AF18: 14172 | AG18: 7611 | AH18: 21783 | AJ18: 0 | AK18: 0 | AL18: 0 | AN18: 21783 | AQ18: 2024 | AR18: 14172 | AS18: 7611 | AT18: 0.034 | AU18: 6463 | AV18: 0.414 | AW18: 2032 | AZ18: 30278 | BB18: 0 | BC18: 0 | BD18: 0 | BE18: 30278 | BH18: 2024 | BI18: 0 | BJ18: 4909 | BK18: 6.986 | BL18: 34294 | BM18: 0.143 | BN18: 27181 | BP18: 61475 | BR18: 0 | BT18: 61475 | BW18: 2024 | BX18: 14172 | BY18: 7611 | BZ18: 6463 | CA18: 28246 | CC18: 0 | CD18: 0 | CE18: 0 | CG18: 28246 | DB18: t
J19: 5 | L19: 2025 | M19: 4909 | N19: 2.988 | O19: 14668 | P19: 0 | Q19: 0 | R19: 14668 | S19: 49.1 | T19: 156 | U19: 7660 | V19: 22328 | W19: 2.181 | X19: 8458 | Y19: 0 | Z19: 0 | AA19: 8458 | AB19: 13870 | AE19: 2025 | AF19: 14668 | AG19: 7660 | AH19: 22328 | AJ19: 0 | AK19: 0 | AL19: 0 | AN19: 22328 | AQ19: 2025 | AR19: 14668 | AS19: 7660 | AT19: 0.035 | AU19: 6653 | AV19: 0.423 | AW19: 2077 | AZ19: 31058 | BB19: 0 | BC19: 0 | BD19: 0 | BE19: 31058 | BH19: 2025 | BI19: 0 | BJ19: 4909 | BK19: 7.231 | BL19: 35497 | BM19: 0.148 | BN19: 28132 | BP19: 63629 | BR19: 0 | BT19: 63629 | BW19: 2025 | BX19: 14668 | BY19: 7660 | BZ19: 6653 | CA19: 28981 | CC19: 0 | CD19: 0 | CE19: 0 | CG19: 28981
A20: 4) Demand Cost ($/Unit/Yr) = | C20: =+'Gas Input Table Summary'!$D$14 -> 148.86 | E20: 19) Participant Non-Energy Savings (Annual $/Part) = | F20: =+'Gas Input Table Summary'!$D$41 -> 0 | J20: 6 | L20: 2026 | M20: 4909 | N20: 3.093 | O20: 15184 | P20: 0 | Q20: 0 | R20: 15184 | S20: 49.1 | T20: 158 | U20: 7758 | V20: 22942 | W20: 2.257 | X20: 8753 | Y20: 0 | Z20: 0 | AA20: 8753 | AB20: 14189 | AE20: 2026 | AF20: 15184 | AG20: 7758 | AH20: 22942 | AJ20: 0 | AK20: 0 | AL20: 0 | AN20: 22942 | AQ20: 2026 | AR20: 15184 | AS20: 7758 | AT20: 0.036 | AU20: 6843 | AV20: 0.432 | AW20: 2121 | AZ20: 31906 | BB20: 0 | BC20: 0 | BD20: 0 | BE20: 31906 | BH20: 2026 | BI20: 0 | BJ20: 4909 | BK20: 7.484 | BL20: 36739 | BM20: 0.153 | BN20: 29082 | BP20: 65821 | BR20: 0 | BT20: 65821 | BW20: 2026 | BX20: 15184 | BY20: 7758 | BZ20: 6843 | CA20: 29785 | CC20: 0 | CD20: 0 | CE20: 0 | CG20: 29785
A21: Escalation Rate = | C21: =+'Gas Input Table Summary'!$D$15 -> 0.01 | E21: Escalation Rate = | F21: =+'Gas Input Table Summary'!$D$44 -> 0 | J21: 7 | L21: 2027 | M21: 4909 | N21: 3.201 | O21: 15714 | P21: 0 | Q21: 0 | R21: 15714 | S21: 49.1 | T21: 160 | U21: 7856 | V21: 23570 | W21: 2.336 | X21: 9059 | Y21: 0 | Z21: 0 | AA21: 9059 | AB21: 14511 | AE21: 2027 | AF21: 15714 | AG21: 7856 | AH21: 23570 | AJ21: 0 | AK21: 0 | AL21: 0 | AN21: 23570 | AQ21: 2027 | AR21: 15714 | AS21: 7856 | AT21: 0.037 | AU21: 7033 | AV21: 0.441 | AW21: 2165 | AZ21: 32768 | BB21: 0 | BC21: 0 | BD21: 0 | BE21: 32768 | BH21: 2027 | BI21: 0 | BJ21: 4909 | BK21: 7.746 | BL21: 38025 | BM21: 0.158 | BN21: 30033 | BP21: 68058 | BR21: 0 | BT21: 68058 | BW21: 2027 | BX21: 15714 | BY21: 7856 | BZ21: 7033 | CA21: 30603 | CC21: 0 | CD21: 0 | CE21: 0 | CG21: 30603 | DB21: =$J14 -> 0
J22: 8 | L22: 2028 | M22: 4909 | N22: 3.313 | O22: 16264 | P22: 0 | Q22: 0 | R22: 16264 | S22: 49.1 | T22: 161 | U22: 7905 | V22: 24169 | W22: 2.418 | X22: 9377 | Y22: 0 | Z22: 0 | AA22: 9377 | AB22: 14792 | AE22: 2028 | AF22: 16264 | AG22: 7905 | AH22: 24169 | AJ22: 0 | AK22: 0 | AL22: 0 | AN22: 24169 | AQ22: 2028 | AR22: 16264 | AS22: 7905 | AT22: 0.039 | AU22: 7413 | AV22: 0.451 | AW22: 2214 | AZ22: 33796 | BB22: 0 | BC22: 0 | BD22: 0 | BE22: 33796 | BH22: 2028 | BI22: 0 | BJ22: 4909 | BK22: 8.017 | BL22: 39355 | BM22: 0.164 | BN22: 31173 | BP22: 70528 | BR22: 0 | BT22: 70528 | BW22: 2028 | BX22: 16264 | BY22: 7905 | BZ22: 7413 | CA22: 31582 | CC22: 0 | CD22: 0 | CE22: 0 | CG22: 31582 | DB22: =$J15 -> 1
A23: 5) Peak Reduction Factor = | C23: =+'Gas Input Table Summary'!$D$16 -> 0.01 | E23: 20) Project Life (Years) = | F23: =ROUND('Database Inputs'!D11,0) -> 20 | J23: 9 | L23: 2029 | M23: 4909 | N23: 3.429 | O23: 16833 | P23: 0 | Q23: 0 | R23: 16833 | S23: 49.1 | T23: 163 | U23: 8003 | V23: 24836 | W23: 2.502 | X23: 9703 | Y23: 0 | Z23: 0 | AA23: 9703 | AB23: 15133 | AE23: 2029 | AF23: 16833 | AG23: 8003 | AH23: 24836 | AJ23: 0 | AK23: 0 | AL23: 0 | AN23: 24836 | AQ23: 2029 | AR23: 16833 | AS23: 8003 | AT23: 0.04 | AU23: 7603 | AV23: 0.461 | AW23: 2263 | AZ23: 34702 | BB23: 0 | BC23: 0 | BD23: 0 | BE23: 34702 | BH23: 2029 | BI23: 0 | BJ23: 4909 | BK23: 8.297 | BL23: 40730 | BM23: 0.169 | BN23: 32124 | BP23: 72854 | BR23: 0 | BT23: 72854 | BW23: 2029 | BX23: 16833 | BY23: 8003 | BZ23: 7603 | CA23: 32439 | CC23: 0 | CD23: 0 | CE23: 0 | CG23: 32439 | DB23: =$J16 -> 2
J24: 10 | L24: 2030 | M24: 4909 | N24: 3.549 | O24: 17422 | P24: 0 | Q24: 0 | R24: 17422 | S24: 49.1 | T24: 164 | U24: 8052 | V24: 25474 | W24: 2.59 | X24: 10044 | Y24: 0 | Z24: 0 | AA24: 10044 | AB24: 15430 | AE24: 2030 | AF24: 17422 | AG24: 8052 | AH24: 25474 | AJ24: 0 | AK24: 0 | AL24: 0 | AN24: 25474 | AQ24: 2030 | AR24: 17422 | AS24: 8052 | AT24: 0.041 | AU24: 7793 | AV24: 0.471 | AW24: 2312 | AZ24: 35579 | BB24: 0 | BC24: 0 | BD24: 0 | BE24: 35579 | BH24: 2030 | BI24: 0 | BJ24: 4909 | BK24: 8.588 | BL24: 42158 | BM24: 0.175 | BN24: 33264 | BP24: 75422 | BR24: 0 | BT24: 75422 | BW24: 2030 | BX24: 17422 | BY24: 8052 | BZ24: 7793 | CA24: 33267 | CC24: 0 | CD24: 0 | CE24: 0 | CG24: 33267 | DB24: =$J17 -> 3
A25: 6) Variable O&M ($/Dk) = | C25: =+'Gas Input Table Summary'!$D$17 -> 0 | E25: 21) Avg. Dk/Part. Saved = | F25: =+ROUND(F32/F30,3) -> 18.595 | J25: 11 | L25: 2031 | M25: 4909 | N25: 3.673 | O25: 18031 | P25: 0 | Q25: 0 | R25: 18031 | S25: 49.1 | T25: 166 | U25: 8151 | V25: 26182 | W25: 2.681 | X25: 10397 | Y25: 0 | Z25: 0 | AA25: 10397 | AB25: 15785 | AE25: 2031 | AF25: 18031 | AG25: 8151 | AH25: 26182 | AJ25: 0 | AK25: 0 | AL25: 0 | AN25: 26182 | AQ25: 2031 | AR25: 18031 | AS25: 8151 | AT25: 0.043 | AU25: 8173 | AV25: 0.481 | AW25: 2361 | AZ25: 36716 | BB25: 0 | BC25: 0 | BD25: 0 | BE25: 36716 | BH25: 2031 | BI25: 0 | BJ25: 4909 | BK25: 8.888 | BL25: 43631 | BM25: 0.181 | BN25: 34404 | BP25: 78035 | BR25: 0 | BT25: 78035 | BW25: 2031 | BX25: 18031 | BY25: 8151 | BZ25: 8173 | CA25: 34355 | CC25: 0 | CD25: 0 | CE25: 0 | CG25: 34355
A26: Escalation Rate = | C26: =+'Gas Input Table Summary'!$D$18 -> 0 | J26: 12 | L26: 2032 | M26: 4909 | N26: 3.802 | O26: 18664 | P26: 0 | Q26: 0 | R26: 18664 | S26: 49.1 | T26: 168 | U26: 8249 | V26: 26913 | W26: 2.774 | X26: 10758 | Y26: 0 | Z26: 0 | AA26: 10758 | AB26: 16155 | AE26: 2032 | AF26: 18664 | AG26: 8249 | AH26: 26913 | AJ26: 0 | AK26: 0 | AL26: 0 | AN26: 26913 | AQ26: 2032 | AR26: 18664 | AS26: 8249 | AT26: 0.044 | AU26: 8364 | AV26: 0.491 | AW26: 2410 | AZ26: 37687 | BB26: 0 | BC26: 0 | BD26: 0 | BE26: 37687 | BH26: 2032 | BI26: 0 | BJ26: 4909 | BK26: 9.199 | BL26: 45158 | BM26: 0.188 | BN26: 35735 | BP26: 80893 | BR26: 0 | BT26: 80893 | BW26: 2032 | BX26: 18664 | BY26: 8249 | BZ26: 8364 | CA26: 35277 | CC26: 0 | CD26: 0 | CE26: 0 | CG26: 35277
E27: 22) Avg Non-Gas Fuel Units/Part. Saved = | F27: =+'Database Inputs'!H11 -> 720 | J27: 13 | L27: 2033 | M27: 4909 | N27: 3.935 | O27: 19317 | P27: 0 | Q27: 0 | R27: 19317 | S27: 49.1 | T27: 169 | U27: 8298 | V27: 27615 | W27: 2.871 | X27: 11134 | Y27: 0 | Z27: 0 | AA27: 11134 | AB27: 16481 | AE27: 2033 | AF27: 19317 | AG27: 8298 | AH27: 27615 | AJ27: 0 | AK27: 0 | AL27: 0 | AN27: 27615 | AQ27: 2033 | AR27: 19317 | AS27: 8298 | AT27: 0.046 | AU27: 8744 | AV27: 0.502 | AW27: 2464 | AZ27: 38823 | BB27: 0 | BC27: 0 | BD27: 0 | BE27: 38823 | BH27: 2033 | BI27: 0 | BJ27: 4909 | BK27: 9.521 | BL27: 46739 | BM27: 0.194 | BN27: 36876 | BP27: 83615 | BR27: 0 | BT27: 83615 | BW27: 2033 | BX27: 19317 | BY27: 8298 | BZ27: 8744 | CA27: 36359 | CC27: 0 | CD27: 0 | CE27: 0 | CG27: 36359
A28: 7) Non-Gas Fuel Cost ($/Fuel Unit) = | C28: =+'Gas Input Table Summary'!$D$19 -> 0.02738 | E28: 22a) Avg Additional Non-Gas Fuel Units/ Part. Used = | F28: 0 | J28: 14 | L28: 2034 | M28: 4909 | N28: 4.073 | O28: 19994 | P28: 0 | Q28: 0 | R28: 19994 | S28: 49.1 | T28: 171 | U28: 8396 | V28: 28390 | W28: 2.972 | X28: 11526 | Y28: 0 | Z28: 0 | AA28: 11526 | AB28: 16864 | AE28: 2034 | AF28: 19994 | AG28: 8396 | AH28: 28390 | AJ28: 0 | AK28: 0 | AL28: 0 | AN28: 28390 | AQ28: 2034 | AR28: 19994 | AS28: 8396 | AT28: 0.048 | AU28: 9124 | AV28: 0.513 | AW28: 2518 | AZ28: 40032 | BB28: 0 | BC28: 0 | BD28: 0 | BE28: 40032 | BH28: 2034 | BI28: 0 | BJ28: 4909 | BK28: 9.855 | BL28: 48378 | BM28: 0.201 | BN28: 38206 | BP28: 86584 | BR28: 0 | BT28: 86584 | BW28: 2034 | BX28: 19994 | BY28: 8396 | BZ28: 9124 | CA28: 37514 | CC28: 0 | CD28: 0 | CE28: 0 | CG28: 37514
A29: Escalation Rate = | C29: =+'Gas Input Table Summary'!$D$20 -> 0.035 | J29: 15 | L29: 2035 | M29: 4909 | N29: 4.215 | O29: 20691 | P29: 0 | Q29: 0 | R29: 20691 | S29: 49.1 | T29: 173 | U29: 8494 | V29: 29185 | W29: 3.076 | X29: 11929 | Y29: 0 | Z29: 0 | AA29: 11929 | AB29: 17256 | AE29: 2035 | AF29: 20691 | AG29: 8494 | AH29: 29185 | AJ29: 0 | AK29: 0 | AL29: 0 | AN29: 29185 | AQ29: 2035 | AR29: 20691 | AS29: 8494 | AT29: 0.049 | AU29: 9314 | AV29: 0.524 | AW29: 2572 | AZ29: 41071 | BB29: 0 | BC29: 0 | BD29: 0 | BE29: 41071 | BH29: 2035 | BI29: 0 | BJ29: 4909 | BK29: 10.2 | BL29: 50072 | BM29: 0.208 | BN29: 39537 | BP29: 89609 | BR29: 0 | BT29: 89609 | BW29: 2035 | BX29: 20691 | BY29: 8494 | BZ29: 9314 | CA29: 38499 | CC29: 0 | CD29: 0 | CE29: 0 | CG29: 38499
E30: 23) Number of Participants = | F30: =ROUND('Database Inputs'!C11,0) -> 264 | J30: 16 | L30: 2036 | M30: 4909 | N30: 4.363 | O30: 21418 | P30: 0 | Q30: 0 | R30: 21418 | S30: 49.1 | T30: 175 | U30: 8593 | V30: 30011 | W30: 3.184 | X30: 12348 | Y30: 0 | Z30: 0 | AA30: 12348 | AB30: 17663 | AE30: 2036 | AF30: 21418 | AG30: 8593 | AH30: 30011 | AJ30: 0 | AK30: 0 | AL30: 0 | AN30: 30011 | AQ30: 2036 | AR30: 21418 | AS30: 8593 | AT30: 0.051 | AU30: 9694 | AV30: 0.535 | AW30: 2626 | AZ30: 42331 | BB30: 0 | BC30: 0 | BD30: 0 | BE30: 42331 | BH30: 2036 | BI30: 0 | BJ30: 4909 | BK30: 10.557 | BL30: 51824 | BM30: 0.215 | BN30: 40867 | BP30: 92691 | BR30: 0 | BT30: 92691 | BW30: 2036 | BX30: 21418 | BY30: 8593 | BZ30: 9694 | CA30: 39705 | CC30: 0 | CD30: 0 | CE30: 0 | CG30: 39705 | DB30: =$J18 -> 4
A31: 8) Non-Gas Fuel Loss Factor | C31: =+'Gas Input Table Summary'!$D$21 -> 0.067 | J31: 17 | L31: 2037 | M31: 4909 | N31: 4.515 | O31: 22164 | P31: 0 | Q31: 0 | R31: 22164 | S31: 49.1 | T31: 176 | U31: 8642 | V31: 30806 | W31: 3.295 | X31: 12778 | Y31: 0 | Z31: 0 | AA31: 12778 | AB31: 18028 | AE31: 2037 | AF31: 22164 | AG31: 8642 | AH31: 30806 | AJ31: 0 | AK31: 0 | AL31: 0 | AN31: 30806 | AQ31: 2037 | AR31: 22164 | AS31: 8642 | AT31: 0.053 | AU31: 10074 | AV31: 0.546 | AW31: 2680 | AZ31: 43560 | BB31: 0 | BC31: 0 | BD31: 0 | BE31: 43560 | BH31: 2037 | BI31: 0 | BJ31: 4909 | BK31: 10.926 | BL31: 53636 | BM31: 0.223 | BN31: 42388 | BP31: 96024 | BR31: 0 | BT31: 96024 | BW31: 2037 | BX31: 22164 | BY31: 8642 | BZ31: 10074 | CA31: 40880 | CC31: 0 | CD31: 0 | CE31: 0 | CG31: 40880 | DB31: =$J19 -> 5
E32: 24) Total Annual Dk Saved = | F32: =+'Total Program Inputs'!G12 -> 4909 | J32: 18 | L32: 2038 | M32: 4909 | N32: 4.673 | O32: 22940 | P32: 0 | Q32: 0 | R32: 22940 | S32: 49.1 | T32: 178 | U32: 8740 | V32: 31680 | W32: 3.41 | X32: 13224 | Y32: 0 | Z32: 0 | AA32: 13224 | AB32: 18456 | AE32: 2038 | AF32: 22940 | AG32: 8740 | AH32: 31680 | AJ32: 0 | AK32: 0 | AL32: 0 | AN32: 31680 | AQ32: 2038 | AR32: 22940 | AS32: 8740 | AT32: 0.055 | AU32: 10454 | AV32: 0.558 | AW32: 2739 | AZ32: 44873 | BB32: 0 | BC32: 0 | BD32: 0 | BE32: 44873 | BH32: 2038 | BI32: 0 | BJ32: 4909 | BK32: 11.308 | BL32: 55511 | BM32: 0.231 | BN32: 43908 | BP32: 99419 | BR32: 0 | BT32: 99419 | BW32: 2038 | BX32: 22940 | BY32: 8740 | BZ32: 10454 | CA32: 42134 | CC32: 0 | CD32: 0 | CE32: 0 | CG32: 42134 | DB32: =$J20 -> 6
A33: 9) Gas Environmental Damage Factor = | C33: =+'Gas Input Table Summary'!$D$22 -> 0.38 | J33: 19 | L33: 2039 | M33: 4909 | N33: 4.837 | O33: 23745 | P33: 0 | Q33: 0 | R33: 23745 | S33: 49.1 | T33: 180 | U33: 8838 | V33: 32583 | W33: 3.53 | X33: 13690 | Y33: 0 | Z33: 0 | AA33: 13690 | AB33: 18893 | AE33: 2039 | AF33: 23745 | AG33: 8838 | AH33: 32583 | AJ33: 0 | AK33: 0 | AL33: 0 | AN33: 32583 | AQ33: 2039 | AR33: 23745 | AS33: 8838 | AT33: 0.056 | AU33: 10644 | AV33: 0.57 | AW33: 2798 | AZ33: 46025 | BB33: 0 | BC33: 0 | BD33: 0 | BE33: 46025 | BH33: 2039 | BI33: 0 | BJ33: 4909 | BK33: 11.704 | BL33: 57455 | BM33: 0.239 | BN33: 45429 | BP33: 102884 | BR33: 0 | BT33: 102884 | BW33: 2039 | BX33: 23745 | BY33: 8838 | BZ33: 10644 | CA33: 43227 | CC33: 0 | CD33: 0 | CE33: 0 | CG33: 43227
A34: Escalation Rate = | C34: =+'Gas Input Table Summary'!$D$23 -> 0.0216 | E34: 25) Incentive/Participant = | F34: =ROUND('Database Inputs'!L11,0) -> 300 | J34: 20 | L34: 2040 | M34: 0 | N34: 5.006 | O34: 0 | P34: 0 | Q34: 0 | R34: 0 | S34: 0 | T34: 182 | U34: 0 | V34: 0 | W34: 3.653 | X34: 0 | Y34: 0 | Z34: 0 | AA34: 0 | AB34: 0 | AE34: 2040 | AF34: 0 | AG34: 0 | AH34: 0 | AJ34: 0 | AK34: 0 | AL34: 0 | AN34: 0 | AQ34: 2040 | AR34: 0 | AS34: 0 | AT34: 0.058 | AU34: 0 | AV34: 0.583 | AW34: 0 | AZ34: 0 | BB34: 0 | BC34: 0 | BD34: 0 | BE34: 0 | BH34: 2040 | BI34: 0 | BJ34: 0 | BK34: 12.114 | BL34: 0 | BM34: 0.247 | BN34: 0 | BP34: 0 | BR34: 0 | BT34: 0 | BW34: 2040 | BX34: 0 | BY34: 0 | BZ34: 0 | CA34: 0 | CC34: 0 | CD34: 0 | CE34: 0 | CG34: 0
J35: 21 | L35: 2041 | M35: =ROUND(IF($C$47+$F$23>L35,$F$25*$F$30,0)+IF($C$48+$G$23>L35,$G$25*$G$30,0)+IF($C$49+$H$23>L35,$H$25*$H$30,0),0) -> 0 | N35: =ROUND($C$17*(1+$C$18)^J35,3) -> 5.182 | O35: =ROUND(M35*N35,0) -> 0 | P35: =ROUND($C$25*(1+$C$26)^J35,3) -> 0 | Q35: =ROUND(M35*P35,0) -> 0 | R35: =O35+Q35 -> 0 | S35: =ROUND(M35*$C$23,1) -> 0 | T35: =ROUND($C$20*(1+$C$21)^J35,0) -> 183 | U35: =ROUND(S35*T35,0) -> 0 | V35: =ROUND(+U35+R35,0) -> 0 | W35: =ROUND($H$36*(1+$C$11)^J35,3) -> 3.781 | X35: =ROUND((1-$H$38)*(W35*M35),0) -> 0 | Y35: 0 | Z35: 0 | AA35: =SUM(X35:Z35) -> 0 | AB35: =V35-AA35 -> 0 | AE35: 2041 | AF35: =+R35 -> 0 | AG35: =+U35 -> 0 | AH35: =+AG35+AF35 -> 0 | AJ35: =ROUND(Y35,0) -> 0 | AK35: =ROUND(Z35,0) -> 0 | AL35: =SUM(AJ35:AK35) -> 0 | AN35: =+AH35-AL35 -> 0 | AQ35: 2041 | AR35: =AF35 -> 0 | AS35: =+AG35 -> 0 | AT35: =ROUND(($C$28/(1-$C$31))*(1+$C$29)^J35,3) -> 0.06 | AU35: =ROUND((IF($C$47+$F$23>$AQ35,$F$27*$F$30,0)+IF($C$48+$G$23>AQ35,$G$27*$G$30,0)+IF($C$49+$H$23>AQ35,$H$27*$H$30,0))*AT35,0) -> 0 | AV35: =ROUND($C$33*(1+$C$34)^J35,3) -> 0.595 | AW35: =ROUND(AV35*M35,0) -> 0 | AZ35: =ROUND(AR35+AS35+AU35+AW35+AY35,0) -> 0 | BB35: 0 | BC35: 0 | BD35: =BB35+BC35 -> 0 | BE35: =AZ35-BD35 -> 0 | BH35: 2041 | BI35: 0 | BJ35: =+M35 -> 0 | BK35: =ROUND($C$10*(1+$C$11)^J35,3) -> 12.538 | BL35: =ROUND(BJ35*BK35,0) -> 0 | BM35: =ROUND($C$13*(1+$C$14)^J35,3) -> 0.256 | BN35: =ROUND((IF($C$47+$F$23>BH35,$F$27*$F$30,0)+IF($C$49+$H$23>BH35,$H$27*$H$30,0)+IF($C$48+$G$23>BH35,$G$27*$G$30,0))*BM35,0) -> 0 | BP35: =BI35+BL35+BN35+BO35 -> 0 | BR35: =+BC35 -> 0 | BT35: =BP35-BR35 -> 0 | BW35: 2041 | BX35: 0 | BY35: =U35 -> 0 | BZ35: =AU35 -> 0 | CA35: =SUM(BX35:BZ35) -> 0 | CC35: =BB35 -> 0 | CD35: =BC35 -> 0 | CE35: =SUM(CC35:CD35) -> 0 | CG35: =CA35-CE35 -> 0 | DB35: =$J21 -> 7
A36: 10) Non Gas Fuel Environmental Damage Factor = | C36: =+'Gas Input Table Summary'!$D$24 -> 0 | E36: 26) Distribution Delivery Charge | H36: =+'Gas Input Table Summary'!D58 -> 1.836 | J36: 22 | L36: 2042 | M36: 0 | N36: 5.363 | O36: 0 | P36: 0 | Q36: 0 | R36: 0 | S36: 0 | T36: 185 | U36: 0 | V36: 0 | W36: 3.913 | X36: 0 | Y36: 0 | Z36: 0 | AA36: 0 | AB36: 0 | AE36: 2042 | AF36: 0 | AG36: 0 | AH36: 0 | AJ36: 0 | AK36: 0 | AL36: 0 | AN36: 0 | AQ36: 2042 | AR36: 0 | AS36: 0 | AT36: 0.063 | AU36: 0 | AV36: 0.608 | AW36: 0 | AZ36: 0 | BB36: 0 | BC36: 0 | BD36: 0 | BE36: 0 | BH36: 2042 | BI36: 0 | BJ36: 0 | BK36: 12.977 | BL36: 0 | BM36: 0.265 | BN36: 0 | BP36: 0 | BR36: 0 | BT36: 0 | BW36: 2042 | BX36: 0 | BY36: 0 | BZ36: 0 | CA36: 0 | CC36: 0 | CD36: 0 | CE36: 0 | CG36: 0
A37: Escalation Rate = | C37: =+'Gas Input Table Summary'!$D$25 -> 0 | DB37: =$J22 -> 8
E38: 27) Effective Income Tax Rate = | H38: =+'Gas Input Table Summary'!D59 -> 0.21 | K38: Total = | M38: =SUM(M14:M36) -> 98180 | V38: =SUM(V14:V36) -> 510183 | AA38: =SUM(AA14:AA36) -> 286109 | AB38: =SUM(AB14:AB36) -> 224074 | AD38: Total = | AH38: =SUM(AH14:AH36) -> 510183 | AL38: =SUM(AL14:AL36) -> 84748 | AN38: =SUM(AN14:AN36) -> 425435 | AP38: Total = | AZ38: =SUM(AZ14:AZ36) -> 714007 | BD38: =SUM(BD14:BD36) -> 313636 | BE38: =SUM(BE14:BE36) -> 400371 | BG38: Total = | BJ38: =SUM(BJ14:BJ36) -> 98180 | BP38: =SUM(BP14:BP36) -> 1592313 | BR38: =SUM(BR14:BR36) -> 308088 | BT38: =SUM(BT14:BT36) -> 1284225 | BZ38: Total = | CA38: =SUM(CA14:CA36) -> 667948 | CE38: =SUM(CE14:CE36) -> 313636 | CG38: =SUM(CG14:CG36) -> 354312
A39: 11) Participant Discount Rate = | C39: =+'Gas Input Table Summary'!$D$26 -> 0.1032 | E39: (Federal & State Taxes) | T39: NPV = | V39: =ROUND(V14+NPV($C$41,V15:V36),0) -> 268222 | AA39: =ROUND(AA14+NPV($C$41,AA15:AA36),0) -> 188727 | AB39: =ROUND(AB14+NPV($C$41,AB15:AB36),0) -> 79495 | AG39: NPV = | AH39: =ROUND(AH14+NPV($C$41,AH15:AH36),0) -> 268222 | AL39: =ROUND(AL14+NPV($C$41,AL15:AL36),0) -> 84748 | AN39: =+AH39-AL39 -> 183474 | AW39: NPV = | AZ39: =ROUND(AZ14+NPV($C$43,AZ15:AZ36),0) -> 559059 | BD39: =ROUND(BD14+NPV($C$43,BD15:BD36),0) -> 313636 | BE39: =AZ39-BD39 -> 245423 | BN39: NPV = | BP39: =ROUND(BP14+NPV($C$39,BP15:BP36),0) -> 703245 | BR39: =ROUND(BR14+NPV($C$39,BR15:BR36),0) -> 308088 | BT39: =ROUND(BT14+NPV($C$39,BT15:BT36),0) -> 395157 | BZ39: NPV = | CA39: =ROUND(CA14+NPV($C$41,CA15:CA36),0) -> 349616 | CE39: =ROUND(CE14+NPV($C$41,CE15:CE36),0) -> 313636 | CG39: =ROUND(CG14+NPV($C$41,CG15:CG36),0) -> 35980
DB40: =$J23 -> 9
A41: 12) Utility Discount Rate = | C41: =+'Gas Input Table Summary'!$D$27 -> 0.07216 | E41: Test Results | F41: NPV | G41: B/C | K41: Total NPV = | N41: =AB39 -> 79495 | AD41: Total NPV = | AG41: =AN39 -> 183474 | AP41: Total NPV = | AS41: =BE39 -> 245423 | BG41: Total NPV = | BJ41: =BT39 -> 395157 | BV41: Total NPV = | BY41: =CG39 -> 35980 | DB41: =$J24 -> 10
E42: Ratepayer Impact Measure Test | F42: =N41 -> 79495 | G42: =N42 -> 1.42 | K42: Benefit/Cost Ratio = | N42: =ROUND(V39/AA39,2) -> 1.42 | AD42: Benefit/Cost Ratio = | AG42: =ROUND(AH39/AL39,2) -> 3.16 | AP42: Benefit/Cost Ratio = | AS42: =ROUND(AZ39/BD39,2) -> 1.78 | BG42: Benefit/Cost Ratio = | BJ42: =ROUND(BP39/BR39,2) -> 2.28 | BV42: Benefit/Cost Ratio = | BY42: =ROUND(CA39/CE39,2) -> 1.11 | DB42: =$J25 -> 11
A43: 13) Societal Discount Rate = | C43: =+'Gas Input Table Summary'!$D$28 -> 0.0247 | E43: Utility Cost Test | F43: =AG41 -> 183474 | G43: =AG42 -> 3.16 | DB43: =$J26 -> 12
E44: Societal Test | F44: =AS41 -> 245423 | G44: =AS42 -> 1.78 | J44: Worksheet Calculations | BV44: Worksheet Calculations
A45: 14) General Input Data Year = | C45: =+'Gas Input Table Summary'!$D$29 -> 2020 | E45: Participant Test | F45: =BJ41 -> 395157 | G45: =BJ42 -> 2.28 | J45: (A) | K45: = Average Dk/Participant Saved (21) x Number of Participants (23) for Project Life (20) | T45: (I) | U45: = (G) x (H) | AD45: Worksheet Calculations | AP45: Worksheet Calculations | BG45: Worksheet Calculations | BV45: (A) | BW45: = Table 1 (F)
E46: Total Resource Cost Test | F46: =BY41 -> 35980 | G46: =BY42 -> 1.11 | J46: (B) | K46: = Commodity Cost (3) escalated | T46: (J) | U46: = (F) + (I) | AD46: (A) | AE46: = Table 1 (F) | AP46: (A) | AQ46: = Table 1 (F) | AW46: (H) | AZ46: = Table 2 (F) | BG46: (A) | BH46: = Table 1 (N) | BL46: (G) | BM46: = (A) + (D) + (F) | BV46: (B) | BW46: = Table 1 (I)
A47: 15) Project Analysis Year 1 = | C47: =+'Total Program Inputs'!C6 -> 2020 | J47: (C) | K47: = (A) x (B) | T47: (K) | U47: = Distribution Delivery Charge (26) escalated. | AD47: (B) | AE47: = Table 1 (I) | AP47: (G) | AQ47: = Table 1 (I) | AW47: (I) | AZ47: = Direct Part. Costs (17) x No. of Part. (23) - Table 1 (N) | BG47: (B) | BH47: = Table 1 (A) | BL47: (H) | BM47: = Direct Participant Costs (17) x Number of Participants (23) | BV47: (C) | BW47: = Table 3 (D)
J48: (D) | K48: = Variable O&M Cost (6), escalated | T48: (L) | U48: = (A) x (K) x (1-Inverse of Tax Rate (27) | AD48: (C) | AE48: = Table 1 (J) | AP48: (C) | AQ48: = Non-Gas Fuel Cost (7), adjusted for losses (8), escalated.. | AW48: (J) | AZ48: = (H) + (I) | BG48: (C) | BH48: = Retail Rate (1) escalated. | BL48: (I) | BM48: = (G) - (H) | BV48: (D) | BW48: = (A) + (B) + (C)
J49: (E) | K49: = (A) x (D) | T49: (M) | U49: = Admin & Operating Costs (16a) | AD49: (D) | AE49: = Table 1 (M) | AP49: (D) | AQ49: = (C) x [Avg. Non-Gas Fuel Units/Part.Saved (22) x No. of Part. (23) | AW49: (K) | AZ49: = (G) - (J) | BG49: (D) | BH49: =(B) x (C) | BV49: (E) | BW49: = Table 3 (H) | DB49: =$J27 -> 13
J50: (F) | K50: = (C) + (E) | T50: (N) | U50: = Incentive Costs (16b) | AD50: (E) | AE50: = Table 1 (N) | AP50: (E) | AQ50: = Gas Environmental Damage Factor (9), escalated | BG50: (E) | BH50: = Non-Gas Fuel Retail Rate (2), escalated. | BV50: (F) | BW50: = Table 3 (I) | DB50: =$J28 -> 14
J51: (G) | K51: = (A) x Peak Reduction Factor (5) | T51: (O) | U51: = (L) + (M) + (N) | AD51: (F) | AE51: = (D) + (E) | AP51: (F) | AQ51: = Table 1 (A) x (E) | BG51: (F) | BH51: = (E) x [Avg. Non-Gas Fuel Units/Part.Saved (22) x No. of Part. (23) | BV51: (G) | BW51: = (E) + (F) | DB51: =$J29 -> 15
J52: (H) | K52: = Demand Cost (4) escalated. | T52: (P) | U52: = (J) - (O) | AD52: (G) | AE52: = (C) - (F) | AP52: (G) | AQ52: = (A) + (B) + (D) + (F) | BV52: (H) | BW52: = (D) - (G)

Sheet Programmable Tstats - Tier 1
A1: NATURAL GAS CONSERVATION PROGRAMS/DEMAND-SIDE MANAGEMENT | K1: Table 1 | AD1: Table 2 | AP1: Table 3 | BG1: Table 4 | BV1: Table 5
A2: BEN/COST ANALYSIS FOR GAS CONSERVATION | K2: Ratepayer Impact Measure Test | AD2: Utility Cost Test | AP2: Societal Test | BG2: Participant Test | BV2: Total Resource Cost Test
A4: Company: | B4: Montana-Dakota Utilities Co. | K4: Company: | M4: =B4 -> Montana-Dakota Utilities Co. | AD4: Company: | AF4: =B4 -> Montana-Dakota Utilities Co. | AP4: Company: | AR4: =AF4 -> Montana-Dakota Utilities Co. | BH4: Company: | BI4: =AR4 -> Montana-Dakota Utilities Co. | BW4: Company: | BX4: =BI4 -> Montana-Dakota Utilities Co.
A5: Project: | B5: ='Database Inputs'!A12 -> Programmable Thermostats - Tier 1 | K5: Project: | M5: =$B$5 -> Programmable Thermostats - Tier 1 | AD5: Project: | AF5: =$B$5 -> Programmable Thermostats - Tier 1 | AP5: Project: | AR5: =$B$5 -> Programmable Thermostats - Tier 1 | BH5: Project: | BI5: =$B$5 -> Programmable Thermostats - Tier 1 | BW5: Project: | BX5: =$B$5 -> Programmable Thermostats - Tier 1
A6: Program Years: | B6: ='Total Program'!$B$6 -> 2020
N7: Benefits | X7: Costs | AF7: Benefits | AJ7: Costs | AR7: Benefits | BB7: Costs | BI7: Benefits | BR7: Costs | BX7: Benefits | CC7: Costs
A8: Input Data | F8: =+'Total Program Inputs'!C6 -> 2020 | AB8: Annual | AN8: Annual | AT8: Non-Gas | BE8: Annual | BT8: Annual | CG8: Annual
M9: Total | N9: Gas | O9: Gas | P9: Variable | Q9: Variable | R9: Total | S9: Peak Dk | T9: Demand | U9: Total | W9: Distribution | Y9: Program | AA9: Total | AB9: Benefits | AF9: Total | AG9: Total | AH9: Annual | AJ9: Program | AL9: Utility | AN9: Benefits | AR9: Total | AS9: Total | AT9: Energy | AU9: Non-Gas | AV9: Environmental | AW9: Environmental | AZ9: Annual | BB9: Utility | BC9: Participants' | BD9: Annual | BE9: Benefits | BJ9: Total | BL9: Gas | BM9: Non-Gas | BN9: Non-Gas | BP9: Total | BR9: Direct | BT9: Benefits | BX9: Total | BY9: Total | BZ9: Non-Gas | CA9: Total | CC9: Utility | CD9: Participants' | CG9: Benefits
A10: 1) Retail Rate ($/Dk) = | C10: =+'Gas Input Table Summary'!$D$7 -> 6.088 | E10: 16) Utility Project Costs | M10: Energy | N10: Commodity | O10: Commodity | P10: O & M | Q10: O & M | R10: Energy | S10: Demand | T10: Savings | U10: Demand | V10: Total | W10: Delivery | X10: Lost | Y10: Admin | Z10: Incentive | AA10: Program | AB10: Less | AF10: Energy | AG10: Demand | AH10: Total | AJ10: Admin | AK10: Incentive | AL10: Program | AN10: Less | AR10: Energy | AS10: Demand | AT10: Savings | AU10: Energy | AV10: Damage | AW10: Damage | AZ10: Total | BB10: Program | BC10: Costs Net | BD10: Total | BE10: Less | BI10: Incentives | BJ10: Energy | BK10: Retail | BL10: Bill | BM10: Fuel | BN10: Energy | BP10: Annual | BR10: Participant | BT10: Less | BX10: Energy | BY10: Demand | BZ10: Energy | CA10: Annual | CC10: Program | CD10: Costs Net | CE10: Total | CG10: Less
A11: Escalation Rate = | C11: =+'Gas Input Table Summary'!$D$8 -> 0.035 | E11: 16a) Administrative & Operating Costs = | F11: =+'Total Program Inputs'!M13 -> 87 | J11: t | M11: Reduction | N11: Cost/Dk | O11: Savings | P11: Cost/Dk | Q11: Savings | R11: Savings | S11: Reduction | T11: Per Unit | U11: Savings | V11: Savings | W11: Charge | X11: Margin | Y11: Costs | Z11: Costs | AA11: Costs | AB11: Costs | AF11: Savings | AG11: Savings | AH11: Savings | AJ11: Costs | AK11: Costs | AL11: Costs | AN11: Costs | AR11: Savings | AS11: Savings | AT11: ($/Part.) | AU11: Savings | AV11: Savings/Dk | AW11: Savings | AZ11: Savings | BB11: Costs | BC11: of Rebate | BD11: Costs | BE11: Costs | BI11: Received | BJ11: Reduction | BK11: Rate | BL11: Savings | BM11: Retail Rate | BN11: Savings | BP11: Benefits | BR11: Costs | BT11: Costs | BX11: Savings | BY11: Savings | BZ11: Savings | CA11: Benefits | CC11: Costs | CD11: of Rebate | CE11: Costs | CG11: Costs
E12: 16b) Incentive Costs = | F12: =+'Total Program Inputs'!I13 -> 1230 | L12: Year | M12: (A) | N12: (B) | O12: (C) | P12: (D) | Q12: (E) | R12: (F) | S12: (G) | T12: (H) | U12: (I) | V12: (J) | W12: (K) | X12: (L) | Y12: (M) | Z12: (N) | AA12: (O) | AB12: (P) | AE12: Year | AF12: (A) | AG12: (B) | AH12: (C) | AJ12: (D) | AK12: (E) | AL12: (F) | AN12: (G) | AQ12: Year | AR12: (A) | AS12: (B) | AT12: (C) | AU12: (D) | AV12: (E) | AW12: (F) | AZ12: (G) | BB12: (H) | BC12: (I) | BD12: (J) | BE12: (K) | BH12: Year | BI12: (A) | BJ12: (B) | BK12: (C) | BL12: (D) | BM12: (E) | BN12: (F) | BP12: (G) | BR12: (H) | BT12: (I) | BW12: Year | BX12: (A) | BY12: (B) | BZ12: (C) | CA12: (D) | CC12: (E) | CD12: (F) | CE12: (G) | CG12: (H)
A13: 2) Non-Gas Fuel Retail Rate ($/Fuel Unit) = | C13: =+'Gas Input Table Summary'!$D$9 -> 0.12423 | E13: 16c) Total Utility Project Costs = | F13: =SUM(F11:F12) -> 1317
A14: Escalation Rate = | C14: =+'Gas Input Table Summary'!$D$10 -> 0.035 | J14: =$C$47-$C$45 -> 0 | L14: =$C$47 -> 2020 | M14: =ROUND(IF($C$47+$F$23>L14,F25*F30,0),0) -> 173 | N14: =ROUND($C$17*(1+$C$18)^J14,3) -> 2.516 | O14: =ROUND(M14*N14,0) -> 435 | P14: =ROUND($C$25*(1+$C$26)^J14,3) -> 0 | Q14: =ROUND(M14*P14,0) -> 0 | R14: =O14+Q14 -> 435 | S14: =ROUND(M14*$C$23,1) -> 1.7 | T14: =ROUND($C$20*(1+$C$21)^J14,0) -> 149 | U14: =ROUND(S14*T14,0) -> 253 | V14: =ROUND(+U14+R14,0) -> 688 | W14: =ROUND($H$36*(1+$C$11)^J14,3) -> 1.836 | X14: =ROUND((1-$H$38)*(W14*M14),0) -> 251 | Y14: =ROUND($F$11,0) -> 87 | Z14: =ROUND($F$12,0) -> 1230 | AA14: =SUM(X14:Z14) -> 1568 | AB14: =V14-AA14 -> -880 | AE14: =$C$47 -> 2020 | AF14: =+R14 -> 435 | AG14: =+U14 -> 253 | AH14: =+AG14+AF14 -> 688 | AJ14: =ROUND(Y14,0) -> 87 | AK14: =ROUND(Z14,0) -> 1230 | AL14: =SUM(AJ14:AK14) -> 1317 | AN14: =+AH14-AL14 -> -629 | AQ14: =$C$47 -> 2020 | AR14: =AF14 -> 435 | AS14: =+AG14 -> 253 | AT14: =ROUND(($C$28/(1-$C$31))*(1+$C$29)^J14,3) -> 0.029 | AU14: =ROUND(IF($C$47+$F$23>$AQ14,$F$30*$F$27,0)*AT14,0) -> 0 | AV14: =ROUND($C$33*(1+$C$34)^J14,3) -> 0.38 | AW14: =ROUND(AV14*M14,0) -> 66 | AZ14: =ROUND(AR14+AS14+AU14+AW14+AY14,0) -> 754 | BB14: =ROUND($F$13,0) -> 1317 | BC14: =ROUND((F15*F30)-Z14,0) -> 1230 | BD14: =BB14+BC14 -> 2547 | BE14: =AZ14-BD14 -> -1793 | BH14: =$C$47 -> 2020 | BI14: =+F12 -> 1230 | BJ14: =+M14 -> 173 | BK14: =ROUND($C$10*(1+$C$11)^J14,3) -> 6.088 | BL14: =ROUND(BJ14*BK14,0) -> 1053 | BM14: =ROUND($C$13*(1+$C$14)^J14,3) -> 0.124 | BN14: =ROUND(IF($C$47+$F$23>$BH14,$F$30*$F$27,0)*BM14,0) -> 0 | BP14: =BI14+BL14+BN14+BO14 -> 2283 | BR14: =ROUND(F15*F30,0) -> 2460 | BT14: =BP14-BR14 -> -177 | BW14: =$C$47 -> 2020 | BX14: =$R14 -> 435 | BY14: =U14 -> 253 | BZ14: =AU14 -> 0 | CA14: =SUM(BX14:BZ14) -> 688 | CC14: =BB14 -> 1317 | CD14: =BC14 -> 1230 | CE14: =SUM(CC14:CD14) -> 2547 | CG14: =CA14-CE14 -> -1859
A15: Non-Gas Fuel Units (ie. kWh,Gallons, etc) = | C15: =+'Gas Input Table Summary'!$D$11 -> Kwh | E15: 17) Direct Participant Costs ($/Part.) = | F15: =ROUND('Database Inputs'!K12,0) -> 30 | J15: =J14+1 -> 1 | L15: =L14+1 -> 2021 | M15: =ROUND(IF($C$47+$F$23>L15,$F$25*$F$30,0)+IF($C$48+$G$23>L15,$G$25*$G$30,0),0) -> 173 | N15: 2.604 | O15: 450 | P15: 0 | Q15: =ROUND(M15*P15,0) -> 0 | R15: 450 | S15: 1.7 | T15: 150 | U15: =ROUND(S15*T15,0) -> 255 | V15: =ROUND(+U15+R15,0) -> 705 | W15: =ROUND($H$36*(1+$C$11)^J15,3) -> 1.9 | X15: =ROUND((1-$H$38)*(W15*M15),0) -> 260 | Y15: =ROUND($G$11,0) -> 0 | Z15: =ROUND($G$12,0) -> 0 | AA15: =SUM(X15:Z15) -> 260 | AB15: 445 | AE15: =AE14+1 -> 2021 | AF15: 450 | AG15: 255 | AH15: =+AG15+AF15 -> 705 | AJ15: =ROUND(Y15,0) -> 0 | AK15: 0 | AL15: 0 | AN15: =+AH15-AL15 -> 705 | AQ15: =AQ14+1 -> 2021 | AR15: 450 | AS15: 255 | AT15: 0.03 | AU15: =ROUND((IF($C$47+$F$23>$AQ15,$F$27*$F$30,0)+IF($C$48+$G$23>AQ15,$G$27*$G$30,0))*AT15,0) -> 0 | AV15: 0.388 | AW15: 67 | AZ15: =ROUND(AR15+AS15+AU15+AW15+AY15,0) -> 772 | BB15: =ROUND($G$13,0) -> 0 | BC15: =ROUND(($G$15*$G$30)-$Z$15,0) -> 0 | BD15: =BB15+BC15 -> 0 | BE15: =AZ15-BD15 -> 772 | BH15: =BH14+1 -> 2021 | BI15: =+G12 -> 0 | BJ15: 173 | BK15: 6.301 | BL15: =ROUND(BJ15*BK15,0) -> 1090 | BM15: 0.129 | BN15: =ROUND((IF($C$47+$F$23>BH15,$F$27*$F$30,0)+IF($C$48+$G$23>BH15,$G$27*$G$30,0))*BM15,0) -> 0 | BP15: 1090 | BR15: =ROUND($G$15*$G$30,0) -> 0 | BT15: =BP15-BR15 -> 1090 | BW15: =BW14+1 -> 2021 | BX15: 450 | BY15: =U15 -> 255 | BZ15: =AU15 -> 0 | CA15: =SUM(BX15:BZ15) -> 705 | CC15: =BB15 -> 0 | CD15: 0 | CE15: =SUM(CC15:CD15) -> 0 | CG15: =CA15-CE15 -> 705
J16: 2 | L16: 2022 | M16: =ROUND(IF($C$47+$F$23>L16,$F$25*$F$30,0)+IF($C$48+$G$23>L16,$G$25*$G$30,0)+IF($C$49+$H$23>L16,$H$25*$H$30,0),0) -> 173 | N16: 2.695 | O16: 466 | P16: 0 | Q16: 0 | R16: 466 | S16: 1.7 | T16: =ROUND($C$20*(1+$C$21)^J16,0) -> 152 | U16: =ROUND(S16*T16,0) -> 258 | V16: =ROUND(+U16+R16,0) -> 724 | W16: =ROUND($H$36*(1+$C$11)^J16,3) -> 1.967 | X16: =ROUND((1-$H$38)*(W16*M16),0) -> 269 | Y16: =ROUND($H$11,0) -> 0 | Z16: =ROUND($H$12,0) -> 0 | AA16: =SUM(X16:Z16) -> 269 | AB16: =V16-AA16 -> 455 | AE16: 2022 | AF16: 466 | AG16: 258 | AH16: =+AG16+AF16 -> 724 | AJ16: 0 | AK16: 0 | AL16: =SUM(AJ16:AK16) -> 0 | AN16: =+AH16-AL16 -> 724 | AQ16: 2022 | AR16: 466 | AS16: 258 | AT16: =ROUND(($C$28/(1-$C$31))*(1+$C$29)^J16,3) -> 0.031 | AU16: =ROUND((IF($C$47+$F$23>$AQ16,$F$27*$F$30,0)+IF($C$48+$G$23>AQ16,$G$27*$G$30,0)+IF($C$49+$H$23>AQ16,$H$27*$H$30,0))*AT16,0) -> 0 | AV16: =ROUND($C$33*(1+$C$34)^J16,3) -> 0.397 | AW16: =ROUND(AV16*M16,0) -> 69 | AZ16: =ROUND(AR16+AS16+AU16+AW16+AY16,0) -> 793 | BB16: =ROUND($H$13,0) -> 0 | BC16: =ROUND(($H$15*$H$30)-$Z$16,0) -> 0 | BD16: =BB16+BC16 -> 0 | BE16: 793 | BH16: 2022 | BI16: =ROUND(H12,0) -> 0 | BJ16: 173 | BK16: =ROUND($C$10*(1+$C$11)^J16,3) -> 6.522 | BL16: =ROUND(BJ16*BK16,0) -> 1128 | BM16: =ROUND($C$13*(1+$C$14)^J16,3) -> 0.133 | BN16: =ROUND((IF($C$47+$F$23>BH16,$F$27*$F$30,0)+IF($C$49+$H$23>BH16,$H$27*$H$30,0)+IF($C$48+$G$23>BH16,$G$27*$G$30,0))*BM16,0) -> 0 | BP16: =BI16+BL16+BN16+BO16 -> 1128 | BR16: =ROUND($H$15*$H$30,0) -> 0 | BT16: =BP16-BR16 -> 1128 | BW16: 2022 | BX16: 466 | BY16: 258 | BZ16: 0 | CA16: 724 | CC16: 0 | CD16: 0 | CE16: =SUM(CC16:CD16) -> 0 | CG16: =CA16-CE16 -> 724
A17: 3) Commodity Cost ($/Dk) = | C17: =+'Gas Input Table Summary'!$D$12 -> 2.516 | E17: 18) Participant Non-Energy Costs (Annual $/Part.) = | F17: =+'Gas Input Table Summary'!$D$35 -> 0 | J17: 3 | L17: 2023 | M17: =ROUND(IF($C$47+$F$23>L17,$F$25*$F$30,0)+IF($C$48+$G$23>L17,$G$25*$G$30,0)+IF($C$49+$H$23>L17,$H$25*$H$30,0),0) -> 173 | N17: =ROUND($C$17*(1+$C$18)^J17,3) -> 2.79 | O17: 483 | P17: 0 | Q17: 0 | R17: 483 | S17: 1.7 | T17: 153 | U17: =ROUND(S17*T17,0) -> 260 | V17: 743 | W17: 2.036 | X17: 278 | Y17: 0 | Z17: 0 | AA17: 278 | AB17: 465 | AE17: 2023 | AF17: 483 | AG17: 260 | AH17: 743 | AJ17: 0 | AK17: 0 | AL17: 0 | AN17: 743 | AQ17: 2023 | AR17: 483 | AS17: 260 | AT17: 0.033 | AU17: =ROUND((IF($C$47+$F$23>$AQ17,$F$27*$F$30,0)+IF($C$48+$G$23>AQ17,$G$27*$G$30,0)+IF($C$49+$H$23>AQ17,$H$27*$H$30,0))*AT17,0) -> 0 | AV17: 0.405 | AW17: 70 | AZ17: 813 | BB17: 0 | BC17: 0 | BD17: 0 | BE17: 813 | BH17: 2023 | BI17: 0 | BJ17: 173 | BK17: 6.75 | BL17: =ROUND(BJ17*BK17,0) -> 1168 | BM17: 0.138 | BN17: =ROUND((IF($C$47+$F$23>BH17,$F$27*$F$30,0)+IF($C$49+$H$23>BH17,$H$27*$H$30,0)+IF($C$48+$G$23>BH17,$G$27*$G$30,0))*BM17,0) -> 0 | BP17: 1168 | BR17: =+BC17 -> 0 | BT17: 1168 | BW17: 2023 | BX17: 483 | BY17: 260 | BZ17: 0 | CA17: 743 | CC17: 0 | CD17: 0 | CE17: 0 | CG17: =CA17-CE17 -> 743
A18: Escalation Rate = | C18: =+'Gas Input Table Summary'!$D$13 -> 0.035 | E18: Escalation Rate = | F18: =+'Gas Input Table Summary'!$D$38 -> 0 | J18: 4 | L18: 2024 | M18: 173 | N18: 2.887 | O18: 499 | P18: 0 | Q18: 0 | R18: 499 | S18: 1.7 | T18: 155 | U18: 264 | V18: 763 | W18: 2.107 | X18: 288 | Y18: 0 | Z18: 0 | AA18: 288 | AB18: 475 | AE18: 2024 | AF18: 499 | AG18: 264 | AH18: 763 | AJ18: 0 | AK18: 0 | AL18: 0 | AN18: 763 | AQ18: 2024 | AR18: 499 | AS18: 264 | AT18: 0.034 | AU18: =ROUND((IF($C$47+$F$23>$AQ18,$F$27*$F$30,0)+IF($C$48+$G$23>AQ18,$G$27*$G$30,0)+IF($C$49+$H$23>AQ18,$H$27*$H$30,0))*AT18,0) -> 0 | AV18: 0.414 | AW18: 72 | AZ18: 835 | BB18: 0 | BC18: 0 | BD18: 0 | BE18: 835 | BH18: 2024 | BI18: 0 | BJ18: 173 | BK18: 6.986 | BL18: 1209 | BM18: 0.143 | BN18: 0 | BP18: 1209 | BR18: 0 | BT18: 1209 | BW18: 2024 | BX18: 499 | BY18: 264 | BZ18: 0 | CA18: 763 | CC18: 0 | CD18: 0 | CE18: 0 | CG18: 763 | DB18: t
J19: 5 | L19: 2025 | M19: 173 | N19: =ROUND($C$17*(1+$C$18)^J19,3) -> 2.988 | O19: =ROUND(M19*N19,0) -> 517 | P19: 0 | Q19: 0 | R19: =O19+Q19 -> 517 | S19: =ROUND(M19*$C$23,1) -> 1.7 | T19: 156 | U19: 265 | V19: 782 | W19: 2.181 | X19: 298 | Y19: 0 | Z19: 0 | AA19: 298 | AB19: 484 | AE19: 2025 | AF19: 517 | AG19: 265 | AH19: 782 | AJ19: 0 | AK19: 0 | AL19: 0 | AN19: 782 | AQ19: 2025 | AR19: 517 | AS19: 265 | AT19: 0.035 | AU19: 0 | AV19: =ROUND($C$33*(1+$C$34)^J19,3) -> 0.423 | AW19: 73 | AZ19: 855 | BB19: 0 | BC19: 0 | BD19: 0 | BE19: 855 | BH19: 2025 | BI19: 0 | BJ19: 173 | BK19: 7.231 | BL19: 1251 | BM19: 0.148 | BN19: 0 | BP19: 1251 | BR19: 0 | BT19: 1251 | BW19: 2025 | BX19: 517 | BY19: 265 | BZ19: 0 | CA19: 782 | CC19: 0 | CD19: 0 | CE19: 0 | CG19: 782
A20: 4) Demand Cost ($/Unit/Yr) = | C20: =+'Gas Input Table Summary'!$D$14 -> 148.86 | E20: 19) Participant Non-Energy Savings (Annual $/Part) = | F20: =+'Gas Input Table Summary'!$D$41 -> 0 | J20: 6 | L20: 2026 | M20: 173 | N20: 3.093 | O20: 535 | P20: 0 | Q20: 0 | R20: 535 | S20: 1.7 | T20: 158 | U20: 269 | V20: 804 | W20: 2.257 | X20: 308 | Y20: 0 | Z20: 0 | AA20: 308 | AB20: 496 | AE20: 2026 | AF20: 535 | AG20: 269 | AH20: 804 | AJ20: 0 | AK20: 0 | AL20: 0 | AN20: 804 | AQ20: 2026 | AR20: 535 | AS20: 269 | AT20: 0.036 | AU20: 0 | AV20: 0.432 | AW20: 75 | AZ20: 879 | BB20: 0 | BC20: 0 | BD20: 0 | BE20: 879 | BH20: 2026 | BI20: 0 | BJ20: 173 | BK20: 7.484 | BL20: 1295 | BM20: 0.153 | BN20: 0 | BP20: 1295 | BR20: 0 | BT20: 1295 | BW20: 2026 | BX20: 535 | BY20: 269 | BZ20: 0 | CA20: =SUM(BX20:BZ20) -> 804 | CC20: 0 | CD20: 0 | CE20: 0 | CG20: 804
A21: Escalation Rate = | C21: =+'Gas Input Table Summary'!$D$15 -> 0.01 | E21: Escalation Rate = | F21: =+'Gas Input Table Summary'!$D$44 -> 0 | J21: 7 | L21: 2027 | M21: 173 | N21: 3.201 | O21: 554 | P21: 0 | Q21: 0 | R21: 554 | S21: 1.7 | T21: 160 | U21: 272 | V21: 826 | W21: 2.336 | X21: 319 | Y21: 0 | Z21: 0 | AA21: 319 | AB21: 507 | AE21: 2027 | AF21: 554 | AG21: 272 | AH21: 826 | AJ21: 0 | AK21: 0 | AL21: 0 | AN21: 826 | AQ21: 2027 | AR21: 554 | AS21: 272 | AT21: 0.037 | AU21: 0 | AV21: 0.441 | AW21: 76 | AZ21: 902 | BB21: 0 | BC21: 0 | BD21: 0 | BE21: 902 | BH21: 2027 | BI21: 0 | BJ21: 173 | BK21: 7.746 | BL21: 1340 | BM21: 0.158 | BN21: 0 | BP21: 1340 | BR21: 0 | BT21: 1340 | BW21: 2027 | BX21: 554 | BY21: 272 | BZ21: 0 | CA21: 826 | CC21: 0 | CD21: 0 | CE21: 0 | CG21: 826 | DB21: =$J14 -> 0
J22: 8 | L22: 2028 | M22: 173 | N22: 3.313 | O22: 573 | P22: 0 | Q22: 0 | R22: 573 | S22: 1.7 | T22: 161 | U22: 274 | V22: 847 | W22: 2.418 | X22: 330 | Y22: 0 | Z22: 0 | AA22: 330 | AB22: 517 | AE22: 2028 | AF22: 573 | AG22: 274 | AH22: 847 | AJ22: 0 | AK22: 0 | AL22: 0 | AN22: 847 | AQ22: 2028 | AR22: 573 | AS22: 274 | AT22: 0.039 | AU22: 0 | AV22: 0.451 | AW22: 78 | AZ22: 925 | BB22: 0 | BC22: 0 | BD22: 0 | BE22: 925 | BH22: 2028 | BI22: 0 | BJ22: 173 | BK22: 8.017 | BL22: 1387 | BM22: 0.164 | BN22: 0 | BP22: 1387 | BR22: 0 | BT22: 1387 | BW22: 2028 | BX22: 573 | BY22: 274 | BZ22: 0 | CA22: 847 | CC22: 0 | CD22: 0 | CE22: 0 | CG22: 847 | DB22: =$J15 -> 1
A23: 5) Peak Reduction Factor = | C23: =+'Gas Input Table Summary'!$D$16 -> 0.01 | E23: 20) Project Life (Years) = | F23: =ROUND('Database Inputs'!D12,0) -> 10 | J23: 9 | L23: 2029 | M23: 173 | N23: 3.429 | O23: 593 | P23: 0 | Q23: 0 | R23: 593 | S23: 1.7 | T23: 163 | U23: 277 | V23: 870 | W23: 2.502 | X23: 342 | Y23: 0 | Z23: 0 | AA23: 342 | AB23: 528 | AE23: 2029 | AF23: 593 | AG23: 277 | AH23: 870 | AJ23: 0 | AK23: 0 | AL23: 0 | AN23: 870 | AQ23: 2029 | AR23: 593 | AS23: 277 | AT23: 0.04 | AU23: 0 | AV23: 0.461 | AW23: 80 | AZ23: 950 | BB23: 0 | BC23: 0 | BD23: 0 | BE23: 950 | BH23: 2029 | BI23: 0 | BJ23: 173 | BK23: 8.297 | BL23: 1435 | BM23: 0.169 | BN23: 0 | BP23: 1435 | BR23: 0 | BT23: 1435 | BW23: 2029 | BX23: 593 | BY23: 277 | BZ23: 0 | CA23: 870 | CC23: 0 | CD23: 0 | CE23: 0 | CG23: 870 | DB23: =$J16 -> 2
J24: 10 | L24: 2030 | M24: =ROUND(IF($C$47+$F$23>L24,$F$25*$F$30,0)+IF($C$48+$G$23>L24,$G$25*$G$30,0)+IF($C$49+$H$23>L24,$H$25*$H$30,0),0) -> 0 | N24: 3.549 | O24: 0 | P24: 0 | Q24: 0 | R24: 0 | S24: 0 | T24: 164 | U24: 0 | V24: 0 | W24: 2.59 | X24: 0 | Y24: 0 | Z24: 0 | AA24: 0 | AB24: 0 | AE24: 2030 | AF24: 0 | AG24: 0 | AH24: 0 | AJ24: 0 | AK24: 0 | AL24: 0 | AN24: 0 | AQ24: 2030 | AR24: 0 | AS24: 0 | AT24: 0.041 | AU24: 0 | AV24: 0.471 | AW24: 0 | AZ24: 0 | BB24: 0 | BC24: 0 | BD24: 0 | BE24: 0 | BH24: 2030 | BI24: 0 | BJ24: 0 | BK24: 8.588 | BL24: 0 | BM24: 0.175 | BN24: 0 | BP24: 0 | BR24: 0 | BT24: 0 | BW24: 2030 | BX24: 0 | BY24: 0 | BZ24: 0 | CA24: 0 | CC24: 0 | CD24: 0 | CE24: 0 | CG24: 0 | DB24: =$J17 -> 3
A25: 6) Variable O&M ($/Dk) = | C25: =+'Gas Input Table Summary'!$D$17 -> 0 | E25: 21) Avg. Dk/Part. Saved = | F25: =+ROUND(F32/F30,3) -> 2.11 | J25: 11 | L25: 2031 | M25: =ROUND(IF($C$47+$F$23>L25,$F$25*$F$30,0)+IF($C$48+$G$23>L25,$G$25*$G$30,0)+IF($C$49+$H$23>L25,$H$25*$H$30,0),0) -> 0 | N25: =ROUND($C$17*(1+$C$18)^J25,3) -> 3.673 | O25: =ROUND(M25*N25,0) -> 0 | P25: 0 | Q25: 0 | R25: 0 | S25: =ROUND(M25*$C$23,1) -> 0 | T25: =ROUND($C$20*(1+$C$21)^J25,0) -> 166 | U25: 0 | V25: 0 | W25: 2.681 | X25: 0 | Y25: 0 | Z25: 0 | AA25: 0 | AB25: 0 | AE25: 2031 | AF25: 0 | AG25: 0 | AH25: 0 | AJ25: 0 | AK25: 0 | AL25: 0 | AN25: 0 | AQ25: 2031 | AR25: 0 | AS25: 0 | AT25: 0.043 | AU25: 0 | AV25: 0.481 | AW25: 0 | AZ25: 0 | BB25: 0 | BC25: 0 | BD25: 0 | BE25: 0 | BH25: 2031 | BI25: 0 | BJ25: 0 | BK25: 8.888 | BL25: 0 | BM25: 0.181 | BN25: 0 | BP25: 0 | BR25: 0 | BT25: 0 | BW25: 2031 | BX25: 0 | BY25: 0 | BZ25: 0 | CA25: 0 | CC25: 0 | CD25: 0 | CE25: 0 | CG25: 0
A26: Escalation Rate = | C26: =+'Gas Input Table Summary'!$D$18 -> 0 | J26: 12 | L26: 2032 | M26: 0 | N26: 3.802 | O26: 0 | P26: 0 | Q26: 0 | R26: 0 | S26: 0 | T26: 168 | U26: 0 | V26: 0 | W26: 2.774 | X26: 0 | Y26: 0 | Z26: 0 | AA26: 0 | AB26: 0 | AE26: 2032 | AF26: 0 | AG26: 0 | AH26: 0 | AJ26: 0 | AK26: 0 | AL26: 0 | AN26: 0 | AQ26: 2032 | AR26: 0 | AS26: 0 | AT26: 0.044 | AU26: 0 | AV26: 0.491 | AW26: 0 | AZ26: 0 | BB26: 0 | BC26: 0 | BD26: 0 | BE26: 0 | BH26: 2032 | BI26: 0 | BJ26: 0 | BK26: 9.199 | BL26: 0 | BM26: 0.188 | BN26: 0 | BP26: 0 | BR26: 0 | BT26: 0 | BW26: 2032 | BX26: 0 | BY26: 0 | BZ26: 0 | CA26: 0 | CC26: 0 | CD26: 0 | CE26: 0 | CG26: 0
E27: 22) Avg Non-Gas Fuel Units/Part. Saved = | F27: =+'Database Inputs'!H12 -> 0 | J27: 13 | L27: 2033 | M27: 0 | N27: =ROUND($C$17*(1+$C$18)^J27,3) -> 3.935 | O27: 0 | P27: 0 | Q27: 0 | R27: 0 | S27: 0 | T27: 169 | U27: 0 | V27: 0 | W27: 2.871 | X27: 0 | Y27: 0 | Z27: 0 | AA27: 0 | AB27: 0 | AE27: 2033 | AF27: 0 | AG27: 0 | AH27: 0 | AJ27: 0 | AK27: 0 | AL27: 0 | AN27: 0 | AQ27: 2033 | AR27: 0 | AS27: 0 | AT27: 0.046 | AU27: 0 | AV27: 0.502 | AW27: 0 | AZ27: 0 | BB27: 0 | BC27: 0 | BD27: 0 | BE27: 0 | BH27: 2033 | BI27: 0 | BJ27: 0 | BK27: 9.521 | BL27: 0 | BM27: 0.194 | BN27: 0 | BP27: 0 | BR27: 0 | BT27: 0 | BW27: 2033 | BX27: 0 | BY27: 0 | BZ27: 0 | CA27: 0 | CC27: 0 | CD27: 0 | CE27: 0 | CG27: 0
A28: 7) Non-Gas Fuel Cost ($/Fuel Unit) = | C28: =+'Gas Input Table Summary'!$D$19 -> 0.02738 | E28: 22a) Avg Additional Non-Gas Fuel Units/ Part. Used = | F28: 0 | J28: 14 | L28: 2034 | M28: 0 | N28: 4.073 | O28: 0 | P28: 0 | Q28: 0 | R28: 0 | S28: 0 | T28: 171 | U28: 0 | V28: 0 | W28: 2.972 | X28: 0 | Y28: 0 | Z28: 0 | AA28: 0 | AB28: 0 | AE28: 2034 | AF28: 0 | AG28: 0 | AH28: 0 | AJ28: 0 | AK28: 0 | AL28: 0 | AN28: 0 | AQ28: 2034 | AR28: 0 | AS28: 0 | AT28: 0.048 | AU28: 0 | AV28: 0.513 | AW28: 0 | AZ28: 0 | BB28: 0 | BC28: 0 | BD28: 0 | BE28: 0 | BH28: 2034 | BI28: 0 | BJ28: 0 | BK28: 9.855 | BL28: 0 | BM28: 0.201 | BN28: 0 | BP28: 0 | BR28: 0 | BT28: 0 | BW28: 2034 | BX28: 0 | BY28: 0 | BZ28: 0 | CA28: 0 | CC28: 0 | CD28: 0 | CE28: 0 | CG28: 0
A29: Escalation Rate = | C29: =+'Gas Input Table Summary'!$D$20 -> 0.035 | J29: 15 | L29: 2035 | M29: 0 | N29: 4.215 | O29: 0 | P29: 0 | Q29: 0 | R29: 0 | S29: 0 | T29: 173 | U29: 0 | V29: 0 | W29: 3.076 | X29: 0 | Y29: 0 | Z29: 0 | AA29: 0 | AB29: 0 | AE29: 2035 | AF29: 0 | AG29: 0 | AH29: 0 | AJ29: 0 | AK29: 0 | AL29: 0 | AN29: 0 | AQ29: 2035 | AR29: 0 | AS29: 0 | AT29: 0.049 | AU29: 0 | AV29: 0.524 | AW29: 0 | AZ29: 0 | BB29: 0 | BC29: 0 | BD29: 0 | BE29: 0 | BH29: 2035 | BI29: 0 | BJ29: 0 | BK29: 10.2 | BL29: 0 | BM29: 0.208 | BN29: 0 | BP29: 0 | BR29: 0 | BT29: 0 | BW29: 2035 | BX29: 0 | BY29: 0 | BZ29: 0 | CA29: 0 | CC29: 0 | CD29: 0 | CE29: 0 | CG29: 0
E30: 23) Number of Participants = | F30: =ROUND('Database Inputs'!C12,0) -> 82 | J30: 16 | L30: 2036 | M30: 0 | N30: 4.363 | O30: 0 | P30: 0 | Q30: 0 | R30: 0 | S30: 0 | T30: 175 | U30: 0 | V30: 0 | W30: 3.184 | X30: 0 | Y30: 0 | Z30: 0 | AA30: 0 | AB30: 0 | AE30: 2036 | AF30: 0 | AG30: 0 | AH30: 0 | AJ30: 0 | AK30: 0 | AL30: 0 | AN30: 0 | AQ30: 2036 | AR30: 0 | AS30: 0 | AT30: 0.051 | AU30: 0 | AV30: 0.535 | AW30: 0 | AZ30: 0 | BB30: 0 | BC30: 0 | BD30: 0 | BE30: 0 | BH30: 2036 | BI30: 0 | BJ30: 0 | BK30: 10.557 | BL30: 0 | BM30: 0.215 | BN30: 0 | BP30: 0 | BR30: 0 | BT30: 0 | BW30: 2036 | BX30: 0 | BY30: 0 | BZ30: 0 | CA30: 0 | CC30: 0 | CD30: 0 | CE30: 0 | CG30: 0 | DB30: =$J18 -> 4
A31: 8) Non-Gas Fuel Loss Factor | C31: =+'Gas Input Table Summary'!$D$21 -> 0.067 | J31: 17 | L31: 2037 | M31: 0 | N31: 4.515 | O31: 0 | P31: 0 | Q31: 0 | R31: 0 | S31: 0 | T31: 176 | U31: 0 | V31: 0 | W31: 3.295 | X31: 0 | Y31: 0 | Z31: 0 | AA31: 0 | AB31: 0 | AE31: 2037 | AF31: 0 | AG31: 0 | AH31: 0 | AJ31: 0 | AK31: 0 | AL31: 0 | AN31: 0 | AQ31: 2037 | AR31: 0 | AS31: 0 | AT31: 0.053 | AU31: 0 | AV31: 0.546 | AW31: 0 | AZ31: 0 | BB31: 0 | BC31: 0 | BD31: 0 | BE31: 0 | BH31: 2037 | BI31: 0 | BJ31: 0 | BK31: 10.926 | BL31: 0 | BM31: 0.223 | BN31: 0 | BP31: 0 | BR31: 0 | BT31: 0 | BW31: 2037 | BX31: 0 | BY31: 0 | BZ31: 0 | CA31: 0 | CC31: 0 | CD31: 0 | CE31: 0 | CG31: 0 | DB31: =$J19 -> 5
E32: 24) Total Annual Dk Saved = | F32: =+'Total Program Inputs'!G13 -> 173 | J32: 18 | L32: 2038 | M32: 0 | N32: 4.673 | O32: 0 | P32: 0 | Q32: 0 | R32: 0 | S32: 0 | T32: 178 | U32: 0 | V32: 0 | W32: 3.41 | X32: 0 | Y32: 0 | Z32: 0 | AA32: 0 | AB32: 0 | AE32: 2038 | AF32: 0 | AG32: 0 | AH32: 0 | AJ32: 0 | AK32: 0 | AL32: 0 | AN32: 0 | AQ32: 2038 | AR32: 0 | AS32: 0 | AT32: 0.055 | AU32: 0 | AV32: 0.558 | AW32: 0 | AZ32: 0 | BB32: 0 | BC32: 0 | BD32: 0 | BE32: 0 | BH32: 2038 | BI32: 0 | BJ32: 0 | BK32: 11.308 | BL32: 0 | BM32: 0.231 | BN32: 0 | BP32: 0 | BR32: 0 | BT32: 0 | BW32: 2038 | BX32: 0 | BY32: 0 | BZ32: 0 | CA32: 0 | CC32: 0 | CD32: 0 | CE32: 0 | CG32: 0 | DB32: =$J20 -> 6
A33: 9) Gas Environmental Damage Factor = | C33: =+'Gas Input Table Summary'!$D$22 -> 0.38 | J33: 19 | L33: 2039 | M33: 0 | N33: 4.837 | O33: 0 | P33: 0 | Q33: 0 | R33: 0 | S33: 0 | T33: 180 | U33: 0 | V33: 0 | W33: 3.53 | X33: 0 | Y33: 0 | Z33: 0 | AA33: 0 | AB33: 0 | AE33: 2039 | AF33: 0 | AG33: 0 | AH33: 0 | AJ33: 0 | AK33: 0 | AL33: 0 | AN33: 0 | AQ33: 2039 | AR33: 0 | AS33: 0 | AT33: 0.056 | AU33: 0 | AV33: 0.57 | AW33: 0 | AZ33: 0 | BB33: 0 | BC33: 0 | BD33: 0 | BE33: 0 | BH33: 2039 | BI33: 0 | BJ33: 0 | BK33: 11.704 | BL33: 0 | BM33: 0.239 | BN33: 0 | BP33: 0 | BR33: 0 | BT33: 0 | BW33: 2039 | BX33: 0 | BY33: 0 | BZ33: 0 | CA33: 0 | CC33: 0 | CD33: 0 | CE33: 0 | CG33: 0
A34: Escalation Rate = | C34: =+'Gas Input Table Summary'!$D$23 -> 0.0216 | E34: 25) Incentive/Participant = | F34: ='Database Inputs'!L12 -> 15 | J34: 20 | L34: 2040 | M34: 0 | N34: 5.006 | O34: 0 | P34: 0 | Q34: 0 | R34: 0 | S34: 0 | T34: 182 | U34: 0 | V34: 0 | W34: 3.653 | X34: 0 | Y34: 0 | Z34: 0 | AA34: 0 | AB34: 0 | AE34: 2040 | AF34: 0 | AG34: 0 | AH34: 0 | AJ34: 0 | AK34: 0 | AL34: 0 | AN34: 0 | AQ34: 2040 | AR34: 0 | AS34: 0 | AT34: 0.058 | AU34: 0 | AV34: 0.583 | AW34: 0 | AZ34: 0 | BB34: 0 | BC34: 0 | BD34: 0 | BE34: 0 | BH34: 2040 | BI34: 0 | BJ34: 0 | BK34: 12.114 | BL34: 0 | BM34: 0.247 | BN34: 0 | BP34: 0 | BR34: 0 | BT34: 0 | BW34: 2040 | BX34: 0 | BY34: 0 | BZ34: 0 | CA34: 0 | CC34: 0 | CD34: 0 | CE34: 0 | CG34: 0
J35: 21 | L35: 2041 | M35: =ROUND(IF($C$47+$F$23>L35,$F$25*$F$30,0)+IF($C$48+$G$23>L35,$G$25*$G$30,0)+IF($C$49+$H$23>L35,$H$25*$H$30,0),0) -> 0 | N35: =ROUND($C$17*(1+$C$18)^J35,3) -> 5.182 | O35: =ROUND(M35*N35,0) -> 0 | P35: =ROUND($C$25*(1+$C$26)^J35,3) -> 0 | Q35: =ROUND(M35*P35,0) -> 0 | R35: =O35+Q35 -> 0 | S35: =ROUND(M35*$C$23,1) -> 0 | T35: =ROUND($C$20*(1+$C$21)^J35,0) -> 183 | U35: =ROUND(S35*T35,0) -> 0 | V35: =ROUND(+U35+R35,0) -> 0 | W35: =ROUND($H$36*(1+$C$11)^J35,3) -> 3.781 | X35: =ROUND((1-$H$38)*(W35*M35),0) -> 0 | Y35: 0 | Z35: 0 | AA35: =SUM(X35:Z35) -> 0 | AB35: =V35-AA35 -> 0 | AE35: 2041 | AF35: =+R35 -> 0 | AG35: =+U35 -> 0 | AH35: =+AG35+AF35 -> 0 | AJ35: =ROUND(Y35,0) -> 0 | AK35: =ROUND(Z35,0) -> 0 | AL35: =SUM(AJ35:AK35) -> 0 | AN35: =+AH35-AL35 -> 0 | AQ35: 2041 | AR35: =AF35 -> 0 | AS35: =+AG35 -> 0 | AT35: =ROUND(($C$28/(1-$C$31))*(1+$C$29)^J35,3) -> 0.06 | AU35: =ROUND((IF($C$47+$F$23>$AQ35,$F$27*$F$30,0)+IF($C$48+$G$23>AQ35,$G$27*$G$30,0)+IF($C$49+$H$23>AQ35,$H$27*$H$30,0))*AT35,0) -> 0 | AV35: =ROUND($C$33*(1+$C$34)^J35,3) -> 0.595 | AW35: =ROUND(AV35*M35,0) -> 0 | AZ35: =ROUND(AR35+AS35+AU35+AW35+AY35,0) -> 0 | BB35: 0 | BC35: 0 | BD35: =BB35+BC35 -> 0 | BE35: =AZ35-BD35 -> 0 | BH35: 2041 | BI35: 0 | BJ35: =+M35 -> 0 | BK35: =ROUND($C$10*(1+$C$11)^J35,3) -> 12.538 | BL35: =ROUND(BJ35*BK35,0) -> 0 | BM35: =ROUND($C$13*(1+$C$14)^J35,3) -> 0.256 | BN35: =ROUND((IF($C$47+$F$23>BH35,$F$27*$F$30,0)+IF($C$49+$H$23>BH35,$H$27*$H$30,0)+IF($C$48+$G$23>BH35,$G$27*$G$30,0))*BM35,0) -> 0 | BP35: =BI35+BL35+BN35+BO35 -> 0 | BR35: =+BC35 -> 0 | BT35: =BP35-BR35 -> 0 | BW35: 2041 | BX35: 0 | BY35: =U35 -> 0 | BZ35: =AU35 -> 0 | CA35: =SUM(BX35:BZ35) -> 0 | CC35: =BB35 -> 0 | CD35: =BC35 -> 0 | CE35: =SUM(CC35:CD35) -> 0 | CG35: =CA35-CE35 -> 0 | DB35: =$J21 -> 7
A36: 10) Non Gas Fuel Environmental Damage Factor = | C36: =+'Gas Input Table Summary'!$D$24 -> 0 | E36: 26) Distribution Delivery Charge | H36: =+'Gas Input Table Summary'!D58 -> 1.836 | J36: 22 | L36: 2042 | M36: 0 | N36: 5.363 | O36: 0 | P36: 0 | Q36: 0 | R36: 0 | S36: 0 | T36: 185 | U36: 0 | V36: 0 | W36: 3.913 | X36: 0 | Y36: 0 | Z36: 0 | AA36: 0 | AB36: 0 | AE36: 2042 | AF36: 0 | AG36: 0 | AH36: 0 | AJ36: 0 | AK36: 0 | AL36: 0 | AN36: 0 | AQ36: 2042 | AR36: 0 | AS36: 0 | AT36: 0.063 | AU36: 0 | AV36: 0.608 | AW36: 0 | AZ36: 0 | BB36: 0 | BC36: 0 | BD36: 0 | BE36: 0 | BH36: 2042 | BI36: 0 | BJ36: 0 | BK36: 12.977 | BL36: 0 | BM36: 0.265 | BN36: 0 | BP36: 0 | BR36: 0 | BT36: 0 | BW36: 2042 | BX36: 0 | BY36: 0 | BZ36: 0 | CA36: 0 | CC36: 0 | CD36: 0 | CE36: 0 | CG36: 0
A37: Escalation Rate = | C37: =+'Gas Input Table Summary'!$D$25 -> 0 | DB37: =$J22 -> 8
E38: 27) Effective Income Tax Rate = | H38: =+'Gas Input Table Summary'!D59 -> 0.21 | K38: Total = | M38: =SUM(M14:M36) -> 1730 | V38: =SUM(V14:V36) -> 7752 | AA38: =SUM(AA14:AA36) -> 4260 | AB38: =SUM(AB14:AB36) -> 3492 | AD38: Total = | AH38: =SUM(AH14:AH36) -> 7752 | AL38: =SUM(AL14:AL36) -> 1317 | AN38: =SUM(AN14:AN36) -> 6435 | AP38: Total = | AZ38: =SUM(AZ14:AZ36) -> 8478 | BD38: =SUM(BD14:BD36) -> 2547 | BE38: =SUM(BE14:BE36) -> 5931 | BG38: Total = | BJ38: =SUM(BJ14:BJ36) -> 1730 | BP38: =SUM(BP14:BP36) -> 13586 | BR38: =SUM(BR14:BR36) -> 2460 | BT38: =SUM(BT14:BT36) -> 11126 | BZ38: Total = | CA38: =SUM(CA14:CA36) -> 7752 | CE38: =SUM(CE14:CE36) -> 2547 | CG38: =SUM(CG14:CG36) -> 5205
A39: 11) Participant Discount Rate = | C39: =+'Gas Input Table Summary'!$D$26 -> 0.1032 | E39: (Federal & State Taxes) | T39: NPV = | V39: =ROUND(V14+NPV($C$41,V15:V36),0) -> 5694 | AA39: =ROUND(AA14+NPV($C$41,AA15:AA36),0) -> 3469 | AB39: =ROUND(AB14+NPV($C$41,AB15:AB36),0) -> 2225 | AG39: NPV = | AH39: =ROUND(AH14+NPV($C$41,AH15:AH36),0) -> 5694 | AL39: =ROUND(AL14+NPV($C$41,AL15:AL36),0) -> 1317 | AN39: =+AH39-AL39 -> 4377 | AW39: NPV = | AZ39: =ROUND(AZ14+NPV($C$43,AZ15:AZ36),0) -> 7576 | BD39: =ROUND(BD14+NPV($C$43,BD15:BD36),0) -> 2547 | BE39: =AZ39-BD39 -> 5029 | BN39: NPV = | BP39: =ROUND(BP14+NPV($C$39,BP15:BP36),0) -> 9267 | BR39: =ROUND(BR14+NPV($C$39,BR15:BR36),0) -> 2460 | BT39: =ROUND(BT14+NPV($C$39,BT15:BT36),0) -> 6807 | BZ39: NPV = | CA39: =ROUND(CA14+NPV($C$41,CA15:CA36),0) -> 5694 | CE39: =ROUND(CE14+NPV($C$41,CE15:CE36),0) -> 2547 | CG39: =ROUND(CG14+NPV($C$41,CG15:CG36),0) -> 3147
DB40: =$J23 -> 9
A41: 12) Utility Discount Rate = | C41: =+'Gas Input Table Summary'!$D$27 -> 0.07216 | E41: Test Results | F41: NPV | G41: B/C | K41: Total NPV = | N41: =AB39 -> 2225 | AD41: Total NPV = | AG41: =AN39 -> 4377 | AP41: Total NPV = | AS41: =BE39 -> 5029 | BG41: Total NPV = | BJ41: =BT39 -> 6807 | BV41: Total NPV = | BY41: =CG39 -> 3147 | DB41: =$J24 -> 10
E42: Ratepayer Impact Measure Test | F42: =N41 -> 2225 | G42: =N42 -> 1.64 | K42: Benefit/Cost Ratio = | N42: =ROUND(V39/AA39,2) -> 1.64 | AD42: Benefit/Cost Ratio = | AG42: =ROUND(AH39/AL39,2) -> 4.32 | AP42: Benefit/Cost Ratio = | AS42: =ROUND(AZ39/BD39,2) -> 2.97 | BG42: Benefit/Cost Ratio = | BJ42: =ROUND(BP39/BR39,2) -> 3.77 | BV42: Benefit/Cost Ratio = | BY42: =ROUND(CA39/CE39,2) -> 2.24 | DB42: =$J25 -> 11
A43: 13) Societal Discount Rate = | C43: =+'Gas Input Table Summary'!$D$28 -> 0.0247 | E43: Utility Cost Test | F43: =AG41 -> 4377 | G43: =AG42 -> 4.32 | DB43: =$J26 -> 12
E44: Societal Test | F44: =AS41 -> 5029 | G44: =AS42 -> 2.97 | J44: Worksheet Calculations | BV44: Worksheet Calculations
A45: 14) General Input Data Year = | C45: =+'Gas Input Table Summary'!$D$29 -> 2020 | E45: Participant Test | F45: =BJ41 -> 6807 | G45: =BJ42 -> 3.77 | J45: (A) | K45: = Average Dk/Participant Saved (21) x Number of Participants (23) for Project Life (20) | T45: (I) | U45: = (G) x (H) | AD45: Worksheet Calculations | AP45: Worksheet Calculations | BG45: Worksheet Calculations | BV45: (A) | BW45: = Table 1 (F)
E46: Total Resource Cost Test | F46: =BY41 -> 3147 | G46: =BY42 -> 2.24 | J46: (B) | K46: = Commodity Cost (3) escalated | T46: (J) | U46: = (F) + (I) | AD46: (A) | AE46: = Table 1 (F) | AP46: (A) | AQ46: = Table 1 (F) | AW46: (H) | AZ46: = Table 2 (F) | BG46: (A) | BH46: = Table 1 (N) | BL46: (G) | BM46: = (A) + (D) + (F) | BV46: (B) | BW46: = Table 1 (I)
A47: 15) Project Analysis Year 1 = | C47: =+'Total Program Inputs'!C6 -> 2020 | J47: (C) | K47: = (A) x (B) | T47: (K) | U47: = Distribution Delivery Charge (26) escalated. | AD47: (B) | AE47: = Table 1 (I) | AP47: (G) | AQ47: = Table 1 (I) | AW47: (I) | AZ47: = Direct Part. Costs (17) x No. of Part. (23) - Table 1 (N) | BG47: (B) | BH47: = Table 1 (A) | BL47: (H) | BM47: = Direct Participant Costs (17) x Number of Participants (23) | BV47: (C) | BW47: = Table 3 (D)
J48: (D) | K48: = Variable O&M Cost (6), escalated | T48: (L) | U48: = (A) x (K) x (1-Inverse of Tax Rate (27) | AD48: (C) | AE48: = Table 1 (J) | AP48: (C) | AQ48: = Non-Gas Fuel Cost (7), adjusted for losses (8), escalated.. | AW48: (J) | AZ48: = (H) + (I) | BG48: (C) | BH48: = Retail Rate (1) escalated. | BL48: (I) | BM48: = (G) - (H) | BV48: (D) | BW48: = (A) + (B) + (C)
J49: (E) | K49: = (A) x (D) | T49: (M) | U49: = Admin & Operating Costs (16a) | AD49: (D) | AE49: = Table 1 (M) | AP49: (D) | AQ49: = (C) x [Avg. Non-Gas Fuel Units/Part.Saved (22) x No. of Part. (23) | AW49: (K) | AZ49: = (G) - (J) | BG49: (D) | BH49: =(B) x (C) | BV49: (E) | BW49: = Table 3 (H) | DB49: =$J27 -> 13
J50: (F) | K50: = (C) + (E) | T50: (N) | U50: = Incentive Costs (16b) | AD50: (E) | AE50: = Table 1 (N) | AP50: (E) | AQ50: = Gas Environmental Damage Factor (9), escalated | BG50: (E) | BH50: = Non-Gas Fuel Retail Rate (2), escalated. | BV50: (F) | BW50: = Table 3 (I) | DB50: =$J28 -> 14
J51: (G) | K51: = (A) x Peak Reduction Factor (5) | T51: (O) | U51: = (L) + (M) + (N) | AD51: (F) | AE51: = (D) + (E) | AP51: (F) | AQ51: = Table 1 (A) x (E) | BG51: (F) | BH51: = (E) x [Avg. Non-Gas Fuel Units/Part.Saved (22) x No. of Part. (23) | BV51: (G) | BW51: = (E) + (F) | DB51: =$J29 -> 15
J52: (H) | K52: = Demand Cost (4) escalated. | T52: (P) | U52: = (J) - (O) | AD52: (G) | AE52: = (C) - (F) | AP52: (G) | AQ52: = (A) + (B) + (D) + (F) | BV52: (H) | BW52: = (D) - (G)

Sheet Programmable Tstats - Tier 2
A1: NATURAL GAS CONSERVATION PROGRAMS/DEMAND-SIDE MANAGEMENT | K1: Table 1 | AD1: Table 2 | AP1: Table 3 | BG1: Table 4 | BV1: Table 5
A2: BEN/COST ANALYSIS FOR GAS CONSERVATION | K2: Ratepayer Impact Measure Test | AD2: Utility Cost Test | AP2: Societal Test | BG2: Participant Test | BV2: Total Resource Cost Test
A4: Company: | B4: Montana-Dakota Utilities Co. | K4: Company: | M4: =B4 -> Montana-Dakota Utilities Co. | AD4: Company: | AF4: =B4 -> Montana-Dakota Utilities Co. | AP4: Company: | AR4: =AF4 -> Montana-Dakota Utilities Co. | BH4: Company: | BI4: =AR4 -> Montana-Dakota Utilities Co. | BW4: Company: | BX4: =BI4 -> Montana-Dakota Utilities Co.
A5: Project: | B5: ='Database Inputs'!A13 -> Programmable Thermostats - Tier 2 | K5: Project: | M5: =$B$5 -> Programmable Thermostats - Tier 2 | AD5: Project: | AF5: =$B$5 -> Programmable Thermostats - Tier 2 | AP5: Project: | AR5: =$B$5 -> Programmable Thermostats - Tier 2 | BH5: Project: | BI5: =$B$5 -> Programmable Thermostats - Tier 2 | BW5: Project: | BX5: =$B$5 -> Programmable Thermostats - Tier 2
A6: Program Years: | B6: ='Total Program'!$B$6 -> 2020
N7: Benefits | X7: Costs | AF7: Benefits | AJ7: Costs | AR7: Benefits | BB7: Costs | BI7: Benefits | BR7: Costs | BX7: Benefits | CC7: Costs
A8: Input Data | F8: =+'Total Program Inputs'!C6 -> 2020 | AB8: Annual | AN8: Annual | AT8: Non-Gas | BE8: Annual | BT8: Annual | CG8: Annual
M9: Total | N9: Gas | O9: Gas | P9: Variable | Q9: Variable | R9: Total | S9: Peak Dk | T9: Demand | U9: Total | W9: Distribution | Y9: Program | AA9: Total | AB9: Benefits | AF9: Total | AG9: Total | AH9: Annual | AJ9: Program | AL9: Utility | AN9: Benefits | AR9: Total | AS9: Total | AT9: Energy | AU9: Non-Gas | AV9: Environmental | AW9: Environmental | AZ9: Annual | BB9: Utility | BC9: Participants' | BD9: Annual | BE9: Benefits | BJ9: Total | BL9: Gas | BM9: Non-Gas | BN9: Non-Gas | BP9: Total | BR9: Direct | BT9: Benefits | BX9: Total | BY9: Total | BZ9: Non-Gas | CA9: Total | CC9: Utility | CD9: Participants' | CG9: Benefits
A10: 1) Retail Rate ($/Dk) = | C10: =+'Gas Input Table Summary'!$D$7 -> 6.088 | E10: 16) Utility Project Costs | M10: Energy | N10: Commodity | O10: Commodity | P10: O & M | Q10: O & M | R10: Energy | S10: Demand | T10: Savings | U10: Demand | V10: Total | W10: Delivery | X10: Lost | Y10: Admin | Z10: Incentive | AA10: Program | AB10: Less | AF10: Energy | AG10: Demand | AH10: Total | AJ10: Admin | AK10: Incentive | AL10: Program | AN10: Less | AR10: Energy | AS10: Demand | AT10: Savings | AU10: Energy | AV10: Damage | AW10: Damage | AZ10: Total | BB10: Program | BC10: Costs Net | BD10: Total | BE10: Less | BI10: Incentives | BJ10: Energy | BK10: Retail | BL10: Bill | BM10: Fuel | BN10: Energy | BP10: Annual | BR10: Participant | BT10: Less | BX10: Energy | BY10: Demand | BZ10: Energy | CA10: Annual | CC10: Program | CD10: Costs Net | CE10: Total | CG10: Less
A11: Escalation Rate = | C11: =+'Gas Input Table Summary'!$D$8 -> 0.035 | E11: 16a) Administrative & Operating Costs = | F11: =+'Total Program Inputs'!M14 -> 723 | J11: t | M11: Reduction | N11: Cost/Dk | O11: Savings | P11: Cost/Dk | Q11: Savings | R11: Savings | S11: Reduction | T11: Per Unit | U11: Savings | V11: Savings | W11: Charge | X11: Margin | Y11: Costs | Z11: Costs | AA11: Costs | AB11: Costs | AF11: Savings | AG11: Savings | AH11: Savings | AJ11: Costs | AK11: Costs | AL11: Costs | AN11: Costs | AR11: Savings | AS11: Savings | AT11: ($/Part.) | AU11: Savings | AV11: Savings/Dk | AW11: Savings | AZ11: Savings | BB11: Costs | BC11: of Rebate | BD11: Costs | BE11: Costs | BI11: Received | BJ11: Reduction | BK11: Rate | BL11: Savings | BM11: Retail Rate | BN11: Savings | BP11: Benefits | BR11: Costs | BT11: Costs | BX11: Savings | BY11: Savings | BZ11: Savings | CA11: Benefits | CC11: Costs | CD11: of Rebate | CE11: Costs | CG11: Costs
E12: 16b) Incentive Costs = | F12: =+'Total Program Inputs'!I14 -> 10316 | L12: Year | M12: (A) | N12: (B) | O12: (C) | P12: (D) | Q12: (E) | R12: (F) | S12: (G) | T12: (H) | U12: (I) | V12: (J) | W12: (K) | X12: (L) | Y12: (M) | Z12: (N) | AA12: (O) | AB12: (P) | AE12: Year | AF12: (A) | AG12: (B) | AH12: (C) | AJ12: (D) | AK12: (E) | AL12: (F) | AN12: (G) | AQ12: Year | AR12: (A) | AS12: (B) | AT12: (C) | AU12: (D) | AV12: (E) | AW12: (F) | AZ12: (G) | BB12: (H) | BC12: (I) | BD12: (J) | BE12: (K) | BH12: Year | BI12: (A) | BJ12: (B) | BK12: (C) | BL12: (D) | BM12: (E) | BN12: (F) | BP12: (G) | BR12: (H) | BT12: (I) | BW12: Year | BX12: (A) | BY12: (B) | BZ12: (C) | CA12: (D) | CC12: (E) | CD12: (F) | CE12: (G) | CG12: (H)
A13: 2) Non-Gas Fuel Retail Rate ($/Fuel Unit) = | C13: =+'Gas Input Table Summary'!$D$9 -> 0.12423 | E13: 16c) Total Utility Project Costs = | F13: =SUM(F11:F12) -> 11039
A14: Escalation Rate = | C14: =+'Gas Input Table Summary'!$D$10 -> 0.035 | J14: =$C$47-$C$45 -> 0 | L14: =$C$47 -> 2020 | M14: =ROUND(IF($C$47+$F$23>L14,F25*F30,0),0) -> 912 | N14: =ROUND($C$17*(1+$C$18)^J14,3) -> 2.516 | O14: =ROUND(M14*N14,0) -> 2295 | P14: =ROUND($C$25*(1+$C$26)^J14,3) -> 0 | Q14: =ROUND(M14*P14,0) -> 0 | R14: =O14+Q14 -> 2295 | S14: =ROUND(M14*$C$23,1) -> 9.1 | T14: =ROUND($C$20*(1+$C$21)^J14,0) -> 149 | U14: =ROUND(S14*T14,0) -> 1356 | V14: =ROUND(+U14+R14,0) -> 3651 | W14: =ROUND($H$36*(1+$C$11)^J14,3) -> 1.836 | X14: =ROUND((1-$H$38)*(W14*M14),0) -> 1323 | Y14: =ROUND($F$11,0) -> 723 | Z14: =ROUND($F$12,0) -> 10316 | AA14: =SUM(X14:Z14) -> 12362 | AB14: =V14-AA14 -> -8711 | AE14: =$C$47 -> 2020 | AF14: =+R14 -> 2295 | AG14: =+U14 -> 1356 | AH14: =+AG14+AF14 -> 3651 | AJ14: =ROUND(Y14,0) -> 723 | AK14: =ROUND(Z14,0) -> 10316 | AL14: =SUM(AJ14:AK14) -> 11039 | AN14: =+AH14-AL14 -> -7388 | AQ14: =$C$47 -> 2020 | AR14: =AF14 -> 2295 | AS14: =+AG14 -> 1356 | AT14: =ROUND(($C$28/(1-$C$31))*(1+$C$29)^J14,3) -> 0.029 | AU14: =ROUND(IF($C$47+$F$23>$AQ14,$F$30*$F$27,0)*AT14,0) -> 205 | AV14: =ROUND($C$33*(1+$C$34)^J14,3) -> 0.38 | AW14: =ROUND(AV14*M14,0) -> 347 | AZ14: =ROUND(AR14+AS14+AU14+AW14+AY14,0) -> 4203 | BB14: =ROUND($F$13,0) -> 11039 | BC14: =ROUND((F15*F30)-Z14,0) -> 8604 | BD14: =BB14+BC14 -> 19643 | BE14: =AZ14-BD14 -> -15440 | BH14: =$C$47 -> 2020 | BI14: =+F12 -> 10316 | BJ14: =+M14 -> 912 | BK14: =ROUND($C$10*(1+$C$11)^J14,3) -> 6.088 | BL14: =ROUND(BJ14*BK14,0) -> 5552 | BM14: =ROUND($C$13*(1+$C$14)^J14,3) -> 0.124 | BN14: =ROUND(IF($C$47+$F$23>$BH14,$F$30*$F$27,0)*BM14,0) -> 874 | BP14: =BI14+BL14+BN14+BO14 -> 16742 | BR14: =ROUND(F15*F30,0) -> 18920 | BT14: =BP14-BR14 -> -2178 | BW14: =$C$47 -> 2020 | BX14: =$R14 -> 2295 | BY14: =U14 -> 1356 | BZ14: =AU14 -> 205 | CA14: =SUM(BX14:BZ14) -> 3856 | CC14: =BB14 -> 11039 | CD14: =BC14 -> 8604 | CE14: =SUM(CC14:CD14) -> 19643 | CG14: =CA14-CE14 -> -15787
A15: Non-Gas Fuel Units (ie. kWh,Gallons, etc) = | C15: =+'Gas Input Table Summary'!$D$11 -> Kwh | E15: 17) Direct Participant Costs ($/Part.) = | F15: =ROUND('Database Inputs'!K13,0) -> 110 | J15: =J14+1 -> 1 | L15: =L14+1 -> 2021 | M15: =ROUND(IF($C$47+$F$23>L15,$F$25*$F$30,0)+IF($C$48+$G$23>L15,$G$25*$G$30,0),0) -> 912 | N15: 2.604 | O15: 2375 | P15: 0 | Q15: =ROUND(M15*P15,0) -> 0 | R15: 2375 | S15: 9.1 | T15: 150 | U15: =ROUND(S15*T15,0) -> 1365 | V15: =ROUND(+U15+R15,0) -> 3740 | W15: 1.9 | X15: 1369 | Y15: =ROUND($G$11,0) -> 0 | Z15: =ROUND($G$12,0) -> 0 | AA15: 1369 | AB15: 2371 | AE15: =AE14+1 -> 2021 | AF15: =+R15 -> 2375 | AG15: =+U15 -> 1365 | AH15: =+AG15+AF15 -> 3740 | AJ15: =ROUND(Y15,0) -> 0 | AK15: 0 | AL15: 0 | AN15: =+AH15-AL15 -> 3740 | AQ15: =AQ14+1 -> 2021 | AR15: 2375 | AS15: 1365 | AT15: 0.03 | AU15: =ROUND((IF($C$47+$F$23>$AQ15,$F$27*$F$30,0)+IF($C$48+$G$23>AQ15,$G$27*$G$30,0))*AT15,0) -> 212 | AV15: 0.388 | AW15: 354 | AZ15: =ROUND(AR15+AS15+AU15+AW15+AY15,0) -> 4306 | BB15: =ROUND($G$13,0) -> 0 | BC15: =ROUND(($G$15*$G$30)-$Z$15,0) -> 0 | BD15: =BB15+BC15 -> 0 | BE15: 4306 | BH15: =BH14+1 -> 2021 | BI15: =+G12 -> 0 | BJ15: 912 | BK15: 6.301 | BL15: =ROUND(BJ15*BK15,0) -> 5747 | BM15: 0.129 | BN15: =ROUND((IF($C$47+$F$23>BH15,$F$27*$F$30,0)+IF($C$48+$G$23>BH15,$G$27*$G$30,0))*BM15,0) -> 910 | BP15: 6657 | BR15: =ROUND($G$15*$G$30,0) -> 0 | BT15: =BP15-BR15 -> 6657 | BW15: =BW14+1 -> 2021 | BX15: 2375 | BY15: =U15 -> 1365 | BZ15: =AU15 -> 212 | CA15: =SUM(BX15:BZ15) -> 3952 | CC15: =BB15 -> 0 | CD15: 0 | CE15: =SUM(CC15:CD15) -> 0 | CG15: =CA15-CE15 -> 3952
J16: 2 | L16: 2022 | M16: =ROUND(IF($C$47+$F$23>L16,$F$25*$F$30,0)+IF($C$48+$G$23>L16,$G$25*$G$30,0)+IF($C$49+$H$23>L16,$H$25*$H$30,0),0) -> 912 | N16: =ROUND($C$17*(1+$C$18)^J16,3) -> 2.695 | O16: =ROUND(M16*N16,0) -> 2458 | P16: =ROUND($C$25*(1+$C$26)^J16,3) -> 0 | Q16: 0 | R16: =O16+Q16 -> 2458 | S16: =ROUND(M16*$C$23,1) -> 9.1 | T16: =ROUND($C$20*(1+$C$21)^J16,0) -> 152 | U16: =ROUND(S16*T16,0) -> 1383 | V16: =ROUND(+U16+R16,0) -> 3841 | W16: =ROUND($H$36*(1+$C$11)^J16,3) -> 1.967 | X16: =ROUND((1-$H$38)*(W16*M16),0) -> 1417 | Y16: =ROUND($H$11,0) -> 0 | Z16: =ROUND($H$12,0) -> 0 | AA16: 1417 | AB16: =V16-AA16 -> 2424 | AE16: 2022 | AF16: 2458 | AG16: 1383 | AH16: =+AG16+AF16 -> 3841 | AJ16: 0 | AK16: 0 | AL16: 0 | AN16: 3841 | AQ16: 2022 | AR16: 2458 | AS16: 1383 | AT16: =ROUND(($C$28/(1-$C$31))*(1+$C$29)^J16,3) -> 0.031 | AU16: =ROUND((IF($C$47+$F$23>$AQ16,$F$27*$F$30,0)+IF($C$48+$G$23>AQ16,$G$27*$G$30,0)+IF($C$49+$H$23>AQ16,$H$27*$H$30,0))*AT16,0) -> 219 | AV16: 0.397 | AW16: 362 | AZ16: 4422 | BB16: =ROUND($H$13,0) -> 0 | BC16: =ROUND(($H$15*$H$30)-$Z$16,0) -> 0 | BD16: 0 | BE16: 4422 | BH16: 2022 | BI16: =ROUND(H12,0) -> 0 | BJ16: 912 | BK16: 6.522 | BL16: =ROUND(BJ16*BK16,0) -> 5948 | BM16: 0.133 | BN16: =ROUND((IF($C$47+$F$23>BH16,$F$27*$F$30,0)+IF($C$49+$H$23>BH16,$H$27*$H$30,0)+IF($C$48+$G$23>BH16,$G$27*$G$30,0))*BM16,0) -> 938 | BP16: 6886 | BR16: =ROUND($H$15*$H$30,0) -> 0 | BT16: 6886 | BW16: 2022 | BX16: 2458 | BY16: 1383 | BZ16: 219 | CA16: 4060 | CC16: 0 | CD16: 0 | CE16: 0 | CG16: =CA16-CE16 -> 4060
A17: 3) Commodity Cost ($/Dk) = | C17: =+'Gas Input Table Summary'!$D$12 -> 2.516 | E17: 18) Participant Non-Energy Costs (Annual $/Part.) = | F17: =+'Gas Input Table Summary'!D35 -> 0 | J17: 3 | L17: 2023 | M17: =ROUND(IF($C$47+$F$23>L17,$F$25*$F$30,0)+IF($C$48+$G$23>L17,$G$25*$G$30,0)+IF($C$49+$H$23>L17,$H$25*$H$30,0),0) -> 912 | N17: 2.79 | O17: 2544 | P17: 0 | Q17: 0 | R17: 2544 | S17: 9.1 | T17: 153 | U17: =ROUND(S17*T17,0) -> 1392 | V17: 3936 | W17: 2.036 | X17: 1467 | Y17: 0 | Z17: 0 | AA17: 1467 | AB17: 2469 | AE17: 2023 | AF17: 2544 | AG17: 1392 | AH17: 3936 | AJ17: 0 | AK17: 0 | AL17: 0 | AN17: 3936 | AQ17: 2023 | AR17: 2544 | AS17: 1392 | AT17: =ROUND(($C$28/(1-$C$31))*(1+$C$29)^J17,3) -> 0.033 | AU17: =ROUND((IF($C$47+$F$23>$AQ17,$F$27*$F$30,0)+IF($C$48+$G$23>AQ17,$G$27*$G$30,0)+IF($C$49+$H$23>AQ17,$H$27*$H$30,0))*AT17,0) -> 233 | AV17: 0.405 | AW17: 369 | AZ17: 4538 | BB17: 0 | BC17: 0 | BD17: 0 | BE17: 4538 | BH17: 2023 | BI17: 0 | BJ17: 912 | BK17: 6.75 | BL17: 6156 | BM17: 0.138 | BN17: =ROUND((IF($C$47+$F$23>BH17,$F$27*$F$30,0)+IF($C$49+$H$23>BH17,$H$27*$H$30,0)+IF($C$48+$G$23>BH17,$G$27*$G$30,0))*BM17,0) -> 973 | BP17: 7129 | BR17: =+BC17 -> 0 | BT17: 7129 | BW17: 2023 | BX17: 2544 | BY17: 1392 | BZ17: 233 | CA17: 4169 | CC17: 0 | CD17: 0 | CE17: 0 | CG17: 4169
A18: Escalation Rate = | C18: =+'Gas Input Table Summary'!$D$13 -> 0.035 | E18: Escalation Rate = | F18: =+'Gas Input Table Summary'!D38 -> 0 | J18: 4 | L18: 2024 | M18: 912 | N18: 2.887 | O18: 2633 | P18: 0 | Q18: 0 | R18: 2633 | S18: 9.1 | T18: 155 | U18: 1411 | V18: 4044 | W18: 2.107 | X18: 1518 | Y18: 0 | Z18: 0 | AA18: 1518 | AB18: 2526 | AE18: 2024 | AF18: 2633 | AG18: 1411 | AH18: 4044 | AJ18: 0 | AK18: 0 | AL18: 0 | AN18: 4044 | AQ18: 2024 | AR18: 2633 | AS18: 1411 | AT18: 0.034 | AU18: 240 | AV18: 0.414 | AW18: 378 | AZ18: 4662 | BB18: 0 | BC18: 0 | BD18: 0 | BE18: 4662 | BH18: 2024 | BI18: 0 | BJ18: 912 | BK18: 6.986 | BL18: 6371 | BM18: 0.143 | BN18: 1008 | BP18: 7379 | BR18: 0 | BT18: 7379 | BW18: 2024 | BX18: 2633 | BY18: 1411 | BZ18: 240 | CA18: 4284 | CC18: 0 | CD18: 0 | CE18: 0 | CG18: 4284 | DB18: t
J19: 5 | L19: 2025 | M19: =ROUND(IF($C$47+$F$23>L19,$F$25*$F$30,0)+IF($C$48+$G$23>L19,$G$25*$G$30,0)+IF($C$49+$H$23>L19,$H$25*$H$30,0),0) -> 912 | N19: 2.988 | O19: 2725 | P19: 0 | Q19: 0 | R19: 2725 | S19: 9.1 | T19: 156 | U19: 1420 | V19: 4145 | W19: 2.181 | X19: 1571 | Y19: 0 | Z19: 0 | AA19: 1571 | AB19: 2574 | AE19: 2025 | AF19: 2725 | AG19: 1420 | AH19: 4145 | AJ19: 0 | AK19: 0 | AL19: 0 | AN19: 4145 | AQ19: 2025 | AR19: 2725 | AS19: 1420 | AT19: 0.035 | AU19: 247 | AV19: 0.423 | AW19: 386 | AZ19: 4778 | BB19: 0 | BC19: 0 | BD19: 0 | BE19: 4778 | BH19: 2025 | BI19: 0 | BJ19: 912 | BK19: 7.231 | BL19: 6595 | BM19: 0.148 | BN19: 1044 | BP19: 7639 | BR19: 0 | BT19: 7639 | BW19: 2025 | BX19: 2725 | BY19: 1420 | BZ19: 247 | CA19: 4392 | CC19: 0 | CD19: 0 | CE19: 0 | CG19: 4392
A20: 4) Demand Cost ($/Unit/Yr) = | C20: =+'Gas Input Table Summary'!$D$14 -> 148.86 | E20: 19) Participant Non-Energy Savings (Annual $/Part) = | F20: =+'Gas Input Table Summary'!D41 -> 0 | J20: 6 | L20: 2026 | M20: 912 | N20: 3.093 | O20: 2821 | P20: 0 | Q20: 0 | R20: 2821 | S20: 9.1 | T20: 158 | U20: 1438 | V20: 4259 | W20: 2.257 | X20: 1626 | Y20: 0 | Z20: 0 | AA20: 1626 | AB20: 2633 | AE20: 2026 | AF20: 2821 | AG20: 1438 | AH20: 4259 | AJ20: 0 | AK20: 0 | AL20: 0 | AN20: 4259 | AQ20: 2026 | AR20: 2821 | AS20: 1438 | AT20: 0.036 | AU20: 254 | AV20: 0.432 | AW20: 394 | AZ20: 4907 | BB20: 0 | BC20: 0 | BD20: 0 | BE20: 4907 | BH20: 2026 | BI20: 0 | BJ20: 912 | BK20: 7.484 | BL20: 6825 | BM20: 0.153 | BN20: 1079 | BP20: 7904 | BR20: 0 | BT20: 7904 | BW20: 2026 | BX20: 2821 | BY20: 1438 | BZ20: 254 | CA20: 4513 | CC20: 0 | CD20: 0 | CE20: 0 | CG20: 4513
